Workbook

Sheet Instructions
I2: Validation - Croisement des tables
B3: Instructions:
A4: 1 | B4: Dupliquer votre modèle de détermination avant de passer aux étapes suivantes. | I4: Ovoltotrec | J4: Rapport GTYF | K4: Rapport ECONO
A5: 2 | B5: Coller les OUTPUTs ci-dessous dans votre modèle de détermination. | I5: =VLOOKUP("Ovoltotrec",Output!$C:$AM,8,FALSE) -> 5243000 | J5: =VLOOKUP("OVOLTOTREC",GTYF!$C:$AQ,8,FALSE)=I5 -> TRUE | K5: =VLOOKUP("OVOLTOTREC",Econo!$C:$AQ,8,FALSE)=I5 -> TRUE
B6: Outputs pour Cahier_Détermination_2023
A7: 3 | B7: Ajouter l'agrégat FCIMPROD_SNAT au thème 5 de la section LANSCAPE de votre modèle et les courbes SNAT
B8: *AGGREGATE FCIMPROD_SNAT FCxxxx
A9: 4 | B9: Copier coller la syntaxe TARGET_GTYF_DET, TARGET_ECONO, TARGET AREA, TARGET DETAIL (voir plus bas) dans la section "Reports" du scénario de détermination.
B10: *TARGET GTYF_DET.dbf
B11: *TARGET_ECONO.dbf
B12: *TARGET AREA.dbf et *TARGET DETAIL.dbf
A13: 5 | B13: Insérer la syntaxe économique dans les sections Output, Lanscape, …
A14: 6 | B14: Compiler le scénario (Faire une fleche sur vos scénarios)
A15: 7 | B15: Ouvrir vos rapports Output, GTYF et ECONO directement de WS. Contrôle A --> Contrôle C
A16: 8 | B16: Copier/coller vos rapports Output, GTYF et ECONO dans les onglets appropriés. Attention de respecter le nombres de colonnes. Les onglets Output, GTYF et ECONO sont préformatés et contiennent des formules aux colonnes AM à AP.
A17: 9 | B17: Valider que la cellule I5 indique vrai lorsque vous aurez collé vos données dans les onglets "Output", "GTYF" et ÉCONO" pour s'assurer que les données proviennent de la même optimisation.
A18: 10 | B18: Utiliser le fichier DBF pour copier/coller votre calendrier de COS dans l'onglet Cedule_COS et y ajouter les COS absents (COS fermés ou toujours ouverts) et compléter leur calendrier par des "0" ou des "1".
A19: 11 | B19: Compléter toutes les cellules et onglets de couleur | D19: jaune
A20: 12 | B20: Notez que les tableaux 9, 10, 13, 15 et 17 ont des instructions particulières

Sheet Suivi_modif
B4: Modifications apportées au cahier:
B5: Version originale (v1) | C5: Version de départ
B6: Version modifiée 2 novembre 2021 (v2) | C6: Correction du calcul de % de sapin en P0 (cellule O9)
B7: Version modifiée 4 novembre 2021 (v3) | C7: Correction du % récolte volume sur pied destiné à l'aménagement (Tableau - CelluleV59)
B8: Version modifiée 4 novembre 2021 (v3) | C8: Correction des valideurs Vrai/Faux (Tableau - Cellule W101, W102, W103)
B9: Version modifiée 8 novembre 2021 (v4) | C9: Onglet "UTA" - Amélioration de la syntaxe des rechercheV
B10: Version modifiée 8 novembre 2021 (v4) | C10: Tableau 3 - ligne 50: changé la police de caractère pour du Arial
B11: Version modifiée 9 novembre 2021 (v5) | C11: Onglet "Target_ECONO": La syntaxe du rapport a été corrigée.
B12: Version modifiée 11 novembre 2021 (v6) | C12: Tableau 1 - Entente Crie - Correction pour considérer le code "EXEC" pour les UA avec Entente Crie
B13: Version modifiée 15 novembre 2021 (v7) | C13: Tableau 3 - ligne 49 en caractère gras - ligne 51 en caractère normal
B14: Version modifiée 19 novembre 2021 (v8) | C14: Tableau 9 - Dernière ligne du tableau effacée
B15: Version modifiée 22 novembre 2021 (v9) | C15: Tableau 4 - Première colonne (ha/an) changé la mise en forme pour avoir des 0 ha/an au lieu de "-" Voir figure --> Format: Nombre - Utiliser séparateur de millier - sans décimales
B16: Version modifiée 25 novembre 2021 (v10) | C16: Tableau 8, cellules G102 (Coupes partielles de peuplements résineux) et G103 (Coupes partielles de peuplements de feuillus tolérants et de pins) arrondies à la dizaine près et ajouté note en bas
B17: Version modifiée 10 décembre 2021 (v11) | C17: Tableau 10 - Correction de la mise en forme de l'écart en % des plantations
B18: Version modifiée 23 mars 2022 (v12) | C18: Figure 4 - Correction des % de chacune des colonnes de classe d'âge. Les % sont maintenant calculés sur le sous-total FCAGE (signalement 1873)
B19: Version modifiée 27 avril 2022 (v13) | C19: Tableau 3 - ligne 51 : La plage de recherchev a été agrandie pour inclure les UA de la Côte-Nord

Sheet Tableaux
T1: Instructions : Compléter les cellules oranges | AB1: Avec l'utilisation de l'outil à Éric
B2: PROER1 : vous pouvez utiliser l'outil FoxPro pour compléter les cellules oranges : | T2: 1) Cellule V11 : Inscrire la superficie totale brute de la carte WS | AB2: 1559100.9 | AD2: 1559100.9 | AE2: =AD2-AB2 -> 0
B3: l'outil intérroge la carte Woodstock et met les valeurs dans un fichier Excel | T3: 2) Cellule V15 : Inscrire la superficie WS des GS RP1 et RP2 (ça ne devrait être que du EXEX et EXTI) | AB3: 0 | AD3: 0 | AE3: =AD3-AB3 -> 0
B4: interroge_carte_WS_pour cahier_analyse.FXP | T4: 3) Cellule V24 : Inscrire la superficie WS des GS RP3 à RP9 sur INC | AB4: 12027.2 | AD4: 12027.2 | AE4: 0
B5: T:\Donnees\Courant\CPF_2023-2028\Comite_Vague_2\30_Phase1\32_Sce1\Outils | T5: 4) Cellule V25 : Inscrire la superficie WS des GS SNAT sur INC (qui ne sont pas des RP) | AB5: 40153 | AD5: 40153 | AE5: 0
T6: 5) Cellules L20 à S21 : Inscrire la superficie de la carte WS pour chacune des cases oranges | AE6: 0
B7: Catégories | I7: Superficie | Z7: Total | AA7: Sup_aff | AB7: 12790.5 | AD7: 12790.5 | AE7: 0
I8: ha | J8: % | V8: Période | Z8: Total | AA8: Sup_empche | AB8: 10585.6 | AD8: 10585.6 | AE8: 0
B9: Superficie totale du territoire d'analyse (EXHU exclu) | I9: =V11-V16 -> 1556006.6 | J9: =IFERROR(I9/I9,"-") -> 1 | S9: =LEFT(B$25,10) -> Tableau 1. | T9: Output | U9: Superficie | V9: 0 | Z9: Total | AA9: Sup_ecot | AB9: 12893.9 | AD9: 12893.9 | AE9: 0
B10: Pertes (emprise chemin, écotone, improductif) | I10: =U20+V20+Y20 -> 25905.5 | J10: =I10/I9 -> 0.0166487083 | S10: =LEFT(B$25,10) -> Tableau 1. | T10: OSUPTOT | U10: WS | V10: =VLOOKUP(T10,Output!$C:$H,6,FALSE) -> 1533195.4 | Z10: INC | AA10: Sup_brivAB | AB10: 33331.9 | AD10: 33331.9 | AE10: 0
B11: Territoire improductif (EXEX + EXTI) | I11: =SUM(V13:V14) -> 233330.5 | J11: =I11/I9 -> 0.1499546981 | S11: Tableau 1. | U11: Brute | V11: =AB2 -> 1559100.9 | X11: Sup_soustraite : | Y11: =T20+U20+V20+Y20+AA20 -> 204643.3 | Z11: INC | AA11: Sup_brivCD | AB11: 29892.9 | AD11: 29892.9 | AE11: 0
B12: sans possibilité de remise en production | I12: =I11-I13 -> 233330.5 | J12: - | S12: Tableau 1. | U12: pertes | V12: =U20+V20+Y20 -> 25905.5 | X12: Sup nette : | Y12: =V11-Y11 -> 1354457.6 | Z12: Total | AA12: Sup_impro | AB12: 2426 | AD12: 2426 | AE12: 0
B13: avec possibilité de remise en production (RP1 et RP2) | I13: =V15 -> 0 | J13: - | S13: Tableau 1. | T13: OSUPEXEX | U13: EXEX | V13: =VLOOKUP(T13,Output!$C:$H,6,FALSE) -> 164307.2 | Z13: Total | AA13: Sup_pentf | AB13: 165947.3 | AD13: 165947.3 | AE13: 0
S14: Tableau 1. | T14: OSUPEXTI | U14: EXTI | V14: =VLOOKUP(T14,Output!$C:$H,6,FALSE) -> 69023.3 | Z14: INC | AA14: Sup_pentf | AB14: 128550.2 | AD14: 128550.2 | AE14: 0
B15: Territoire inclus dans l’UA mais exclu des activités d'aménagement (EXIN) | I15: =V17+X17+Y17 -> 335100.4 | J15: =I15/I9 -> 0.2153592408 | S15: Tableau 1. | U15: RP1/RP2 | V15: =AB3 -> 0 | X15: Superficie | Y15: sup_redu
B16: pentes abruptes et sommets (codes F et S) --> potentiellement récoltables | I16: =AA21 -> 128550.2 | J16: - | S16: Tableau 1. | T16: OSUPEXHU | U16: EXHU | V16: =VLOOKUP(T16,Output!$C:$H,6,FALSE) -> 3094.3 | X16: EXEC | Y16: EXEC
B17: bandes riveraines (densité AB) --> potentiellement récoltables | I17: =W21 -> 33331.9 | J17: - | S17: Tableau 1. | T17: OSUPEXIN | U17: EXIN | V17: =VLOOKUP(T17,Output!$C:$H,6,FALSE) -> 335100.4
B18: bandes riveraines (densité CD) --> potentiellement récoltables | I18: =X21 -> 29892.9 | J18: - | S18: Tableau 1. | T18: ↓ | U18: ↓ | V18: ↓ | Y18: ↓ | AA18: ↓
B19: autres | I19: =I15-I16-I17-I18 -> 143325.4 | S19: Tableau 1. | T19: Sup_aff | U19: Sup_empche | V19: Sup_ecot | W19: Sup_brivAB | X19: Sup_brivCD | Y19: Sup_impro | Z19: Sup_aut | AA19: Sup_pentf
B20: Territoire destiné à l'aménagement forestier (INC) | I20: =V22 -> 961670.2 | J20: =I20/I9 -> 0.6180373528 | S20: Tableau 1. | T20: =AB7 -> 12790.5 | U20: =AB8 -> 10585.6 | V20: =AB9 -> 12893.9 | Y20: =AB12 -> 2426 | AA20: =AB13 -> 165947.3 | AB20: Total
B21: forestier exploitable | I21: =V22-I22-I23 -> 909490 | J21: - | S21: Tableau 1. | W21: =AB10 -> 33331.9 | X21: =AB11 -> 29892.9 | AA21: =AB14 -> 128550.2 | AB21: INC
B22: forestier inexploitable avec possibilité de remise en production (RP3 à RP15) | I22: =V24 -> 12027.2 | J22: - | K22: =I22/F31 -> 0.2304944423 | S22: Tableau 1. | T22: OSUPINC | U22: INC | V22: =VLOOKUP(T22,Output!$C:$H,6,FALSE) -> 961670.2
B23: forestier inexploitable sans possibilité de remise en production (SNAT) | I23: =V25 -> 40153 | J23: - | S23: Tableau 1.
S24: Tableau 1. | U24: RP3 à RP9 | V24: =AB4 -> 12027.2
B25: Tableau 1. Répartition de la superficie de l'unité d'aménagement pas catégorie de territoire | S25: Tableau 1. | U25: SNAT | V25: =AB5 -> 40153
B26: Catégories | F26: Superficies
F27: Hectares | G27: %
B28: Superficie totale de l’unité d’aménagement | F28: =ROUND(I9,-1) -> 1556010 | G28: =F28/F28 -> 1
B29: Retraits de superficie
B30: Territoire non forestier | F30: =ROUND(I10+I11,-1) -> 259240 | G30: =F30/F28 -> 0.1666056131
B31: Territoire forestier peu productif (30 à 50 m³/ha) | F31: =ROUND(I22+I23,-1) -> 52180 | G31: =F31/F28 -> 0.03353448885
B32: Territoire forestier exclu de l’aménagement | F32: =ROUND(F28-F30-F31-F33,-1) -> 335100 | G32: =F32/F28 -> 0.2153585131 | N32: À compléter UA : | O32: UA:
B33: Superficie destinée à l’aménagement forestier | F33: =ROUND(I21,-1) -> 909490 | G33: =F33/F28 -> 0.584501385 | O33: 09751 | T33: Légende | U33: Output | V33: P2@P6
S34: =LEFT(B$46,10) -> Tableau 3. | T34: Sepm | U34: OVOLGSEPMREC | V34: =IFERROR(VLOOKUP($U34,Output!$C:$AM,37,FALSE)/5,0) -> 736467.872
S35: Tableau 3.
S36: Tableau 3. | T36: Tho | U36: OVOLTHOREC | V36: =IFERROR(VLOOKUP($U36,Output!$C:$AM,37,FALSE)/5,0) -> 477.4328
S37: Tableau 3. | T37: Pru | U37: OVOLPRUREC | V37: =IFERROR(VLOOKUP($U37,Output!$C:$AM,37,FALSE)/5,0) -> 0.3008
S38: Tableau 3. | T38: Pins | U38: OVOLGPINSREC | V38: =IFERROR(VLOOKUP($U38,Output!$C:$AM,37,FALSE)/5,0) -> 444.6604
S39: Tableau 3. | T39: Peu | U39: OVOLGPEUREC | V39: =IFERROR(VLOOKUP($U39,Output!$C:$AM,37,FALSE)/5,0) -> 155394.294
S40: Tableau 3. | T40: Bop | U40: OVOLGBPREC | V40: =IFERROR(VLOOKUP($U40,Output!$C:$AM,37,FALSE)/5,0) -> 146235.02
S41: Tableau 3. | T41: Boj | U41: OVOLBOJREC | V41: =IFERROR(VLOOKUP($U41,Output!$C:$AM,37,FALSE)/5,0) -> 3183.6024
S42: Tableau 3. | T42: Ers | U42: OVOLERSREC | V42: =IFERROR(VLOOKUP($U42,Output!$C:$AM,37,FALSE)/5,0) -> 13.9972
S43: Tableau 3. | T43: Err | U43: OVOLGEROREC | V43: =IFERROR(VLOOKUP($U43,Output!$C:$AM,37,FALSE)/5,0) -> 5907.286
S44: Tableau 3. | T44: Autre .F. (Auf) | V44: =V47-V42-V41 -> 475.5344
S45: Tableau 3. | T45: résineux | U45: OVOLGRREC | V45: =IFERROR(VLOOKUP($U45,Output!$C:$AM,37,FALSE)/5,0) -> 737390.266
B46: Tableau 3. Possibilités forestières par essence ou par groupe d’essences et écart avec la période 2018-2023 | S46: Tableau 3. | T46: intolérant | U46: OVOLGFIREC | V46: =IFERROR(VLOOKUP($U46,Output!$C:$AM,37,FALSE)/5,0) -> 307536.602
B47: Périodes | C47: ="Possibilités forestières (m"&CHAR(179)&" bruts/an)" -> Possibilités forestières (m³ bruts/an) | S47: Tableau 3. | T47: Tolérant | U47: OVOLGFTREC | V47: =IFERROR(VLOOKUP($U47,Output!$C:$AM,37,FALSE)/5,0) -> 3673.134
C48: SEPM | D48: Thuya | E48: Pruche | F48: Pins blanc et rouge | G48: Peupliers | H48: Bouleau à papier | I48: Bouleau jaune | J48: Érables à sucre et rouge | K48: Autres feuillus durs | L48: Total | N48: Possibilité forestière unitaire (PAC / Sup destinée à l'aménagement) | S48: Tableau 3. | T48: Total récoltés | U48: OVOLTOTREC | V48: =IFERROR(VLOOKUP($U48,Output!$C:$AM,37,FALSE)/5,0) -> 1048600
B49: 2023-2028 | C49: =ROUND(V$34,-2) -> 736500 | D49: =ROUND(V$36,-2) -> 500 | E49: =ROUND(V$37,-2) -> 0 | F49: =ROUND(V$38,-2) -> 400 | G49: =ROUND(V$39,-2) -> 155400 | H49: =ROUND(V$40,-2) -> 146200 | I49: =ROUND(V$41,-2) -> 3200 | J49: =ROUND(V$50,-2) -> 5900 | K49: =ROUND(V$44,-2) -> 500 | L49: =SUM(C49:K49) -> 1048600 | N49: =V57 -> 1.152953853 | S49: Tableau 3. | T49: FN sur pied | U49: OVOLGFNREC | V49: =IFERROR(VLOOKUP($U49,Output!$C:$AM,37,FALSE)/5,0) -> 475.2336
C50: =C49/$L$49 -> 0.7023650582 | D50: 0.0004768262445 | E50: 0 | F50: 0.0003814609956 | G50: 0.1481975968 | H50: 0.1394239939 | I50: 0.003051687965 | J50: 0.005626549685 | K50: 0.0004768262445 | L50: =SUM(C50:K50) -> 1 | S50: Tableau 3. | T50: ER | V50: =V42+V43 -> 5921.2832
B51: 2018-2023 | C51: =VLOOKUP($O$33,DataLocal!$A:$W,13,FALSE) -> 795600 | D51: =VLOOKUP($O$33,DataLocal!$A:$W,14,FALSE) -> 4500 | E51: =VLOOKUP($O$33,DataLocal!$A:$W,15,FALSE) -> 0 | F51: =VLOOKUP($O$33,DataLocal!$A:$W,16,FALSE) -> 2400 | G51: =VLOOKUP($O$33,DataLocal!$A:$W,17,FALSE) -> 95100 | H51: =VLOOKUP($O$33,DataLocal!$A:$W,18,FALSE) -> 79800 | I51: =VLOOKUP($O$33,DataLocal!$A:$W,19,FALSE) -> 14900 | J51: =VLOOKUP($O$33,DataLocal!$A:$W,20,FALSE) -> 12400 | K51: =VLOOKUP($O$33,DataLocal!$A:$W,21,FALSE) -> 800 | L51: =VLOOKUP($O$33,DataLocal!$A:$W,23,FALSE) -> 1005500 | N51: % du volume sur pied initial | S51: Tableau 3. | U51: OVOLSABREC | V51: =IFERROR(VLOOKUP($U51,Output!$C:$AM,37,FALSE)/5,0) -> 228165.88
B52: Écart | C52: =IFERROR((C49/C$51)-1,0) -> -0.07428355958 | D52: -0.8888888889 | E52: 0 | F52: -0.8333333333 | G52: 0.6340694006 | H52: 0.8320802005 | I52: -0.7852348993 | J52: -0.5241935484 | K52: -0.375 | L52: 0.04286424664 | N52: =V59 -> 0.01747547251 | S52: Tableau 3. | U52: OVOLGEPXREC | V52: =IFERROR(VLOOKUP($U52,Output!$C:$AM,37,FALSE)/5,0) -> 473116.78
B53: ="Répartition de la composante SEPM des possibilités forestières 2023-2028 : sapin ("&IFERROR(ROUND(V51/V34*100,0),0)&"%), épinettes ("&IFERROR(ROUND(V52/V34*100,0),0)&"%), pin gris ("&IFERROR(ROUND(V53/V34*100,0),0)&"%) et mélèzes ("&IFERROR(ROUND(V54/V34*100,0),0)&"%)." -> Répartition de la composante SEPM des possibilités forestières 2023-2028 : sapin (31%), épinettes (64%), pin gris (4%) et mélèzes (0%). | S53: Tableau 3. | U53: OVOLGPGREC | V53: =IFERROR(VLOOKUP($U53,Output!$C:$AM,37,FALSE)/5,0) -> 32899.6608
B54: ="Répartition de la composante Érables à sucre et rouge des possibilités forestières 2023-2028 : érable à sucre("&IFERROR(ROUND(V42/(V42+V43)*100,0),0)&"%) et érable rouge ("&IFERROR(ROUND(V43/(V42+V43)*100,0),0)&"%)." -> Répartition de la composante Érables à sucre et rouge des possibilités forestières 2023-2028 : érable à sucre(0%) et érable rouge (100%). | S54: Tableau 3. | U54: OVOLGMLREC | V54: =IFERROR(VLOOKUP($U54,Output!$C:$AM,37,FALSE)/5,0) -> 2285.5504
B55: Copier/Coller le tableau ci-dessus avec les lignes 53 et 54 | S55: Tableau 3. | U55: OSUPINC | V55: =IFERROR(VLOOKUP($U55,Output!$C:$AM,6,FALSE),0) -> 961670.2
S56: Tableau 3. | U56: OVOLTOTPIEDINC | V56: =IFERROR(VLOOKUP($U56,Output!$C:$AM,7,FALSE),0) -> 63252010.42
S57: Tableau 3. | U57: Possibilité forestière unitaire | V57: =IFERROR(V48/F33,0) -> 1.152953853
S58: Tableau 3. | U58: % récolte volume sur pied
U59: % récolte volume sur pied destiné à l'aménagement | V59: =V48/Figures!V19 -> 0.01747547251
B61: Tableau 4. Répartition des superficies récoltées et des possibilités forestières par grand type de forêt
B62: Grands types de forêt | D62: Superficie récoltée* | H62: Possibilités forestières* | S62: =LEFT(B$61,10) -> Tableau 4. | V62: Output total non arrondi | W62: Écart entre la somme du tableau et le output total
D63: Coupes totales | F63: Coupes partielles | H63: Résineux | J63: Feuillus tolérants | L63: Feuillus intolérants | N63: Total | S63: Tableau 4. | T63: Total | Z63: P2 à P6
D64: ha/an | E64: % | F64: ha/an | G64: % | H64: m³ bruts/an | I64: % | J64: ="m"&CHAR(179)&" bruts/an" -> m³ bruts/an | K64: % | L64: ="m"&CHAR(179)&" bruts/an" -> m³ bruts/an | M64: % | N64: ="m"&CHAR(179)&" bruts/an" -> m³ bruts/an | O64: % | S64: Tableau 4. | T64: ha/an | U64: % | Y64: Famille de courbe | Z64: OSUPINC | AA64: OSUPREALREGAFIN | AB64: OSUPREALREGAPAR | AC64: OSUPREALREGAPRE | AD64: OVOLGRREC | AE64: OVOLGAURREC | AF64: OVOLGFIREC | AG64: OVOLGFTREC | AH64: OVOLTOTREC
B65: Bétulaies blanches | D65: =ROUND(AA65/5,-1) -> 550 | E65: =IFERROR(D65/D$79,0) -> 0.07462686567 | F65: =ROUND(AB65/5,-1) -> 0 | G65: =IFERROR(F65/F$79,0) -> 0 | H65: =ROUND(AD65/5,-2) -> 11900 | I65: =IFERROR(H65/H$79,0) -> 0.01613778139 | J65: =ROUND(AG65/5,-2) -> 700 | K65: =IFERROR(J65/J$79,0) -> 0.1891891892 | L65: =ROUND(AF65/5,-2) -> 61800 | M65: =L65/L$79 -> 0.2010409889 | N65: =H65+J65+L65 -> 74400 | O65: =N65/$N$79 -> 0.07095851216 | S65: Tableau 4. | T65: =D65+F65 -> 550 | U65: =IFERROR(T65/T$79,0) -> 0.06539833532 | V65: =(AA65+AB65)/5 -> 548.2604 | W65: =T65-V65 -> 1.7396 | Y65: (FCTYF_BOP) | Z65: =VLOOKUP(Z$64&$Y65,GTYF!$C:$AP,6,FALSE) -> 32658.4 | AA65: =VLOOKUP(AA$64&$Y65,GTYF!$C:$AP,37,FALSE) -> 2741.302 | AB65: =VLOOKUP(AB$64&$Y65,GTYF!$C:$AP,37,FALSE) -> 0 | AC65: =VLOOKUP(AC$64&$Y65,GTYF!$C:$AP,37,FALSE) -> 2741.302 | AD65: =VLOOKUP(AD$64&$Y65,GTYF!$C:$AP,37,FALSE) -> 59294.516 | AE65: =VLOOKUP(AE$64&$Y65,GTYF!$C:$AP,37,FALSE) -> 101.726 | AF65: =VLOOKUP(AF$64&$Y65,GTYF!$C:$AP,37,FALSE) -> 309172.988 | AG65: =VLOOKUP(AG$64&$Y65,GTYF!$C:$AP,37,FALSE) -> 3505.82 | AH65: =VLOOKUP(AH$64&$Y65,GTYF!$C:$AP,37,FALSE) -> 371973.324
B66: Bétulaies blanches à résineux | D66: 690 | E66: =IFERROR(D66/D$79,0) -> 0.09362279512 | F66: 0 | G66: =IFERROR(F66/F$79,0) -> 0 | H66: =ROUND(AD66/5,-2) -> 39300 | I66: =IFERROR(H66/H$79,0) -> 0.05329536208 | J66: =ROUND(AG66/5,-2) -> 200 | K66: 0.05405405405 | L66: =ROUND(AF66/5,-2) -> 55000 | M66: =L66/L$79 -> 0.178919974 | N66: =H66+J66+L66 -> 94500 | O66: 0.09012875536 | S66: Tableau 4. | T66: 690 | U66: =IFERROR(T66/T$79,0) -> 0.0820451843 | V66: =(AA66+AB66)/5 -> 693.712 | W66: -3.712 | Y66: (FCTYF_BOPR) | Z66: =VLOOKUP(Z$64&$Y66,GTYF!$C:$AP,6,FALSE) -> 38812.9 | AA66: =VLOOKUP(AA$64&$Y66,GTYF!$C:$AP,37,FALSE) -> 3468.56 | AB66: =VLOOKUP(AB$64&$Y66,GTYF!$C:$AP,37,FALSE) -> 0 | AC66: =VLOOKUP(AC$64&$Y66,GTYF!$C:$AP,37,FALSE) -> 3468.56 | AD66: =VLOOKUP(AD$64&$Y66,GTYF!$C:$AP,37,FALSE) -> 196578.308 | AE66: =VLOOKUP(AE$64&$Y66,GTYF!$C:$AP,37,FALSE) -> 705.852 | AF66: =VLOOKUP(AF$64&$Y66,GTYF!$C:$AP,37,FALSE) -> 274844.64 | AG66: =VLOOKUP(AG$64&$Y66,GTYF!$C:$AP,37,FALSE) -> 879.488 | AH66: =VLOOKUP(AH$64&$Y66,GTYF!$C:$AP,37,FALSE) -> 472302.436
B67: Cédrières | D67: 0 | E67: 0 | F67: 0 | G67: 0 | H67: =ROUND(AD67/5,-2) -> 0 | I67: 0 | J67: 0 | K67: 0 | L67: 0 | M67: 0 | N67: 0 | O67: 0 | S67: Tableau 4. | T67: 0 | U67: 0 | V67: =(AA67+AB67)/5 -> 0 | W67: 0 | Y67: (FCTYF_THO) | Z67: =VLOOKUP(Z$64&$Y67,GTYF!$C:$AP,6,FALSE) -> 0 | AA67: =VLOOKUP(AA$64&$Y67,GTYF!$C:$AP,37,FALSE) -> 0 | AB67: =VLOOKUP(AB$64&$Y67,GTYF!$C:$AP,37,FALSE) -> 0 | AC67: =VLOOKUP(AC$64&$Y67,GTYF!$C:$AP,37,FALSE) -> 0 | AD67: =VLOOKUP(AD$64&$Y67,GTYF!$C:$AP,37,FALSE) -> 0 | AE67: =VLOOKUP(AE$64&$Y67,GTYF!$C:$AP,37,FALSE) -> 0 | AF67: =VLOOKUP(AF$64&$Y67,GTYF!$C:$AP,37,FALSE) -> 0 | AG67: =VLOOKUP(AG$64&$Y67,GTYF!$C:$AP,37,FALSE) -> 0 | AH67: =VLOOKUP(AH$64&$Y67,GTYF!$C:$AP,37,FALSE) -> 0
B68: Érablières rouges | D68: 0 | E68: 0 | F68: 0 | G68: 0 | H68: 0 | I68: 0 | J68: 0 | K68: 0 | L68: 0 | M68: 0 | N68: 0 | O68: 0 | S68: Tableau 4. | T68: 0 | U68: 0 | V68: =(AA68+AB68)/5 -> 0 | W68: 0 | Y68: (FCTYF_ERO) | Z68: =VLOOKUP(Z$64&$Y68,GTYF!$C:$AP,6,FALSE) -> 0 | AA68: =VLOOKUP(AA$64&$Y68,GTYF!$C:$AP,37,FALSE) -> 0 | AB68: =VLOOKUP(AB$64&$Y68,GTYF!$C:$AP,37,FALSE) -> 0 | AC68: =VLOOKUP(AC$64&$Y68,GTYF!$C:$AP,37,FALSE) -> 0 | AD68: =VLOOKUP(AD$64&$Y68,GTYF!$C:$AP,37,FALSE) -> 0 | AE68: =VLOOKUP(AE$64&$Y68,GTYF!$C:$AP,37,FALSE) -> 0 | AF68: =VLOOKUP(AF$64&$Y68,GTYF!$C:$AP,37,FALSE) -> 0 | AG68: =VLOOKUP(AG$64&$Y68,GTYF!$C:$AP,37,FALSE) -> 0 | AH68: =VLOOKUP(AH$64&$Y68,GTYF!$C:$AP,37,FALSE) -> 0
B69: Feuillus tolérants | D69: 0 | E69: 0 | F69: 0 | G69: 0 | H69: 0 | I69: 0 | J69: 0 | K69: 0 | L69: 0 | M69: 0 | N69: 0 | O69: 0 | S69: Tableau 4. | T69: 0 | U69: 0 | V69: 0 | W69: 0 | Y69: (FCTYF_FT) | Z69: =VLOOKUP(Z$64&$Y69,GTYF!$C:$AP,6,FALSE) -> 0 | AA69: =VLOOKUP(AA$64&$Y69,GTYF!$C:$AP,37,FALSE) -> 0 | AB69: =VLOOKUP(AB$64&$Y69,GTYF!$C:$AP,37,FALSE) -> 0 | AC69: =VLOOKUP(AC$64&$Y69,GTYF!$C:$AP,37,FALSE) -> 0 | AD69: =VLOOKUP(AD$64&$Y69,GTYF!$C:$AP,37,FALSE) -> 0 | AE69: =VLOOKUP(AE$64&$Y69,GTYF!$C:$AP,37,FALSE) -> 0 | AF69: =VLOOKUP(AF$64&$Y69,GTYF!$C:$AP,37,FALSE) -> 0 | AG69: =VLOOKUP(AG$64&$Y69,GTYF!$C:$AP,37,FALSE) -> 0 | AH69: =VLOOKUP(AH$64&$Y69,GTYF!$C:$AP,37,FALSE) -> 0
B70: Feuillus tolérants à résineux | D70: 0 | E70: 0 | F70: 10 | G70: 0.009615384615 | H70: 200 | I70: 0.0002712232167 | J70: 200 | K70: 0.05405405405 | L70: 0 | M70: 0 | N70: 400 | O70: 0.0003814973772 | S70: Tableau 4. | T70: 10 | U70: 0.001189060642 | V70: 5.632 | W70: 4.368 | Y70: (FCTYF_FTR) | Z70: =VLOOKUP(Z$64&$Y70,GTYF!$C:$AP,6,FALSE) -> 4264.9 | AA70: =VLOOKUP(AA$64&$Y70,GTYF!$C:$AP,37,FALSE) -> 0 | AB70: =VLOOKUP(AB$64&$Y70,GTYF!$C:$AP,37,FALSE) -> 28.16 | AC70: =VLOOKUP(AC$64&$Y70,GTYF!$C:$AP,37,FALSE) -> 28.16 | AD70: =VLOOKUP(AD$64&$Y70,GTYF!$C:$AP,37,FALSE) -> 834.204 | AE70: =VLOOKUP(AE$64&$Y70,GTYF!$C:$AP,37,FALSE) -> 58.134 | AF70: =VLOOKUP(AF$64&$Y70,GTYF!$C:$AP,37,FALSE) -> 249.41 | AG70: =VLOOKUP(AG$64&$Y70,GTYF!$C:$AP,37,FALSE) -> 846.442 | AH70: =VLOOKUP(AH$64&$Y70,GTYF!$C:$AP,37,FALSE) -> 1930.056
B71: Pessières | D71: =ROUND(AA71/5,-1) -> 2990 | E71: 0.4056987788 | F71: 830 | G71: 0.7980769231 | H71: 391000 | I71: 0.5302413887 | J71: 0 | K71: 0 | L71: 13600 | M71: 0.04424202993 | N71: 404600 | O71: 0.385884597 | S71: Tableau 4. | T71: 3820 | U71: 0.4542211653 | V71: 3812.4976 | W71: =T71-V71 -> 7.5024 | Y71: (FCTYF_EPX) | Z71: =VLOOKUP(Z$64&$Y71,GTYF!$C:$AP,6,FALSE) -> 383913.1 | AA71: =VLOOKUP(AA$64&$Y71,GTYF!$C:$AP,37,FALSE) -> 14934.432 | AB71: =VLOOKUP(AB$64&$Y71,GTYF!$C:$AP,37,FALSE) -> 4128.056 | AC71: =VLOOKUP(AC$64&$Y71,GTYF!$C:$AP,37,FALSE) -> 19062.49 | AD71: =VLOOKUP(AD$64&$Y71,GTYF!$C:$AP,37,FALSE) -> 1955047.402 | AE71: =VLOOKUP(AE$64&$Y71,GTYF!$C:$AP,37,FALSE) -> 1636.112 | AF71: =VLOOKUP(AF$64&$Y71,GTYF!$C:$AP,37,FALSE) -> 68249.128 | AG71: =VLOOKUP(AG$64&$Y71,GTYF!$C:$AP,37,FALSE) -> 194.248 | AH71: =VLOOKUP(AH$64&$Y71,GTYF!$C:$AP,37,FALSE) -> 2023490.782
B72: Peupleraies | D72: 740 | E72: 0.1004070556 | F72: 0 | G72: 0 | H72: 22200 | I72: 0.03010577705 | J72: 500 | K72: 0.1351351351 | L72: 89400 | M72: 0.290826285 | N72: 112100 | O72: 0.10691464 | S72: Tableau 4. | T72: 740 | U72: 0.08799048751 | V72: 740.0448 | W72: -0.0448 | Y72: (FCTYF_PEU) | Z72: =VLOOKUP(Z$64&$Y72,GTYF!$C:$AP,6,FALSE) -> 58546.5 | AA72: =VLOOKUP(AA$64&$Y72,GTYF!$C:$AP,37,FALSE) -> 3700.224 | AB72: =VLOOKUP(AB$64&$Y72,GTYF!$C:$AP,37,FALSE) -> 0 | AC72: =VLOOKUP(AC$64&$Y72,GTYF!$C:$AP,37,FALSE) -> 3700.224 | AD72: =VLOOKUP(AD$64&$Y72,GTYF!$C:$AP,37,FALSE) -> 111196.746 | AE72: =VLOOKUP(AE$64&$Y72,GTYF!$C:$AP,37,FALSE) -> 1292.436 | AF72: =VLOOKUP(AF$64&$Y72,GTYF!$C:$AP,37,FALSE) -> 447180.554 | AG72: =VLOOKUP(AG$64&$Y72,GTYF!$C:$AP,37,FALSE) -> 2372.802 | AH72: =VLOOKUP(AH$64&$Y72,GTYF!$C:$AP,37,FALSE) -> 560750.1
B73: Peupleraies à résineux | D73: 400 | E73: 0.05427408412 | F73: 0 | G73: 0 | H73: 25100 | I73: 0.0340385137 | J73: 100 | K73: 0.02702702703 | L73: 42900 | M73: 0.1395575797 | N73: 68100 | O73: 0.06494992847 | S73: Tableau 4. | T73: 400 | U73: 0.04756242568 | V73: 400.4924 | W73: -0.4924 | Y73: (FCTYF_PEUR) | Z73: =VLOOKUP(Z$64&$Y73,GTYF!$C:$AP,6,FALSE) -> 45213.5 | AA73: =VLOOKUP(AA$64&$Y73,GTYF!$C:$AP,37,FALSE) -> 2002.462 | AB73: =VLOOKUP(AB$64&$Y73,GTYF!$C:$AP,37,FALSE) -> 0 | AC73: =VLOOKUP(AC$64&$Y73,GTYF!$C:$AP,37,FALSE) -> 2002.462 | AD73: =VLOOKUP(AD$64&$Y73,GTYF!$C:$AP,37,FALSE) -> 125364.2 | AE73: =VLOOKUP(AE$64&$Y73,GTYF!$C:$AP,37,FALSE) -> 296.566 | AF73: =VLOOKUP(AF$64&$Y73,GTYF!$C:$AP,37,FALSE) -> 214356.594 | AG73: =VLOOKUP(AG$64&$Y73,GTYF!$C:$AP,37,FALSE) -> 479.718 | AH73: =VLOOKUP(AH$64&$Y73,GTYF!$C:$AP,37,FALSE) -> 340200.51
B74: Pinèdes blanches | D74: 0 | E74: 0 | F74: 0 | G74: 0 | H74: 0 | I74: 0 | J74: 0 | K74: 0 | L74: 0 | M74: 0 | N74: 0 | O74: 0 | S74: Tableau 4. | T74: 0 | U74: 0 | V74: 0 | W74: 0 | Y74: (FCTYF_PIN) | Z74: =VLOOKUP(Z$64&$Y74,GTYF!$C:$AP,6,FALSE) -> 0 | AA74: =VLOOKUP(AA$64&$Y74,GTYF!$C:$AP,37,FALSE) -> 0 | AB74: =VLOOKUP(AB$64&$Y74,GTYF!$C:$AP,37,FALSE) -> 0 | AC74: =VLOOKUP(AC$64&$Y74,GTYF!$C:$AP,37,FALSE) -> 0 | AD74: =VLOOKUP(AD$64&$Y74,GTYF!$C:$AP,37,FALSE) -> 0 | AE74: =VLOOKUP(AE$64&$Y74,GTYF!$C:$AP,37,FALSE) -> 0 | AF74: =VLOOKUP(AF$64&$Y74,GTYF!$C:$AP,37,FALSE) -> 0 | AG74: =VLOOKUP(AG$64&$Y74,GTYF!$C:$AP,37,FALSE) -> 0 | AH74: =VLOOKUP(AH$64&$Y74,GTYF!$C:$AP,37,FALSE) -> 0
B75: Pinèdes grises | D75: 160 | E75: 0.02170963365 | F75: 10 | G75: 0.009615384615 | H75: 24800 | I75: 0.03363167887 | J75: 0 | K75: 0 | L75: 700 | M75: 0.002277163305 | N75: 25500 | O75: 0.0243204578 | S75: Tableau 4. | T75: 170 | U75: 0.02021403092 | V75: 171.3316 | W75: -1.3316 | Y75: (FCTYF_PIG) | Z75: =VLOOKUP(Z$64&$Y75,GTYF!$C:$AP,6,FALSE) -> 13902.7 | AA75: =VLOOKUP(AA$64&$Y75,GTYF!$C:$AP,37,FALSE) -> 784.738 | AB75: =VLOOKUP(AB$64&$Y75,GTYF!$C:$AP,37,FALSE) -> 71.92 | AC75: =VLOOKUP(AC$64&$Y75,GTYF!$C:$AP,37,FALSE) -> 856.658 | AD75: =VLOOKUP(AD$64&$Y75,GTYF!$C:$AP,37,FALSE) -> 124123.34 | AE75: =VLOOKUP(AE$64&$Y75,GTYF!$C:$AP,37,FALSE) -> 15.118 | AF75: =VLOOKUP(AF$64&$Y75,GTYF!$C:$AP,37,FALSE) -> 3638.396 | AG75: =VLOOKUP(AG$64&$Y75,GTYF!$C:$AP,37,FALSE) -> 0 | AH75: =VLOOKUP(AH$64&$Y75,GTYF!$C:$AP,37,FALSE) -> 127761.738
B76: Prucheraies | D76: 0 | E76: 0 | F76: 0 | G76: 0 | H76: 0 | I76: 0 | J76: 0 | K76: 0 | L76: 0 | M76: 0 | N76: 0 | O76: 0 | S76: Tableau 4. | T76: 0 | U76: 0 | V76: 0 | W76: 0 | Y76: (FCTYF_PRU) | Z76: =VLOOKUP(Z$64&$Y76,GTYF!$C:$AP,6,FALSE) -> 0 | AA76: =VLOOKUP(AA$64&$Y76,GTYF!$C:$AP,37,FALSE) -> 0 | AB76: =VLOOKUP(AB$64&$Y76,GTYF!$C:$AP,37,FALSE) -> 0 | AC76: =VLOOKUP(AC$64&$Y76,GTYF!$C:$AP,37,FALSE) -> 0 | AD76: =VLOOKUP(AD$64&$Y76,GTYF!$C:$AP,37,FALSE) -> 0 | AE76: =VLOOKUP(AE$64&$Y76,GTYF!$C:$AP,37,FALSE) -> 0 | AF76: =VLOOKUP(AF$64&$Y76,GTYF!$C:$AP,37,FALSE) -> 0 | AG76: =VLOOKUP(AG$64&$Y76,GTYF!$C:$AP,37,FALSE) -> 0 | AH76: =VLOOKUP(AH$64&$Y76,GTYF!$C:$AP,37,FALSE) -> 0
B77: Résineux à feuillus | D77: =ROUND(AA77/5,-1) -> 730 | E77: 0.09905020353 | F77: 150 | G77: 0.1442307692 | H77: 78900 | I77: 0.106997559 | J77: 1200 | K77: 0.3243243243 | L77: 33900 | M77: 0.1102797658 | N77: 114000 | O77: 0.1087267525 | S77: Tableau 4. | T77: 880 | U77: 0.1046373365 | V77: 874.4952 | W77: 5.5048 | Y77: (FCTYF_RF) | Z77: =VLOOKUP(Z$64&$Y77,GTYF!$C:$AP,6,FALSE) -> 97708.5 | AA77: =VLOOKUP(AA$64&$Y77,GTYF!$C:$AP,37,FALSE) -> 3636.66 | AB77: =VLOOKUP(AB$64&$Y77,GTYF!$C:$AP,37,FALSE) -> 735.816 | AC77: =VLOOKUP(AC$64&$Y77,GTYF!$C:$AP,37,FALSE) -> 4372.476 | AD77: =VLOOKUP(AD$64&$Y77,GTYF!$C:$AP,37,FALSE) -> 394668.376 | AE77: =VLOOKUP(AE$64&$Y77,GTYF!$C:$AP,37,FALSE) -> 258.05 | AF77: =VLOOKUP(AF$64&$Y77,GTYF!$C:$AP,37,FALSE) -> 169711.762 | AG77: =VLOOKUP(AG$64&$Y77,GTYF!$C:$AP,37,FALSE) -> 6022.048 | AH77: =VLOOKUP(AH$64&$Y77,GTYF!$C:$AP,37,FALSE) -> 570402.184
B78: Sapinières | D78: 1110 | E78: 0.1506105834 | F78: 40 | G78: 0.03846153846 | H78: 144000 | I78: 0.195280716 | J78: =ROUND(AG78/5,-2) -> 800 | K78: 0.2162162162 | L78: 10100 | M78: 0.0328562134 | N78: 154900 | O78: 0.1477348593 | S78: Tableau 4. | T78: 1150 | U78: 0.1367419738 | V78: 1148.4768 | W78: 1.5232 | Y78: (FCTYF_SAB) | Z78: =VLOOKUP(Z$64&$Y78,GTYF!$C:$AP,6,FALSE) -> 234469.5 | AA78: =VLOOKUP(AA$64&$Y78,GTYF!$C:$AP,37,FALSE) -> 5557.294 | AB78: =VLOOKUP(AB$64&$Y78,GTYF!$C:$AP,37,FALSE) -> 185.09 | AC78: =VLOOKUP(AC$64&$Y78,GTYF!$C:$AP,37,FALSE) -> 5742.384 | AD78: =VLOOKUP(AD$64&$Y78,GTYF!$C:$AP,37,FALSE) -> 719844.23 | AE78: =VLOOKUP(AE$64&$Y78,GTYF!$C:$AP,37,FALSE) -> 247.976 | AF78: =VLOOKUP(AF$64&$Y78,GTYF!$C:$AP,37,FALSE) -> 50279.544 | AG78: =VLOOKUP(AG$64&$Y78,GTYF!$C:$AP,37,FALSE) -> 4065.098 | AH78: =VLOOKUP(AH$64&$Y78,GTYF!$C:$AP,37,FALSE) -> 774188.872
B79: Total | D79: =SUM(D65:D78) -> 7370 | E79: =SUM(E65:E78) -> 1 | F79: =SUM(F65:F78) -> 1040 | G79: =SUM(G65:G78) -> 1 | H79: =SUM(H65:H78) -> 737400 | I79: =SUM(I65:I78) -> 1 | J79: 3700 | K79: 1 | L79: 307400 | M79: 1 | N79: =SUM(N65:N78) -> 1048500 | O79: 1 | S79: Tableau 4. | T79: =SUM(T65:T78) -> 8410 | U79: =SUM(U65:U78) -> 1 | V79: =SUM(V65:V78) -> 8394.9428 | W79: 15.0572 | Y79: Somme | Z79: =SUM(Z65:Z78) -> 909490 | AA79: =SUM(AA65:AA78) -> 36825.672 | AB79: =SUM(AB65:AB78) -> 5149.042 | AC79: =SUM(AC65:AC78) -> 41974.716
B80: * Les superficies sont arrondies à la dizaine près et les volumes à la centaine près. Cette opération peut engendrer de légères distorsions sur les sommes. | S80: Tableau 4. | Y80: Total (Output) | Z80: =VLOOKUP(Z$64,Output!$C:$AP,6,FALSE) -> 961670.2
Y81: Écart | Z81: =Z79-Z80 -> -52180.2
N82: Écart de possibilité
N83: =Instructions!I5/5-N79 -> 100 | O83: Valideur
B84: Tableau 8. Traitements commerciaux supportant les possibilités forestières
B85: Traitements commerciaux (récolte) | G85: Superficie annuelle moyenne (ha/an) | H85: Superficie antérieure (ha/an) | I85: Écart (ha/an)
T88: Légende | U88: Name | V88: PERIOD2@6
B89: Coupe avec protection de la régénération et des sols (CPRS) | G89: =IFERROR(ROUND(V89,-1),0)-G90-G91 -> 7370 | H89: =IFERROR(ROUND(VLOOKUP(O33,DataLocal!$A:$BH,37,FALSE),-1),0) -> 7830 | I89: =G89-H89 -> -460 | S89: =LEFT(B$84,10) -> Tableau 8. | T89: Coupes avec protection de la régénération et des sols (CPRS) | U89: OSUPCT | V89: =IFERROR(VLOOKUP(U89,Output!$C:$AQ,37,FALSE)/5,"0000") -> 7365.1344
B90: Coupe avec protection des petites tiges marchandes (CPPTM) | G90: =IFERROR(ROUND(V90,-1),0) -> 0 | H90: =IFERROR(ROUND(VLOOKUP(O33,DataLocal!$A:$BH,38,FALSE),-1),0) -> 0 | I90: =G90-H90 -> 0 | S90: Tableau 8. | T90: Coupe avec protection des petites tiges marchandes (CPPTM) | U90: OSUPREALACPPTM | V90: =IFERROR(VLOOKUP(U90,Output!$C:$AQ,37,FALSE)/5,"0000") -> 0
B91: Coupe avec réserve de semenciers (CRS) | G91: =IFERROR(ROUND(V91,-1),0) -> 0 | H91: =IFERROR(ROUND(VLOOKUP(33,DataLocal!$A:$BH,39,FALSE),-1),0) -> 0 | I91: 0 | S91: Tableau 8. | T91: Coupe avec réserve de semenciers (CRS) | U91: OSUPREALACRS | V91: =IFERROR(VLOOKUP(U91,Output!$C:$AQ,37,FALSE)/5,"0000") -> 0
B92: Total des coupes finales | G92: =SUM(G89:G91) -> 7370 | H92: =SUM(H89:H91) -> 7830 | I92: -460 | S92: Tableau 8.
B93: Éclaircie commerciale | G93: =IFERROR(ROUND(V93,-1),0) -> 100 | H93: =IFERROR(ROUND(VLOOKUP(O33,DataLocal!$A:$BH,40,FALSE),-1),0) -> 200 | I93: -100 | S93: Tableau 8. | T93: Éclaircie commerciale (EC) | U93: OSUPEC_SEPM | V93: =IFERROR(VLOOKUP(U93,Output!$C:$AQ,37,FALSE)/5,"0000") -> 100.6
B94: Coupe progressive régulière | G94: =IFERROR(ROUND(V94+V95,-1),0) -> 0 | H94: =IFERROR(ROUND(VLOOKUP(O33,DataLocal!$A:$BH,41,FALSE),-1),0) -> 840 | I94: -840 | S94: Tableau 8. | T94: Coupe progressive régulière initiale (CPROG) | U94: OSUPCPROG_INI | V94: =IFERROR(VLOOKUP(U94,Output!$C:$AQ,37,FALSE)/5,"0000") -> 0000
B95: Coupe progressive irrégulière à régénération lente (CPIL) | G95: =IFERROR(ROUND(V96+V97,-1),0) -> 930 | H95: =IFERROR(ROUND(VLOOKUP(O33,DataLocal!$A:$BH,42,FALSE),-1),0) -> 0 | I95: 930 | S95: Tableau 8. | T95: Coupe progressive régulière finale (CPROG) | U95: OSUPCPROG_FIN | V95: =IFERROR(VLOOKUP(U95,Output!$C:$AQ,37,FALSE)/5,"0000") -> 0000
B96: Coupe progressive irrégulière à couvert permanent (CPICP) | G96: =IFERROR(ROUND(V98,-1),0) -> 0 | H96: =IFERROR(ROUND(VLOOKUP(O33,DataLocal!$A:$BH,43,FALSE),-1),0) -> 0 | I96: 0 | S96: Tableau 8. | T96: Coupe progessive irrégulière initiale (CPIRL) | U96: OSUPCPIRL_INI | V96: =IFERROR(VLOOKUP(U96,Output!$C:$AQ,37,FALSE)/5,"0000") -> 926.7176
B97: Coupes de jardinage ou d'amélioration | G97: =IFERROR(ROUND(V99,-1),0) -> 0 | H97: =IFERROR(ROUND(VLOOKUP(O33,DataLocal!$A:$BH,44,FALSE),-1),0) -> 0 | I97: 0 | T97: Coupe progessive irrégulière finale (CPIRL) | U97: OSUPCPIRL_FIN | V97: =IFERROR(VLOOKUP(U97,Output!$C:$AQ,37,FALSE)/5,"0000") -> 2.4908
B98: Total des coupes partielles | G98: =SUM(G93:G97) -> 1030 | H98: =SUM(H93:H97) -> 1040 | I98: -10 | S98: =LEFT(B$84,10) -> Tableau 8. | T98: Coupe à couvert permanent (CPICP) | U98: OSUPCPICP | V98: =IFERROR(VLOOKUP(U98,Output!$C:$AQ,37,FALSE)/5,"0000") -> 0
B99: Total des activités de récolte | G99: =G92+G98 -> 8400 | H99: =H98+H92 -> 8870 | I99: -470 | S99: =LEFT(B$84,10) -> Tableau 8. | T99: Coupe de jardinage (CJ) | U99: OSUPCJ | V99: =IFERROR(VLOOKUP(U99,Output!$C:$AQ,37,FALSE)/5,"0000") -> 0000
B100: % des coupes totales / récolte | G100: =IFERROR(G92/G99,0) -> 0.8773809524 | H100: =IFERROR(H92/H99,0) -> 0.8827508455 | I100: =ROUND(G100-H100,2) -> -0.01 | W100: Valideur
B101: % des coupes partielles / récolte | G101: =IFERROR(G98/G99,0) -> 0.1226190476 | H101: =IFERROR(H98/H99,0) -> 0.1172491545 | I101: =ROUND(G101-H101,2) -> 0.01 | S101: =LEFT(B$84,10) -> Tableau 8. | U101: OSUPREALREGAPAR | V101: =VLOOKUP(U101,Output!$C:$AQ,37,FALSE)/5 -> 1029.8084 | W101: =ROUND(SUM(V93:V99),0)=ROUND(V101,0) -> TRUE
B102: Coupes partielles de peuplements résineux | G102: =ROUND((AB67+AB71+AB75+AB76+AB77+AB78)/5,-1) -> 1020 | H102: =IFERROR(ROUND(VLOOKUP(O33,DataLocal!$A:$BH,45,FALSE),-1),0) -> 1040 | I102: -20 | S102: =LEFT(B$84,10) -> Tableau 8. | U102: OSUPREALREGAFIN | V102: =VLOOKUP(U102,Output!$C:$AQ,37,FALSE)/5 -> 7365.1344 | W102: =ROUND((V89),0)=ROUND(V102,0) -> TRUE
B103: Coupes partielles de peuplements de feuillus tolérants et de pins | G103: =ROUND((AB69+AB70+AB74)/5,-1) -> 10 | H103: =IFERROR(ROUND(VLOOKUP(O33,DataLocal!$A:$BH,46,FALSE),-1),0) -> 0 | I103: 10 | S103: =LEFT(B$84,10) -> Tableau 8. | U103: OSUPREALREGAPRE | V103: =VLOOKUP(U103,Output!$C:$AQ,37,FALSE)/5 -> 8394.9428 | W103: =ROUND(V89+SUM(V93:V99),0)=ROUND(V103,0) -> TRUE
B104: * Les superficies sont arrondies à la dizaine près. Cette opération peut engendrer de légères distorsions sur les sommes.
G105: =G92/F33 -> 0.008103442589
G106: =G98/F33 -> 0.001132502831 | T106: Infos provenant du Script R pour les colonnes E et G du tableau 9 | U106: GTYF | V106: superf_global | W106: ST_avant_trait | X106: prelevement_VOL | Y106: superficie_rotation | Z106: rotation_annees
U107: FCTYF_EPX | V107: 20714 | W107: 29.8 | X107: 71.4 | Y107: 18019 | Z107: 45
U108: FCTYF_FTR | V108: 141 | W108: 23.5 | X108: 68.5 | Y108: 53 | Z108: 34
B109: Tableau 9. Variables descriptives reliées aux coupes partielles et totales par grand type de forêt | L109: La CRV est-elle compabilisée avec les coupes partielles (regaPar)? | U109: FCTYF_PIG | V109: 360 | W109: 30.1 | X109: 40.3 | Y109: 360 | Z109: 29
B110: Grands types de forêt | E110: Coupes partielles | H110: Coupes totales | L110: Si Oui - Remplacer alors les valeurs (colonne H et I) par celles-ci | U110: FCTYF_RF | V110: 3714 | W110: 24.6 | X110: 64.8 | Y110: 3034 | Z110: 49
E111: Rotation moyenne | F111: Prélèvement moyen | G111: Surface terrière moyenne avant coupe | H111: Âge moyen des peuplements | I111: Volume moyen toutes essences | J111: Dimension des bois SEPM | M111: Âge moyen des peuplements | N111: Volume moyen toutes essences | U111: FCTYF_SAB | V111: 755 | W111: 31.9 | X111: 76.3 | Y111: 668 | Z111: 40
S113: Référence Tableau 63 du cahier d'analyse VF
E115: Années | F115: ="m"&CHAR(179)&"/ha" -> m³/ha | G115: ="m"&CHAR(178)&"/ha" -> m²/ha | H115: Années | I115: ="m"&CHAR(179)&"/an" -> m³/an | J115: ="dcm"&CHAR(179)&"/tige" -> dcm³/tige | M115: Années | N115: ="m"&CHAR(179)&"/an" -> m³/an | S115: =LEFT(B$109,10) -> Tableau 9. | V115: OSUPREALREGAPRE | W115: OSUPINC | X115: OVOLGSEPMRECREGAFIN | Y115: ONBTGSEPMRECREGAFIN | Z115: OVOLTOTRECACT | AA115: OVOLTOTRECACFP | AB115: OVOLTOTRECACRS | AC115: OVOLTOTRECACPPTM | AD115: OSUPREALREGAFIN | AE115: OVOLTOTRECACRV | AF115: OAGETOTRECACT | AG115: OAGETOTRECACFP | AH115: OAGETOTRECACRS | AI115: OAGETOTRECACPPTM | AJ115: OSUPREALREGAFIN | AK115: OAGETOTRECACRV | AM115: OVOLTOTRECaEC | AN115: OVOLTOTRECaEC2 | AO115: OVOLTOTRECaEC3 | AP115: OVOLTOTRECaCA | AQ115: OVOLTOTRECaCA2 | AR115: OVOLTOTRECaCPROG | AS115: OVOLTOTRECaCPIL | AT115: OVOLTOTRECaCPIP | AU115: OVOLTOTRECaCPFORT | AV115: OVOLTOTRECaCPFAIBL | AW115: OVOLTOTRECaCP | AX115: OVOLTOTRECaCPJ | AY115: OVOLTOTRECaCJ | AZ115: SOMME | BA115: OSUPREALREGAPAR
B116: =T116 -> Bétulaies blanches | F116: =IFERROR($AZ116/$BA116,"-") -> - | H116: =IFERROR(($AF116+$AG116+$AH116+$AI116+$AK116)/$AJ116*5,"-") -> 72.68671967 | I116: =IFERROR(($Z116+$AA116+$AB116+$AC116+$AE116)/$AD116,"-") -> 135.692209 | J116: =(IFERROR(X116/Y116*1000,"-")) -> 92.94367107 | M116: =IFERROR(($AF116+$AG116+$AH116+$AI116)/$AJ116*5,"-") -> 72.68671967 | N116: =IFERROR(($Z116+$AA116+$AB116+$AC116)/$AD116,"-") -> 135.692209 | S116: =LEFT(B$109,10) -> Tableau 9. | T116: Bétulaies blanches | U116: (FCTYF_BOP) | V116: =VLOOKUP(V$115&$U116,GTYF!$C:$AQ,37,FALSE) -> 2741.302 | W116: =VLOOKUP(W$115&$U116,GTYF!$C:$AQ,6,FALSE) -> 32658.4 | X116: =VLOOKUP(X$115&$U116,GTYF!$C:$AQ,37,FALSE) -> 59192.796 | Y116: =VLOOKUP(Y$115&$U116,GTYF!$C:$AQ,37,FALSE) -> 636867.42 | Z116: =VLOOKUP(Z$115&$U116,GTYF!$C:$AQ,37,FALSE) -> 371973.324 | AA116: =VLOOKUP(AA$115&$U116,GTYF!$C:$AQ,37,FALSE) -> 0 | AB116: =VLOOKUP(AB$115&$U116,GTYF!$C:$AQ,37,FALSE) -> 0 | AC116: =VLOOKUP(AC$115&$U116,GTYF!$C:$AQ,37,FALSE) -> 0 | AD116: =VLOOKUP(AD$115&$U116,GTYF!$C:$AQ,37,FALSE) -> 2741.302 | AE116: =VLOOKUP(AE$115&$U116,GTYF!$C:$AQ,37,FALSE) -> 0 | AF116: =VLOOKUP(AF$115&$U116,GTYF!$C:$AQ,37,FALSE) -> 39851.25 | AG116: =VLOOKUP(AG$115&$U116,GTYF!$C:$AQ,37,FALSE) -> 0 | AH116: =VLOOKUP(AH$115&$U116,GTYF!$C:$AQ,37,FALSE) -> 0 | AI116: =VLOOKUP(AI$115&$U116,GTYF!$C:$AQ,37,FALSE) -> 0 | AJ116: =VLOOKUP(AJ$115&$U116,GTYF!$C:$AQ,37,FALSE) -> 2741.302 | AK116: =VLOOKUP(AK$115&$U116,GTYF!$C:$AQ,37,FALSE) -> 0 | AM116: =VLOOKUP(AM$115&$U116,GTYF!$C:$AQ,37,FALSE) -> 0 | AN116: =VLOOKUP(AN$115&$U116,GTYF!$C:$AQ,37,FALSE) -> 0 | AO116: =VLOOKUP(AO$115&$U116,GTYF!$C:$AQ,37,FALSE) -> 0 | AP116: =VLOOKUP(AP$115&$U116,GTYF!$C:$AQ,37,FALSE) -> 0 | AQ116: =VLOOKUP(AQ$115&$U116,GTYF!$C:$AQ,37,FALSE) -> 0 | AR116: =VLOOKUP(AR$115&$U116,GTYF!$C:$AQ,37,FALSE) -> 0 | AS116: =VLOOKUP(AS$115&$U116,GTYF!$C:$AQ,37,FALSE) -> 0 | AT116: =VLOOKUP(AT$115&$U116,GTYF!$C:$AQ,37,FALSE) -> 0 | AU116: =VLOOKUP(AU$115&$U116,GTYF!$C:$AQ,37,FALSE) -> 0 | AV116: =VLOOKUP(AV$115&$U116,GTYF!$C:$AQ,37,FALSE) -> 0 | AW116: =VLOOKUP(AW$115&$U116,GTYF!$C:$AQ,37,FALSE) -> 0 | AX116: =VLOOKUP(AX$115&$U116,GTYF!$C:$AQ,37,FALSE) -> 0 | AY116: =VLOOKUP(AY$115&$U116,GTYF!$C:$AQ,37,FALSE) -> 0 | AZ116: =SUM(AM116:AY116) -> 0 | BA116: =VLOOKUP(BA$115&$U116,GTYF!$C:$AQ,37,FALSE) -> 0
B117: Bétulaies blanches à résineux | F117: - | H117: =IFERROR(($AF117+$AG117+$AH117+$AI117+$AK117)/$AJ117*5,"-") -> 70.35005016 | I117: =IFERROR(($Z117+$AA117+$AB117+$AC117+$AE117)/$AD117,"-") -> 136.1667193 | J117: =(IFERROR(X117/Y117*1000,"-")) -> 111.2604958 | M117: =IFERROR(($AF117+$AG117+$AH117+$AI117)/$AJ117*5,"-") -> 70.35005016 | N117: =IFERROR(($Z117+$AA117+$AB117+$AC117)/$AD117,"-") -> 136.1667193 | S117: Tableau 9. | T117: Bétulaies blanches à résineux | U117: (FCTYF_BOPR) | V117: =VLOOKUP(V$115&$U117,GTYF!$C:$AQ,37,FALSE) -> 3468.56 | W117: =VLOOKUP(W$115&$U117,GTYF!$C:$AQ,6,FALSE) -> 38812.9 | X117: =VLOOKUP(X$115&$U117,GTYF!$C:$AQ,37,FALSE) -> 195872.456 | Y117: =VLOOKUP(Y$115&$U117,GTYF!$C:$AQ,37,FALSE) -> 1760485.198 | Z117: =VLOOKUP(Z$115&$U117,GTYF!$C:$AQ,37,FALSE) -> 472302.436 | AA117: =VLOOKUP(AA$115&$U117,GTYF!$C:$AQ,37,FALSE) -> 0 | AB117: =VLOOKUP(AB$115&$U117,GTYF!$C:$AQ,37,FALSE) -> 0 | AC117: =VLOOKUP(AC$115&$U117,GTYF!$C:$AQ,37,FALSE) -> 0 | AD117: =VLOOKUP(AD$115&$U117,GTYF!$C:$AQ,37,FALSE) -> 3468.56 | AE117: =VLOOKUP(AE$115&$U117,GTYF!$C:$AQ,37,FALSE) -> 0 | AF117: =VLOOKUP(AF$115&$U117,GTYF!$C:$AQ,37,FALSE) -> 48802.674 | AG117: =VLOOKUP(AG$115&$U117,GTYF!$C:$AQ,37,FALSE) -> 0 | AH117: =VLOOKUP(AH$115&$U117,GTYF!$C:$AQ,37,FALSE) -> 0 | AI117: =VLOOKUP(AI$115&$U117,GTYF!$C:$AQ,37,FALSE) -> 0 | AJ117: =VLOOKUP(AJ$115&$U117,GTYF!$C:$AQ,37,FALSE) -> 3468.56 | AK117: =VLOOKUP(AK$115&$U117,GTYF!$C:$AQ,37,FALSE) -> 0 | AM117: =VLOOKUP(AM$115&$U117,GTYF!$C:$AQ,37,FALSE) -> 0 | AN117: =VLOOKUP(AN$115&$U117,GTYF!$C:$AQ,37,FALSE) -> 0 | AO117: =VLOOKUP(AO$115&$U117,GTYF!$C:$AQ,37,FALSE) -> 0 | AP117: =VLOOKUP(AP$115&$U117,GTYF!$C:$AQ,37,FALSE) -> 0 | AQ117: =VLOOKUP(AQ$115&$U117,GTYF!$C:$AQ,37,FALSE) -> 0 | AR117: =VLOOKUP(AR$115&$U117,GTYF!$C:$AQ,37,FALSE) -> 0 | AS117: =VLOOKUP(AS$115&$U117,GTYF!$C:$AQ,37,FALSE) -> 0 | AT117: =VLOOKUP(AT$115&$U117,GTYF!$C:$AQ,37,FALSE) -> 0 | AU117: =VLOOKUP(AU$115&$U117,GTYF!$C:$AQ,37,FALSE) -> 0 | AV117: =VLOOKUP(AV$115&$U117,GTYF!$C:$AQ,37,FALSE) -> 0 | AW117: =VLOOKUP(AW$115&$U117,GTYF!$C:$AQ,37,FALSE) -> 0 | AX117: =VLOOKUP(AX$115&$U117,GTYF!$C:$AQ,37,FALSE) -> 0 | AY117: =VLOOKUP(AY$115&$U117,GTYF!$C:$AQ,37,FALSE) -> 0 | AZ117: =SUM(AM117:AY117) -> 0 | BA117: =VLOOKUP(BA$115&$U117,GTYF!$C:$AQ,37,FALSE) -> 0
B118: Cédrières | F118: - | H118: =IFERROR(($AF118+$AG118+$AH118+$AI118+$AK118)/$AJ118*5,"-") -> - | I118: - | J118: =(IFERROR(X118/Y118*1000,"-")) -> - | M118: - | N118: - | S118: Tableau 9. | T118: Cédrières | U118: (FCTYF_THO) | V118: =VLOOKUP(V$115&$U118,GTYF!$C:$AQ,37,FALSE) -> 0 | W118: =VLOOKUP(W$115&$U118,GTYF!$C:$AQ,6,FALSE) -> 0 | X118: =VLOOKUP(X$115&$U118,GTYF!$C:$AQ,37,FALSE) -> 0 | Y118: =VLOOKUP(Y$115&$U118,GTYF!$C:$AQ,37,FALSE) -> 0 | Z118: =VLOOKUP(Z$115&$U118,GTYF!$C:$AQ,37,FALSE) -> 0 | AA118: =VLOOKUP(AA$115&$U118,GTYF!$C:$AQ,37,FALSE) -> 0 | AB118: =VLOOKUP(AB$115&$U118,GTYF!$C:$AQ,37,FALSE) -> 0 | AC118: =VLOOKUP(AC$115&$U118,GTYF!$C:$AQ,37,FALSE) -> 0 | AD118: =VLOOKUP(AD$115&$U118,GTYF!$C:$AQ,37,FALSE) -> 0 | AE118: =VLOOKUP(AE$115&$U118,GTYF!$C:$AQ,37,FALSE) -> 0 | AF118: =VLOOKUP(AF$115&$U118,GTYF!$C:$AQ,37,FALSE) -> 0 | AG118: =VLOOKUP(AG$115&$U118,GTYF!$C:$AQ,37,FALSE) -> 0 | AH118: =VLOOKUP(AH$115&$U118,GTYF!$C:$AQ,37,FALSE) -> 0 | AI118: =VLOOKUP(AI$115&$U118,GTYF!$C:$AQ,37,FALSE) -> 0 | AJ118: =VLOOKUP(AJ$115&$U118,GTYF!$C:$AQ,37,FALSE) -> 0 | AK118: =VLOOKUP(AK$115&$U118,GTYF!$C:$AQ,37,FALSE) -> 0 | AM118: =VLOOKUP(AM$115&$U118,GTYF!$C:$AQ,37,FALSE) -> 0 | AN118: =VLOOKUP(AN$115&$U118,GTYF!$C:$AQ,37,FALSE) -> 0 | AO118: =VLOOKUP(AO$115&$U118,GTYF!$C:$AQ,37,FALSE) -> 0 | AP118: =VLOOKUP(AP$115&$U118,GTYF!$C:$AQ,37,FALSE) -> 0 | AQ118: =VLOOKUP(AQ$115&$U118,GTYF!$C:$AQ,37,FALSE) -> 0 | AR118: =VLOOKUP(AR$115&$U118,GTYF!$C:$AQ,37,FALSE) -> 0 | AS118: =VLOOKUP(AS$115&$U118,GTYF!$C:$AQ,37,FALSE) -> 0 | AT118: =VLOOKUP(AT$115&$U118,GTYF!$C:$AQ,37,FALSE) -> 0 | AU118: =VLOOKUP(AU$115&$U118,GTYF!$C:$AQ,37,FALSE) -> 0 | AV118: =VLOOKUP(AV$115&$U118,GTYF!$C:$AQ,37,FALSE) -> 0 | AW118: =VLOOKUP(AW$115&$U118,GTYF!$C:$AQ,37,FALSE) -> 0 | AX118: =VLOOKUP(AX$115&$U118,GTYF!$C:$AQ,37,FALSE) -> 0 | AY118: =VLOOKUP(AY$115&$U118,GTYF!$C:$AQ,37,FALSE) -> 0 | AZ118: 0 | BA118: =VLOOKUP(BA$115&$U118,GTYF!$C:$AQ,37,FALSE) -> 0
B119: Érablières rouges | F119: - | H119: - | I119: - | J119: - | M119: - | N119: - | S119: Tableau 9. | T119: Érablières rouges | U119: (FCTYF_ERO) | V119: =VLOOKUP(V$115&$U119,GTYF!$C:$AQ,37,FALSE) -> 0 | W119: =VLOOKUP(W$115&$U119,GTYF!$C:$AQ,6,FALSE) -> 0 | X119: =VLOOKUP(X$115&$U119,GTYF!$C:$AQ,37,FALSE) -> 0 | Y119: =VLOOKUP(Y$115&$U119,GTYF!$C:$AQ,37,FALSE) -> 0 | Z119: =VLOOKUP(Z$115&$U119,GTYF!$C:$AQ,37,FALSE) -> 0 | AA119: =VLOOKUP(AA$115&$U119,GTYF!$C:$AQ,37,FALSE) -> 0 | AB119: =VLOOKUP(AB$115&$U119,GTYF!$C:$AQ,37,FALSE) -> 0 | AC119: =VLOOKUP(AC$115&$U119,GTYF!$C:$AQ,37,FALSE) -> 0 | AD119: =VLOOKUP(AD$115&$U119,GTYF!$C:$AQ,37,FALSE) -> 0 | AE119: =VLOOKUP(AE$115&$U119,GTYF!$C:$AQ,37,FALSE) -> 0 | AF119: =VLOOKUP(AF$115&$U119,GTYF!$C:$AQ,37,FALSE) -> 0 | AG119: =VLOOKUP(AG$115&$U119,GTYF!$C:$AQ,37,FALSE) -> 0 | AH119: =VLOOKUP(AH$115&$U119,GTYF!$C:$AQ,37,FALSE) -> 0 | AI119: =VLOOKUP(AI$115&$U119,GTYF!$C:$AQ,37,FALSE) -> 0 | AJ119: =VLOOKUP(AJ$115&$U119,GTYF!$C:$AQ,37,FALSE) -> 0 | AK119: =VLOOKUP(AK$115&$U119,GTYF!$C:$AQ,37,FALSE) -> 0 | AM119: =VLOOKUP(AM$115&$U119,GTYF!$C:$AQ,37,FALSE) -> 0 | AN119: =VLOOKUP(AN$115&$U119,GTYF!$C:$AQ,37,FALSE) -> 0 | AO119: =VLOOKUP(AO$115&$U119,GTYF!$C:$AQ,37,FALSE) -> 0 | AP119: =VLOOKUP(AP$115&$U119,GTYF!$C:$AQ,37,FALSE) -> 0 | AQ119: =VLOOKUP(AQ$115&$U119,GTYF!$C:$AQ,37,FALSE) -> 0 | AR119: =VLOOKUP(AR$115&$U119,GTYF!$C:$AQ,37,FALSE) -> 0 | AS119: =VLOOKUP(AS$115&$U119,GTYF!$C:$AQ,37,FALSE) -> 0 | AT119: =VLOOKUP(AT$115&$U119,GTYF!$C:$AQ,37,FALSE) -> 0 | AU119: =VLOOKUP(AU$115&$U119,GTYF!$C:$AQ,37,FALSE) -> 0 | AV119: =VLOOKUP(AV$115&$U119,GTYF!$C:$AQ,37,FALSE) -> 0 | AW119: =VLOOKUP(AW$115&$U119,GTYF!$C:$AQ,37,FALSE) -> 0 | AX119: =VLOOKUP(AX$115&$U119,GTYF!$C:$AQ,37,FALSE) -> 0 | AY119: =VLOOKUP(AY$115&$U119,GTYF!$C:$AQ,37,FALSE) -> 0 | AZ119: 0 | BA119: =VLOOKUP(BA$115&$U119,GTYF!$C:$AQ,37,FALSE) -> 0
B120: Feuillus tolérants | F120: - | H120: - | I120: - | J120: - | M120: - | N120: - | S120: Tableau 9. | T120: Feuillus tolérants | U120: (FCTYF_FT) | V120: =VLOOKUP(V$115&$U120,GTYF!$C:$AQ,37,FALSE) -> 0 | W120: =VLOOKUP(W$115&$U120,GTYF!$C:$AQ,6,FALSE) -> 0 | X120: =VLOOKUP(X$115&$U120,GTYF!$C:$AQ,37,FALSE) -> 0 | Y120: =VLOOKUP(Y$115&$U120,GTYF!$C:$AQ,37,FALSE) -> 0 | Z120: =VLOOKUP(Z$115&$U120,GTYF!$C:$AQ,37,FALSE) -> 0 | AA120: =VLOOKUP(AA$115&$U120,GTYF!$C:$AQ,37,FALSE) -> 0 | AB120: =VLOOKUP(AB$115&$U120,GTYF!$C:$AQ,37,FALSE) -> 0 | AC120: =VLOOKUP(AC$115&$U120,GTYF!$C:$AQ,37,FALSE) -> 0 | AD120: =VLOOKUP(AD$115&$U120,GTYF!$C:$AQ,37,FALSE) -> 0 | AE120: =VLOOKUP(AE$115&$U120,GTYF!$C:$AQ,37,FALSE) -> 0 | AF120: =VLOOKUP(AF$115&$U120,GTYF!$C:$AQ,37,FALSE) -> 0 | AG120: =VLOOKUP(AG$115&$U120,GTYF!$C:$AQ,37,FALSE) -> 0 | AH120: =VLOOKUP(AH$115&$U120,GTYF!$C:$AQ,37,FALSE) -> 0 | AI120: =VLOOKUP(AI$115&$U120,GTYF!$C:$AQ,37,FALSE) -> 0 | AJ120: =VLOOKUP(AJ$115&$U120,GTYF!$C:$AQ,37,FALSE) -> 0 | AK120: =VLOOKUP(AK$115&$U120,GTYF!$C:$AQ,37,FALSE) -> 0 | AM120: =VLOOKUP(AM$115&$U120,GTYF!$C:$AQ,37,FALSE) -> 0 | AN120: =VLOOKUP(AN$115&$U120,GTYF!$C:$AQ,37,FALSE) -> 0 | AO120: =VLOOKUP(AO$115&$U120,GTYF!$C:$AQ,37,FALSE) -> 0 | AP120: =VLOOKUP(AP$115&$U120,GTYF!$C:$AQ,37,FALSE) -> 0 | AQ120: =VLOOKUP(AQ$115&$U120,GTYF!$C:$AQ,37,FALSE) -> 0 | AR120: =VLOOKUP(AR$115&$U120,GTYF!$C:$AQ,37,FALSE) -> 0 | AS120: =VLOOKUP(AS$115&$U120,GTYF!$C:$AQ,37,FALSE) -> 0 | AT120: =VLOOKUP(AT$115&$U120,GTYF!$C:$AQ,37,FALSE) -> 0 | AU120: =VLOOKUP(AU$115&$U120,GTYF!$C:$AQ,37,FALSE) -> 0 | AV120: =VLOOKUP(AV$115&$U120,GTYF!$C:$AQ,37,FALSE) -> 0 | AW120: =VLOOKUP(AW$115&$U120,GTYF!$C:$AQ,37,FALSE) -> 0 | AX120: =VLOOKUP(AX$115&$U120,GTYF!$C:$AQ,37,FALSE) -> 0 | AY120: =VLOOKUP(AY$115&$U120,GTYF!$C:$AQ,37,FALSE) -> 0 | AZ120: 0 | BA120: =VLOOKUP(BA$115&$U120,GTYF!$C:$AQ,37,FALSE) -> 0
B121: Feuillus tolérants à résineux | E121: =Z108 -> 34 | F121: =IFERROR($AZ121/$BA121,"-") -> 68.53892045 | G121: =W108 -> 23.5 | H121: - | I121: - | J121: - | M121: - | N121: - | S121: Tableau 9. | T121: Feuillus tolérants à résineux | U121: (FCTYF_FTR) | V121: =VLOOKUP(V$115&$U121,GTYF!$C:$AQ,37,FALSE) -> 28.16 | W121: =VLOOKUP(W$115&$U121,GTYF!$C:$AQ,6,FALSE) -> 4264.9 | X121: =VLOOKUP(X$115&$U121,GTYF!$C:$AQ,37,FALSE) -> 0 | Y121: =VLOOKUP(Y$115&$U121,GTYF!$C:$AQ,37,FALSE) -> 0 | Z121: =VLOOKUP(Z$115&$U121,GTYF!$C:$AQ,37,FALSE) -> 0 | AA121: =VLOOKUP(AA$115&$U121,GTYF!$C:$AQ,37,FALSE) -> 0 | AB121: =VLOOKUP(AB$115&$U121,GTYF!$C:$AQ,37,FALSE) -> 0 | AC121: =VLOOKUP(AC$115&$U121,GTYF!$C:$AQ,37,FALSE) -> 0 | AD121: =VLOOKUP(AD$115&$U121,GTYF!$C:$AQ,37,FALSE) -> 0 | AE121: =VLOOKUP(AE$115&$U121,GTYF!$C:$AQ,37,FALSE) -> 0 | AF121: =VLOOKUP(AF$115&$U121,GTYF!$C:$AQ,37,FALSE) -> 0 | AG121: =VLOOKUP(AG$115&$U121,GTYF!$C:$AQ,37,FALSE) -> 0 | AH121: =VLOOKUP(AH$115&$U121,GTYF!$C:$AQ,37,FALSE) -> 0 | AI121: =VLOOKUP(AI$115&$U121,GTYF!$C:$AQ,37,FALSE) -> 0 | AJ121: =VLOOKUP(AJ$115&$U121,GTYF!$C:$AQ,37,FALSE) -> 0 | AK121: =VLOOKUP(AK$115&$U121,GTYF!$C:$AQ,37,FALSE) -> 0 | AM121: =VLOOKUP(AM$115&$U121,GTYF!$C:$AQ,37,FALSE) -> 0 | AN121: =VLOOKUP(AN$115&$U121,GTYF!$C:$AQ,37,FALSE) -> 0 | AO121: =VLOOKUP(AO$115&$U121,GTYF!$C:$AQ,37,FALSE) -> 0 | AP121: =VLOOKUP(AP$115&$U121,GTYF!$C:$AQ,37,FALSE) -> 0 | AQ121: =VLOOKUP(AQ$115&$U121,GTYF!$C:$AQ,37,FALSE) -> 0 | AR121: =VLOOKUP(AR$115&$U121,GTYF!$C:$AQ,37,FALSE) -> 0 | AS121: =VLOOKUP(AS$115&$U121,GTYF!$C:$AQ,37,FALSE) -> 1930.056 | AT121: =VLOOKUP(AT$115&$U121,GTYF!$C:$AQ,37,FALSE) -> 0 | AU121: =VLOOKUP(AU$115&$U121,GTYF!$C:$AQ,37,FALSE) -> 0 | AV121: =VLOOKUP(AV$115&$U121,GTYF!$C:$AQ,37,FALSE) -> 0 | AW121: =VLOOKUP(AW$115&$U121,GTYF!$C:$AQ,37,FALSE) -> 0 | AX121: =VLOOKUP(AX$115&$U121,GTYF!$C:$AQ,37,FALSE) -> 0 | AY121: =VLOOKUP(AY$115&$U121,GTYF!$C:$AQ,37,FALSE) -> 0 | AZ121: =SUM(AM121:AY121) -> 1930.056 | BA121: =VLOOKUP(BA$115&$U121,GTYF!$C:$AQ,37,FALSE) -> 28.16
B122: Pessières | E122: =Z107 -> 45 | F122: 71.12758887 | G122: =W107 -> 29.8 | H122: 134.7344157 | I122: 115.8311286 | J122: 101.6855893 | M122: 134.7344157 | N122: 115.8311286 | S122: Tableau 9. | T122: Pessières | U122: (FCTYF_EPX) | V122: =VLOOKUP(V$115&$U122,GTYF!$C:$AQ,37,FALSE) -> 19062.49 | W122: =VLOOKUP(W$115&$U122,GTYF!$C:$AQ,6,FALSE) -> 383913.1 | X122: =VLOOKUP(X$115&$U122,GTYF!$C:$AQ,37,FALSE) -> 1668411.288 | Y122: =VLOOKUP(Y$115&$U122,GTYF!$C:$AQ,37,FALSE) -> 16407548.99 | Z122: =VLOOKUP(Z$115&$U122,GTYF!$C:$AQ,37,FALSE) -> 1601691.03 | AA122: =VLOOKUP(AA$115&$U122,GTYF!$C:$AQ,37,FALSE) -> 128181.084 | AB122: =VLOOKUP(AB$115&$U122,GTYF!$C:$AQ,37,FALSE) -> 0 | AC122: =VLOOKUP(AC$115&$U122,GTYF!$C:$AQ,37,FALSE) -> 0 | AD122: =VLOOKUP(AD$115&$U122,GTYF!$C:$AQ,37,FALSE) -> 14934.432 | AE122: =VLOOKUP(AE$115&$U122,GTYF!$C:$AQ,37,FALSE) -> 0 | AF122: =VLOOKUP(AF$115&$U122,GTYF!$C:$AQ,37,FALSE) -> 381010.01 | AG122: =VLOOKUP(AG$115&$U122,GTYF!$C:$AQ,37,FALSE) -> 21426.384 | AH122: =VLOOKUP(AH$115&$U122,GTYF!$C:$AQ,37,FALSE) -> 0 | AI122: =VLOOKUP(AI$115&$U122,GTYF!$C:$AQ,37,FALSE) -> 0 | AJ122: =VLOOKUP(AJ$115&$U122,GTYF!$C:$AQ,37,FALSE) -> 14934.432 | AK122: =VLOOKUP(AK$115&$U122,GTYF!$C:$AQ,37,FALSE) -> 0 | AM122: =VLOOKUP(AM$115&$U122,GTYF!$C:$AQ,37,FALSE) -> 18996.086 | AN122: =VLOOKUP(AN$115&$U122,GTYF!$C:$AQ,37,FALSE) -> 0 | AO122: =VLOOKUP(AO$115&$U122,GTYF!$C:$AQ,37,FALSE) -> 0 | AP122: =VLOOKUP(AP$115&$U122,GTYF!$C:$AQ,37,FALSE) -> 0 | AQ122: =VLOOKUP(AQ$115&$U122,GTYF!$C:$AQ,37,FALSE) -> 0 | AR122: =VLOOKUP(AR$115&$U122,GTYF!$C:$AQ,37,FALSE) -> 0 | AS122: =VLOOKUP(AS$115&$U122,GTYF!$C:$AQ,37,FALSE) -> 274622.584 | AT122: =VLOOKUP(AT$115&$U122,GTYF!$C:$AQ,37,FALSE) -> 0 | AU122: =VLOOKUP(AU$115&$U122,GTYF!$C:$AQ,37,FALSE) -> 0 | AV122: =VLOOKUP(AV$115&$U122,GTYF!$C:$AQ,37,FALSE) -> 0 | AW122: =VLOOKUP(AW$115&$U122,GTYF!$C:$AQ,37,FALSE) -> 0 | AX122: =VLOOKUP(AX$115&$U122,GTYF!$C:$AQ,37,FALSE) -> 0 | AY122: =VLOOKUP(AY$115&$U122,GTYF!$C:$AQ,37,FALSE) -> 0 | AZ122: 293618.67 | BA122: =VLOOKUP(BA$115&$U122,GTYF!$C:$AQ,37,FALSE) -> 4128.056
B123: Peupleraies | F123: - | H123: 72.80811378 | I123: 151.5449065 | J123: 93.68246028 | M123: 72.80811378 | N123: 151.5449065 | S123: Tableau 9. | T123: Peupleraies | U123: (FCTYF_PEU) | V123: =VLOOKUP(V$115&$U123,GTYF!$C:$AQ,37,FALSE) -> 3700.224 | W123: =VLOOKUP(W$115&$U123,GTYF!$C:$AQ,6,FALSE) -> 58546.5 | X123: =VLOOKUP(X$115&$U123,GTYF!$C:$AQ,37,FALSE) -> 109904.312 | Y123: =VLOOKUP(Y$115&$U123,GTYF!$C:$AQ,37,FALSE) -> 1173157.832 | Z123: =VLOOKUP(Z$115&$U123,GTYF!$C:$AQ,37,FALSE) -> 560750.1 | AA123: =VLOOKUP(AA$115&$U123,GTYF!$C:$AQ,37,FALSE) -> 0 | AB123: =VLOOKUP(AB$115&$U123,GTYF!$C:$AQ,37,FALSE) -> 0 | AC123: =VLOOKUP(AC$115&$U123,GTYF!$C:$AQ,37,FALSE) -> 0 | AD123: =VLOOKUP(AD$115&$U123,GTYF!$C:$AQ,37,FALSE) -> 3700.224 | AE123: =VLOOKUP(AE$115&$U123,GTYF!$C:$AQ,37,FALSE) -> 0 | AF123: =VLOOKUP(AF$115&$U123,GTYF!$C:$AQ,37,FALSE) -> 53881.266 | AG123: =VLOOKUP(AG$115&$U123,GTYF!$C:$AQ,37,FALSE) -> 0 | AH123: =VLOOKUP(AH$115&$U123,GTYF!$C:$AQ,37,FALSE) -> 0 | AI123: =VLOOKUP(AI$115&$U123,GTYF!$C:$AQ,37,FALSE) -> 0 | AJ123: =VLOOKUP(AJ$115&$U123,GTYF!$C:$AQ,37,FALSE) -> 3700.224 | AK123: =VLOOKUP(AK$115&$U123,GTYF!$C:$AQ,37,FALSE) -> 0 | AM123: =VLOOKUP(AM$115&$U123,GTYF!$C:$AQ,37,FALSE) -> 0 | AN123: =VLOOKUP(AN$115&$U123,GTYF!$C:$AQ,37,FALSE) -> 0 | AO123: =VLOOKUP(AO$115&$U123,GTYF!$C:$AQ,37,FALSE) -> 0 | AP123: =VLOOKUP(AP$115&$U123,GTYF!$C:$AQ,37,FALSE) -> 0 | AQ123: =VLOOKUP(AQ$115&$U123,GTYF!$C:$AQ,37,FALSE) -> 0 | AR123: =VLOOKUP(AR$115&$U123,GTYF!$C:$AQ,37,FALSE) -> 0 | AS123: =VLOOKUP(AS$115&$U123,GTYF!$C:$AQ,37,FALSE) -> 0 | AT123: =VLOOKUP(AT$115&$U123,GTYF!$C:$AQ,37,FALSE) -> 0 | AU123: =VLOOKUP(AU$115&$U123,GTYF!$C:$AQ,37,FALSE) -> 0 | AV123: =VLOOKUP(AV$115&$U123,GTYF!$C:$AQ,37,FALSE) -> 0 | AW123: =VLOOKUP(AW$115&$U123,GTYF!$C:$AQ,37,FALSE) -> 0 | AX123: =VLOOKUP(AX$115&$U123,GTYF!$C:$AQ,37,FALSE) -> 0 | AY123: =VLOOKUP(AY$115&$U123,GTYF!$C:$AQ,37,FALSE) -> 0 | AZ123: 0 | BA123: =VLOOKUP(BA$115&$U123,GTYF!$C:$AQ,37,FALSE) -> 0
B124: Peupleraies à résineux | F124: - | H124: 65.42527648 | I124: 169.891119 | J124: 120.5391183 | M124: 65.42527648 | N124: 169.891119 | S124: Tableau 9. | T124: Peupleraies à résineux | U124: (FCTYF_PEUR) | V124: =VLOOKUP(V$115&$U124,GTYF!$C:$AQ,37,FALSE) -> 2002.462 | W124: =VLOOKUP(W$115&$U124,GTYF!$C:$AQ,6,FALSE) -> 45213.5 | X124: =VLOOKUP(X$115&$U124,GTYF!$C:$AQ,37,FALSE) -> 125067.63 | Y124: =VLOOKUP(Y$115&$U124,GTYF!$C:$AQ,37,FALSE) -> 1037568.814 | Z124: =VLOOKUP(Z$115&$U124,GTYF!$C:$AQ,37,FALSE) -> 108598.736 | AA124: =VLOOKUP(AA$115&$U124,GTYF!$C:$AQ,37,FALSE) -> 231601.774 | AB124: =VLOOKUP(AB$115&$U124,GTYF!$C:$AQ,37,FALSE) -> 0 | AC124: =VLOOKUP(AC$115&$U124,GTYF!$C:$AQ,37,FALSE) -> 0 | AD124: =VLOOKUP(AD$115&$U124,GTYF!$C:$AQ,37,FALSE) -> 2002.462 | AE124: =VLOOKUP(AE$115&$U124,GTYF!$C:$AQ,37,FALSE) -> 0 | AF124: =VLOOKUP(AF$115&$U124,GTYF!$C:$AQ,37,FALSE) -> 9726.566 | AG124: =VLOOKUP(AG$115&$U124,GTYF!$C:$AQ,37,FALSE) -> 16475.76 | AH124: =VLOOKUP(AH$115&$U124,GTYF!$C:$AQ,37,FALSE) -> 0 | AI124: =VLOOKUP(AI$115&$U124,GTYF!$C:$AQ,37,FALSE) -> 0 | AJ124: =VLOOKUP(AJ$115&$U124,GTYF!$C:$AQ,37,FALSE) -> 2002.462 | AK124: =VLOOKUP(AK$115&$U124,GTYF!$C:$AQ,37,FALSE) -> 0 | AM124: =VLOOKUP(AM$115&$U124,GTYF!$C:$AQ,37,FALSE) -> 0 | AN124: =VLOOKUP(AN$115&$U124,GTYF!$C:$AQ,37,FALSE) -> 0 | AO124: =VLOOKUP(AO$115&$U124,GTYF!$C:$AQ,37,FALSE) -> 0 | AP124: =VLOOKUP(AP$115&$U124,GTYF!$C:$AQ,37,FALSE) -> 0 | AQ124: =VLOOKUP(AQ$115&$U124,GTYF!$C:$AQ,37,FALSE) -> 0 | AR124: =VLOOKUP(AR$115&$U124,GTYF!$C:$AQ,37,FALSE) -> 0 | AS124: =VLOOKUP(AS$115&$U124,GTYF!$C:$AQ,37,FALSE) -> 0 | AT124: =VLOOKUP(AT$115&$U124,GTYF!$C:$AQ,37,FALSE) -> 0 | AU124: =VLOOKUP(AU$115&$U124,GTYF!$C:$AQ,37,FALSE) -> 0 | AV124: =VLOOKUP(AV$115&$U124,GTYF!$C:$AQ,37,FALSE) -> 0 | AW124: =VLOOKUP(AW$115&$U124,GTYF!$C:$AQ,37,FALSE) -> 0 | AX124: =VLOOKUP(AX$115&$U124,GTYF!$C:$AQ,37,FALSE) -> 0 | AY124: =VLOOKUP(AY$115&$U124,GTYF!$C:$AQ,37,FALSE) -> 0 | AZ124: 0 | BA124: =VLOOKUP(BA$115&$U124,GTYF!$C:$AQ,37,FALSE) -> 0
B125: Pinèdes blanches | F125: - | H125: - | I125: - | J125: - | M125: - | N125: - | S125: Tableau 9. | T125: Pinèdes blanches | U125: (FCTYF_PIN) | V125: =VLOOKUP(V$115&$U125,GTYF!$C:$AQ,37,FALSE) -> 0 | W125: =VLOOKUP(W$115&$U125,GTYF!$C:$AQ,6,FALSE) -> 0 | X125: =VLOOKUP(X$115&$U125,GTYF!$C:$AQ,37,FALSE) -> 0 | Y125: =VLOOKUP(Y$115&$U125,GTYF!$C:$AQ,37,FALSE) -> 0 | Z125: =VLOOKUP(Z$115&$U125,GTYF!$C:$AQ,37,FALSE) -> 0 | AA125: =VLOOKUP(AA$115&$U125,GTYF!$C:$AQ,37,FALSE) -> 0 | AB125: =VLOOKUP(AB$115&$U125,GTYF!$C:$AQ,37,FALSE) -> 0 | AC125: =VLOOKUP(AC$115&$U125,GTYF!$C:$AQ,37,FALSE) -> 0 | AD125: =VLOOKUP(AD$115&$U125,GTYF!$C:$AQ,37,FALSE) -> 0 | AE125: =VLOOKUP(AE$115&$U125,GTYF!$C:$AQ,37,FALSE) -> 0 | AF125: =VLOOKUP(AF$115&$U125,GTYF!$C:$AQ,37,FALSE) -> 0 | AG125: =VLOOKUP(AG$115&$U125,GTYF!$C:$AQ,37,FALSE) -> 0 | AH125: =VLOOKUP(AH$115&$U125,GTYF!$C:$AQ,37,FALSE) -> 0 | AI125: =VLOOKUP(AI$115&$U125,GTYF!$C:$AQ,37,FALSE) -> 0 | AJ125: =VLOOKUP(AJ$115&$U125,GTYF!$C:$AQ,37,FALSE) -> 0 | AK125: =VLOOKUP(AK$115&$U125,GTYF!$C:$AQ,37,FALSE) -> 0 | AM125: =VLOOKUP(AM$115&$U125,GTYF!$C:$AQ,37,FALSE) -> 0 | AN125: =VLOOKUP(AN$115&$U125,GTYF!$C:$AQ,37,FALSE) -> 0 | AO125: =VLOOKUP(AO$115&$U125,GTYF!$C:$AQ,37,FALSE) -> 0 | AP125: =VLOOKUP(AP$115&$U125,GTYF!$C:$AQ,37,FALSE) -> 0 | AQ125: =VLOOKUP(AQ$115&$U125,GTYF!$C:$AQ,37,FALSE) -> 0 | AR125: =VLOOKUP(AR$115&$U125,GTYF!$C:$AQ,37,FALSE) -> 0 | AS125: =VLOOKUP(AS$115&$U125,GTYF!$C:$AQ,37,FALSE) -> 0 | AT125: =VLOOKUP(AT$115&$U125,GTYF!$C:$AQ,37,FALSE) -> 0 | AU125: =VLOOKUP(AU$115&$U125,GTYF!$C:$AQ,37,FALSE) -> 0 | AV125: =VLOOKUP(AV$115&$U125,GTYF!$C:$AQ,37,FALSE) -> 0 | AW125: =VLOOKUP(AW$115&$U125,GTYF!$C:$AQ,37,FALSE) -> 0 | AX125: =VLOOKUP(AX$115&$U125,GTYF!$C:$AQ,37,FALSE) -> 0 | AY125: =VLOOKUP(AY$115&$U125,GTYF!$C:$AQ,37,FALSE) -> 0 | AZ125: 0 | BA125: =VLOOKUP(BA$115&$U125,GTYF!$C:$AQ,37,FALSE) -> 0
B126: Pinèdes grises | E126: =Z109 -> 29 | F126: 40.35 | G126: =W109 -> 30.1 | H126: 78.01591104 | I126: 159.110131 | J126: 123.2074248 | M126: 78.01591104 | N126: 159.110131 | S126: Tableau 9. | T126: Pinèdes grises | U126: (FCTYF_PIG) | V126: =VLOOKUP(V$115&$U126,GTYF!$C:$AQ,37,FALSE) -> 856.658 | W126: =VLOOKUP(W$115&$U126,GTYF!$C:$AQ,6,FALSE) -> 13902.7 | X126: =VLOOKUP(X$115&$U126,GTYF!$C:$AQ,37,FALSE) -> 121401.874 | Y126: =VLOOKUP(Y$115&$U126,GTYF!$C:$AQ,37,FALSE) -> 985345.438 | Z126: =VLOOKUP(Z$115&$U126,GTYF!$C:$AQ,37,FALSE) -> 124859.766 | AA126: =VLOOKUP(AA$115&$U126,GTYF!$C:$AQ,37,FALSE) -> 0 | AB126: =VLOOKUP(AB$115&$U126,GTYF!$C:$AQ,37,FALSE) -> 0 | AC126: =VLOOKUP(AC$115&$U126,GTYF!$C:$AQ,37,FALSE) -> 0 | AD126: =VLOOKUP(AD$115&$U126,GTYF!$C:$AQ,37,FALSE) -> 784.738 | AE126: =VLOOKUP(AE$115&$U126,GTYF!$C:$AQ,37,FALSE) -> 0 | AF126: =VLOOKUP(AF$115&$U126,GTYF!$C:$AQ,37,FALSE) -> 12244.41 | AG126: =VLOOKUP(AG$115&$U126,GTYF!$C:$AQ,37,FALSE) -> 0 | AH126: =VLOOKUP(AH$115&$U126,GTYF!$C:$AQ,37,FALSE) -> 0 | AI126: =VLOOKUP(AI$115&$U126,GTYF!$C:$AQ,37,FALSE) -> 0 | AJ126: =VLOOKUP(AJ$115&$U126,GTYF!$C:$AQ,37,FALSE) -> 784.738 | AK126: =VLOOKUP(AK$115&$U126,GTYF!$C:$AQ,37,FALSE) -> 0 | AM126: =VLOOKUP(AM$115&$U126,GTYF!$C:$AQ,37,FALSE) -> 2901.972 | AN126: =VLOOKUP(AN$115&$U126,GTYF!$C:$AQ,37,FALSE) -> 0 | AO126: =VLOOKUP(AO$115&$U126,GTYF!$C:$AQ,37,FALSE) -> 0 | AP126: =VLOOKUP(AP$115&$U126,GTYF!$C:$AQ,37,FALSE) -> 0 | AQ126: =VLOOKUP(AQ$115&$U126,GTYF!$C:$AQ,37,FALSE) -> 0 | AR126: =VLOOKUP(AR$115&$U126,GTYF!$C:$AQ,37,FALSE) -> 0 | AS126: =VLOOKUP(AS$115&$U126,GTYF!$C:$AQ,37,FALSE) -> 0 | AT126: =VLOOKUP(AT$115&$U126,GTYF!$C:$AQ,37,FALSE) -> 0 | AU126: =VLOOKUP(AU$115&$U126,GTYF!$C:$AQ,37,FALSE) -> 0 | AV126: =VLOOKUP(AV$115&$U126,GTYF!$C:$AQ,37,FALSE) -> 0 | AW126: =VLOOKUP(AW$115&$U126,GTYF!$C:$AQ,37,FALSE) -> 0 | AX126: =VLOOKUP(AX$115&$U126,GTYF!$C:$AQ,37,FALSE) -> 0 | AY126: =VLOOKUP(AY$115&$U126,GTYF!$C:$AQ,37,FALSE) -> 0 | AZ126: 2901.972 | BA126: =VLOOKUP(BA$115&$U126,GTYF!$C:$AQ,37,FALSE) -> 71.92
B127: Prucheraies | F127: - | H127: - | I127: - | J127: - | M127: - | N127: - | S127: Tableau 9. | T127: Prucheraies | U127: (FCTYF_PRU) | V127: =VLOOKUP(V$115&$U127,GTYF!$C:$AQ,37,FALSE) -> 0 | W127: =VLOOKUP(W$115&$U127,GTYF!$C:$AQ,6,FALSE) -> 0 | X127: =VLOOKUP(X$115&$U127,GTYF!$C:$AQ,37,FALSE) -> 0 | Y127: =VLOOKUP(Y$115&$U127,GTYF!$C:$AQ,37,FALSE) -> 0 | Z127: =VLOOKUP(Z$115&$U127,GTYF!$C:$AQ,37,FALSE) -> 0 | AA127: =VLOOKUP(AA$115&$U127,GTYF!$C:$AQ,37,FALSE) -> 0 | AB127: =VLOOKUP(AB$115&$U127,GTYF!$C:$AQ,37,FALSE) -> 0 | AC127: =VLOOKUP(AC$115&$U127,GTYF!$C:$AQ,37,FALSE) -> 0 | AD127: =VLOOKUP(AD$115&$U127,GTYF!$C:$AQ,37,FALSE) -> 0 | AE127: =VLOOKUP(AE$115&$U127,GTYF!$C:$AQ,37,FALSE) -> 0 | AF127: =VLOOKUP(AF$115&$U127,GTYF!$C:$AQ,37,FALSE) -> 0 | AG127: =VLOOKUP(AG$115&$U127,GTYF!$C:$AQ,37,FALSE) -> 0 | AH127: =VLOOKUP(AH$115&$U127,GTYF!$C:$AQ,37,FALSE) -> 0 | AI127: =VLOOKUP(AI$115&$U127,GTYF!$C:$AQ,37,FALSE) -> 0 | AJ127: =VLOOKUP(AJ$115&$U127,GTYF!$C:$AQ,37,FALSE) -> 0 | AK127: =VLOOKUP(AK$115&$U127,GTYF!$C:$AQ,37,FALSE) -> 0 | AM127: =VLOOKUP(AM$115&$U127,GTYF!$C:$AQ,37,FALSE) -> 0 | AN127: =VLOOKUP(AN$115&$U127,GTYF!$C:$AQ,37,FALSE) -> 0 | AO127: =VLOOKUP(AO$115&$U127,GTYF!$C:$AQ,37,FALSE) -> 0 | AP127: =VLOOKUP(AP$115&$U127,GTYF!$C:$AQ,37,FALSE) -> 0 | AQ127: =VLOOKUP(AQ$115&$U127,GTYF!$C:$AQ,37,FALSE) -> 0 | AR127: =VLOOKUP(AR$115&$U127,GTYF!$C:$AQ,37,FALSE) -> 0 | AS127: =VLOOKUP(AS$115&$U127,GTYF!$C:$AQ,37,FALSE) -> 0 | AT127: =VLOOKUP(AT$115&$U127,GTYF!$C:$AQ,37,FALSE) -> 0 | AU127: =VLOOKUP(AU$115&$U127,GTYF!$C:$AQ,37,FALSE) -> 0 | AV127: =VLOOKUP(AV$115&$U127,GTYF!$C:$AQ,37,FALSE) -> 0 | AW127: =VLOOKUP(AW$115&$U127,GTYF!$C:$AQ,37,FALSE) -> 0 | AX127: =VLOOKUP(AX$115&$U127,GTYF!$C:$AQ,37,FALSE) -> 0 | AY127: =VLOOKUP(AY$115&$U127,GTYF!$C:$AQ,37,FALSE) -> 0 | AZ127: 0 | BA127: =VLOOKUP(BA$115&$U127,GTYF!$C:$AQ,37,FALSE) -> 0
B128: Résineux à feuillus | E128: =Z110 -> 49 | F128: 64.51322885 | G128: =W110 -> 24.6 | H128: 78.98355084 | I128: 143.7946671 | J128: 125.9804064 | M128: 78.98355084 | N128: 143.7946671 | S128: Tableau 9. | T128: Résineux à feuillus | U128: (FCTYF_RF) | V128: =VLOOKUP(V$115&$U128,GTYF!$C:$AQ,37,FALSE) -> 4372.476 | W128: =VLOOKUP(W$115&$U128,GTYF!$C:$AQ,6,FALSE) -> 97708.5 | X128: =VLOOKUP(X$115&$U128,GTYF!$C:$AQ,37,FALSE) -> 353830.804 | Y128: =VLOOKUP(Y$115&$U128,GTYF!$C:$AQ,37,FALSE) -> 2808617.738 | Z128: =VLOOKUP(Z$115&$U128,GTYF!$C:$AQ,37,FALSE) -> 368827.886 | AA128: =VLOOKUP(AA$115&$U128,GTYF!$C:$AQ,37,FALSE) -> 154104.428 | AB128: =VLOOKUP(AB$115&$U128,GTYF!$C:$AQ,37,FALSE) -> 0 | AC128: =VLOOKUP(AC$115&$U128,GTYF!$C:$AQ,37,FALSE) -> 0 | AD128: =VLOOKUP(AD$115&$U128,GTYF!$C:$AQ,37,FALSE) -> 3636.66 | AE128: =VLOOKUP(AE$115&$U128,GTYF!$C:$AQ,37,FALSE) -> 0 | AF128: =VLOOKUP(AF$115&$U128,GTYF!$C:$AQ,37,FALSE) -> 44387.544 | AG128: =VLOOKUP(AG$115&$U128,GTYF!$C:$AQ,37,FALSE) -> 13059.72 | AH128: =VLOOKUP(AH$115&$U128,GTYF!$C:$AQ,37,FALSE) -> 0 | AI128: =VLOOKUP(AI$115&$U128,GTYF!$C:$AQ,37,FALSE) -> 0 | AJ128: =VLOOKUP(AJ$115&$U128,GTYF!$C:$AQ,37,FALSE) -> 3636.66 | AK128: =VLOOKUP(AK$115&$U128,GTYF!$C:$AQ,37,FALSE) -> 0 | AM128: =VLOOKUP(AM$115&$U128,GTYF!$C:$AQ,37,FALSE) -> 0 | AN128: =VLOOKUP(AN$115&$U128,GTYF!$C:$AQ,37,FALSE) -> 0 | AO128: =VLOOKUP(AO$115&$U128,GTYF!$C:$AQ,37,FALSE) -> 0 | AP128: =VLOOKUP(AP$115&$U128,GTYF!$C:$AQ,37,FALSE) -> 0 | AQ128: =VLOOKUP(AQ$115&$U128,GTYF!$C:$AQ,37,FALSE) -> 0 | AR128: =VLOOKUP(AR$115&$U128,GTYF!$C:$AQ,37,FALSE) -> 0 | AS128: =VLOOKUP(AS$115&$U128,GTYF!$C:$AQ,37,FALSE) -> 47469.866 | AT128: =VLOOKUP(AT$115&$U128,GTYF!$C:$AQ,37,FALSE) -> 0 | AU128: =VLOOKUP(AU$115&$U128,GTYF!$C:$AQ,37,FALSE) -> 0 | AV128: =VLOOKUP(AV$115&$U128,GTYF!$C:$AQ,37,FALSE) -> 0 | AW128: =VLOOKUP(AW$115&$U128,GTYF!$C:$AQ,37,FALSE) -> 0 | AX128: =VLOOKUP(AX$115&$U128,GTYF!$C:$AQ,37,FALSE) -> 0 | AY128: =VLOOKUP(AY$115&$U128,GTYF!$C:$AQ,37,FALSE) -> 0 | AZ128: 47469.866 | BA128: =VLOOKUP(BA$115&$U128,GTYF!$C:$AQ,37,FALSE) -> 735.816
B129: Sapinières | E129: =Z111 -> 40 | F129: 79.11859096 | G129: =W111 -> 31.9 | H129: 101.8181889 | I129: 136.6752977 | J129: 112.7680727 | M129: =IFERROR(($AF129+$AG129+$AH129+$AI129)/$AJ129*5,"-") -> 101.8181889 | N129: 136.6752977 | S129: Tableau 9. | T129: Sapinières | U129: (FCTYF_SAB) | V129: =VLOOKUP(V$115&$U129,GTYF!$C:$AQ,37,FALSE) -> 5742.384 | W129: =VLOOKUP(W$115&$U129,GTYF!$C:$AQ,6,FALSE) -> 234469.5 | X129: =VLOOKUP(X$115&$U129,GTYF!$C:$AQ,37,FALSE) -> 705295.334 | Y129: =VLOOKUP(Y$115&$U129,GTYF!$C:$AQ,37,FALSE) -> 6254388.474 | Z129: =VLOOKUP(Z$115&$U129,GTYF!$C:$AQ,37,FALSE) -> 759544.812 | AA129: =VLOOKUP(AA$115&$U129,GTYF!$C:$AQ,37,FALSE) -> 0 | AB129: =VLOOKUP(AB$115&$U129,GTYF!$C:$AQ,37,FALSE) -> 0 | AC129: =VLOOKUP(AC$115&$U129,GTYF!$C:$AQ,37,FALSE) -> 0 | AD129: =VLOOKUP(AD$115&$U129,GTYF!$C:$AQ,37,FALSE) -> 5557.294 | AE129: =VLOOKUP(AE$115&$U129,GTYF!$C:$AQ,37,FALSE) -> 0 | AF129: =VLOOKUP(AF$115&$U129,GTYF!$C:$AQ,37,FALSE) -> 113166.722 | AG129: =VLOOKUP(AG$115&$U129,GTYF!$C:$AQ,37,FALSE) -> 0 | AH129: =VLOOKUP(AH$115&$U129,GTYF!$C:$AQ,37,FALSE) -> 0 | AI129: =VLOOKUP(AI$115&$U129,GTYF!$C:$AQ,37,FALSE) -> 0 | AJ129: =VLOOKUP(AJ$115&$U129,GTYF!$C:$AQ,37,FALSE) -> 5557.294 | AK129: =VLOOKUP(AK$115&$U129,GTYF!$C:$AQ,37,FALSE) -> 0 | AM129: =VLOOKUP(AM$115&$U129,GTYF!$C:$AQ,37,FALSE) -> 877.7 | AN129: =VLOOKUP(AN$115&$U129,GTYF!$C:$AQ,37,FALSE) -> 0 | AO129: =VLOOKUP(AO$115&$U129,GTYF!$C:$AQ,37,FALSE) -> 0 | AP129: =VLOOKUP(AP$115&$U129,GTYF!$C:$AQ,37,FALSE) -> 0 | AQ129: =VLOOKUP(AQ$115&$U129,GTYF!$C:$AQ,37,FALSE) -> 0 | AR129: =VLOOKUP(AR$115&$U129,GTYF!$C:$AQ,37,FALSE) -> 0 | AS129: =VLOOKUP(AS$115&$U129,GTYF!$C:$AQ,37,FALSE) -> 13766.36 | AT129: =VLOOKUP(AT$115&$U129,GTYF!$C:$AQ,37,FALSE) -> 0 | AU129: =VLOOKUP(AU$115&$U129,GTYF!$C:$AQ,37,FALSE) -> 0 | AV129: =VLOOKUP(AV$115&$U129,GTYF!$C:$AQ,37,FALSE) -> 0 | AW129: =VLOOKUP(AW$115&$U129,GTYF!$C:$AQ,37,FALSE) -> 0 | AX129: =VLOOKUP(AX$115&$U129,GTYF!$C:$AQ,37,FALSE) -> 0 | AY129: =VLOOKUP(AY$115&$U129,GTYF!$C:$AQ,37,FALSE) -> 0 | AZ129: 14644.06 | BA129: =VLOOKUP(BA$115&$U129,GTYF!$C:$AQ,37,FALSE) -> 185.09
S130: Tableau 9. | T130: Tous les GTYF | V130: =SUM(V116:V129) -> 41974.716 | W130: =SUM(W116:W129) -> 909490 | X130: 3338976.494 | Y130: 31063979.9 | Z130: 4368548.09 | AA130: 513887.286 | AB130: 0 | AC130: 0 | AD130: 36825.672 | AE130: 0 | AF130: 703070.442 | AG130: 50961.864 | AH130: 0 | AI130: 0 | AJ130: 36825.672 | AK130: 0
L131: Les statistiques portants sur les coupes partielles proviennent d'un Script R et sont disponibles ici:
L132: T:\Donnees\02_Courant\01_CPF\01_UA\0XXXX\70_Determination\72_Rapport\01_Cahier_DET\Tableau_9
B134: Tableau 10. Traitements non commerciaux supportant les possibilités forestières
B135: Traitements non commerciaux | F135: Superficie annuelle moyenne (ha/an) | G135: Superficie antérieure (ha/an) | H135: Écart (ha/an) | X135: Exemple U03772
K138: Le texte en rouge demande à l'analyste de valider la nature exacte du traitement et les superficies - variable selon la vague et l'UA - veuillez ensuite mettre en noir et supprimer la remarque si elle ne s'applique pas (si DEG_1 ne contient pas de regarni)
B139: Ligniculture (essences à croissance rapide) | F139: =ROUND(V139,-1) -> 0 | G139: =IFERROR(ROUND(VLOOKUP(O33,DataLocal!$A:$BH,47,FALSE),-1),0) -> 0 | H139: =F139-G139 -> 0 | S139: =LEFT(B$134,11) -> Tableau 10. | T139: Plantation ligniculture (pins, feuillus) | U139: OSUPPL_PPF | V139: =IFERROR(VLOOKUP(U139,Output!C:AQ,37,FALSE),0)/5 -> 0
B140: Plantation intensive (2 000 plants/ha) | F140: =ROUND(V140,-1) -> 170 | G140: =IFERROR(ROUND(VLOOKUP(O33,DataLocal!$A:$BH,48,FALSE),-1),0) -> 100 | H140: =F140-G140 -> 70 | S140: =LEFT(B$134,11) -> Tableau 10. | T140: Plantation intensive | U140: OSUPPL_SEPM_I | V140: =IFERROR(VLOOKUP(U140,Output!C:AQ,37,FALSE),0)/5 -> 174.4052
B141: Plantation de base (1 600 plants/ha) | F141: =ROUND(V141,-1) -> 730 | G141: =IFERROR(ROUND(VLOOKUP(O33,DataLocal!$A:$BH,49,FALSE),-1),0) -> 1950 | H141: -1220 | S141: Tableau 10. | T141: Plantation de base | U141: OSUPPL_SEPM_E | V141: =IFERROR(VLOOKUP(U141,Output!C:AQ,37,FALSE),0)/5 -> 734.5948
B142: Regarni | F142: =ROUND(V142,-1) -> 300 | G142: =IFERROR(ROUND(VLOOKUP(O33,DataLocal!$A:$BH,50,FALSE),-1),0) -> 70 | H142: 230 | S142: Tableau 10. | T142: Regarni | U142: OSUPREG | V142: =IFERROR(VLOOKUP(U142,Output!C:AQ,37,FALSE),0)/5 -> 297
B143: % des plantations dans les coupes totales | F143: =IFERROR(SUM(F139:F141)/G92,0) -> 0.1221166893 | G143: =IFERROR(SUM(G139:G141)/H92,0) -> 0.2618135377 | H143: -0.1396968484 | S143: Tableau 10.
B144: Total des travaux de reboisement | F144: =ROUND(SUM(F139:F142),-1) -> 1200 | G144: =ROUND(SUM(G139:G142),-1) -> 2120 | H144: -920 | S144: Tableau 10.
B145: Nettoiement (régénération naturelle et plantation) | F145: =ROUND(V145,-1) -> 140 | G145: =IFERROR(ROUND(VLOOKUP(O33,DataLocal!$A:$BH,51,FALSE),-1),0) -> 2830 | H145: -2690 | S145: Tableau 10. | T145: Nettoiement | U145: OSUPREALNET | V145: =IFERROR(VLOOKUP(U145,Output!C:AQ,37,FALSE),0)/5 -> 138.668
B146: Éclaircie précommerciale | F146: =ROUND(V146,-1) -> 0 | G146: =IFERROR(ROUND(VLOOKUP(O33,DataLocal!$A:$BH,52,FALSE),-1),0) -> 0 | H146: 0 | S146: Tableau 10. | T146: Éclaircie précommerciale de la régénération naturelle | U146: OSUPREALEPC | V146: =IFERROR(VLOOKUP(U146,Output!C:AQ,37,FALSE),0)/5 -> 0 | X146: Exemple U09751
B147: Dégagement de la régénération naturelle (et regarni) | F147: =ROUND(V147,-1) -> 210 | G147: =IFERROR(ROUND(VLOOKUP(O33,DataLocal!$A:$BH,53,FALSE),-1),0) -> 0 | H147: 210 | S147: Tableau 10. | T147: Dégagement de la régénération naturelle | U147: OSUPDEG_2 | V147: =IFERROR(VLOOKUP(U147,Output!C:AQ,37,FALSE),0)/5 -> 211.4312
B148: Dégagement des plantations* | F148: =ROUND(V148,-1) -> 560 | G148: =IFERROR(ROUND(VLOOKUP(O33,DataLocal!$A:$BH,54,FALSE),-1),0) -> 880 | H148: -320 | S148: Tableau 10. | T148: Dégagement de plantation | U148: OSUPDEG_1 | V148: =IFERROR(VLOOKUP(U148,Output!C:AQ,37,FALSE),0)/5 -> 558.9004
B149: Élagage | F149: =ROUND(V149,-1) -> 0 | G149: =IFERROR(ROUND(VLOOKUP(O33,DataLocal!$A:$BN,66,FALSE),-1),0) -> 0 | H149: 0 | S149: Tableau 10. | T149: Élagage (plantation) | U149: OSUPELAG | V149: =IFERROR(VLOOKUP(U149,Output!C:AQ,37,FALSE),0)/5 -> 0
B150: Total des travaux d'éducation | F150: =SUM(F145:F149) -> 910 | G150: =SUM(G145:G149) -> 3710 | H150: -2800 | S150: Tableau 10. | U150: OSUPSCA_LIGN | V150: =IFERROR(VLOOKUP(U150,Output!C:AQ,37,FALSE),0)/5 -> 0
B151: Scarifiage partiel | F151: =ROUND(V152,-1) -> 300 | G151: =IFERROR(ROUND(VLOOKUP(O33,DataLocal!$A:$BH,58,FALSE),-1),0) -> 170 | H151: 130 | S151: Tableau 10. | U151: OSUPSCA_LRD | V151: =IFERROR(VLOOKUP(U151,Output!C:AQ,37,FALSE),0)/5 -> 0
B152: Scarifiage en plein | F152: =ROUND(V153+V150+V151,-1) -> 910 | G152: =IFERROR(ROUND(VLOOKUP(O33,DataLocal!$A:$BH,59,FALSE),-1),0) -> 2130 | H152: -1220 | S152: Tableau 10. | U152: OSUPSCA_PART | V152: =IFERROR(VLOOKUP(U152,Output!C:AQ,37,FALSE),0)/5 -> 297
B153: Total de la préparation de terrain | F153: =IFERROR(SUM(F151:F152),0) -> 1210 | G153: =IFERROR(SUM(G151:G152),0) -> 2300 | H153: -1090 | S153: Tableau 10. | U153: OSUPSCA_REG | V153: =IFERROR(VLOOKUP(U153,Output!C:AQ,37,FALSE),0)/5 -> 909
B154: Total des travaux sans récolte | F154: =F153+F150+F144 -> 3320 | G154: =G153+G150+G144 -> 8130 | H154: -4810
B155: * Peut aussi comprendre du dégagement de regarni
B160: Tableau 13 : Variation du volume sur pied à court, moyen et long terme | L160: % du volume total | U160: colonne | V160: 37 | W160: 38 | X160: 39 | Y160: 40 | AF160: 37 | AG160: 38 | AH160: 39 | AI160: 40
B161: Essences | C161: Volume moyen sur pied (m3) | G161: Volume moyen sur pied (%) | V161: Volume moyen sur pied (m3) | Z161: Volume moyen sur pied (%) | AF161: Volume dans courbe SNAT
C162: 2023 à 2048 | D162: 2048 à 2073 | E162: 2073 à 2118 | F162: 2118 à 2168 | G162: =C162 -> 2023 à 2048 | H162: =D162 -> 2048 à 2073 | I162: 2073 à 2118 | J162: 2118 à 2168 | L162: 2023 à 2048 | T162: Légende | U162: Name | V162: p 2 à 6 | W162: p 7 à 11 | X162: p 12 à 20 | Y162: p 21 à 30 | Z162: p 2 à 6 | AA162: p 7 à 11 | AB162: p 12 à 20 | AC162: p 21 à 30 | AE162: Name | AF162: p 2 à 6 | AG162: p 7 à 11 | AH162: p 12 à 20 | AI162: p 21 à 30
B163: =T163 -> Sapin baumier | C163: =ROUND(V163-AF163,-2) -> 15396400 | D163: =ROUND(W163-AG163,-2) -> 16033900 | E163: 17361700 | F163: 15879200 | G163: =C163/C$177 -> 0.2422371584 | H163: =D163/D$177 -> 0.254359386 | I163: =E163/E$177 -> 0.2678745556 | J163: =F163/F$177 -> 0.2583403562 | L163: =C163/C$177 -> 0.2422371584 | S163: =LEFT(B$160,11) -> Tableau 13 | T163: Sapin baumier | U163: OVOLSABPIEDINC | V163: =VLOOKUP($U163,Output!$C:$AQ,V$160,FALSE) -> 15425570.16 | W163: =VLOOKUP($U163,Output!$C:$AQ,W$160,FALSE) -> 16069085.92 | X163: =VLOOKUP($U163,Output!$C:$AQ,X$160,FALSE) -> 17418807.87 | Y163: =VLOOKUP($U163,Output!$C:$AQ,Y$160,FALSE) -> 15943877.69 | Z163: =V163/V$178 -> 0.2403955048 | AA163: =W163/W$178 -> 0.251965815 | AB163: =X163/X$178 -> 0.2639676895 | AC163: =Y163/Y$178 -> 0.2523397294 | AE163: OVOLSABPIEDSNAT | AF163: =VLOOKUP($AE163,Output!$C:$AQ,AF$160,FALSE) -> 29185.702 | AG163: =VLOOKUP($AE163,Output!$C:$AQ,AG$160,FALSE) -> 35195.526 | AH163: =VLOOKUP($AE163,Output!$C:$AQ,AH$160,FALSE) -> 57143.79778 | AI163: =VLOOKUP($AE163,Output!$C:$AQ,AI$160,FALSE) -> 64703.749
B164: =T164 -> Épinettes | C164: =ROUND(V164-AF164,-2) -> 28713500 | D164: 29504900 | E164: 28363500 | F164: 27732400 | G164: 0.451759934 | H164: 0.4680613106 | I164: 0.4376218895 | J164: 0.4511812996 | L164: 0.451759934 | S164: Tableau 13 | T164: Épinettes | U164: OVOLgEpxPIEDINC | V164: =VLOOKUP($U164,Output!$C:$AQ,V$160,FALSE) -> 29274617.31 | W164: =VLOOKUP($U164,Output!$C:$AQ,W$160,FALSE) -> 30188869.66 | X164: =VLOOKUP($U164,Output!$C:$AQ,X$160,FALSE) -> 29451341.69 | Y164: =VLOOKUP($U164,Output!$C:$AQ,Y$160,FALSE) -> 29331693.52 | Z164: 0.4562221257 | AA164: 0.4733662627 | AB164: 0.4463108312 | AC164: 0.4642253125 | AE164: OVOLgEpxPIEDSNAT | AF164: =VLOOKUP($AE164,Output!$C:$AQ,AF$160,FALSE) -> 561136.764 | AG164: =VLOOKUP($AE164,Output!$C:$AQ,AG$160,FALSE) -> 683981.676 | AH164: =VLOOKUP($AE164,Output!$C:$AQ,AH$160,FALSE) -> 1087801.348 | AI164: =VLOOKUP($AE164,Output!$C:$AQ,AI$160,FALSE) -> 1599256.923
B165: =T165 -> Pin gris | C165: 2501300 | D165: 2397100 | E165: 3259100 | F165: 2747300 | G165: 0.03935386223 | H165: 0.03802723506 | I165: 0.05028482028 | J165: 0.04469610941 | L165: 0.03935386223 | S165: Tableau 13 | T165: Pin gris | U165: OVOLgPgPIEDINC | V165: =VLOOKUP($U165,Output!$C:$AQ,V$160,FALSE) -> 2510967.624 | W165: =VLOOKUP($U165,Output!$C:$AQ,W$160,FALSE) -> 2407064.712 | X165: =VLOOKUP($U165,Output!$C:$AQ,X$160,FALSE) -> 3273368.321 | Y165: =VLOOKUP($U165,Output!$C:$AQ,Y$160,FALSE) -> 2772209.369 | Z165: 0.03913147608 | AA165: 0.03774315631 | AB165: 0.04960520141 | AC165: 0.04387505821 | AE165: OVOLgPgPIEDSNAT | AF165: =VLOOKUP($AE165,Output!$C:$AQ,AF$160,FALSE) -> 9707.834 | AG165: =VLOOKUP($AE165,Output!$C:$AQ,AG$160,FALSE) -> 9967.204 | AH165: =VLOOKUP($AE165,Output!$C:$AQ,AH$160,FALSE) -> 14265.66222 | AI165: =VLOOKUP($AE165,Output!$C:$AQ,AI$160,FALSE) -> 24874.729
B166: =T166 -> Mélèzes | C166: 166000 | D166: 170700 | E166: 159400 | F166: 148200 | G166: 0.002611738348 | H166: 0.002707959211 | I166: 0.002459390738 | J166: 0.002411081212 | L166: 0.002611738348 | S166: Tableau 13 | T166: Mélèzes | U166: OVOLgMlPIEDINC | V166: =VLOOKUP($U166,Output!$C:$AQ,V$160,FALSE) -> 173278.682 | W166: =VLOOKUP($U166,Output!$C:$AQ,W$160,FALSE) -> 178504.398 | X166: =VLOOKUP($U166,Output!$C:$AQ,X$160,FALSE) -> 172189.8789 | Y166: =VLOOKUP($U166,Output!$C:$AQ,Y$160,FALSE) -> 172000.158 | Z166: 0.002700413392 | AA166: 0.002798977262 | AB166: 0.002609395823 | AC166: 0.002722203102 | AE166: OVOLGMlPIEDSNAT | AF166: =VLOOKUP($AE166,Output!$C:$AQ,AF$160,FALSE) -> 7299.404 | AG166: =VLOOKUP($AE166,Output!$C:$AQ,AG$160,FALSE) -> 7793.116 | AH166: =VLOOKUP($AE166,Output!$C:$AQ,AH$160,FALSE) -> 12836.33333 | AI166: =VLOOKUP($AE166,Output!$C:$AQ,AI$160,FALSE) -> 23768.682
B167: Thuya | C167: =ROUND(V167-AF167,-2) -> 59100 | D167: 70800 | E167: 50000 | F167: 29700 | G167: 0.0009298417853 | H167: 0.001123160587 | I167: 0.0007714525526 | J167: 0.0004831923887 | L167: 0.0009298417853 | S167: Tableau 13 | T167: Thuya | U167: OVOLTHOPIEDINC | V167: =VLOOKUP($U167,Output!$C:$AQ,V$160,FALSE) -> 59103.72 | W167: =VLOOKUP($U167,Output!$C:$AQ,W$160,FALSE) -> 70774.498 | X167: =VLOOKUP($U167,Output!$C:$AQ,X$160,FALSE) -> 50020.97 | Y167: =VLOOKUP($U167,Output!$C:$AQ,Y$160,FALSE) -> 29730.184 | Z167: 0.0009210854745 | AA167: 0.00110975535 | AB167: 0.0007580266099 | AC167: 0.0004705321208 | AE167: OVOLTHOPIEDSNAT | AF167: =VLOOKUP($AE167,Output!$C:$AQ,AF$160,FALSE) -> 0 | AG167: =VLOOKUP($AE167,Output!$C:$AQ,AG$160,FALSE) -> 0 | AH167: =VLOOKUP($AE167,Output!$C:$AQ,AH$160,FALSE) -> 0 | AI167: =VLOOKUP($AE167,Output!$C:$AQ,AI$160,FALSE) -> 0
B168: Pruche | C168: 100 | D168: 300 | E168: 400 | F168: 400 | G168: 1.573336354e-06 | H168: 4.759155028e-06 | I168: 6.171620421e-06 | J168: 6.507641598e-06 | L168: 1.573336354e-06 | S168: Tableau 13 | T168: Pruche | U168: OVOLPRUPIEDINC | V168: =VLOOKUP($U168,Output!$C:$AQ,V$160,FALSE) -> 148.56 | W168: =VLOOKUP($U168,Output!$C:$AQ,W$160,FALSE) -> 299.006 | X168: =VLOOKUP($U168,Output!$C:$AQ,X$160,FALSE) -> 351.0777778 | Y168: =VLOOKUP($U168,Output!$C:$AQ,Y$160,FALSE) -> 375.874 | Z168: 2.315191973e-06 | AA168: 4.688461486e-06 | AB168: 5.320294623e-06 | AC168: 5.948862959e-06 | AE168: OVOLPRUPIEDSNAT | AF168: =VLOOKUP($AE168,Output!$C:$AQ,AF$160,FALSE) -> 0 | AG168: =VLOOKUP($AE168,Output!$C:$AQ,AG$160,FALSE) -> 0 | AH168: =VLOOKUP($AE168,Output!$C:$AQ,AH$160,FALSE) -> 0 | AI168: =VLOOKUP($AE168,Output!$C:$AQ,AI$160,FALSE) -> 0
B169: Pins blanc et rouge | C169: 51100 | D169: 53500 | E169: 38400 | F169: 29300 | G169: 0.000803974877 | H169: 0.00084871598 | I169: 0.0005924755604 | J169: 0.0004766847471 | L169: 0.000803974877 | S169: Tableau 13 | T169: Pins blanc et rouge | U169: OVOLGPINSPIEDINC | V169: =VLOOKUP($U169,Output!$C:$AQ,V$160,FALSE) -> 51121.756 | W169: =VLOOKUP($U169,Output!$C:$AQ,W$160,FALSE) -> 53506.2 | X169: =VLOOKUP($U169,Output!$C:$AQ,X$160,FALSE) -> 38354.82444 | Y169: =VLOOKUP($U169,Output!$C:$AQ,Y$160,FALSE) -> 29315.457 | Z169: 0.0007966927781 | AA169: 0.0008389856992 | AB169: 0.0005812357807 | AC169: 0.0004639683412 | AE169: OVOLGPINSCPIEDSNAT | AF169: =VLOOKUP($AE169,Output!$C:$AQ,AF$160,FALSE) -> 0 | AG169: =VLOOKUP($AE169,Output!$C:$AQ,AG$160,FALSE) -> 0 | AH169: =VLOOKUP($AE169,Output!$C:$AQ,AH$160,FALSE) -> 0 | AI169: =VLOOKUP($AE169,Output!$C:$AQ,AI$160,FALSE) -> 0
B170: Peupliers | C170: 8336900 | D170: 7214900 | E170: 6364700 | F170: 6388100 | G170: 0.1311674785 | H170: 0.114456092 | I170: 0.09820128123 | J170: 0.1039286632 | L170: 0.1311674785 | S170: Tableau 13 | T170: Peupliers | U170: OVOLGPEUPIEDINC | V170: =VLOOKUP($U170,Output!$C:$AQ,V$160,FALSE) -> 8336967.896 | W170: =VLOOKUP($U170,Output!$C:$AQ,W$160,FALSE) -> 7215106.656 | X170: =VLOOKUP($U170,Output!$C:$AQ,X$160,FALSE) -> 6365165.284 | Y170: =VLOOKUP($U170,Output!$C:$AQ,Y$160,FALSE) -> 6388906.846 | Z170: 0.1299251558 | AA170: 0.1131340163 | AB170: 0.09645883841 | AC170: 0.1011156166 | AE170: OVOLPEUPIEDSNAT | AF170: =VLOOKUP($AE170,Output!$C:$AQ,AF$160,FALSE) -> 111.156 | AG170: =VLOOKUP($AE170,Output!$C:$AQ,AG$160,FALSE) -> 185.26 | AH170: =VLOOKUP($AE170,Output!$C:$AQ,AH$160,FALSE) -> 475.9955556 | AI170: =VLOOKUP($AE170,Output!$C:$AQ,AI$160,FALSE) -> 773.289
B171: Bouleau à papier | C171: 7347900 | D171: 6745500 | E171: 8453400 | F171: 7872700 | G171: 0.115607182 | H171: 0.1070096008 | I171: 0.1304279402 | J171: 0.128081775 | L171: 0.115607182 | S171: Tableau 13 | T171: Bouleau à papier | U171: OVOLgBpPIEDINC | V171: =VLOOKUP($U171,Output!$C:$AQ,V$160,FALSE) -> 7348790.438 | W171: =VLOOKUP($U171,Output!$C:$AQ,W$160,FALSE) -> 6746896.318 | X171: =VLOOKUP($U171,Output!$C:$AQ,X$160,FALSE) -> 8456515.277 | Y171: =VLOOKUP($U171,Output!$C:$AQ,Y$160,FALSE) -> 7877278.85 | Z171: 0.1145251793 | AA171: 0.105792404 | AB171: 0.1281515254 | AC171: 0.1246717048 | AE171: OVOLgBpPIEDSNAT | AF171: =VLOOKUP($AE171,Output!$C:$AQ,AF$160,FALSE) -> 852.216 | AG171: =VLOOKUP($AE171,Output!$C:$AQ,AG$160,FALSE) -> 1387.984 | AH171: =VLOOKUP($AE171,Output!$C:$AQ,AH$160,FALSE) -> 3125.098889 | AI171: =VLOOKUP($AE171,Output!$C:$AQ,AI$160,FALSE) -> 4570.777
B172: Bouleau jaune | C172: 623600 | D172: 504800 | E172: 500900 | F172: 428000 | G172: 0.009811325504 | H172: 0.008008071527 | I172: 0.007728411672 | J172: 0.00696317651 | L172: 0.009811325504 | S172: Tableau 13 | T172: Bouleau jaune | U172: OVOLBOJPIEDINC | V172: =VLOOKUP($U172,Output!$C:$AQ,V$160,FALSE) -> 623579.972 | W172: =VLOOKUP($U172,Output!$C:$AQ,W$160,FALSE) -> 504788.924 | X172: =VLOOKUP($U172,Output!$C:$AQ,X$160,FALSE) -> 500911.7944 | Y172: =VLOOKUP($U172,Output!$C:$AQ,Y$160,FALSE) -> 427971.643 | Z172: 0.009718008518 | AA172: 0.007915170361 | AB172: 0.007590905762 | AC172: 0.00677339921 | AE172: OVOLBOJPIEDSNAT | AF172: =VLOOKUP($AE172,Output!$C:$AQ,AF$160,FALSE) -> 0 | AG172: =VLOOKUP($AE172,Output!$C:$AQ,AG$160,FALSE) -> 0 | AH172: =VLOOKUP($AE172,Output!$C:$AQ,AH$160,FALSE) -> 0 | AI172: =VLOOKUP($AE172,Output!$C:$AQ,AI$160,FALSE) -> 0
B173: Érable rouge | C173: 327700 | D173: 305700 | E173: 228800 | F173: 181400 | G173: 0.005155823233 | H173: 0.004849578973 | I173: 0.003530166881 | J173: 0.002951215465 | L173: 0.005155823233 | S173: Tableau 13 | T173: Érable rouge | U173: OVOLgEroPIEDINC | V173: =VLOOKUP($U173,Output!$C:$AQ,V$160,FALSE) -> 327684.23 | W173: =VLOOKUP($U173,Output!$C:$AQ,W$160,FALSE) -> 305675.016 | X173: =VLOOKUP($U173,Output!$C:$AQ,X$160,FALSE) -> 228787.5744 | Y173: =VLOOKUP($U173,Output!$C:$AQ,Y$160,FALSE) -> 181357.109 | Z173: 0.005106703681 | AA173: 0.004793032714 | AB173: 0.003467087293 | AC173: 0.002870293205 | AE173: OVOLgEroPIEDSNAT | AF173: =VLOOKUP($AE173,Output!$C:$AQ,AF$160,FALSE) -> 0 | AG173: =VLOOKUP($AE173,Output!$C:$AQ,AG$160,FALSE) -> 0 | AH173: =VLOOKUP($AE173,Output!$C:$AQ,AH$160,FALSE) -> 0 | AI173: =VLOOKUP($AE173,Output!$C:$AQ,AI$160,FALSE) -> 0
B174: Érable à sucre | C174: 19200 | D174: 21500 | E174: 21100 | F174: 17900 | G174: 0.00030208058 | H174: 0.000341072777 | I174: 0.0003255529772 | J174: 0.0002912169615 | L174: 0.00030208058 | S174: Tableau 13 | T174: Érable à sucre | U174: OVOLERSPIEDINC | V174: =VLOOKUP($U174,Output!$C:$AQ,V$160,FALSE) -> 19248.286 | W174: =VLOOKUP($U174,Output!$C:$AQ,W$160,FALSE) -> 21482.994 | X174: =VLOOKUP($U174,Output!$C:$AQ,X$160,FALSE) -> 21061.54111 | Y174: =VLOOKUP($U174,Output!$C:$AQ,Y$160,FALSE) -> 17926.356 | Z174: 0.000299969556 | AA174: 0.000336856752 | AB174: 0.0003191703121 | AC174: 0.0002837159133 | AE174: OVOLERSPIEDSNAT | AF174: =VLOOKUP($AE174,Output!$C:$AQ,AF$160,FALSE) -> 0 | AG174: =VLOOKUP($AE174,Output!$C:$AQ,AG$160,FALSE) -> 0 | AH174: =VLOOKUP($AE174,Output!$C:$AQ,AH$160,FALSE) -> 0 | AI174: =VLOOKUP($AE174,Output!$C:$AQ,AI$160,FALSE) -> 0
B175: Autres feuillus durs | C175: =ROUND(V175-AF175,-2) -> 16400 | D175: 12800 | E175: 11500 | F175: 11500 | G175: 0.0002580271621 | H175: 0.0002030572812 | I175: 0.0001774340871 | J175: 0.0001870946959 | L175: 0.0002580271621 | S175: Tableau 13 | T175: Autres feuillus durs | V175: =V178-V176-V174-V173-V172-V171-V170-V169-V168-V167 -> 16386.43 | W175: =W178-W176-W174-W173-W172-W171-W170-W169-W168-W167 -> 12811.044 | X175: =X178-X176-X174-X173-X172-X171-X170-X169-X168-X167 -> 11532.93667 | Y175: =Y178-Y176-Y174-Y173-Y172-Y171-Y170-Y169-Y168-Y167 -> 11532.235 | Z175: 0.0002553697576 | AA175: 0.0002008792011 | AB175: 0.0001747721582 | AC175: 0.0001825177736 | AE175: Autres feuillus durs | AF175: =AF178-AF176-AF174-AF173-AF172-AF171-AF170-AF169-AF168-AF167 -> -0.002000000005 | AG175: =AG178-AG176-AG174-AG173-AG172-AG171-AG170-AG169-AG168-AG167 -> 0.004000000022 | AH175: =AH178-AH176-AH174-AH173-AH172-AH171-AH170-AH169-AH168-AH167 -> -0.001111110946 | AI175: =AI178-AI176-AI174-AI173-AI172-AI171-AI170-AI169-AI168-AI167 -> 0.002999999901
B176: Autres essences | C176: =IF($L$163<0.0095,C163,0)+IF($L$164<0.0095,C164,0)+IF($L$165<0.0095,C165,0)+IF($L$166<0.0095,C166,0)+IF($L$167<0.0095,C167,0)+IF($L$168<0.0095,C168,0)+IF($L$169<0.0095,C169,0)+IF($L$170<0.0095,C170,0)+IF($L$171<0.0095,C171,0)+IF($L$172<0.0095,C172,0)+IF($L$173<0.0095,C173,0)+IF($L$174<0.0095,C174+0)+IF($L$175<0.0095,C175,0) -> 639600 | D176: =IF($L$163<0.0095,D163,0)+IF($L$164<0.0095,D164,0)+IF($L$165<0.0095,D165,0)+IF($L$166<0.0095,D166,0)+IF($L$167<0.0095,D167,0)+IF($L$168<0.0095,D168,0)+IF($L$169<0.0095,D169,0)+IF($L$170<0.0095,D170,0)+IF($L$171<0.0095,D171,0)+IF($L$172<0.0095,D172,0)+IF($L$173<0.0095,D173,0)+IF($L$174<0.0095,D174+0)+IF($L$175<0.0095,D175,0) -> 635300 | E176: =IF($L$163<0.0095,E163,0)+IF($L$164<0.0095,E164,0)+IF($L$165<0.0095,E165,0)+IF($L$166<0.0095,E166,0)+IF($L$167<0.0095,E167,0)+IF($L$168<0.0095,E168,0)+IF($L$169<0.0095,E169,0)+IF($L$170<0.0095,E170,0)+IF($L$171<0.0095,E171,0)+IF($L$172<0.0095,E172,0)+IF($L$173<0.0095,E173,0)+IF($L$174<0.0095,E174+0)+IF($L$175<0.0095,E175,0) -> 509600 | F176: =IF($L$163<0.0095,F163,0)+IF($L$164<0.0095,F164,0)+IF($L$165<0.0095,F165,0)+IF($L$166<0.0095,F166,0)+IF($L$167<0.0095,F167,0)+IF($L$168<0.0095,F168,0)+IF($L$169<0.0095,F169,0)+IF($L$170<0.0095,F170,0)+IF($L$171<0.0095,F171,0)+IF($L$172<0.0095,F172,0)+IF($L$173<0.0095,F173,0)+IF($L$174<0.0095,F174+0)+IF($L$175<0.0095,F175,0) -> 418400 | G176: 0.01006305932 | H176: 0.01007830396 | I176: 0.007862644416 | J176: 0.006806993112 | L176: 0.01006305932 | S176: Tableau 13 | T176: SEPM | U176: OVOLGSEPMPIEDINC | V176: =VLOOKUP($U176,Output!$C:$AQ,V$160,FALSE) -> 47384433.77 | W176: =VLOOKUP($U176,Output!$C:$AQ,W$160,FALSE) -> 48843524.7 | X176: =VLOOKUP($U176,Output!$C:$AQ,X$160,FALSE) -> 50315707.76 | Y176: =VLOOKUP($U176,Output!$C:$AQ,Y$160,FALSE) -> 48219780.74 | Z176: 0.73844952 | AA176: 0.7658742112 | AB176: 0.762493118 | AC176: 0.7631623031 | AE176: OVOLgSEPMPIEDSNAT | AF176: =VLOOKUP($AE176,Output!$C:$AQ,AF$160,FALSE) -> 607329.704 | AG176: =VLOOKUP($AE176,Output!$C:$AQ,AG$160,FALSE) -> 736937.522 | AH176: =VLOOKUP($AE176,Output!$C:$AQ,AH$160,FALSE) -> 1172047.142 | AI176: =VLOOKUP($AE176,Output!$C:$AQ,AI$160,FALSE) -> 1712604.083
B177: Total | C177: =ROUND(V178-AF178,-2) -> 63559200 | D177: =ROUND(W178-AG178,-2) -> 63036400 | E177: =ROUND(X178-AH178,-2) -> 64812800 | F177: =ROUND(Y178-AI178,-2) -> 61466200 | G177: 1 | H177: 1 | I177: 1 | J177: 1 | S177: Tableau 13 | T177: FN - ERS BOJ | U177: OVOLGFNPIEDINC | V177: =VLOOKUP($U177,Output!$C:$AQ,V$160,FALSE) -> 16233.984 | W177: =VLOOKUP($U177,Output!$C:$AQ,W$160,FALSE) -> 12482.766 | X177: =VLOOKUP($U177,Output!$C:$AQ,X$160,FALSE) -> 11138.06889 | Y177: =VLOOKUP($U177,Output!$C:$AQ,Y$160,FALSE) -> 11086.125 | Z177: 0.0002529940054 | AA177: 0.00019573175 | AB177: 0.0001687882622 | AC177: 0.0001754573032 | AE177: OVOLgFnPIEDSNAT | AF177: =VLOOKUP($AE177,Output!$C:$AQ,AF$160,FALSE) -> 0 | AG177: =VLOOKUP($AE177,Output!$C:$AQ,AG$160,FALSE) -> 0 | AH177: =VLOOKUP($AE177,Output!$C:$AQ,AH$160,FALSE) -> 0 | AI177: =VLOOKUP($AE177,Output!$C:$AQ,AI$160,FALSE) -> 0
L178: Masquer les essences du tableau qui sont en surbrillance (< 1%) | S178: Tableau 13 | T178: TOT sur pied | U178: OVOLTOTPIEDINC | V178: =VLOOKUP($U178,Output!$C:$AQ,V$160,FALSE) -> 64167465.06 | W178: =VLOOKUP($U178,Output!$C:$AQ,W$160,FALSE) -> 63774865.35 | X178: =VLOOKUP($U178,Output!$C:$AQ,X$160,FALSE) -> 65988409.04 | Y178: =VLOOKUP($U178,Output!$C:$AQ,Y$160,FALSE) -> 63184175.29 | Z178: 1 | AA178: 1 | AB178: 1 | AC178: 1 | AE178: OVOLTOTPIEDSNAT | AF178: =VLOOKUP($AE178,Output!$C:$AQ,AF$160,FALSE) -> 608293.074 | AG178: =VLOOKUP($AE178,Output!$C:$AQ,AG$160,FALSE) -> 738510.77 | AH178: =VLOOKUP($AE178,Output!$C:$AQ,AH$160,FALSE) -> 1175648.236 | AI178: =VLOOKUP($AE178,Output!$C:$AQ,AI$160,FALSE) -> 1717948.152
L179: Ces volumes sont comptabilisés dans "Autres essences" | S179: Tableau 13 | T179: Érables à sucre et rouge
D182: P2 | E182: P3 | F182: P4 | G182: P5 | H182: P6
B183: Tableau 15 Statistiques sur les compartiments d’organisation spatiale admissibles à la récolte par période
B184: Compartiments d'organisation spatiale | D184: 2023-2028 | E184: 2028-2033 | F184: 2033-2038 | G184: 2038-2043 | H184: 2043-2048
B185: Nombre total | D185: =Cedule_COS!G6 -> 431
B186: En pessière | D186: =COUNTIF(Cedule_COS!$A$10:$A$1009,"<S*") -> 80 | J186: Fait la sommation automatique des COS débutant par la lettre "P" ou par "C", valider et corriger si nécessaire
B187: En sapinière | D187: =COUNTIF(Cedule_COS!$A$10:$A$1009,"S*") -> 351 | J187: Fait la sommation automatique des COS débutant par la lettre "S", valider et corriger si nécessaire
B188: Admissibles à la récolte | D188: =Cedule_COS!C7 -> 109 | E188: =Cedule_COS!D7 -> 130 | F188: =Cedule_COS!E7 -> 116 | G188: =Cedule_COS!F7 -> 114 | H188: =Cedule_COS!G7 -> 63
B189: % de compartiments admissibles | D189: =Cedule_COS!C8 -> 0.252900232 | E189: =Cedule_COS!D8 -> 0.3016241299 | F189: =Cedule_COS!E8 -> 0.2691415313 | G189: =Cedule_COS!F8 -> 0.2645011601 | H189: =Cedule_COS!G8 -> 0.1461716937
B193: Tableau 17 Superficies considérées pour l'analyse de la mortalité d'ici la période 2023-2028 | S193: =LEFT(B$193,11) -> Tableau 17 | T193: Légende | V193: Output | W193: Valeur | X193: Période | Y193: Année
F194: ha | G194: % | S194: =LEFT(B$193,11) -> Tableau 17 | T194: Incluses aux activités de récolte | V194: OSUPINC | W194: =VLOOKUP($V194,Output!$C:$AQ,6,FALSE) -> 961670.2 | X194: P0 | Y194: 2018
B195: Épidémie sévère confirmée à la photo-interprétation | F195: 6685.4 | G195: =F195/W$194 -> 0.006951863539 | J195: Faire une sélection sur le thème 8 = "INC" et seulement les années correspondant à l'épidémie actuelle | S195: =LEFT(B$193,11) -> Tableau 17 | T195: Épidémie sévère confirmée à la photo-interprétation | V195: Requete dans la table d'attribut | W195: 6685.4
B196: Défoliation cumulative (cote ≥ 15) | F196: =ROUND(W196,-1) -> 305900 | G196: =F196/W$194 -> 0.3180924188 | J196: Des champs avaient été ajoutés par l'analyste à la fin de table d'attribut de la carte woodstock | S196: =LEFT(B$193,11) -> Tableau 17 | T196: Défoliation cumulative projetée 2023 ≥ 15 | V196: OSUPINC15+ | W196: =VLOOKUP($V196,Output!$C:$AQ,7,FALSE) -> 305901.53 | X196: P1 | Y196: 2023
B197: Mortalité projetée | F197: =ROUND(SUM(W197:W198),-1) -> 158820 | G197: =F197/W$194 -> 0.1651501731 | J197: et c'est sur ces derniers que doivent se réaliser les requêtes | S197: =LEFT(B$193,11) -> Tableau 17 | T197: Mortalité projetée (sommation des 2 actions) | V197: osupaTBEmort | W197: =VLOOKUP($V197,Output!$C:$AQ,8,FALSE) -> 83237 | X197: P2 | Y197: 2028
B198: Récupération prévue 2018-2023 | F198: =-ROUND(W199,-1) -> -11200 | G198: =F198/W$194 -> -0.01164640435 | V198: Osupactiontberetard | W198: =VLOOKUP($V198,Output!$C:$AQ,8,FALSE) -> 75580 | X198: P2 | Y198: 2028
S199: =LEFT(B$193,11) -> Tableau 17 | T199: Récolte prévue à court terme (récupération) | V199: osuprealregapre_15+ | W199: =VLOOKUP($V199,Output!$C:$AQ,7,FALSE) -> 11200 | X199: P1 | Y199: 2023
B201: Ajouté par Bisbe2
B202: Unité d'aménagement | C202: Budget disponible | D202: Budget investi | E202: % | V202: Output | W202: Valeur | X202: Période
V203: O$BUDGET | W203: =VLOOKUP($V203,Output!$C:$AQ,37,FALSE) -> 18705928 | X203: P2_P6
V204: o$InvestisTS | W204: =VLOOKUP($V204,Output!$C:$AQ,37,FALSE) -> 16507460.17 | X204: P2_P6
B205: 097-51 | C205: =W203/5 -> 3741185.6 | D205: =W204/5 -> 3301492.034 | E205: =D205/C205 -> 0.8824721324

Sheet Figures
B2: Figure 2. Répartition du volume de bois marchand sur pied en début de calcul (m3). | N2: Volume sur pied en P0 | S2: Source: CahierDetermination_2018-2023 | V2: Volume sur pied en P0 - volume en SNAT | Z2: Volume dans courbe SNAT
L3: Conserver les GTYF même s'ils sont absents de l'UA | S3: Intrants | T3: Légende | U3: Name | V3: PERIOD0 | W3: % | X3: PERIOD0 | Z3: Name | AB3: PERIOD0
N4: Total | O4: =V19 -> 60004100 | S4: =LEFT(B$2,10) -> Figure 2. | T4: Autres feuillus durs | V4: =ROUND(V19-V17-V11-V12-V10-V8-V9-V6-V5-V7,-2) -> 15100 | W4: =IFERROR(V4/$V$19,0) -> 0.0002516494706 | X4: =X19-X17-X11-X12-X10-X8-X9-X6-X5-X7 -> 15124.24 | Z4: Autres feuillus durs | AB4: =ROUND(AB19-AB17-AB11-AB12-AB10-AB8-AB9-AB6-AB5-AB7,-2) -> 0
N5: % R | O5: =(V17+V12+V11+V10)/V19 -> 0.7471522779 | S5: Figure 2. | T5: Érable à sucre | U5: OVOLERSPIEDINC | V5: =ROUND(X5-AB5,-2) -> 13100 | W5: 0.0002183184149 | X5: =VLOOKUP(U5,Output!$C:$AQ,6,FALSE) -> 13117.08 | Z5: OVOLERSPIEDSNAT | AB5: =VLOOKUP(Z5,Output!$C:$AQ,6,FALSE) -> 0
N6: %SEPM | O6: =V17/V19 -> 0.7458556999 | S6: Figure 2. | T6: Érable rouge | U6: OVOLgEroPIEDINC | V6: 260700 | W6: 0.004344703112 | X6: =VLOOKUP(U6,Output!$C:$AQ,6,FALSE) -> 260666.83 | Z6: OVOLgEroPIEDSNAT | AB6: =VLOOKUP(Z6,Output!$C:$AQ,6,FALSE) -> 0
N7: % Fi | O7: =W21 -> 0.2445882865 | P7: =O7*O4 -> 14676300 | S7: Figure 2. | T7: Bouleau jaune | U7: OVOLBOJPIEDINC | V7: 467400 | W7: 0.00778946772 | X7: =VLOOKUP(U7,Output!$C:$AQ,6,FALSE) -> 467423.53 | Z7: OVOLBOJPIEDSNAT | AB7: =VLOOKUP(Z7,Output!$C:$AQ,6,FALSE) -> 0
N8: % FT | O8: =W22 -> 0.008261102158 | S8: Figure 2. | T8: Bouleau à papier | U8: OVOLgBpPIEDINC | V8: 7331100 | W8: 0.1221766513 | X8: =VLOOKUP(U8,Output!$C:$AQ,6,FALSE) -> 7332367.31 | Z8: OVOLgBpPIEDSNAT | AB8: =VLOOKUP(Z8,Output!$C:$AQ,6,FALSE) -> 1296.85
N9: %Sapin | O9: =V16/V17 -> 0.3474876213 | S9: Figure 2. | T9: Peupliers | U9: OVOLGPEUPIEDINC | V9: 7084500 | W9: 0.1180669321 | X9: =VLOOKUP(U9,Output!$C:$AQ,6,FALSE) -> 7084885.95 | Z9: OVOLPEUPIEDSNAT | AB9: =VLOOKUP(Z9,Output!$C:$AQ,6,FALSE) -> 370.53
N10: %ERR | O10: =IFERROR(V6/(V5+V6),0) -> 0.9521548576 | S10: Figure 2. | T10: Pins blanc et rouge | U10: OVOLGPINSPIEDINC | V10: 37900 | W10: 0.0006316235057 | X10: =VLOOKUP(U10,Output!$C:$AQ,6,FALSE) -> 37935.56 | Z10: OVOLGPINSCPIEDSNAT | AB10: =VLOOKUP(Z10,Output!$C:$AQ,6,FALSE) -> 0
S11: Figure 2. | T11: Pruche | U11: OVOLPRUPIEDINC | V11: 0 | W11: 0 | X11: =VLOOKUP(U11,Output!$C:$AQ,6,FALSE) -> 0 | Z11: OVOLPRUPIEDSNAT | AB11: =VLOOKUP(Z11,Output!$C:$AQ,6,FALSE) -> 0
N12: Volume sur pied au calcul 2015-2018 | P12: UA | S12: Figure 2. | T12: Thuya | U12: OVOLTHOPIEDINC | V12: 39900 | W12: 0.0006649545614 | X12: =VLOOKUP(U12,Output!$C:$AQ,6,FALSE) -> 39885.84 | Z12: OVOLTHOPIEDSNAT | AB12: =VLOOKUP(Z12,Output!$C:$AQ,6,FALSE) -> 0
P13: =Tableaux!O33 -> 09751 | S13: Figure 2. | T13: Mélèzes | U13: OVOLgMlPIEDINC | V13: 147200 | W13: 0.0024531657 | X13: =VLOOKUP(U13,Output!$C:$AQ,6,FALSE) -> 159211.35 | Z13: OVOLGMlPIEDSNAT | AB13: =VLOOKUP(Z13,Output!$C:$AQ,6,FALSE) -> 12042.16
N14: Total | O14: =VLOOKUP(P13,DataLocal!$A:$BM,61,FALSE) -> 66885675 | S14: Figure 2. | T14: Pin gris | U14: OVOLgPgPIEDINC | V14: 1677200 | W14: 0.02795142332 | X14: =VLOOKUP(U14,Output!$C:$AQ,6,FALSE) -> 1693292.76 | Z14: OVOLgPgPIEDSNAT | AB14: =VLOOKUP(Z14,Output!$C:$AQ,6,FALSE) -> 16117.97
N15: % R | O15: =VLOOKUP(P13,DataLocal!$A:$BM,62,FALSE) -> 0.82 | S15: Figure 2. | T15: Épinettes | U15: OVOLgEpxPIEDINC | V15: 27378500 | W15: 0.4562771544 | X15: =VLOOKUP(U15,Output!$C:$AQ,6,FALSE) -> 27987828.83 | Z15: OVOLgEpxPIEDSNAT | AB15: =VLOOKUP(Z15,Output!$C:$AQ,6,FALSE) -> 609351.83
N16: % SEPM | O16: =VLOOKUP(P13,DataLocal!$A:$BM,63,FALSE) -> 0.82 | S16: Figure 2. | T16: Sapin baumier | U16: OVOLSABPIEDINC | V16: =ROUND(X16-AB16,-2) -> 15551600 | W16: 0.259175623 | X16: =VLOOKUP(U16,Output!$C:$AQ,6,FALSE) -> 15574817.25 | Z16: OVOLSABPIEDSNAT | AB16: =VLOOKUP(Z16,Output!$C:$AQ,6,FALSE) -> 23229.57
N17: % Fi | O17: =VLOOKUP(P13,DataLocal!$A:$BM,64,FALSE) -> 0.18 | S17: Figure 2. | T17: SEPM | U17: OVOLGSEPMPIEDINC | V17: =ROUND(X17-AB17,-2) -> 44754400 | W17: =IFERROR(V17/$V$19,0) -> 0.7458556999 | X17: =VLOOKUP(U17,Output!$C:$AQ,6,FALSE) -> 45415150.19 | Z17: OVOLgSEPMPIEDSNAT | AB17: =VLOOKUP(Z17,Output!$C:$AQ,6,FALSE) -> 660741.52
N18: % Ft | O18: =VLOOKUP(P13,DataLocal!$A:$BM,65,FALSE) -> 0 | S18: Figure 2. | T18: FN - ERS BOJ | U18: OVOLGFNPIEDINC | V18: 15100 | W18: 0.0002516494706 | X18: =VLOOKUP(U18,Output!$C:$AQ,6,FALSE) -> 15124.25 | Z18: OVOLgFnPIEDSNAT | AB18: =VLOOKUP(Z18,Output!$C:$AQ,6,FALSE) -> 0
S19: Figure 2. | T19: TOT sur pied | U19: OVOLTOTPIEDINC | V19: =ROUND(X19-AB19,-2) -> 60004100 | W19: 1 | X19: =VLOOKUP(U19,Output!$C:$AQ,6,FALSE) -> 60666556.53 | Z19: OVOLTOTPIEDSNAT | AB19: =VLOOKUP(Z19,Output!$C:$AQ,6,FALSE) -> 662408.9
N20: Vol R | O20: =ROUND(O15*$O$14,-2) -> 54846300 | T20: Érables à sucre et rouge | U20: Érables à sucre et rouge | V20: =V5+V6 -> 273800 | W20: 0.004563021527 | X20: =X5+X6 -> 273783.91 | Z20: Érables à sucre et rouge | AB20: =AB5+AB6 -> 0
N21: Vol SEPM | O21: =ROUND(O16*$O$14,-2) -> 54846300 | P21: Traduits en m3 | T21: gFi | U21: OVOLgFiPIEDINC | V21: =ROUND(X21-AB21,-2) -> 14676300 | W21: 0.2445882865 | X21: =VLOOKUP(U21,Output!$C:$AQ,6,FALSE) -> 14677920.09 | Z21: OVOLgFiPIEDSNAT | AB21: =VLOOKUP(Z21,Output!$C:$AQ,6,FALSE) -> 1667.38
N22: Vol Fi | O22: =ROUND(O17*$O$14,-2) -> 12039400 | P22: approximativement | T22: gFt | U22: OVOLgFtPIEDINC | V22: 495700 | W22: 0.008261102158 | X22: =VLOOKUP(U22,Output!$C:$AQ,6,FALSE) -> 495664.86 | Z22: OVOLgFtPIEDSNAT | AB22: =VLOOKUP(Z22,Output!$C:$AQ,6,FALSE) -> 0
N23: Vol Ft | O23: =ROUND(O18*$O$14,-2) -> 0
B27: Type de couvert : | C27: =#REF! -> 
B28: Figure 3. Répartition de la superficie par grand type de forêt en début de calcul (ha). | S28: Intrants | T28: Légende | V28: PERIOD0 | W28: % | X28: PERIOD0
S29: =LEFT(B$28,10) -> Figure 3. | T29: Sapinières | U29: (FCTYF_SAB) | V29: =ROUND(X29,-1) -> 234470 | W29: =V29/V$44 -> 0.2443294889 | X29: =VLOOKUP("OSUPINC"&$U29,GTYF!$C:$AP,6,FALSE) -> 234469.5
S30: Figure 3. | T30: Résineux à feuillus | U30: (FCTYF_RF) | V30: =ROUND(X30,-1) -> 97710 | W30: 0.1018187161 | X30: =VLOOKUP("OSUPINC"&$U30,GTYF!$C:$AP,6,FALSE) -> 97708.5
S31: Figure 3. | T31: Prucheraies | U31: (FCTYF_PRU) | V31: 0 | W31: 0 | X31: =VLOOKUP("OSUPINC"&$U31,GTYF!$C:$AP,6,FALSE) -> 0
S32: Figure 3. | T32: Pinèdes grises | U32: (FCTYF_PIG) | V32: 13900 | W32: 0.01448449651 | X32: =VLOOKUP("OSUPINC"&$U32,GTYF!$C:$AP,6,FALSE) -> 13902.7
L33: Conserver les GTYF même s'ils sont absents de l'UA | S33: Figure 3. | T33: Pinèdes blanches | U33: (FCTYF_PIN) | V33: 0 | W33: 0 | X33: =VLOOKUP("OSUPINC"&$U33,GTYF!$C:$AP,6,FALSE) -> 0
S34: Figure 3. | T34: Peupleraies à résineux | U34: (FCTYF_PEUR) | V34: 45210 | W34: 0.04711108541 | X34: =VLOOKUP("OSUPINC"&$U34,GTYF!$C:$AP,6,FALSE) -> 45213.5
S35: Figure 3. | T35: Peupleraies | U35: (FCTYF_PEU) | V35: 58550 | W35: 0.06101203386 | X35: =VLOOKUP("OSUPINC"&$U35,GTYF!$C:$AP,6,FALSE) -> 58546.5
S36: Figure 3. | T36: Pessières | U36: (FCTYF_EPX) | V36: 383910 | W36: 0.4000534572 | X36: =VLOOKUP("OSUPINC"&$U36,GTYF!$C:$AP,6,FALSE) -> 383913.1
S37: Figure 3. | T37: Feuillus tolérants à résineux | U37: (FCTYF_FTR) | V37: 4260 | W37: 0.004439133462 | X37: =VLOOKUP("OSUPINC"&$U37,GTYF!$C:$AP,6,FALSE) -> 4264.9
S38: Figure 3. | T38: Feuillus tolérants | U38: (FCTYF_FT) | V38: 0 | W38: 0 | X38: =VLOOKUP("OSUPINC"&$U38,GTYF!$C:$AP,6,FALSE) -> 0
S39: Figure 3. | T39: Érablières rouges | U39: (FCTYF_ERO) | V39: 0 | W39: 0 | X39: =VLOOKUP("OSUPINC"&$U39,GTYF!$C:$AP,6,FALSE) -> 0
S40: Figure 3. | T40: Cédrières | U40: (FCTYF_THO) | V40: 0 | W40: 0 | X40: =VLOOKUP("OSUPINC"&$U40,GTYF!$C:$AP,6,FALSE) -> 0
S41: Figure 3. | T41: Bétulaies blanches à résineux | U41: (FCTYF_BOPR) | V41: 38810 | W41: 0.04044196471 | X41: =VLOOKUP("OSUPINC"&$U41,GTYF!$C:$AP,6,FALSE) -> 38812.9
S42: Figure 3. | T42: Bétulaies blanches | U42: (FCTYF_BOP) | V42: 32660 | W42: 0.03403335654 | X42: =VLOOKUP("OSUPINC"&$U42,GTYF!$C:$AP,6,FALSE) -> 32658.4
U43: Somme: | V43: =SUM(V29:V42) -> 909480 | X43: =SUM(X29:X42) -> 909490
T44: OSUPINC | U44: Tous | V44: =VLOOKUP("OSUPINC",Output!$C:$AP,7,FALSE) -> 959646.75
V45: =V43-V44 -> -50166.75 | W45: Écart
V49: 2018
B50: Figure 4. Superficie destinée à l'aménagement forestier par classe d'âge en début de calcul (ha). | S50: Intrants | U50: Name | V50: PERIOD0 | X50: Classe d'âge | Y50: OUTPUT | Z50: Superficie (ha) | AA50: Pourcentage (%)
S51: =LEFT(B$50,10) -> Figure 4. | T51: 10 ans | U51: OSUP_INC_CLASSEAGEFCAGEAGE1 | V51: =VLOOKUP(U51,Output!$C:$AQ,6,FALSE) -> 28403.8 | X51: 10 | Z51: =ROUND(SUM(V51:V54),-1) -> 156260 | AA51: =IFERROR(Z51/$V$81,0) -> 0.1632119647
S52: Figure 4. | T52: 10 ans | U52: OSUP_INC_CLASSEAGEFCAGEAGE2 | V52: =VLOOKUP(U52,Output!$C:$AQ,6,FALSE) -> 33855.2 | X52: 30 | Z52: =ROUND(SUM(V55:V58),-1) -> 299750 | AA52: =IFERROR(Z52/$V$81,0) -> 0.3130857955
S53: Figure 4. | T53: 10 ans | U53: OSUP_INC_CLASSEAGEFCAGEAGE3 | V53: =VLOOKUP(U53,Output!$C:$AQ,6,FALSE) -> 33014.2 | X53: 50 | Z53: =ROUND(SUM(V59:V62),-1) -> 161620 | AA53: 0.1688104296
S54: Figure 4. | T54: 10 ans | U54: OSUP_INC_CLASSEAGEFCAGEAGE4 | V54: =VLOOKUP(U54,Output!$C:$AQ,6,FALSE) -> 60990.6 | X54: 70 | Z54: =ROUND(SUM(V63:V66),-1) -> 117810 | AA54: =IFERROR(Z54/$V$81,0) -> 0.1230513347
S55: Figure 4. | T55: 30 ans | U55: OSUP_INC_CLASSEAGEFCAGEAGE5 | V55: =VLOOKUP(U55,Output!$C:$AQ,6,FALSE) -> 143117.4 | X55: 90 | Z55: =ROUND(SUM(V67:V70),-1) -> 54620 | AA55: 0.05705002886
S56: Figure 4. | T56: 30 ans | U56: OSUP_INC_CLASSEAGEFCAGEAGE6 | V56: =VLOOKUP(U56,Output!$C:$AQ,6,FALSE) -> 42219.3 | X56: 120 et plus | Z56: =ROUND(SUM(V71:V80),-1) -> 167340 | AA56: 0.1747849108
S57: Figure 4. | T57: 30 ans | U57: OSUP_INC_CLASSEAGEFCAGEAGE7 | V57: =VLOOKUP(U57,Output!$C:$AQ,6,FALSE) -> 70476.4
S58: Figure 4. | T58: 30 ans | U58: OSUP_INC_CLASSEAGEFCAGEAGE8 | V58: =VLOOKUP(U58,Output!$C:$AQ,6,FALSE) -> 43937.5
S59: Figure 4. | T59: 50 ans | U59: OSUP_INC_CLASSEAGEFCAGEAGE9 | V59: =VLOOKUP(U59,Output!$C:$AQ,6,FALSE) -> 22716.2
S60: Figure 4. | T60: 50 ans | U60: OSUP_INC_CLASSEAGEFCAGEAGE10 | V60: =VLOOKUP(U60,Output!$C:$AQ,6,FALSE) -> 44909.4
S61: Figure 4. | T61: 50 ans | U61: OSUP_INC_CLASSEAGEFCAGEAGE11 | V61: =VLOOKUP(U61,Output!$C:$AQ,6,FALSE) -> 40893.8
N62: Proportion de la superficie dont l'évolution est suivi en âge: | S62: Figure 4. | T62: 50 ans | U62: OSUP_INC_CLASSEAGEFCAGEAGE12 | V62: =VLOOKUP(U62,Output!$C:$AQ,6,FALSE) -> 53105.4
N63: =IF(AND($W$81>=99.5%,$W$81<100%),"> 99%",IF(AND($W$81>=0.1%,$W$81<0.5%),"< 1%",$W$81)) -> > 99% | S63: Figure 4. | T63: 70 ans | U63: OSUP_INC_CLASSEAGEFCAGEAGE13 | V63: =VLOOKUP(U63,Output!$C:$AQ,6,FALSE) -> 27546.9
S64: Figure 4. | T64: 70 ans | U64: OSUP_INC_CLASSEAGEFCAGEAGE14 | V64: =VLOOKUP(U64,Output!$C:$AQ,6,FALSE) -> 36814
S65: Figure 4. | T65: 70 ans | U65: OSUP_INC_CLASSEAGEFCAGEAGE15 | V65: =VLOOKUP(U65,Output!$C:$AQ,6,FALSE) -> 30744.9
S66: Figure 4. | T66: 70 ans | U66: OSUP_INC_CLASSEAGEFCAGEAGE16 | V66: =VLOOKUP(U66,Output!$C:$AQ,6,FALSE) -> 22705.8
S67: Figure 4. | T67: 90 ans | U67: OSUP_INC_CLASSEAGEFCAGEAGE17 | V67: =VLOOKUP(U67,Output!$C:$AQ,6,FALSE) -> 16321.7
S68: Figure 4. | T68: 90 ans | U68: OSUP_INC_CLASSEAGEFCAGEAGE18 | V68: =VLOOKUP(U68,Output!$C:$AQ,6,FALSE) -> 24687.4
B69: Figure 5. Superficie destinée à l'aménagement forestier par classe de surface terrière en début de calcul (ha) | S69: Figure 4. | T69: 90 ans | U69: OSUP_INC_CLASSEAGEFCAGEAGE19 | V69: =VLOOKUP(U69,Output!$C:$AQ,6,FALSE) -> 7095.5
S70: Figure 4. | T70: 90 ans | U70: OSUP_INC_CLASSEAGEFCAGEAGE20 | V70: =VLOOKUP(U70,Output!$C:$AQ,6,FALSE) -> 6514.2
S71: Figure 4. | T71: 120 et plus | U71: OSUP_INC_CLASSEAGEFCAGEAGE21 | V71: =VLOOKUP(U71,Output!$C:$AQ,6,FALSE) -> 1907.5
S72: Figure 4. | T72: 120 et plus | U72: OSUP_INC_CLASSEAGEFCAGEAGE22 | V72: =VLOOKUP(U72,Output!$C:$AQ,6,FALSE) -> 6114.7
S73: Figure 4. | T73: 120 et plus | U73: OSUP_INC_CLASSEAGEFCAGEAGE23 | V73: =VLOOKUP(U73,Output!$C:$AQ,6,FALSE) -> 10282.6
S74: Figure 4. | T74: 120 et plus | U74: OSUP_INC_CLASSEAGEFCAGEAGE24 | V74: =VLOOKUP(U74,Output!$C:$AQ,6,FALSE) -> 12153.4
S75: Figure 4. | T75: 120 et plus | U75: OSUP_INC_CLASSEAGEFCAGEAGE25 | V75: =VLOOKUP(U75,Output!$C:$AQ,6,FALSE) -> 5011.5
N76: Proportion de la superficie dont l'évolution est suivi en surface terrière: | S76: Figure 4. | T76: 120 et plus | U76: OSUP_INC_CLASSEAGEFCAGEAGE26 | V76: =VLOOKUP(U76,Output!$C:$AQ,6,FALSE) -> 923.5
N77: =IF(AND($W$88>=99.5%,$W$88<100%),"> 99%",IF(AND($W$88>=0.1%,$W$88<0.5%),"< 1%",$W$88)) -> < 1% | S77: Figure 4. | T77: 120 et plus | U77: OSUP_INC_CLASSEAGEFCAGEAGE27 | V77: =VLOOKUP(U77,Output!$C:$AQ,6,FALSE) -> 6557.1
S78: Figure 4. | T78: 120 et plus | U78: OSUP_INC_CLASSEAGEFCAGEAGE28 | V78: =VLOOKUP(U78,Output!$C:$AQ,6,FALSE) -> 13481.3
S79: Figure 4. | T79: 120 et plus | U79: OSUP_INC_CLASSEAGEFCAGEAGE29 | V79: =VLOOKUP(U79,Output!$C:$AQ,6,FALSE) -> 1977.5
S80: Figure 4. | T80: 120 et plus | U80: OSUP_INC_CLASSEAGEFCAGEAGE30+ | V80: =VLOOKUP(U80,Output!$C:$AQ,6,FALSE) -> 108926.6
U81: Sous-total | V81: =SUM(V51:V80) -> 957405.3 | W81: =V81/V89 -> 0.9955651116
S82: =LEFT(B$69,10) -> Figure 5. | T82: <16 | U82: OSUPINC_ST016(FCST) | V82: =VLOOKUP(U82,GTYF!$C:$AQ,6,FALSE) -> 2242.2 | W82: =IFERROR(V82/$V$88,0) -> 0.5257333114
S83: Figure 5. | T83: 16 à 18 | U83: OSUPINC_ST1619(FCST) | V83: =VLOOKUP(U83,GTYF!$C:$AQ,6,FALSE) -> 2022.7 | W83: 0.4742666886
S84: Figure 5. | T84: 19 à 21 | U84: OSUPINC_ST1922(FCST) | V84: =VLOOKUP(U84,GTYF!$C:$AQ,6,FALSE) -> 0 | W84: 0
S85: Figure 5. | T85: 22 à 24 | U85: OSUPINC_ST2225(FCST) | V85: =VLOOKUP(U85,GTYF!$C:$AQ,6,FALSE) -> 0 | W85: 0
S86: Figure 5. | T86: 25 à 28 | U86: OSUPINC_ST2528(FCST) | V86: =VLOOKUP(U86,GTYF!$C:$AQ,6,FALSE) -> 0 | W86: 0
S87: Figure 5. | T87: 29+ | U87: OSUPINC_ST29+(FCST) | V87: =VLOOKUP(U87,GTYF!$C:$AQ,6,FALSE) -> 0 | W87: 0
S88: Figure 5. | T88: Total 0-29+ | U88: Sous-total | V88: =SUM(V82:V87) -> 4264.9 | W88: =V88/V89 -> 0.004434888385
U89: OSUPINC | V89: =VLOOKUP(U89,Output!$C:$AQ,6,FALSE) -> 961670.2
A91: 80 | B91: Figure 6. Évolution des volumes et des possibilités forestières à rendement non-décroissant
U93: Période | V93: P0 | W93: P1 | X93: P2 | Y93: P3 | Z93: P4 | AA93: P5 | AB93: P6 | AC93: P7 | AD93: P8 | AE93: P9 | AF93: P10 | AG93: P11 | AH93: P12 | AI93: P13 | AJ93: P14 | AK93: P15 | AL93: P16 | AM93: P17 | AN93: P18 | AO93: P19 | AP93: P20 | AQ93: P21 | AR93: P22 | AS93: P23 | AT93: P24 | AU93: P25 | AV93: P26 | AW93: P27 | AX93: P28 | AY93: P29 | AZ93: P30
U94: Colonne | V94: 6 | W94: 7 | X94: 8 | Y94: 9 | Z94: 10 | AA94: 11 | AB94: 12 | AC94: 13 | AD94: 14 | AE94: 15 | AF94: 16 | AG94: 17 | AH94: 18 | AI94: 19 | AJ94: 20 | AK94: 21 | AL94: 22 | AM94: 23 | AN94: 24 | AO94: 25 | AP94: 26 | AQ94: 27 | AR94: 28 | AS94: 29 | AT94: 30 | AU94: 31 | AV94: 32 | AW94: 33 | AX94: 34 | AY94: 35 | AZ94: 36
S95: =LEFT(B$91,10) -> Figure 6. | T95: Légende | U95: Axe des "X" Début de période | W95: 2018 | X95: 2023 | Y95: 2028 | Z95: 2033 | AA95: 2038 | AB95: 2043 | AC95: 2048 | AD95: 2053 | AE95: 2058 | AF95: 2063 | AG95: 2068 | AH95: 2073 | AI95: 2078 | AJ95: 2083 | AK95: 2088 | AL95: 2093 | AM95: 2098 | AN95: 2103 | AO95: 2108 | AP95: 2113 | AQ95: 2118 | AR95: 2123 | AS95: 2128 | AT95: 2133 | AU95: 2138 | AV95: 2143 | AW95: 2148 | AX95: 2153 | AY95: 2158 | AZ95: 2163
S96: =LEFT(B$91,10) -> Figure 6. | T96: Possibilités forestières quinquennales | U96: OVOLTOTREC | V96: =VLOOKUP($U96,Output!$C:$AM,V$94,FALSE) -> 0 | W96: =VLOOKUP($U96,Output!$C:$AM,W$94,FALSE) -> 5222200 | X96: =VLOOKUP($U96,Output!$C:$AM,X$94,FALSE) -> 5243000 | Y96: =VLOOKUP($U96,Output!$C:$AM,Y$94,FALSE) -> 5243000 | Z96: =VLOOKUP($U96,Output!$C:$AM,Z$94,FALSE) -> 5243000 | AA96: =VLOOKUP($U96,Output!$C:$AM,AA$94,FALSE) -> 5243000 | AB96: =VLOOKUP($U96,Output!$C:$AM,AB$94,FALSE) -> 5243000 | AC96: =VLOOKUP($U96,Output!$C:$AM,AC$94,FALSE) -> 6480987.61 | AD96: =VLOOKUP($U96,Output!$C:$AM,AD$94,FALSE) -> 6652080.97 | AE96: =VLOOKUP($U96,Output!$C:$AM,AE$94,FALSE) -> 6652080.97 | AF96: =VLOOKUP($U96,Output!$C:$AM,AF$94,FALSE) -> 6667635.47 | AG96: =VLOOKUP($U96,Output!$C:$AM,AG$94,FALSE) -> 6667635.47 | AH96: =VLOOKUP($U96,Output!$C:$AM,AH$94,FALSE) -> 6676198.36 | AI96: =VLOOKUP($U96,Output!$C:$AM,AI$94,FALSE) -> 6700167.8 | AJ96: =VLOOKUP($U96,Output!$C:$AM,AJ$94,FALSE) -> 6720348.48 | AK96: =VLOOKUP($U96,Output!$C:$AM,AK$94,FALSE) -> 6720348.48 | AL96: =VLOOKUP($U96,Output!$C:$AM,AL$94,FALSE) -> 6720348.48 | AM96: =VLOOKUP($U96,Output!$C:$AM,AM$94,FALSE) -> 6874086.8 | AN96: =VLOOKUP($U96,Output!$C:$AM,AN$94,FALSE) -> 7778828.82 | AO96: =VLOOKUP($U96,Output!$C:$AM,AO$94,FALSE) -> 7804413.01 | AP96: =VLOOKUP($U96,Output!$C:$AM,AP$94,FALSE) -> 7804413.01 | AQ96: =VLOOKUP($U96,Output!$C:$AM,AQ$94,FALSE) -> 7890932.38 | AR96: =VLOOKUP($U96,Output!$C:$AM,AR$94,FALSE) -> 8067962.2 | AS96: =VLOOKUP($U96,Output!$C:$AM,AS$94,FALSE) -> 8136220.59 | AT96: =VLOOKUP($U96,Output!$C:$AM,AT$94,FALSE) -> 8151253.84 | AU96: =VLOOKUP($U96,Output!$C:$AM,AU$94,FALSE) -> 8151253.84 | AV96: =VLOOKUP($U96,Output!$C:$AM,AV$94,FALSE) -> 8151253.84 | AW96: =VLOOKUP($U96,Output!$C:$AM,AW$94,FALSE) -> 8151253.84 | AX96: =VLOOKUP($U96,Output!$C:$AM,AX$94,FALSE) -> 8151253.84 | AY96: =VLOOKUP($U96,Output!$C:$AM,AY$94,FALSE) -> 8151253.84 | AZ96: =VLOOKUP($U96,Output!$C:$AM,AZ$94,FALSE) -> 8845179.83
S97: =LEFT(B$91,10) -> Figure 6. | T97: Volume à maturité | U97: OVOLMATUREADM | V97: =VLOOKUP($U97,Output!$C:$AM,V$94,FALSE) -> 25055218.8 | W97: =VLOOKUP($U97,Output!$C:$AM,W$94,FALSE) -> 25716056.13 | X97: =VLOOKUP($U97,Output!$C:$AM,X$94,FALSE) -> 25693352.82 | Y97: =VLOOKUP($U97,Output!$C:$AM,Y$94,FALSE) -> 33826556.03 | Z97: =VLOOKUP($U97,Output!$C:$AM,Z$94,FALSE) -> 37704204.78 | AA97: =VLOOKUP($U97,Output!$C:$AM,AA$94,FALSE) -> 44435622.49 | AB97: =VLOOKUP($U97,Output!$C:$AM,AB$94,FALSE) -> 46952858.69 | AC97: =VLOOKUP($U97,Output!$C:$AM,AC$94,FALSE) -> 46888768.9 | AD97: =VLOOKUP($U97,Output!$C:$AM,AD$94,FALSE) -> 44569069.11 | AE97: =VLOOKUP($U97,Output!$C:$AM,AE$94,FALSE) -> 41800421.65 | AF97: =VLOOKUP($U97,Output!$C:$AM,AF$94,FALSE) -> 39599944.9 | AG97: =VLOOKUP($U97,Output!$C:$AM,AG$94,FALSE) -> 37059242.87 | AH97: =VLOOKUP($U97,Output!$C:$AM,AH$94,FALSE) -> 37623881.18 | AI97: =VLOOKUP($U97,Output!$C:$AM,AI$94,FALSE) -> 37206864.59 | AJ97: =VLOOKUP($U97,Output!$C:$AM,AJ$94,FALSE) -> 36321265.05 | AK97: =VLOOKUP($U97,Output!$C:$AM,AK$94,FALSE) -> 36615753.19 | AL97: =VLOOKUP($U97,Output!$C:$AM,AL$94,FALSE) -> 38426235.99 | AM97: =VLOOKUP($U97,Output!$C:$AM,AM$94,FALSE) -> 38764881.18 | AN97: =VLOOKUP($U97,Output!$C:$AM,AN$94,FALSE) -> 38632035.26 | AO97: =VLOOKUP($U97,Output!$C:$AM,AO$94,FALSE) -> 38910188.92 | AP97: =VLOOKUP($U97,Output!$C:$AM,AP$94,FALSE) -> 40337899.75 | AQ97: =VLOOKUP($U97,Output!$C:$AM,AQ$94,FALSE) -> 41051862.58 | AR97: =VLOOKUP($U97,Output!$C:$AM,AR$94,FALSE) -> 39852256.94 | AS97: =VLOOKUP($U97,Output!$C:$AM,AS$94,FALSE) -> 38904963.24 | AT97: =VLOOKUP($U97,Output!$C:$AM,AT$94,FALSE) -> 38124925.98 | AU97: =VLOOKUP($U97,Output!$C:$AM,AU$94,FALSE) -> 36648567.17 | AV97: =VLOOKUP($U97,Output!$C:$AM,AV$94,FALSE) -> 36828890.68 | AW97: =VLOOKUP($U97,Output!$C:$AM,AW$94,FALSE) -> 34828685.25 | AX97: =VLOOKUP($U97,Output!$C:$AM,AX$94,FALSE) -> 32526590.14 | AY97: =VLOOKUP($U97,Output!$C:$AM,AY$94,FALSE) -> 31173617.79 | AZ97: =VLOOKUP($U97,Output!$C:$AM,AZ$94,FALSE) -> 30692458.64
S98: =LEFT(B$91,10) -> Figure 6. | T98: Volume sur pied | U98: OVOLTOTPIEDINC | V98: =VLOOKUP($U98,Output!$C:$AM,V$94,FALSE) -> 60666556.53 | W98: =VLOOKUP($U98,Output!$C:$AM,W$94,FALSE) -> 63252010.42 | X98: =VLOOKUP($U98,Output!$C:$AM,X$94,FALSE) -> 61801701.07 | Y98: =VLOOKUP($U98,Output!$C:$AM,Y$94,FALSE) -> 63347976.59 | Z98: =VLOOKUP($U98,Output!$C:$AM,Z$94,FALSE) -> 64474043.35 | AA98: =VLOOKUP($U98,Output!$C:$AM,AA$94,FALSE) -> 65324737.52 | AB98: =VLOOKUP($U98,Output!$C:$AM,AB$94,FALSE) -> 65888866.76 | AC98: =VLOOKUP($U98,Output!$C:$AM,AC$94,FALSE) -> 65048171.8 | AD98: =VLOOKUP($U98,Output!$C:$AM,AD$94,FALSE) -> 64193317.14 | AE98: =VLOOKUP($U98,Output!$C:$AM,AE$94,FALSE) -> 63464354.13 | AF98: =VLOOKUP($U98,Output!$C:$AM,AF$94,FALSE) -> 63077248.87 | AG98: =VLOOKUP($U98,Output!$C:$AM,AG$94,FALSE) -> 63091234.83 | AH98: =VLOOKUP($U98,Output!$C:$AM,AH$94,FALSE) -> 63494483.76 | AI98: =VLOOKUP($U98,Output!$C:$AM,AI$94,FALSE) -> 63896643.33 | AJ98: =VLOOKUP($U98,Output!$C:$AM,AJ$94,FALSE) -> 64672752.22 | AK98: =VLOOKUP($U98,Output!$C:$AM,AK$94,FALSE) -> 65693981.33 | AL98: =VLOOKUP($U98,Output!$C:$AM,AL$94,FALSE) -> 66901579.6 | AM98: =VLOOKUP($U98,Output!$C:$AM,AM$94,FALSE) -> 67825364.43 | AN98: =VLOOKUP($U98,Output!$C:$AM,AN$94,FALSE) -> 67589563.4 | AO98: =VLOOKUP($U98,Output!$C:$AM,AO$94,FALSE) -> 67196450.89 | AP98: =VLOOKUP($U98,Output!$C:$AM,AP$94,FALSE) -> 66624862.42 | AQ98: =VLOOKUP($U98,Output!$C:$AM,AQ$94,FALSE) -> 66076632.89 | AR98: =VLOOKUP($U98,Output!$C:$AM,AR$94,FALSE) -> 65309988.6 | AS98: =VLOOKUP($U98,Output!$C:$AM,AS$94,FALSE) -> 64378550.07 | AT98: =VLOOKUP($U98,Output!$C:$AM,AT$94,FALSE) -> 63530194.31 | AU98: =VLOOKUP($U98,Output!$C:$AM,AU$94,FALSE) -> 62693944.28 | AV98: =VLOOKUP($U98,Output!$C:$AM,AV$94,FALSE) -> 62189631.42 | AW98: =VLOOKUP($U98,Output!$C:$AM,AW$94,FALSE) -> 61801701.07 | AX98: =VLOOKUP($U98,Output!$C:$AM,AX$94,FALSE) -> 61857606.87 | AY98: =VLOOKUP($U98,Output!$C:$AM,AY$94,FALSE) -> 62201802.35 | AZ98: =VLOOKUP($U98,Output!$C:$AM,AZ$94,FALSE) -> 61801701.07
S99: =LEFT(B$91,10) -> Figure 6. | T99: Volume récoltable | U99: OVOLTOTADMREGAPRE | V99: =VLOOKUP($U99,Output!$C:$AM,V$94,FALSE) -> 0 | W99: =VLOOKUP($U99,Output!$C:$AM,W$94,FALSE) -> 20683107.04 | X99: =VLOOKUP($U99,Output!$C:$AM,X$94,FALSE) -> 11774424.23 | Y99: =VLOOKUP($U99,Output!$C:$AM,Y$94,FALSE) -> 9865246.31 | Z99: =VLOOKUP($U99,Output!$C:$AM,Z$94,FALSE) -> 11638903.66 | AA99: =VLOOKUP($U99,Output!$C:$AM,AA$94,FALSE) -> 14279752.4 | AB99: =VLOOKUP($U99,Output!$C:$AM,AB$94,FALSE) -> 11707619.56 | AC99: =VLOOKUP($U99,Output!$C:$AM,AC$94,FALSE) -> 15205733.99 | AD99: =VLOOKUP($U99,Output!$C:$AM,AD$94,FALSE) -> 16494428.78 | AE99: =VLOOKUP($U99,Output!$C:$AM,AE$94,FALSE) -> 14671048.37 | AF99: =VLOOKUP($U99,Output!$C:$AM,AF$94,FALSE) -> 17679173.45 | AG99: =VLOOKUP($U99,Output!$C:$AM,AG$94,FALSE) -> 13904269.27 | AH99: =VLOOKUP($U99,Output!$C:$AM,AH$94,FALSE) -> 14219607.45 | AI99: =VLOOKUP($U99,Output!$C:$AM,AI$94,FALSE) -> 13334997.64 | AJ99: =VLOOKUP($U99,Output!$C:$AM,AJ$94,FALSE) -> 17254959.69 | AK99: =VLOOKUP($U99,Output!$C:$AM,AK$94,FALSE) -> 16841557.86 | AL99: =VLOOKUP($U99,Output!$C:$AM,AL$94,FALSE) -> 12100016.36 | AM99: =VLOOKUP($U99,Output!$C:$AM,AM$94,FALSE) -> 10522943.42 | AN99: =VLOOKUP($U99,Output!$C:$AM,AN$94,FALSE) -> 14699448.45 | AO99: =VLOOKUP($U99,Output!$C:$AM,AO$94,FALSE) -> 14152029.95 | AP99: =VLOOKUP($U99,Output!$C:$AM,AP$94,FALSE) -> 14893259.93 | AQ99: =VLOOKUP($U99,Output!$C:$AM,AQ$94,FALSE) -> 12188993.91 | AR99: =VLOOKUP($U99,Output!$C:$AM,AR$94,FALSE) -> 14624616.84 | AS99: =VLOOKUP($U99,Output!$C:$AM,AS$94,FALSE) -> 15271882.81 | AT99: =VLOOKUP($U99,Output!$C:$AM,AT$94,FALSE) -> 13994990.95 | AU99: =VLOOKUP($U99,Output!$C:$AM,AU$94,FALSE) -> 13048062.87 | AV99: =VLOOKUP($U99,Output!$C:$AM,AV$94,FALSE) -> 13311823.39 | AW99: =VLOOKUP($U99,Output!$C:$AM,AW$94,FALSE) -> 13292028.01 | AX99: =VLOOKUP($U99,Output!$C:$AM,AX$94,FALSE) -> 12777248.59 | AY99: =VLOOKUP($U99,Output!$C:$AM,AY$94,FALSE) -> 11894547.86 | AZ99: =VLOOKUP($U99,Output!$C:$AM,AZ$94,FALSE) -> 12791816.93
X100: =X96-W96 -> 20800 | Y100: =Y96-X96 -> 0 | Z100: =Z96-Y96 -> 0 | AA100: =AA96-Z96 -> 0 | AB100: 0 | AC100: 1237987.61 | AD100: 171093.36 | AE100: 0 | AF100: 15554.5 | AG100: 0 | AH100: 8562.89 | AI100: 23969.44 | AJ100: 20180.68 | AK100: 0 | AL100: 0 | AM100: 153738.32 | AN100: 904742.02 | AO100: 25584.19 | AP100: 0 | AQ100: 86519.37 | AR100: 177029.82 | AS100: 68258.39 | AT100: 15033.25 | AU100: 0 | AV100: 0 | AW100: 0 | AX100: 0 | AY100: 0 | AZ100: 693925.99
T116: * Source: Cahier_analyse, Tableau 13, onglet Budget | X116: Moyenne P2 à P6
B117: Figure 7. Répartition du budget annuel par familles de traitements prévus à la stratégie d’aménagement et coût moyen à l’hectare par famille de traitements
S118: =LEFT(B$117,10) -> Figure 7. | T118: Légende | U118: Output taux | V118: Output superficie | W118: $/ha | X118: ha | Y118: $
S119: =LEFT(B$117,10) -> Figure 7. | T119: Coupes avec protection de la régénération et des sols (CPRS) | U119: OTAUXCT_100 | V119: OSUPCT | W119: =IFERROR(VLOOKUP(U119,Output!$C:$AQ,37,FALSE),0) -> 0 | X119: =IFERROR(VLOOKUP(V119,Output!$C:$AQ,37,FALSE),"0000")/5 -> 7365.1344 | Y119: =W119*X119 -> 0
S120: =LEFT(B$117,10) -> Figure 7. | T120: Coupe avec protection des petites tiges marchandes (CPPTM) | V120: OSUPREALaCPPTM | W120: =IFERROR(VLOOKUP(U120,Output!$C:$AQ,8,FALSE),0) -> 0 | X120: =IFERROR(VLOOKUP(V120,Output!$C:$AQ,37,FALSE),"0000")/5 -> 0 | Y120: =W120*X120 -> 0
S121: =LEFT(B$117,10) -> Figure 7. | T121: Coupe avec réserve de semenciers (CRS) | V121: OSUPREALaCRS | W121: =IFERROR(VLOOKUP(U121,Output!$C:$AQ,8,FALSE),0) -> 0 | X121: =IFERROR(VLOOKUP(V121,Output!$C:$AQ,37,FALSE),"0000")/5 -> 0 | Y121: 0
T122: Coupe à rétention variable (CRV, CPPTM, CPPTM, CPHR, CDL)
S123: =LEFT(B$117,10) -> Figure 7. | T123: Coupes finales | W123: =(ROUND(Y123/X123,0))&"$/ha" -> 0$/ha | X123: =SUM(X119:X121) -> 7365.1344 | Y123: =SUM(Y119:Y121) -> 0
S124: Figure 7. | T124: Éclaircie commerciale (EC) | U124: OTAUXEC_SEPM_100 | V124: OSUPEC_SEPM | W124: =IFERROR(VLOOKUP(U124,Output!$C:$AQ,37,FALSE),0) -> 1250 | X124: =IFERROR(VLOOKUP(V124,Output!$C:$AQ,37,FALSE),"0000")/5 -> 100.6 | Y124: 125750
S125: Figure 7. | T125: Coupe progressive régulière initiale (CPROG) | U125: OTAUXCPROG_INI_100 | V125: OSUPCPROG_INI | W125: =IFERROR(VLOOKUP(U125,Output!$C:$AQ,37,FALSE),0) -> 430 | X125: =IFERROR(VLOOKUP(V125,Output!$C:$AQ,37,FALSE),"0000")/5 -> 0 | Y125: 0
S126: Figure 7. | T126: Coupe progressive régulière finale (CPROG) | U126: OTAUXCPROG_FIN_100 | V126: OSUPCPROG_FIN | W126: =IFERROR(VLOOKUP(U126,Output!$C:$AQ,37,FALSE),0) -> 0 | X126: =IFERROR(VLOOKUP(V126,Output!$C:$AQ,37,FALSE),"0000")/5 -> 0 | Y126: 0
S127: Figure 7. | T127: Coupe progessive irrégulière initiale (CPIRL) | U127: OTAUXCPIRL_INI_100 | V127: OSUPCPIRL_INI | W127: =IFERROR(VLOOKUP(U127,Output!$C:$AQ,37,FALSE),0) -> 300 | X127: =IFERROR(VLOOKUP(V127,Output!$C:$AQ,37,FALSE),"0000")/5 -> 926.7176 | Y127: 278015.28
S128: Figure 7. | T128: Coupe progessive irrégulière finale (CPIRL) | U128: OTAUXCPIRL_FIN_100 | V128: OSUPCPIRL_FIN | W128: =IFERROR(VLOOKUP(U128,Output!$C:$AQ,37,FALSE),0) -> 0 | X128: =IFERROR(VLOOKUP(V128,Output!$C:$AQ,37,FALSE),"0000")/5 -> 2.4908 | Y128: 0
S129: Figure 7. | T129: Coupe à couvert permanent (CPICP) | U129: OTAUXCPICP_100 | V129: OSUPCPICP | W129: =IFERROR(VLOOKUP(U129,Output!$C:$AQ,37,FALSE),0) -> 350 | X129: =IFERROR(VLOOKUP(V129,Output!$C:$AQ,37,FALSE),"0000")/5 -> 0 | Y129: 0
S130: Figure 7. | T130: Coupe de jardinage (CJ) | U130: OTAUXCJ_100 | V130: OSUPCJ | W130: =IFERROR(VLOOKUP(U130,Output!$C:$AQ,37,FALSE),0) -> 676.81 | X130: =IFERROR(VLOOKUP(V130,Output!$C:$AQ,37,FALSE),"0000")/5 -> 0 | Y130: 0
S131: Figure 7. | T131: Coupes partielles | W131: =(ROUND(Y131/X131,0))&"$/ha" -> 392$/ha | X131: =SUM(X124:X130) -> 1029.8084 | Y131: =SUM(Y124:Y130) -> 403765.28
S132: Figure 7. | T132: Plantation ligniculture (pins, feuillus) | U132: OTAUXPL_PPF_100 | V132: OSUPPL_PPF | W132: =IFERROR(VLOOKUP(U132,Output!$C:$AQ,37,FALSE),0) -> 1640 | X132: =IFERROR(VLOOKUP(V132,Output!$C:$AQ,37,FALSE),"0000")/5 -> 0 | Y132: 0
S133: Figure 7. | T133: Plantation intensive | U133: OTAUXPL_SEPM_I_100 | V133: OSUPPL_SEPM_I | W133: =IFERROR(VLOOKUP(U133,Output!$C:$AQ,37,FALSE),0) -> 1390 | X133: =IFERROR(VLOOKUP(V133,Output!$C:$AQ,37,FALSE),"0000")/5 -> 174.4052 | Y133: 242423.228
S134: Figure 7. | T134: Plantation de base | U134: OTAUXPL_SEPM_E_100 | V134: OSUPPL_SEPM_E | W134: =IFERROR(VLOOKUP(U134,Output!$C:$AQ,37,FALSE),0) -> 1110 | X134: =IFERROR(VLOOKUP(V134,Output!$C:$AQ,37,FALSE),"0000")/5 -> 734.5948 | Y134: 815400.228
S135: Figure 7. | T135: Regarni | U135: OTAUXREG_100 | V135: OSUPREG | W135: =IFERROR(VLOOKUP(U135,Output!$C:$AQ,37,FALSE),0) -> 420 | X135: =IFERROR(VLOOKUP(V135,Output!$C:$AQ,37,FALSE),"0000")/5 -> 297 | Y135: 124740
S136: Figure 7. | T136: Ensemencement (ENS) | U136: OTAUXENS_100 | V136: OSUPENS | W136: =IFERROR(VLOOKUP(U136,Output!$C:$AQ,37,FALSE),0) -> 130 | X136: =IFERROR(VLOOKUP(V136,Output!$C:$AQ,37,FALSE),"0000")/5 -> 0 | Y136: =W136*X136 -> 0
S137: Figure 7. | T137: Reboisement | W137: =(ROUND(Y137/X137,0))&"$/ha" -> 981$/ha | X137: =SUM(X132:X136) -> 1206 | Y137: =SUM(Y132:Y136) -> 1182563.456
S138: Figure 7. | T138: Dégagement de la régénération naturelle | U138: OTAUXDEG_2_100 | V138: OSUPDEG_2 | W138: =IFERROR(VLOOKUP(U138,Output!$C:$AQ,37,FALSE),0) -> 1280 | X138: =IFERROR(VLOOKUP(V138,Output!$C:$AQ,37,FALSE),"0000")/5 -> 211.4312 | Y138: 270631.936
S139: Figure 7. | T139: Dégagement de plantation | U139: OTAUXDEG_1_100 | V139: OSUPDEG_1 | W139: =IFERROR(VLOOKUP(U139,Output!$C:$AQ,37,FALSE),0) -> 1280 | X139: =IFERROR(VLOOKUP(V139,Output!$C:$AQ,37,FALSE),"0000")/5 -> 558.9004 | Y139: 715392.512
S140: Figure 7. | T140: Nettoiement de la régénération naturelle | U140: OTAUXNETT_100 | V140: OSUPREALNET | W140: =IFERROR(VLOOKUP(U140,Output!$C:$AQ,37,FALSE),0) -> 1240 | X140: =IFERROR(VLOOKUP(V140,Output!$C:$AQ,37,FALSE),"0000")/5-X141 -> 0 | Y140: 0
C141: $ /m3 | E141: $ /ha | S141: Figure 7. | T141: Nettoiement de plantation | U141: OTAUXNETT_100 | V141: OSUPTCADNETT_T100% | W141: =IFERROR(VLOOKUP(U141,Output!$C:$AQ,37,FALSE),0) -> 1240 | X141: =IFERROR(VLOOKUP(V141,Output!$C:$AQ,37,FALSE),"0000")/5 -> 138.668 | Y141: 171948.32
C142: =Y151/(Instructions!I5/5) -> 3.148476096 | E142: =Y151/Tableaux!F33 -> 3.630047646 | S142: Figure 7. | T142: Éclaircie précommerciale (EPC_1) | U142: OTAUXEPC_1_100 | V142: OSUPEPC_1 | W142: =IFERROR(VLOOKUP(U142,Output!$C:$AQ,37,FALSE),0) -> 1560 | X142: =IFERROR(VLOOKUP(V142,Output!$C:$AQ,37,FALSE),"0000")/5 -> 0 | Y142: 0
S143: Figure 7. | T143: Éclaircie précommerciale (EPC_2) | U143: OTAUXEPC_2_100 | V143: OSUPEPC_2 | W143: =IFERROR(VLOOKUP(U143,Output!$C:$AQ,37,FALSE),0) -> 1560 | X143: =IFERROR(VLOOKUP(V143,Output!$C:$AQ,37,FALSE),"0000")/5 -> 0 | Y143: 0
S144: Figure 7. | T144: Éclaircie précommerciale de la régénération naturelle | V144: OSUPREALEPC | W144: =IFERROR(VLOOKUP(U144,Output!$C:$AQ,37,FALSE),0) -> 0 | X144: =IFERROR(VLOOKUP(V144,Output!$C:$AQ,37,FALSE),"0000")/5 -> 0 | Y144: 0
S145: Figure 7. | T145: Élagage (plantation) | U145: OTAUXELAG_100 | V145: OSUPELAG | W145: =IFERROR(VLOOKUP(U145,Output!$C:$AQ,37,FALSE),0) -> 1630 | X145: =IFERROR(VLOOKUP(V145,Output!$C:$AQ,37,FALSE),"0000")/5 -> 0 | Y145: 0
S146: Figure 7. | T146: Travaux d'éducation | W146: =(ROUND(Y146/X146,0))&"$/ha" -> 1274$/ha | X146: =SUM(X138:X143)+X145 -> 908.9996 | Y146: =SUM(Y138:Y143)+Y145 -> 1157972.768
S147: Figure 7. | T147: Préparation terrain lignicult. + ferti + élagage (SCA_LIGN) | U147: OTAUXSCA_LIGN_100 | V147: OSUPSCA_LIGN | W147: =IFERROR(VLOOKUP(U147,Output!$C:$AQ,37,FALSE),0) -> 1540 | X147: =IFERROR(VLOOKUP(V147,Output!$C:$AQ,37,FALSE),"0000")/5 -> 0 | Y147: 0
S148: Figure 7. | T148: Préparation de terrain partielle (SCA_PART) | U148: OTAUXSCA_PART_100 | V148: OSUPSCA_PART | W148: =IFERROR(VLOOKUP(U148,Output!$C:$AQ,37,FALSE),0) -> 560 | X148: =IFERROR(VLOOKUP(V148,Output!$C:$AQ,37,FALSE),"0000")/5 -> 297 | Y148: 166320
S149: Figure 7. | T149: Préparation de terrain régulière, 1 passage (SCA_REG) | U149: OTAUXSCA_REG_100 | V149: OSUPSCA_REG | W149: =IFERROR(VLOOKUP(U149,Output!$C:$AQ,37,FALSE),0) -> 430 | X149: =IFERROR(VLOOKUP(V149,Output!$C:$AQ,37,FALSE),"0000")/5 -> 909 | Y149: 390870 | AA149: Valideur
B150: Figure 9b Évolution de la superficie des vieilles forêts selon leur degré d'altération | S150: Figure 7. | T150: Préparation de terrain | W150: =(ROUND(Y150/X150,0))&"$/ha" -> 462$/ha | X150: =SUM(X147:X149) -> 1206 | Y150: =SUM(Y147:Y149) -> 557190 | Z150: =Y123+Y131+Y137+Y146+Y150 -> 3301491.504 | AA150: =Y151-Z150 -> 0.5299999998
S151: Figure 7. | T151: Investissement sylvicole annuel (O$INVESTISTS)* | V151: O$INVESTISTS | Y151: =IFERROR(VLOOKUP(V151,Output!$C:$AQ,37,FALSE),"0000")/5 -> 3301492.034
S155: =LEFT(B$117,10) -> Figure 7. | T155: =T123 -> Coupes finales | U155: =Y123 -> 0 | V155: =W123 -> 0$/ha
S156: =LEFT(B$117,10) -> Figure 7. | T156: =T131 -> Coupes partielles | U156: =Y131 -> 403765.28 | V156: =W131 -> 392$/ha
S157: =LEFT(B$117,10) -> Figure 7. | T157: =T137 -> Reboisement | U157: =Y137 -> 1182563.456 | V157: =W137 -> 981$/ha
S158: =LEFT(B$117,10) -> Figure 7. | T158: =T146 -> Travaux d'éducation | U158: =Y146 -> 1157972.768 | V158: =W146 -> 1274$/ha
S159: =LEFT(B$117,10) -> Figure 7. | T159: =T150 -> Préparation de terrain | U159: =Y150 -> 557190 | V159: =W150 -> 462$/ha
U161: Période | V161: P0 | W161: P1 | X161: P2 | Y161: P3 | Z161: P4 | AA161: P5 | AB161: P6 | AC161: P7 | AD161: P8 | AE161: P9 | AF161: P10 | AG161: P11 | AH161: P12 | AI161: P13 | AJ161: P14 | AK161: P15 | AL161: P16 | AM161: P17 | AN161: P18 | AO161: P19 | AP161: P20 | AQ161: P21 | AR161: P22 | AS161: P23 | AT161: P24 | AU161: P25 | AV161: P26 | AW161: P27 | AX161: P28 | AY161: P29 | AZ161: P30
S162: =LEFT(B$150,10) -> Figure 9b | U162: Axe des "X" Fin de période | V162: 2018 | W162: 2023 | X162: 2028 | Y162: 2033 | Z162: 2038 | AA162: 2043 | AB162: 2048 | AC162: 2053 | AD162: 2058 | AE162: 2063 | AF162: 2068 | AG162: 2073 | AH162: 2078 | AI162: 2083 | AJ162: 2088 | AK162: 2093 | AL162: 2098 | AM162: 2103 | AN162: 2108 | AO162: 2113 | AP162: 2118 | AQ162: 2123 | AR162: 2128 | AS162: 2133 | AT162: 2138 | AU162: 2143 | AV162: 2148 | AW162: 2153 | AX162: 2158 | AY162: 2163 | AZ162: 2168
S163: Figure 9b | U163: Colonne | V163: 6 | W163: 7 | X163: 8 | Y163: 9 | Z163: 10 | AA163: 11 | AB163: 12 | AC163: 13 | AD163: 14 | AE163: 15 | AF163: 16 | AG163: 17 | AH163: 18 | AI163: 19 | AJ163: 20 | AK163: 21 | AL163: 22 | AM163: 23 | AN163: 24 | AO163: 25 | AP163: 26 | AQ163: 27 | AR163: 28 | AS163: 29 | AT163: 30 | AU163: 31 | AV163: 32 | AW163: 33 | AX163: 34 | AY163: 35 | AZ163: 36
S164: Figure 9b | U164: OSUPREGECO | V164: =VLOOKUP($U164,Output!$C:$AL,V$163,FALSE) -> 1296770.6 | W164: =VLOOKUP($U164,Output!$C:$AL,W$163,FALSE) -> 1294747.15 | X164: =VLOOKUP($U164,Output!$C:$AL,X$163,FALSE) -> 1292767.32 | Y164: =VLOOKUP($U164,Output!$C:$AL,Y$163,FALSE) -> 1290988.23 | Z164: =VLOOKUP($U164,Output!$C:$AL,Z$163,FALSE) -> 1289231.82 | AA164: =VLOOKUP($U164,Output!$C:$AL,AA$163,FALSE) -> 1287606.72 | AB164: =VLOOKUP($U164,Output!$C:$AL,AB$163,FALSE) -> 1286077.04 | AC164: =VLOOKUP($U164,Output!$C:$AL,AC$163,FALSE) -> 1283972.16 | AD164: =VLOOKUP($U164,Output!$C:$AL,AD$163,FALSE) -> 1281967.1 | AE164: =VLOOKUP($U164,Output!$C:$AL,AE$163,FALSE) -> 1280186.07 | AF164: =VLOOKUP($U164,Output!$C:$AL,AF$163,FALSE) -> 1278588.33 | AG164: =VLOOKUP($U164,Output!$C:$AL,AG$163,FALSE) -> 1276801.75 | AH164: =VLOOKUP($U164,Output!$C:$AL,AH$163,FALSE) -> 1275402.16 | AI164: =VLOOKUP($U164,Output!$C:$AL,AI$163,FALSE) -> 1274215.39 | AJ164: =VLOOKUP($U164,Output!$C:$AL,AJ$163,FALSE) -> 1272600.01 | AK164: =VLOOKUP($U164,Output!$C:$AL,AK$163,FALSE) -> 1271449.78 | AL164: =VLOOKUP($U164,Output!$C:$AL,AL$163,FALSE) -> 1270326.86 | AM164: =VLOOKUP($U164,Output!$C:$AL,AM$163,FALSE) -> 1269627.23 | AN164: =VLOOKUP($U164,Output!$C:$AL,AN$163,FALSE) -> 1269251.49 | AO164: =VLOOKUP($U164,Output!$C:$AL,AO$163,FALSE) -> 1268921.11 | AP164: =VLOOKUP($U164,Output!$C:$AL,AP$163,FALSE) -> 1268657.99 | AQ164: =VLOOKUP($U164,Output!$C:$AL,AQ$163,FALSE) -> 1268517.46 | AR164: =VLOOKUP($U164,Output!$C:$AL,AR$163,FALSE) -> 1268451.36 | AS164: =VLOOKUP($U164,Output!$C:$AL,AS$163,FALSE) -> 1268375.65 | AT164: =VLOOKUP($U164,Output!$C:$AL,AT$163,FALSE) -> 1268357.11 | AU164: =VLOOKUP($U164,Output!$C:$AL,AU$163,FALSE) -> 1268321.2 | AV164: =VLOOKUP($U164,Output!$C:$AL,AV$163,FALSE) -> 1268304.91 | AW164: =VLOOKUP($U164,Output!$C:$AL,AW$163,FALSE) -> 1268298.28 | AX164: =VLOOKUP($U164,Output!$C:$AL,AX$163,FALSE) -> 1268262.45 | AY164: =VLOOKUP($U164,Output!$C:$AL,AY$163,FALSE) -> 1268235.62 | AZ164: =VLOOKUP($U164,Output!$C:$AL,AZ$163,FALSE) -> 1268160.81
S165: Figure 9b | T165: Élevé | U165: OSUPVIEUXALERTEREGECO | V165: =VLOOKUP($U165,Output!$C:$AL,V$163,FALSE) -> 277918.92 | W165: =VLOOKUP($U165,Output!$C:$AL,W$163,FALSE) -> 277497.51 | X165: =VLOOKUP($U165,Output!$C:$AL,X$163,FALSE) -> 277079.54 | Y165: =VLOOKUP($U165,Output!$C:$AL,Y$163,FALSE) -> 276687.57 | Z165: =VLOOKUP($U165,Output!$C:$AL,Z$163,FALSE) -> 276304.63 | AA165: =VLOOKUP($U165,Output!$C:$AL,AA$163,FALSE) -> 275952.29 | AB165: =VLOOKUP($U165,Output!$C:$AL,AB$163,FALSE) -> 275629.66 | AC165: =VLOOKUP($U165,Output!$C:$AL,AC$163,FALSE) -> 275160.64 | AD165: =VLOOKUP($U165,Output!$C:$AL,AD$163,FALSE) -> 274705.81 | AE165: =VLOOKUP($U165,Output!$C:$AL,AE$163,FALSE) -> 274300.2 | AF165: =VLOOKUP($U165,Output!$C:$AL,AF$163,FALSE) -> 273936.51 | AG165: =VLOOKUP($U165,Output!$C:$AL,AG$163,FALSE) -> 273589.7 | AH165: =VLOOKUP($U165,Output!$C:$AL,AH$163,FALSE) -> 273290.05 | AI165: =VLOOKUP($U165,Output!$C:$AL,AI$163,FALSE) -> 273028.17 | AJ165: =VLOOKUP($U165,Output!$C:$AL,AJ$163,FALSE) -> 272679.8 | AK165: =VLOOKUP($U165,Output!$C:$AL,AK$163,FALSE) -> 272435.42 | AL165: =VLOOKUP($U165,Output!$C:$AL,AL$163,FALSE) -> 272199.31 | AM165: =VLOOKUP($U165,Output!$C:$AL,AM$163,FALSE) -> 272042.34 | AN165: =VLOOKUP($U165,Output!$C:$AL,AN$163,FALSE) -> 271964.73 | AO165: =VLOOKUP($U165,Output!$C:$AL,AO$163,FALSE) -> 271895.39 | AP165: =VLOOKUP($U165,Output!$C:$AL,AP$163,FALSE) -> 271840.06 | AQ165: =VLOOKUP($U165,Output!$C:$AL,AQ$163,FALSE) -> 271810.66 | AR165: =VLOOKUP($U165,Output!$C:$AL,AR$163,FALSE) -> 271797.48 | AS165: =VLOOKUP($U165,Output!$C:$AL,AS$163,FALSE) -> 271782.44 | AT165: =VLOOKUP($U165,Output!$C:$AL,AT$163,FALSE) -> 271778.59 | AU165: =VLOOKUP($U165,Output!$C:$AL,AU$163,FALSE) -> 271771.39 | AV165: =VLOOKUP($U165,Output!$C:$AL,AV$163,FALSE) -> 271768.14 | AW165: =VLOOKUP($U165,Output!$C:$AL,AW$163,FALSE) -> 271766.63 | AX165: =VLOOKUP($U165,Output!$C:$AL,AX$163,FALSE) -> 271759.98 | AY165: =VLOOKUP($U165,Output!$C:$AL,AY$163,FALSE) -> 271754.77 | AZ165: =VLOOKUP($U165,Output!$C:$AL,AZ$163,FALSE) -> 271740.05
S166: Figure 9b | U166: OSUPVIEUXACCEPTREGECO | V166: =VLOOKUP($U166,Output!$C:$AL,V$163,FALSE) -> 463198.2 | W166: =VLOOKUP($U166,Output!$C:$AL,W$163,FALSE) -> 462495.85 | X166: =VLOOKUP($U166,Output!$C:$AL,X$163,FALSE) -> 461799.23 | Y166: =VLOOKUP($U166,Output!$C:$AL,Y$163,FALSE) -> 461145.95 | Z166: =VLOOKUP($U166,Output!$C:$AL,Z$163,FALSE) -> 460507.72 | AA166: =VLOOKUP($U166,Output!$C:$AL,AA$163,FALSE) -> 459920.48 | AB166: =VLOOKUP($U166,Output!$C:$AL,AB$163,FALSE) -> 459382.77 | AC166: =VLOOKUP($U166,Output!$C:$AL,AC$163,FALSE) -> 458601.07 | AD166: =VLOOKUP($U166,Output!$C:$AL,AD$163,FALSE) -> 457843.01 | AE166: =VLOOKUP($U166,Output!$C:$AL,AE$163,FALSE) -> 457167 | AF166: =VLOOKUP($U166,Output!$C:$AL,AF$163,FALSE) -> 456560.85 | AG166: =VLOOKUP($U166,Output!$C:$AL,AG$163,FALSE) -> 455982.83 | AH166: =VLOOKUP($U166,Output!$C:$AL,AH$163,FALSE) -> 455483.41 | AI166: =VLOOKUP($U166,Output!$C:$AL,AI$163,FALSE) -> 455046.95 | AJ166: =VLOOKUP($U166,Output!$C:$AL,AJ$163,FALSE) -> 454466.34 | AK166: =VLOOKUP($U166,Output!$C:$AL,AK$163,FALSE) -> 454059.03 | AL166: =VLOOKUP($U166,Output!$C:$AL,AL$163,FALSE) -> 453665.51 | AM166: =VLOOKUP($U166,Output!$C:$AL,AM$163,FALSE) -> 453403.9 | AN166: =VLOOKUP($U166,Output!$C:$AL,AN$163,FALSE) -> 453274.54 | AO166: =VLOOKUP($U166,Output!$C:$AL,AO$163,FALSE) -> 453158.98 | AP166: =VLOOKUP($U166,Output!$C:$AL,AP$163,FALSE) -> 453066.77 | AQ166: =VLOOKUP($U166,Output!$C:$AL,AQ$163,FALSE) -> 453017.76 | AR166: =VLOOKUP($U166,Output!$C:$AL,AR$163,FALSE) -> 452995.79 | AS166: =VLOOKUP($U166,Output!$C:$AL,AS$163,FALSE) -> 452970.73 | AT166: =VLOOKUP($U166,Output!$C:$AL,AT$163,FALSE) -> 452964.31 | AU166: =VLOOKUP($U166,Output!$C:$AL,AU$163,FALSE) -> 452952.31 | AV166: =VLOOKUP($U166,Output!$C:$AL,AV$163,FALSE) -> 452946.9 | AW166: =VLOOKUP($U166,Output!$C:$AL,AW$163,FALSE) -> 452944.39 | AX166: =VLOOKUP($U166,Output!$C:$AL,AX$163,FALSE) -> 452933.3 | AY166: =VLOOKUP($U166,Output!$C:$AL,AY$163,FALSE) -> 452924.61 | AZ166: =VLOOKUP($U166,Output!$C:$AL,AZ$163,FALSE) -> 452900.08
S167: Figure 9b | T167: Moyen | V167: =V166-V165 -> 185279.28 | W167: =W166-W165 -> 184998.34 | X167: 184719.69 | Y167: 184458.38 | Z167: 184203.09 | AA167: 183968.19 | AB167: 183753.11 | AC167: 183440.43 | AD167: 183137.2 | AE167: 182866.8 | AF167: 182624.34 | AG167: 182393.13 | AH167: 182193.36 | AI167: 182018.78 | AJ167: 181786.54 | AK167: 181623.61 | AL167: 181466.2 | AM167: 181361.56 | AN167: 181309.81 | AO167: 181263.59 | AP167: 181226.71 | AQ167: 181207.1 | AR167: 181198.31 | AS167: 181188.29 | AT167: 181185.72 | AU167: 181180.92 | AV167: 181178.76 | AW167: 181177.76 | AX167: 181173.32 | AY167: 181169.84 | AZ167: 181160.03
S168: Figure 9b | T168: Faible | V168: =$V$164-V165-V167 -> 833572.4 | W168: =$V$164-W165-W167 -> 834274.75 | X168: 834971.37 | Y168: 835624.65 | Z168: 836262.88 | AA168: 836850.12 | AB168: 837387.83 | AC168: 838169.53 | AD168: 838927.59 | AE168: 839603.6 | AF168: 840209.75 | AG168: 840787.77 | AH168: 841287.19 | AI168: 841723.65 | AJ168: 842304.26 | AK168: 842711.57 | AL168: 843105.09 | AM168: 843366.7 | AN168: 843496.06 | AO168: 843611.62 | AP168: 843703.83 | AQ168: 843752.84 | AR168: 843774.81 | AS168: 843799.87 | AT168: 843806.29 | AU168: 843818.29 | AV168: 843823.7 | AW168: 843826.21 | AX168: 843837.3 | AY168: 843845.99 | AZ168: 843870.52
S169: Figure 9b | T169: Niveau prédit | U169: OSUPVIEUXTOTREGECO | V169: =VLOOKUP($U169,Output!$C:$AL,V$163,FALSE) -> 327093 | W169: =VLOOKUP($U169,Output!$C:$AL,W$163,FALSE) -> 333774.93 | X169: =VLOOKUP($U169,Output!$C:$AL,X$163,FALSE) -> 345504.12 | Y169: =VLOOKUP($U169,Output!$C:$AL,Y$163,FALSE) -> 370383.89 | Z169: =VLOOKUP($U169,Output!$C:$AL,Z$163,FALSE) -> 413179.56 | AA169: =VLOOKUP($U169,Output!$C:$AL,AA$163,FALSE) -> 430995.77 | AB169: =VLOOKUP($U169,Output!$C:$AL,AB$163,FALSE) -> 469944.61 | AC169: =VLOOKUP($U169,Output!$C:$AL,AC$163,FALSE) -> 467495.22 | AD169: =VLOOKUP($U169,Output!$C:$AL,AD$163,FALSE) -> 472520.22 | AE169: =VLOOKUP($U169,Output!$C:$AL,AE$163,FALSE) -> 513032.61 | AF169: =VLOOKUP($U169,Output!$C:$AL,AF$163,FALSE) -> 522973.06 | AG169: =VLOOKUP($U169,Output!$C:$AL,AG$163,FALSE) -> 565466.55 | AH169: =VLOOKUP($U169,Output!$C:$AL,AH$163,FALSE) -> 552286.79 | AI169: =VLOOKUP($U169,Output!$C:$AL,AI$163,FALSE) -> 541917.83 | AJ169: =VLOOKUP($U169,Output!$C:$AL,AJ$163,FALSE) -> 517498.96 | AK169: =VLOOKUP($U169,Output!$C:$AL,AK$163,FALSE) -> 564199.21 | AL169: =VLOOKUP($U169,Output!$C:$AL,AL$163,FALSE) -> 552886.06 | AM169: =VLOOKUP($U169,Output!$C:$AL,AM$163,FALSE) -> 545011.43 | AN169: =VLOOKUP($U169,Output!$C:$AL,AN$163,FALSE) -> 547372.82 | AO169: =VLOOKUP($U169,Output!$C:$AL,AO$163,FALSE) -> 569508.13 | AP169: =VLOOKUP($U169,Output!$C:$AL,AP$163,FALSE) -> 574254.27 | AQ169: =VLOOKUP($U169,Output!$C:$AL,AQ$163,FALSE) -> 576443.7 | AR169: =VLOOKUP($U169,Output!$C:$AL,AR$163,FALSE) -> 564619.94 | AS169: =VLOOKUP($U169,Output!$C:$AL,AS$163,FALSE) -> 558982.29 | AT169: =VLOOKUP($U169,Output!$C:$AL,AT$163,FALSE) -> 552851.61 | AU169: =VLOOKUP($U169,Output!$C:$AL,AU$163,FALSE) -> 553633.33 | AV169: =VLOOKUP($U169,Output!$C:$AL,AV$163,FALSE) -> 554002.24 | AW169: =VLOOKUP($U169,Output!$C:$AL,AW$163,FALSE) -> 546884.04 | AX169: =VLOOKUP($U169,Output!$C:$AL,AX$163,FALSE) -> 542077.26 | AY169: =VLOOKUP($U169,Output!$C:$AL,AY$163,FALSE) -> 534203.86 | AZ169: =VLOOKUP($U169,Output!$C:$AL,AZ$163,FALSE) -> 529963.49
S170: Figure 9b | T170: Portrait préindustriel
B176: Figure 9c Évolution de la superficie des peuplements en régénération selon leur degré d'altération
U177: Période | V177: P0 | W177: P1 | X177: P2 | Y177: P3 | Z177: P4 | AA177: P5 | AB177: P6 | AC177: P7 | AD177: P8 | AE177: P9 | AF177: P10 | AG177: P11 | AH177: P12 | AI177: P13 | AJ177: P14 | AK177: P15 | AL177: P16 | AM177: P17 | AN177: P18 | AO177: P19 | AP177: P20 | AQ177: P21 | AR177: P22 | AS177: P23 | AT177: P24 | AU177: P25 | AV177: P26 | AW177: P27 | AX177: P28 | AY177: P29 | AZ177: P30
U178: Axe des "X" Fin de période | V178: 2018 | W178: 2023 | X178: 2028 | Y178: 2033 | Z178: 2038 | AA178: 2043 | AB178: 2048 | AC178: 2053 | AD178: 2058 | AE178: 2063 | AF178: 2068 | AG178: 2073 | AH178: 2078 | AI178: 2083 | AJ178: 2088 | AK178: 2093 | AL178: 2098 | AM178: 2103 | AN178: 2108 | AO178: 2113 | AP178: 2118 | AQ178: 2123 | AR178: 2128 | AS178: 2133 | AT178: 2138 | AU178: 2143 | AV178: 2148 | AW178: 2153 | AX178: 2158 | AY178: 2163 | AZ178: 2168
S179: =LEFT(B$176,10) -> Figure 9c | U179: Colonne | V179: 6 | W179: 7 | X179: 8 | Y179: 9 | Z179: 10 | AA179: 11 | AB179: 12 | AC179: 13 | AD179: 14 | AE179: 15 | AF179: 16 | AG179: 17 | AH179: 18 | AI179: 19 | AJ179: 20 | AK179: 21 | AL179: 22 | AM179: 23 | AN179: 24 | AO179: 25 | AP179: 26 | AQ179: 27 | AR179: 28 | AS179: 29 | AT179: 30 | AU179: 31 | AV179: 32 | AW179: 33 | AX179: 34 | AY179: 35 | AZ179: 36
S180: Figure 9c | T180: Niveau prédit | U180: OSUPJEUNEREGECO | V180: =VLOOKUP($U180,Output!$C:$AL,V$179,FALSE) -> 156699.1 | W180: =VLOOKUP($U180,Output!$C:$AL,W$179,FALSE) -> 142439.92 | X180: =VLOOKUP($U180,Output!$C:$AL,X$179,FALSE) -> 197564.31 | Y180: =VLOOKUP($U180,Output!$C:$AL,Y$179,FALSE) -> 207151.82 | Z180: =VLOOKUP($U180,Output!$C:$AL,Z$179,FALSE) -> 178331.26 | AA180: =VLOOKUP($U180,Output!$C:$AL,AA$179,FALSE) -> 139764.61 | AB180: =VLOOKUP($U180,Output!$C:$AL,AB$179,FALSE) -> 111481.1 | AC180: =VLOOKUP($U180,Output!$C:$AL,AC$179,FALSE) -> 120127.95 | AD180: =VLOOKUP($U180,Output!$C:$AL,AD$179,FALSE) -> 128237.98 | AE180: =VLOOKUP($U180,Output!$C:$AL,AE$179,FALSE) -> 142866.67 | AF180: =VLOOKUP($U180,Output!$C:$AL,AF$179,FALSE) -> 140121.39 | AG180: =VLOOKUP($U180,Output!$C:$AL,AG$179,FALSE) -> 126785.62 | AH180: =VLOOKUP($U180,Output!$C:$AL,AH$179,FALSE) -> 126317.44 | AI180: =VLOOKUP($U180,Output!$C:$AL,AI$179,FALSE) -> 128519.15 | AJ180: =VLOOKUP($U180,Output!$C:$AL,AJ$179,FALSE) -> 147561.5 | AK180: =VLOOKUP($U180,Output!$C:$AL,AK$179,FALSE) -> 146453.17 | AL180: =VLOOKUP($U180,Output!$C:$AL,AL$179,FALSE) -> 139278.9 | AM180: =VLOOKUP($U180,Output!$C:$AL,AM$179,FALSE) -> 140462.41 | AN180: =VLOOKUP($U180,Output!$C:$AL,AN$179,FALSE) -> 146655.16 | AO180: =VLOOKUP($U180,Output!$C:$AL,AO$179,FALSE) -> 154951.52 | AP180: =VLOOKUP($U180,Output!$C:$AL,AP$179,FALSE) -> 153670.74 | AQ180: =VLOOKUP($U180,Output!$C:$AL,AQ$179,FALSE) -> 151862.37 | AR180: =VLOOKUP($U180,Output!$C:$AL,AR$179,FALSE) -> 152809.44 | AS180: =VLOOKUP($U180,Output!$C:$AL,AS$179,FALSE) -> 151501.96 | AT180: =VLOOKUP($U180,Output!$C:$AL,AT$179,FALSE) -> 169295.2 | AU180: =VLOOKUP($U180,Output!$C:$AL,AU$179,FALSE) -> 162617.32 | AV180: =VLOOKUP($U180,Output!$C:$AL,AV$179,FALSE) -> 158854.21 | AW180: =VLOOKUP($U180,Output!$C:$AL,AW$179,FALSE) -> 158118.6 | AX180: =VLOOKUP($U180,Output!$C:$AL,AX$179,FALSE) -> 155518.35 | AY180: =VLOOKUP($U180,Output!$C:$AL,AY$179,FALSE) -> 168113.64 | AZ180: =VLOOKUP($U180,Output!$C:$AL,AZ$179,FALSE) -> 175333.33
S181: Figure 9c | U181: OSUPREGECO | V181: =VLOOKUP($U181,Output!$C:$AL,V$179,FALSE) -> 1296770.6 | W181: =VLOOKUP($U181,Output!$C:$AL,W$179,FALSE) -> 1294747.15 | X181: =VLOOKUP($U181,Output!$C:$AL,X$179,FALSE) -> 1292767.32 | Y181: =VLOOKUP($U181,Output!$C:$AL,Y$179,FALSE) -> 1290988.23 | Z181: =VLOOKUP($U181,Output!$C:$AL,Z$179,FALSE) -> 1289231.82 | AA181: =VLOOKUP($U181,Output!$C:$AL,AA$179,FALSE) -> 1287606.72 | AB181: =VLOOKUP($U181,Output!$C:$AL,AB$179,FALSE) -> 1286077.04 | AC181: =VLOOKUP($U181,Output!$C:$AL,AC$179,FALSE) -> 1283972.16 | AD181: =VLOOKUP($U181,Output!$C:$AL,AD$179,FALSE) -> 1281967.1 | AE181: =VLOOKUP($U181,Output!$C:$AL,AE$179,FALSE) -> 1280186.07 | AF181: =VLOOKUP($U181,Output!$C:$AL,AF$179,FALSE) -> 1278588.33 | AG181: =VLOOKUP($U181,Output!$C:$AL,AG$179,FALSE) -> 1276801.75 | AH181: =VLOOKUP($U181,Output!$C:$AL,AH$179,FALSE) -> 1275402.16 | AI181: =VLOOKUP($U181,Output!$C:$AL,AI$179,FALSE) -> 1274215.39 | AJ181: =VLOOKUP($U181,Output!$C:$AL,AJ$179,FALSE) -> 1272600.01 | AK181: =VLOOKUP($U181,Output!$C:$AL,AK$179,FALSE) -> 1271449.78 | AL181: =VLOOKUP($U181,Output!$C:$AL,AL$179,FALSE) -> 1270326.86 | AM181: =VLOOKUP($U181,Output!$C:$AL,AM$179,FALSE) -> 1269627.23 | AN181: =VLOOKUP($U181,Output!$C:$AL,AN$179,FALSE) -> 1269251.49 | AO181: =VLOOKUP($U181,Output!$C:$AL,AO$179,FALSE) -> 1268921.11 | AP181: =VLOOKUP($U181,Output!$C:$AL,AP$179,FALSE) -> 1268657.99 | AQ181: =VLOOKUP($U181,Output!$C:$AL,AQ$179,FALSE) -> 1268517.46 | AR181: =VLOOKUP($U181,Output!$C:$AL,AR$179,FALSE) -> 1268451.36 | AS181: =VLOOKUP($U181,Output!$C:$AL,AS$179,FALSE) -> 1268375.65 | AT181: =VLOOKUP($U181,Output!$C:$AL,AT$179,FALSE) -> 1268357.11 | AU181: =VLOOKUP($U181,Output!$C:$AL,AU$179,FALSE) -> 1268321.2 | AV181: =VLOOKUP($U181,Output!$C:$AL,AV$179,FALSE) -> 1268304.91 | AW181: =VLOOKUP($U181,Output!$C:$AL,AW$179,FALSE) -> 1268298.28 | AX181: =VLOOKUP($U181,Output!$C:$AL,AX$179,FALSE) -> 1268262.45 | AY181: =VLOOKUP($U181,Output!$C:$AL,AY$179,FALSE) -> 1268235.62 | AZ181: =VLOOKUP($U181,Output!$C:$AL,AZ$179,FALSE) -> 1268160.81
S182: Figure 9c | V182: =IFERROR(V180/V181,"0000") -> 0.1208379493 | W182: 0.1100136965 | X182: 0.152822791 | Y182: 0.1604598827 | Z182: 0.138323657 | AA182: 0.1085460396 | AB182: 0.08668306527 | AC182: 0.09355962204 | AD182: 0.1000321927 | AE182: 0.1115983632 | AF182: 0.1095906999 | AG182: 0.09929937831 | AH182: 0.0990412624 | AI182: 0.1008614015 | AJ182: 0.1159527729 | AK182: 0.1151859651 | AL182: 0.1096402071 | AM182: 0.1106327957 | AN182: 0.1155446034 | AO182: 0.1221128081 | AP182: 0.1211285793 | AQ182: 0.1197164208 | AR182: 0.1204692941 | AS182: 0.1194456548 | AT182: 0.1334759735 | AU182: 0.1282146195 | AV182: 0.1252492273 | AW182: 0.1246698844 | AX182: 0.1226231605 | AY182: 0.1325571032 | AZ182: 0.1382579627
S183: Figure 9c
S184: Figure 9c | U184: OSUPJEUNEALERTEREGECO | V184: =VLOOKUP($U184,Output!$C:$AL,V$179,FALSE) -> 419874.29 | W184: =VLOOKUP($U184,Output!$C:$AL,W$179,FALSE) -> 419187.35 | X184: =VLOOKUP($U184,Output!$C:$AL,X$179,FALSE) -> 418543.89 | Y184: =VLOOKUP($U184,Output!$C:$AL,Y$179,FALSE) -> 417981.78 | Z184: =VLOOKUP($U184,Output!$C:$AL,Z$179,FALSE) -> 417422.51 | AA184: =VLOOKUP($U184,Output!$C:$AL,AA$179,FALSE) -> 416915.79 | AB184: =VLOOKUP($U184,Output!$C:$AL,AB$179,FALSE) -> 416404.4 | AC184: =VLOOKUP($U184,Output!$C:$AL,AC$179,FALSE) -> 415720.99 | AD184: =VLOOKUP($U184,Output!$C:$AL,AD$179,FALSE) -> 415094.58 | AE184: =VLOOKUP($U184,Output!$C:$AL,AE$179,FALSE) -> 414542.86 | AF184: =VLOOKUP($U184,Output!$C:$AL,AF$179,FALSE) -> 414055.23 | AG184: =VLOOKUP($U184,Output!$C:$AL,AG$179,FALSE) -> 413471.97 | AH184: =VLOOKUP($U184,Output!$C:$AL,AH$179,FALSE) -> 413015.11 | AI184: =VLOOKUP($U184,Output!$C:$AL,AI$179,FALSE) -> 412642.97 | AJ184: =VLOOKUP($U184,Output!$C:$AL,AJ$179,FALSE) -> 412111.52 | AK184: =VLOOKUP($U184,Output!$C:$AL,AK$179,FALSE) -> 411729.17 | AL184: =VLOOKUP($U184,Output!$C:$AL,AL$179,FALSE) -> 411357.64 | AM184: =VLOOKUP($U184,Output!$C:$AL,AM$179,FALSE) -> 411124.84 | AN184: =VLOOKUP($U184,Output!$C:$AL,AN$179,FALSE) -> 411003.8 | AO184: =VLOOKUP($U184,Output!$C:$AL,AO$179,FALSE) -> 410894.37 | AP184: =VLOOKUP($U184,Output!$C:$AL,AP$179,FALSE) -> 410808.42 | AQ184: =VLOOKUP($U184,Output!$C:$AL,AQ$179,FALSE) -> 410761.62 | AR184: =VLOOKUP($U184,Output!$C:$AL,AR$179,FALSE) -> 410738.58 | AS184: =VLOOKUP($U184,Output!$C:$AL,AS$179,FALSE) -> 410712.37 | AT184: =VLOOKUP($U184,Output!$C:$AL,AT$179,FALSE) -> 410706.22 | AU184: =VLOOKUP($U184,Output!$C:$AL,AU$179,FALSE) -> 410693.92 | AV184: =VLOOKUP($U184,Output!$C:$AL,AV$179,FALSE) -> 410688.23 | AW184: =VLOOKUP($U184,Output!$C:$AL,AW$179,FALSE) -> 410685.95 | AX184: =VLOOKUP($U184,Output!$C:$AL,AX$179,FALSE) -> 410674.14 | AY184: =VLOOKUP($U184,Output!$C:$AL,AY$179,FALSE) -> 410664.93 | AZ184: =VLOOKUP($U184,Output!$C:$AL,AZ$179,FALSE) -> 410638.74
S185: Figure 9c | T185: Faible | U185: OSUPJEUNEACCEPTREGECO | V185: =VLOOKUP($U185,Output!$C:$AL,V$179,FALSE) -> 290197.23 | W185: =VLOOKUP($U185,Output!$C:$AL,W$179,FALSE) -> 289712.63 | X185: =VLOOKUP($U185,Output!$C:$AL,X$179,FALSE) -> 289267.16 | Y185: =VLOOKUP($U185,Output!$C:$AL,Y$179,FALSE) -> 288882.95 | Z185: =VLOOKUP($U185,Output!$C:$AL,Z$179,FALSE) -> 288499.33 | AA185: =VLOOKUP($U185,Output!$C:$AL,AA$179,FALSE) -> 288155.11 | AB185: =VLOOKUP($U185,Output!$C:$AL,AB$179,FALSE) -> 287796.69 | AC185: =VLOOKUP($U185,Output!$C:$AL,AC$179,FALSE) -> 287323.77 | AD185: =VLOOKUP($U185,Output!$C:$AL,AD$179,FALSE) -> 286897.87 | AE185: =VLOOKUP($U185,Output!$C:$AL,AE$179,FALSE) -> 286524.25 | AF185: =VLOOKUP($U185,Output!$C:$AL,AF$179,FALSE) -> 286196.4 | AG185: =VLOOKUP($U185,Output!$C:$AL,AG$179,FALSE) -> 285791.8 | AH185: =VLOOKUP($U185,Output!$C:$AL,AH$179,FALSE) -> 285474.9 | AI185: =VLOOKUP($U185,Output!$C:$AL,AI$179,FALSE) -> 285221.43 | AJ185: =VLOOKUP($U185,Output!$C:$AL,AJ$179,FALSE) -> 284851.52 | AK185: =VLOOKUP($U185,Output!$C:$AL,AK$179,FALSE) -> 284584.19 | AL185: =VLOOKUP($U185,Output!$C:$AL,AL$179,FALSE) -> 284324.95 | AM185: =VLOOKUP($U185,Output!$C:$AL,AM$179,FALSE) -> 284162.12 | AN185: =VLOOKUP($U185,Output!$C:$AL,AN$179,FALSE) -> 284078.65 | AO185: =VLOOKUP($U185,Output!$C:$AL,AO$179,FALSE) -> 284002.26 | AP185: =VLOOKUP($U185,Output!$C:$AL,AP$179,FALSE) -> 283942.62 | AQ185: =VLOOKUP($U185,Output!$C:$AL,AQ$179,FALSE) -> 283909.87 | AR185: =VLOOKUP($U185,Output!$C:$AL,AR$179,FALSE) -> 283893.44 | AS185: =VLOOKUP($U185,Output!$C:$AL,AS$179,FALSE) -> 283874.81 | AT185: =VLOOKUP($U185,Output!$C:$AL,AT$179,FALSE) -> 283870.51 | AU185: =VLOOKUP($U185,Output!$C:$AL,AU$179,FALSE) -> 283861.8 | AV185: =VLOOKUP($U185,Output!$C:$AL,AV$179,FALSE) -> 283857.74 | AW185: =VLOOKUP($U185,Output!$C:$AL,AW$179,FALSE) -> 283856.13 | AX185: =VLOOKUP($U185,Output!$C:$AL,AX$179,FALSE) -> 283847.9 | AY185: =VLOOKUP($U185,Output!$C:$AL,AY$179,FALSE) -> 283841.37 | AZ185: =VLOOKUP($U185,Output!$C:$AL,AZ$179,FALSE) -> 283822.66
S186: Figure 9c | T186: Moyen | V186: =V184-V185 -> 129677.06 | W186: 129474.72 | X186: 129276.73 | Y186: 129098.83 | Z186: 128923.18 | AA186: 128760.68 | AB186: 128607.71 | AC186: 128397.22 | AD186: 128196.71 | AE186: 128018.61 | AF186: 127858.83 | AG186: 127680.17 | AH186: 127540.21 | AI186: 127421.54 | AJ186: 127260 | AK186: 127144.98 | AL186: 127032.69 | AM186: 126962.72 | AN186: 126925.15 | AO186: 126892.11 | AP186: 126865.8 | AQ186: 126851.75 | AR186: 126845.14 | AS186: 126837.56 | AT186: 126835.71 | AU186: 126832.12 | AV186: 126830.49 | AW186: 126829.82 | AX186: 126826.24 | AY186: 126823.56 | AZ186: 126816.08
S187: Figure 9c | T187: Élevé | V187: =$V$181-V184 -> 876896.31 | W187: 877583.25 | X187: 878226.71 | Y187: 878788.82 | Z187: 879348.09 | AA187: 879854.81 | AB187: 880366.2 | AC187: 881049.61 | AD187: 881676.02 | AE187: 882227.74 | AF187: 882715.37 | AG187: 883298.63 | AH187: 883755.49 | AI187: 884127.63 | AJ187: 884659.08 | AK187: 885041.43 | AL187: 885412.96 | AM187: 885645.76 | AN187: 885766.8 | AO187: 885876.23 | AP187: 885962.18 | AQ187: 886008.98 | AR187: 886032.02 | AS187: 886058.23 | AT187: 886064.38 | AU187: 886076.68 | AV187: 886082.37 | AW187: 886084.65 | AX187: 886096.46 | AY187: 886105.67 | AZ187: 886131.86
U199: Période | V199: P0 | W199: P1 | X199: P2 | Y199: P3 | Z199: P4 | AA199: P5 | AB199: P6 | AC199: P7 | AD199: P8 | AE199: P9 | AF199: P10 | AG199: P11 | AH199: P12 | AI199: P13 | AJ199: P14 | AK199: P15 | AL199: P16 | AM199: P17 | AN199: P18 | AO199: P19 | AP199: P20 | AQ199: P21 | AR199: P22 | AS199: P23 | AT199: P24 | AU199: P25 | AV199: P26 | AW199: P27 | AX199: P28 | AY199: P29 | AZ199: P30
U200: Axe des "X" Fin de période | V200: 2018 | W200: 2023 | X200: 2028 | Y200: 2033 | Z200: 2038 | AA200: 2043 | AB200: 2048 | AC200: 2053 | AD200: 2058 | AE200: 2063 | AF200: 2068 | AG200: 2073 | AH200: 2078 | AI200: 2083 | AJ200: 2088 | AK200: 2093 | AL200: 2098 | AM200: 2103 | AN200: 2108 | AO200: 2113 | AP200: 2118 | AQ200: 2123 | AR200: 2128 | AS200: 2133 | AT200: 2138 | AU200: 2143 | AV200: 2148 | AW200: 2153 | AX200: 2158 | AY200: 2163 | AZ200: 2168
U201: Colonne | V201: 6 | W201: 7 | X201: 8 | Y201: 9 | Z201: 10 | AA201: 11 | AB201: 12 | AC201: 13 | AD201: 14 | AE201: 15 | AF201: 16 | AG201: 17 | AH201: 18 | AI201: 19 | AJ201: 20 | AK201: 21 | AL201: 22 | AM201: 23 | AN201: 24 | AO201: 25 | AP201: 26 | AQ201: 27 | AR201: 28 | AS201: 29 | AT201: 30 | AU201: 31 | AV201: 32 | AW201: 33 | AX201: 34 | AY201: 35 | AZ201: 36
B202: Figure 10a Évolution de la superficie selon le type de couvert | S202: =LEFT(B$202,10) -> Figure 10a | U202: OSUPINC
S203: Figure 10a | U203: Résineux | V203: =SUM(V214,V220,V221,V222,V224,V225) -> 632285.3 | W203: =SUM(W214,W220,W221,W222,W224,W225) -> 624350.56 | X203: 619744.84 | Y203: 611711.04 | Z203: 605064.22 | AA203: 597447.08 | AB203: 590401.47 | AC203: 583034.71 | AD203: 568299.23 | AE203: 556623.15 | AF203: 544533.32 | AG203: 537235.95 | AH203: 531895.54 | AI203: 529071.97 | AJ203: 526174.67 | AK203: 523584.29 | AL203: 521977.04 | AM203: 517221.47 | AN203: 516555.78 | AO203: 514194.62 | AP203: 511590.79 | AQ203: 513033.06 | AR203: 513425.98 | AS203: 511779.4 | AT203: 511218.43 | AU203: 510580.17 | AV203: 512247.02 | AW203: 511074.27 | AX203: 509594.51 | AY203: 511580.07 | AZ203: 515920.72
S204: Figure 10a | U204: Mixtes résineux | V204: =V223 -> 97708.5 | W204: =W223 -> 103960.02 | X204: 108305.05 | Y204: 115745.77 | Z204: 120953.32 | AA204: 128019.98 | AB204: 134216.54 | AC204: 139911.61 | AD204: 152753.23 | AE204: 162813.83 | AF204: 174061.49 | AG204: 180088.65 | AH204: 184843.76 | AI204: 186683.45 | AJ204: 188531.48 | AK204: 190160.96 | AL204: 191076.88 | AM204: 196901.8 | AN204: 198801.22 | AO204: 201785.06 | AP204: 203659.58 | AQ204: 201882.85 | AR204: 200430.87 | AS204: 200583 | AT204: 200720.25 | AU204: 200705.11 | AV204: 199002.11 | AW204: 198178.59 | AX204: 199104.9 | AY204: 196949.93 | AZ204: 192677.99
S205: Figure 10a | U205: Mixtes feuillus intolérants | V205: =V213+V219 -> 84026.4 | W205: =W213+W219 -> 83479.04 | X205: =X213+X219 -> 80413.75 | Y205: =Y213+Y219 -> 78152.25 | Z205: 76742.34 | AA205: 74907.74 | AB205: 73732.89 | AC205: 70615.8 | AD205: 69982.97 | AE205: 69831.17 | AF205: 69416.96 | AG205: 69127.85 | AH205: 68532.25 | AI205: 68385.24 | AJ205: 64598.03 | AK205: 61715.5 | AL205: 58049.15 | AM205: 53246.35 | AN205: 51576.49 | AO205: 50528.31 | AP205: 50994.9 | AQ205: 51229.34 | AR205: 52222.3 | AS205: 53641.04 | AT205: 54046.22 | AU205: 54663.86 | AV205: 54683.72 | AW205: 56673.36 | AX205: 57190.98 | AY205: 57444.03 | AZ205: 57482.46
S206: Figure 10a | U206: Mixtes feuillus tolérants | V206: =V217 -> 4264.9 | W206: =W217 -> 4264.9 | X206: 4264.9 | Y206: 4264.9 | Z206: 4264.9 | AA206: 4264.9 | AB206: 4258 | AC206: 4253.62 | AD206: 4202.75 | AE206: 4162.49 | AF206: 4134.07 | AG206: 4134.07 | AH206: 4127.4 | AI206: 4116.17 | AJ206: 4084.11 | AK206: 4056.46 | AL206: 4056.46 | AM206: 4056.46 | AN206: 4056.46 | AO206: 4056.46 | AP206: 4056.07 | AQ206: 4056.07 | AR206: 4056.07 | AS206: 4056.07 | AT206: 4056.07 | AU206: 4055.92 | AV206: 4055.92 | AW206: 4055.92 | AX206: 4055.92 | AY206: 4055.92 | AZ206: 4055.92
S207: Figure 10a | U207: Feuillus intolérants | V207: =V212+V215+V218 -> 91204.9 | W207: =W212+W215+W218 -> 91412.03 | X207: =X212+X215+X218 -> 92758.17 | Y207: 93833.68 | Z207: 94926.44 | AA207: 95686.42 | AB207: 96187.55 | AC207: 98875.83 | AD207: 99448.31 | AE207: 99474.84 | AF207: 99161.89 | AG207: 98934.62 | AH207: 98722.63 | AI207: 98677.96 | AJ207: 101931.11 | AK207: 104651.96 | AL207: 107886.74 | AM207: 110920.55 | AN207: 110980.94 | AO207: 111076.06 | AP207: 111076.06 | AQ207: 111035.54 | AR207: 111035.54 | AS207: 111035.54 | AT207: 111035.54 | AU207: 111035.54 | AV207: 111035.54 | AW207: 111035.54 | AX207: 111035.54 | AY207: 110925.06 | AZ207: 110743.13
S208: Figure 10a | U208: Feuillus tolérants | V208: =V216 -> 0 | W208: =W216 -> 0 | X208: 0 | Y208: 0 | Z208: 0 | AA208: 0 | AB208: 0 | AC208: 0 | AD208: 0 | AE208: 0 | AF208: 0 | AG208: 0 | AH208: 0 | AI208: 0 | AJ208: 0 | AK208: 0 | AL208: 0 | AM208: 0 | AN208: 0 | AO208: 0 | AP208: 0 | AQ208: 0 | AR208: 0 | AS208: 0 | AT208: 0 | AU208: 0 | AV208: 0 | AW208: 0 | AX208: 0 | AY208: 0 | AZ208: 0
S209: Figure 10a | U209: Total | V209: =SUM(V203:V208) -> 909490 | W209: =SUM(W203:W208) -> 907466.55 | X209: =SUM(X203:X208) -> 905486.71 | Y209: 903707.64 | Z209: 901951.22 | AA209: 900326.12 | AB209: 898796.45 | AC209: 896691.57 | AD209: 894686.49 | AE209: 892905.48 | AF209: 891307.73 | AG209: 889521.14 | AH209: 888121.58 | AI209: 886934.79 | AJ209: 885319.4 | AK209: 884169.17 | AL209: 883046.27 | AM209: 882346.63 | AN209: 881970.89 | AO209: 881640.51 | AP209: 881377.4 | AQ209: 881236.86 | AR209: 881170.76 | AS209: 881095.05 | AT209: 881076.51 | AU209: 881040.6 | AV209: 881024.31 | AW209: 881017.68 | AX209: 880981.85 | AY209: 880955.01 | AZ209: 880880.22
S210: Figure 10a
S211: Figure 10a
S212: Figure 10a | T212: Bétulaies blanches | U212: (FCTYF_BOP) | V212: =VLOOKUP($U$202&$U212,GTYF!$C:$AP,V$201,FALSE) -> 32658.4 | W212: =VLOOKUP($U$202&$U212,GTYF!$C:$AP,W$201,FALSE) -> 32598.28 | X212: =VLOOKUP($U$202&$U212,GTYF!$C:$AP,X$201,FALSE) -> 32463.53 | Y212: =VLOOKUP($U$202&$U212,GTYF!$C:$AP,Y$201,FALSE) -> 32339.38 | Z212: =VLOOKUP($U$202&$U212,GTYF!$C:$AP,Z$201,FALSE) -> 32227.4 | AA212: =VLOOKUP($U$202&$U212,GTYF!$C:$AP,AA$201,FALSE) -> 32153.98 | AB212: =VLOOKUP($U$202&$U212,GTYF!$C:$AP,AB$201,FALSE) -> 31981.49 | AC212: =VLOOKUP($U$202&$U212,GTYF!$C:$AP,AC$201,FALSE) -> 31886.2 | AD212: =VLOOKUP($U$202&$U212,GTYF!$C:$AP,AD$201,FALSE) -> 31851.45 | AE212: =VLOOKUP($U$202&$U212,GTYF!$C:$AP,AE$201,FALSE) -> 31837.59 | AF212: =VLOOKUP($U$202&$U212,GTYF!$C:$AP,AF$201,FALSE) -> 31798.89 | AG212: =VLOOKUP($U$202&$U212,GTYF!$C:$AP,AG$201,FALSE) -> 31764.18 | AH212: =VLOOKUP($U$202&$U212,GTYF!$C:$AP,AH$201,FALSE) -> 31735.55 | AI212: =VLOOKUP($U$202&$U212,GTYF!$C:$AP,AI$201,FALSE) -> 31516.35 | AJ212: =VLOOKUP($U$202&$U212,GTYF!$C:$AP,AJ$201,FALSE) -> 31395.94 | AK212: =VLOOKUP($U$202&$U212,GTYF!$C:$AP,AK$201,FALSE) -> 31252.85 | AL212: =VLOOKUP($U$202&$U212,GTYF!$C:$AP,AL$201,FALSE) -> 31237.21 | AM212: =VLOOKUP($U$202&$U212,GTYF!$C:$AP,AM$201,FALSE) -> 31217.2 | AN212: =VLOOKUP($U$202&$U212,GTYF!$C:$AP,AN$201,FALSE) -> 31217.2 | AO212: =VLOOKUP($U$202&$U212,GTYF!$C:$AP,AO$201,FALSE) -> 31217.2 | AP212: =VLOOKUP($U$202&$U212,GTYF!$C:$AP,AP$201,FALSE) -> 31217.2 | AQ212: =VLOOKUP($U$202&$U212,GTYF!$C:$AP,AQ$201,FALSE) -> 31191.46 | AR212: =VLOOKUP($U$202&$U212,GTYF!$C:$AP,AR$201,FALSE) -> 31191.46 | AS212: =VLOOKUP($U$202&$U212,GTYF!$C:$AP,AS$201,FALSE) -> 31191.46 | AT212: =VLOOKUP($U$202&$U212,GTYF!$C:$AP,AT$201,FALSE) -> 31191.46 | AU212: =VLOOKUP($U$202&$U212,GTYF!$C:$AP,AU$201,FALSE) -> 31191.46 | AV212: =VLOOKUP($U$202&$U212,GTYF!$C:$AP,AV$201,FALSE) -> 31191.46 | AW212: =VLOOKUP($U$202&$U212,GTYF!$C:$AP,AW$201,FALSE) -> 31191.46 | AX212: =VLOOKUP($U$202&$U212,GTYF!$C:$AP,AX$201,FALSE) -> 31191.46 | AY212: =VLOOKUP($U$202&$U212,GTYF!$C:$AP,AY$201,FALSE) -> 31191.46 | AZ212: =VLOOKUP($U$202&$U212,GTYF!$C:$AP,AZ$201,FALSE) -> 31191.46
S213: Figure 10a | T213: Bétulaies blanches à résineux | U213: (FCTYF_BOPR) | V213: =VLOOKUP($U$202&$U213,GTYF!$C:$AP,V$201,FALSE) -> 38812.9 | W213: =VLOOKUP($U$202&$U213,GTYF!$C:$AP,W$201,FALSE) -> 38712.42 | X213: =VLOOKUP($U$202&$U213,GTYF!$C:$AP,X$201,FALSE) -> 37429.56 | Y213: =VLOOKUP($U$202&$U213,GTYF!$C:$AP,Y$201,FALSE) -> 36745.29 | Z213: =VLOOKUP($U$202&$U213,GTYF!$C:$AP,Z$201,FALSE) -> 36936.93 | AA213: =VLOOKUP($U$202&$U213,GTYF!$C:$AP,AA$201,FALSE) -> 36541.59 | AB213: =VLOOKUP($U$202&$U213,GTYF!$C:$AP,AB$201,FALSE) -> 36284.75 | AC213: =VLOOKUP($U$202&$U213,GTYF!$C:$AP,AC$201,FALSE) -> 36555.22 | AD213: =VLOOKUP($U$202&$U213,GTYF!$C:$AP,AD$201,FALSE) -> 37422.36 | AE213: =VLOOKUP($U$202&$U213,GTYF!$C:$AP,AE$201,FALSE) -> 37788.96 | AF213: =VLOOKUP($U$202&$U213,GTYF!$C:$AP,AF$201,FALSE) -> 37743.84 | AG213: =VLOOKUP($U$202&$U213,GTYF!$C:$AP,AG$201,FALSE) -> 37697.45 | AH213: =VLOOKUP($U$202&$U213,GTYF!$C:$AP,AH$201,FALSE) -> 38467.68 | AI213: =VLOOKUP($U$202&$U213,GTYF!$C:$AP,AI$201,FALSE) -> 38562.84 | AJ213: =VLOOKUP($U$202&$U213,GTYF!$C:$AP,AJ$201,FALSE) -> 38528.21 | AK213: =VLOOKUP($U$202&$U213,GTYF!$C:$AP,AK$201,FALSE) -> 38541.56 | AL213: =VLOOKUP($U$202&$U213,GTYF!$C:$AP,AL$201,FALSE) -> 38613.86 | AM213: =VLOOKUP($U$202&$U213,GTYF!$C:$AP,AM$201,FALSE) -> 36985.43 | AN213: =VLOOKUP($U$202&$U213,GTYF!$C:$AP,AN$201,FALSE) -> 35353.35 | AO213: =VLOOKUP($U$202&$U213,GTYF!$C:$AP,AO$201,FALSE) -> 34396.8 | AP213: =VLOOKUP($U$202&$U213,GTYF!$C:$AP,AP$201,FALSE) -> 34421.25 | AQ213: =VLOOKUP($U$202&$U213,GTYF!$C:$AP,AQ$201,FALSE) -> 34672.91 | AR213: =VLOOKUP($U$202&$U213,GTYF!$C:$AP,AR$201,FALSE) -> 35399.9 | AS213: =VLOOKUP($U$202&$U213,GTYF!$C:$AP,AS$201,FALSE) -> 36181.37 | AT213: =VLOOKUP($U$202&$U213,GTYF!$C:$AP,AT$201,FALSE) -> 36371.48 | AU213: =VLOOKUP($U$202&$U213,GTYF!$C:$AP,AU$201,FALSE) -> 36648.76 | AV213: =VLOOKUP($U$202&$U213,GTYF!$C:$AP,AV$201,FALSE) -> 36648.76 | AW213: =VLOOKUP($U$202&$U213,GTYF!$C:$AP,AW$201,FALSE) -> 37369.21 | AX213: =VLOOKUP($U$202&$U213,GTYF!$C:$AP,AX$201,FALSE) -> 37873.36 | AY213: =VLOOKUP($U$202&$U213,GTYF!$C:$AP,AY$201,FALSE) -> 37820.35 | AZ213: =VLOOKUP($U$202&$U213,GTYF!$C:$AP,AZ$201,FALSE) -> 37705.78
S214: Figure 10a | T214: Pessières | U214: (FCTYF_EPX) | V214: =VLOOKUP($U$202&$U214,GTYF!$C:$AP,V$201,FALSE) -> 383913.1 | W214: =VLOOKUP($U$202&$U214,GTYF!$C:$AP,W$201,FALSE) -> 380858.87 | X214: =VLOOKUP($U$202&$U214,GTYF!$C:$AP,X$201,FALSE) -> 377953.97 | Y214: =VLOOKUP($U$202&$U214,GTYF!$C:$AP,Y$201,FALSE) -> 372053.34 | Z214: =VLOOKUP($U$202&$U214,GTYF!$C:$AP,Z$201,FALSE) -> 366230.64 | AA214: =VLOOKUP($U$202&$U214,GTYF!$C:$AP,AA$201,FALSE) -> 362981.32 | AB214: =VLOOKUP($U$202&$U214,GTYF!$C:$AP,AB$201,FALSE) -> 358372.85 | AC214: =VLOOKUP($U$202&$U214,GTYF!$C:$AP,AC$201,FALSE) -> 354663.83 | AD214: =VLOOKUP($U$202&$U214,GTYF!$C:$AP,AD$201,FALSE) -> 348000.05 | AE214: =VLOOKUP($U$202&$U214,GTYF!$C:$AP,AE$201,FALSE) -> 343829.08 | AF214: =VLOOKUP($U$202&$U214,GTYF!$C:$AP,AF$201,FALSE) -> 336841.67 | AG214: =VLOOKUP($U$202&$U214,GTYF!$C:$AP,AG$201,FALSE) -> 332138.71 | AH214: =VLOOKUP($U$202&$U214,GTYF!$C:$AP,AH$201,FALSE) -> 329529.18 | AI214: =VLOOKUP($U$202&$U214,GTYF!$C:$AP,AI$201,FALSE) -> 327381.54 | AJ214: =VLOOKUP($U$202&$U214,GTYF!$C:$AP,AJ$201,FALSE) -> 325735.44 | AK214: =VLOOKUP($U$202&$U214,GTYF!$C:$AP,AK$201,FALSE) -> 323992.56 | AL214: =VLOOKUP($U$202&$U214,GTYF!$C:$AP,AL$201,FALSE) -> 323437.86 | AM214: =VLOOKUP($U$202&$U214,GTYF!$C:$AP,AM$201,FALSE) -> 320408.52 | AN214: =VLOOKUP($U$202&$U214,GTYF!$C:$AP,AN$201,FALSE) -> 320986.9 | AO214: =VLOOKUP($U$202&$U214,GTYF!$C:$AP,AO$201,FALSE) -> 319994.24 | AP214: =VLOOKUP($U$202&$U214,GTYF!$C:$AP,AP$201,FALSE) -> 318624.42 | AQ214: =VLOOKUP($U$202&$U214,GTYF!$C:$AP,AQ$201,FALSE) -> 319467.46 | AR214: =VLOOKUP($U$202&$U214,GTYF!$C:$AP,AR$201,FALSE) -> 319588.47 | AS214: =VLOOKUP($U$202&$U214,GTYF!$C:$AP,AS$201,FALSE) -> 319289.1 | AT214: =VLOOKUP($U$202&$U214,GTYF!$C:$AP,AT$201,FALSE) -> 319483.31 | AU214: =VLOOKUP($U$202&$U214,GTYF!$C:$AP,AU$201,FALSE) -> 319140.28 | AV214: =VLOOKUP($U$202&$U214,GTYF!$C:$AP,AV$201,FALSE) -> 320287.61 | AW214: =VLOOKUP($U$202&$U214,GTYF!$C:$AP,AW$201,FALSE) -> 319105.7 | AX214: =VLOOKUP($U$202&$U214,GTYF!$C:$AP,AX$201,FALSE) -> 315709.39 | AY214: =VLOOKUP($U$202&$U214,GTYF!$C:$AP,AY$201,FALSE) -> 314349.86 | AZ214: =VLOOKUP($U$202&$U214,GTYF!$C:$AP,AZ$201,FALSE) -> 318101.3
S215: Figure 10a | T215: Érablières rouges | U215: (FCTYF_ERO) | V215: =VLOOKUP($U$202&$U215,GTYF!$C:$AP,V$201,FALSE) -> 0 | W215: =VLOOKUP($U$202&$U215,GTYF!$C:$AP,W$201,FALSE) -> 0 | X215: =VLOOKUP($U$202&$U215,GTYF!$C:$AP,X$201,FALSE) -> 0 | Y215: =VLOOKUP($U$202&$U215,GTYF!$C:$AP,Y$201,FALSE) -> 0 | Z215: =VLOOKUP($U$202&$U215,GTYF!$C:$AP,Z$201,FALSE) -> 0 | AA215: =VLOOKUP($U$202&$U215,GTYF!$C:$AP,AA$201,FALSE) -> 0 | AB215: =VLOOKUP($U$202&$U215,GTYF!$C:$AP,AB$201,FALSE) -> 0 | AC215: =VLOOKUP($U$202&$U215,GTYF!$C:$AP,AC$201,FALSE) -> 0 | AD215: =VLOOKUP($U$202&$U215,GTYF!$C:$AP,AD$201,FALSE) -> 0 | AE215: =VLOOKUP($U$202&$U215,GTYF!$C:$AP,AE$201,FALSE) -> 0 | AF215: =VLOOKUP($U$202&$U215,GTYF!$C:$AP,AF$201,FALSE) -> 0 | AG215: =VLOOKUP($U$202&$U215,GTYF!$C:$AP,AG$201,FALSE) -> 0 | AH215: =VLOOKUP($U$202&$U215,GTYF!$C:$AP,AH$201,FALSE) -> 0 | AI215: =VLOOKUP($U$202&$U215,GTYF!$C:$AP,AI$201,FALSE) -> 0 | AJ215: =VLOOKUP($U$202&$U215,GTYF!$C:$AP,AJ$201,FALSE) -> 0 | AK215: =VLOOKUP($U$202&$U215,GTYF!$C:$AP,AK$201,FALSE) -> 0 | AL215: =VLOOKUP($U$202&$U215,GTYF!$C:$AP,AL$201,FALSE) -> 0 | AM215: =VLOOKUP($U$202&$U215,GTYF!$C:$AP,AM$201,FALSE) -> 0 | AN215: =VLOOKUP($U$202&$U215,GTYF!$C:$AP,AN$201,FALSE) -> 0 | AO215: =VLOOKUP($U$202&$U215,GTYF!$C:$AP,AO$201,FALSE) -> 0 | AP215: =VLOOKUP($U$202&$U215,GTYF!$C:$AP,AP$201,FALSE) -> 0 | AQ215: =VLOOKUP($U$202&$U215,GTYF!$C:$AP,AQ$201,FALSE) -> 0 | AR215: =VLOOKUP($U$202&$U215,GTYF!$C:$AP,AR$201,FALSE) -> 0 | AS215: =VLOOKUP($U$202&$U215,GTYF!$C:$AP,AS$201,FALSE) -> 0 | AT215: =VLOOKUP($U$202&$U215,GTYF!$C:$AP,AT$201,FALSE) -> 0 | AU215: =VLOOKUP($U$202&$U215,GTYF!$C:$AP,AU$201,FALSE) -> 0 | AV215: =VLOOKUP($U$202&$U215,GTYF!$C:$AP,AV$201,FALSE) -> 0 | AW215: =VLOOKUP($U$202&$U215,GTYF!$C:$AP,AW$201,FALSE) -> 0 | AX215: =VLOOKUP($U$202&$U215,GTYF!$C:$AP,AX$201,FALSE) -> 0 | AY215: =VLOOKUP($U$202&$U215,GTYF!$C:$AP,AY$201,FALSE) -> 0 | AZ215: =VLOOKUP($U$202&$U215,GTYF!$C:$AP,AZ$201,FALSE) -> 0
S216: Figure 10a | T216: Feuillus tolérants | U216: (FCTYF_FT) | V216: =VLOOKUP($U$202&$U216,GTYF!$C:$AP,V$201,FALSE) -> 0 | W216: =VLOOKUP($U$202&$U216,GTYF!$C:$AP,W$201,FALSE) -> 0 | X216: =VLOOKUP($U$202&$U216,GTYF!$C:$AP,X$201,FALSE) -> 0 | Y216: =VLOOKUP($U$202&$U216,GTYF!$C:$AP,Y$201,FALSE) -> 0 | Z216: =VLOOKUP($U$202&$U216,GTYF!$C:$AP,Z$201,FALSE) -> 0 | AA216: =VLOOKUP($U$202&$U216,GTYF!$C:$AP,AA$201,FALSE) -> 0 | AB216: =VLOOKUP($U$202&$U216,GTYF!$C:$AP,AB$201,FALSE) -> 0 | AC216: =VLOOKUP($U$202&$U216,GTYF!$C:$AP,AC$201,FALSE) -> 0 | AD216: =VLOOKUP($U$202&$U216,GTYF!$C:$AP,AD$201,FALSE) -> 0 | AE216: =VLOOKUP($U$202&$U216,GTYF!$C:$AP,AE$201,FALSE) -> 0 | AF216: =VLOOKUP($U$202&$U216,GTYF!$C:$AP,AF$201,FALSE) -> 0 | AG216: =VLOOKUP($U$202&$U216,GTYF!$C:$AP,AG$201,FALSE) -> 0 | AH216: =VLOOKUP($U$202&$U216,GTYF!$C:$AP,AH$201,FALSE) -> 0 | AI216: =VLOOKUP($U$202&$U216,GTYF!$C:$AP,AI$201,FALSE) -> 0 | AJ216: =VLOOKUP($U$202&$U216,GTYF!$C:$AP,AJ$201,FALSE) -> 0 | AK216: =VLOOKUP($U$202&$U216,GTYF!$C:$AP,AK$201,FALSE) -> 0 | AL216: =VLOOKUP($U$202&$U216,GTYF!$C:$AP,AL$201,FALSE) -> 0 | AM216: =VLOOKUP($U$202&$U216,GTYF!$C:$AP,AM$201,FALSE) -> 0 | AN216: =VLOOKUP($U$202&$U216,GTYF!$C:$AP,AN$201,FALSE) -> 0 | AO216: =VLOOKUP($U$202&$U216,GTYF!$C:$AP,AO$201,FALSE) -> 0 | AP216: =VLOOKUP($U$202&$U216,GTYF!$C:$AP,AP$201,FALSE) -> 0 | AQ216: =VLOOKUP($U$202&$U216,GTYF!$C:$AP,AQ$201,FALSE) -> 0 | AR216: =VLOOKUP($U$202&$U216,GTYF!$C:$AP,AR$201,FALSE) -> 0 | AS216: =VLOOKUP($U$202&$U216,GTYF!$C:$AP,AS$201,FALSE) -> 0 | AT216: =VLOOKUP($U$202&$U216,GTYF!$C:$AP,AT$201,FALSE) -> 0 | AU216: =VLOOKUP($U$202&$U216,GTYF!$C:$AP,AU$201,FALSE) -> 0 | AV216: =VLOOKUP($U$202&$U216,GTYF!$C:$AP,AV$201,FALSE) -> 0 | AW216: =VLOOKUP($U$202&$U216,GTYF!$C:$AP,AW$201,FALSE) -> 0 | AX216: =VLOOKUP($U$202&$U216,GTYF!$C:$AP,AX$201,FALSE) -> 0 | AY216: =VLOOKUP($U$202&$U216,GTYF!$C:$AP,AY$201,FALSE) -> 0 | AZ216: =VLOOKUP($U$202&$U216,GTYF!$C:$AP,AZ$201,FALSE) -> 0
S217: Figure 10a | T217: Feuillus tolérants à résineux | U217: (FCTYF_FTR) | V217: =VLOOKUP($U$202&$U217,GTYF!$C:$AP,V$201,FALSE) -> 4264.9 | W217: =VLOOKUP($U$202&$U217,GTYF!$C:$AP,W$201,FALSE) -> 4264.9 | X217: =VLOOKUP($U$202&$U217,GTYF!$C:$AP,X$201,FALSE) -> 4264.9 | Y217: =VLOOKUP($U$202&$U217,GTYF!$C:$AP,Y$201,FALSE) -> 4264.9 | Z217: =VLOOKUP($U$202&$U217,GTYF!$C:$AP,Z$201,FALSE) -> 4264.9 | AA217: =VLOOKUP($U$202&$U217,GTYF!$C:$AP,AA$201,FALSE) -> 4264.9 | AB217: =VLOOKUP($U$202&$U217,GTYF!$C:$AP,AB$201,FALSE) -> 4258 | AC217: =VLOOKUP($U$202&$U217,GTYF!$C:$AP,AC$201,FALSE) -> 4253.62 | AD217: =VLOOKUP($U$202&$U217,GTYF!$C:$AP,AD$201,FALSE) -> 4202.75 | AE217: =VLOOKUP($U$202&$U217,GTYF!$C:$AP,AE$201,FALSE) -> 4162.49 | AF217: =VLOOKUP($U$202&$U217,GTYF!$C:$AP,AF$201,FALSE) -> 4134.07 | AG217: =VLOOKUP($U$202&$U217,GTYF!$C:$AP,AG$201,FALSE) -> 4134.07 | AH217: =VLOOKUP($U$202&$U217,GTYF!$C:$AP,AH$201,FALSE) -> 4127.4 | AI217: =VLOOKUP($U$202&$U217,GTYF!$C:$AP,AI$201,FALSE) -> 4116.17 | AJ217: =VLOOKUP($U$202&$U217,GTYF!$C:$AP,AJ$201,FALSE) -> 4084.11 | AK217: =VLOOKUP($U$202&$U217,GTYF!$C:$AP,AK$201,FALSE) -> 4056.46 | AL217: =VLOOKUP($U$202&$U217,GTYF!$C:$AP,AL$201,FALSE) -> 4056.46 | AM217: =VLOOKUP($U$202&$U217,GTYF!$C:$AP,AM$201,FALSE) -> 4056.46 | AN217: =VLOOKUP($U$202&$U217,GTYF!$C:$AP,AN$201,FALSE) -> 4056.46 | AO217: =VLOOKUP($U$202&$U217,GTYF!$C:$AP,AO$201,FALSE) -> 4056.46 | AP217: =VLOOKUP($U$202&$U217,GTYF!$C:$AP,AP$201,FALSE) -> 4056.07 | AQ217: =VLOOKUP($U$202&$U217,GTYF!$C:$AP,AQ$201,FALSE) -> 4056.07 | AR217: =VLOOKUP($U$202&$U217,GTYF!$C:$AP,AR$201,FALSE) -> 4056.07 | AS217: =VLOOKUP($U$202&$U217,GTYF!$C:$AP,AS$201,FALSE) -> 4056.07 | AT217: =VLOOKUP($U$202&$U217,GTYF!$C:$AP,AT$201,FALSE) -> 4056.07 | AU217: =VLOOKUP($U$202&$U217,GTYF!$C:$AP,AU$201,FALSE) -> 4055.92 | AV217: =VLOOKUP($U$202&$U217,GTYF!$C:$AP,AV$201,FALSE) -> 4055.92 | AW217: =VLOOKUP($U$202&$U217,GTYF!$C:$AP,AW$201,FALSE) -> 4055.92 | AX217: =VLOOKUP($U$202&$U217,GTYF!$C:$AP,AX$201,FALSE) -> 4055.92 | AY217: =VLOOKUP($U$202&$U217,GTYF!$C:$AP,AY$201,FALSE) -> 4055.92 | AZ217: =VLOOKUP($U$202&$U217,GTYF!$C:$AP,AZ$201,FALSE) -> 4055.92
S218: Figure 10a | T218: Peupleraies | U218: (FCTYF_PEU) | V218: =VLOOKUP($U$202&$U218,GTYF!$C:$AP,V$201,FALSE) -> 58546.5 | W218: =VLOOKUP($U$202&$U218,GTYF!$C:$AP,W$201,FALSE) -> 58813.75 | X218: =VLOOKUP($U$202&$U218,GTYF!$C:$AP,X$201,FALSE) -> 60294.64 | Y218: =VLOOKUP($U$202&$U218,GTYF!$C:$AP,Y$201,FALSE) -> 61494.3 | Z218: =VLOOKUP($U$202&$U218,GTYF!$C:$AP,Z$201,FALSE) -> 62699.04 | AA218: =VLOOKUP($U$202&$U218,GTYF!$C:$AP,AA$201,FALSE) -> 63532.44 | AB218: =VLOOKUP($U$202&$U218,GTYF!$C:$AP,AB$201,FALSE) -> 64206.06 | AC218: =VLOOKUP($U$202&$U218,GTYF!$C:$AP,AC$201,FALSE) -> 66989.63 | AD218: =VLOOKUP($U$202&$U218,GTYF!$C:$AP,AD$201,FALSE) -> 67596.86 | AE218: =VLOOKUP($U$202&$U218,GTYF!$C:$AP,AE$201,FALSE) -> 67637.25 | AF218: =VLOOKUP($U$202&$U218,GTYF!$C:$AP,AF$201,FALSE) -> 67363 | AG218: =VLOOKUP($U$202&$U218,GTYF!$C:$AP,AG$201,FALSE) -> 67170.44 | AH218: =VLOOKUP($U$202&$U218,GTYF!$C:$AP,AH$201,FALSE) -> 66987.08 | AI218: =VLOOKUP($U$202&$U218,GTYF!$C:$AP,AI$201,FALSE) -> 67161.61 | AJ218: =VLOOKUP($U$202&$U218,GTYF!$C:$AP,AJ$201,FALSE) -> 70535.17 | AK218: =VLOOKUP($U$202&$U218,GTYF!$C:$AP,AK$201,FALSE) -> 73399.11 | AL218: =VLOOKUP($U$202&$U218,GTYF!$C:$AP,AL$201,FALSE) -> 76649.53 | AM218: =VLOOKUP($U$202&$U218,GTYF!$C:$AP,AM$201,FALSE) -> 79703.35 | AN218: =VLOOKUP($U$202&$U218,GTYF!$C:$AP,AN$201,FALSE) -> 79763.74 | AO218: =VLOOKUP($U$202&$U218,GTYF!$C:$AP,AO$201,FALSE) -> 79858.86 | AP218: =VLOOKUP($U$202&$U218,GTYF!$C:$AP,AP$201,FALSE) -> 79858.86 | AQ218: =VLOOKUP($U$202&$U218,GTYF!$C:$AP,AQ$201,FALSE) -> 79844.08 | AR218: =VLOOKUP($U$202&$U218,GTYF!$C:$AP,AR$201,FALSE) -> 79844.08 | AS218: =VLOOKUP($U$202&$U218,GTYF!$C:$AP,AS$201,FALSE) -> 79844.08 | AT218: =VLOOKUP($U$202&$U218,GTYF!$C:$AP,AT$201,FALSE) -> 79844.08 | AU218: =VLOOKUP($U$202&$U218,GTYF!$C:$AP,AU$201,FALSE) -> 79844.08 | AV218: =VLOOKUP($U$202&$U218,GTYF!$C:$AP,AV$201,FALSE) -> 79844.08 | AW218: =VLOOKUP($U$202&$U218,GTYF!$C:$AP,AW$201,FALSE) -> 79844.08 | AX218: =VLOOKUP($U$202&$U218,GTYF!$C:$AP,AX$201,FALSE) -> 79844.08 | AY218: =VLOOKUP($U$202&$U218,GTYF!$C:$AP,AY$201,FALSE) -> 79733.6 | AZ218: =VLOOKUP($U$202&$U218,GTYF!$C:$AP,AZ$201,FALSE) -> 79551.67
S219: Figure 10a | T219: Peupleraies à résineux | U219: (FCTYF_PEUR) | V219: =VLOOKUP($U$202&$U219,GTYF!$C:$AP,V$201,FALSE) -> 45213.5 | W219: =VLOOKUP($U$202&$U219,GTYF!$C:$AP,W$201,FALSE) -> 44766.62 | X219: =VLOOKUP($U$202&$U219,GTYF!$C:$AP,X$201,FALSE) -> 42984.19 | Y219: =VLOOKUP($U$202&$U219,GTYF!$C:$AP,Y$201,FALSE) -> 41406.96 | Z219: =VLOOKUP($U$202&$U219,GTYF!$C:$AP,Z$201,FALSE) -> 39805.41 | AA219: =VLOOKUP($U$202&$U219,GTYF!$C:$AP,AA$201,FALSE) -> 38366.15 | AB219: =VLOOKUP($U$202&$U219,GTYF!$C:$AP,AB$201,FALSE) -> 37448.14 | AC219: =VLOOKUP($U$202&$U219,GTYF!$C:$AP,AC$201,FALSE) -> 34060.58 | AD219: =VLOOKUP($U$202&$U219,GTYF!$C:$AP,AD$201,FALSE) -> 32560.61 | AE219: =VLOOKUP($U$202&$U219,GTYF!$C:$AP,AE$201,FALSE) -> 32042.21 | AF219: =VLOOKUP($U$202&$U219,GTYF!$C:$AP,AF$201,FALSE) -> 31673.12 | AG219: =VLOOKUP($U$202&$U219,GTYF!$C:$AP,AG$201,FALSE) -> 31430.4 | AH219: =VLOOKUP($U$202&$U219,GTYF!$C:$AP,AH$201,FALSE) -> 30064.57 | AI219: =VLOOKUP($U$202&$U219,GTYF!$C:$AP,AI$201,FALSE) -> 29822.4 | AJ219: =VLOOKUP($U$202&$U219,GTYF!$C:$AP,AJ$201,FALSE) -> 26069.82 | AK219: =VLOOKUP($U$202&$U219,GTYF!$C:$AP,AK$201,FALSE) -> 23173.94 | AL219: =VLOOKUP($U$202&$U219,GTYF!$C:$AP,AL$201,FALSE) -> 19435.29 | AM219: =VLOOKUP($U$202&$U219,GTYF!$C:$AP,AM$201,FALSE) -> 16260.92 | AN219: =VLOOKUP($U$202&$U219,GTYF!$C:$AP,AN$201,FALSE) -> 16223.14 | AO219: =VLOOKUP($U$202&$U219,GTYF!$C:$AP,AO$201,FALSE) -> 16131.51 | AP219: =VLOOKUP($U$202&$U219,GTYF!$C:$AP,AP$201,FALSE) -> 16573.65 | AQ219: =VLOOKUP($U$202&$U219,GTYF!$C:$AP,AQ$201,FALSE) -> 16556.43 | AR219: =VLOOKUP($U$202&$U219,GTYF!$C:$AP,AR$201,FALSE) -> 16822.4 | AS219: =VLOOKUP($U$202&$U219,GTYF!$C:$AP,AS$201,FALSE) -> 17459.67 | AT219: =VLOOKUP($U$202&$U219,GTYF!$C:$AP,AT$201,FALSE) -> 17674.74 | AU219: =VLOOKUP($U$202&$U219,GTYF!$C:$AP,AU$201,FALSE) -> 18015.1 | AV219: =VLOOKUP($U$202&$U219,GTYF!$C:$AP,AV$201,FALSE) -> 18034.96 | AW219: =VLOOKUP($U$202&$U219,GTYF!$C:$AP,AW$201,FALSE) -> 19304.15 | AX219: =VLOOKUP($U$202&$U219,GTYF!$C:$AP,AX$201,FALSE) -> 19317.62 | AY219: =VLOOKUP($U$202&$U219,GTYF!$C:$AP,AY$201,FALSE) -> 19623.68 | AZ219: =VLOOKUP($U$202&$U219,GTYF!$C:$AP,AZ$201,FALSE) -> 19776.68
S220: Figure 10a | T220: Pinèdes grises | U220: (FCTYF_PIG) | V220: =VLOOKUP($U$202&$U220,GTYF!$C:$AP,V$201,FALSE) -> 13902.7 | W220: =VLOOKUP($U$202&$U220,GTYF!$C:$AP,W$201,FALSE) -> 13902.7 | X220: =VLOOKUP($U$202&$U220,GTYF!$C:$AP,X$201,FALSE) -> 13902.7 | Y220: =VLOOKUP($U$202&$U220,GTYF!$C:$AP,Y$201,FALSE) -> 13859.75 | Z220: =VLOOKUP($U$202&$U220,GTYF!$C:$AP,Z$201,FALSE) -> 13840.65 | AA220: =VLOOKUP($U$202&$U220,GTYF!$C:$AP,AA$201,FALSE) -> 13823 | AB220: =VLOOKUP($U$202&$U220,GTYF!$C:$AP,AB$201,FALSE) -> 13254.42 | AC220: =VLOOKUP($U$202&$U220,GTYF!$C:$AP,AC$201,FALSE) -> 13212.3 | AD220: =VLOOKUP($U$202&$U220,GTYF!$C:$AP,AD$201,FALSE) -> 13168.93 | AE220: =VLOOKUP($U$202&$U220,GTYF!$C:$AP,AE$201,FALSE) -> 13115.99 | AF220: =VLOOKUP($U$202&$U220,GTYF!$C:$AP,AF$201,FALSE) -> 13107.5 | AG220: =VLOOKUP($U$202&$U220,GTYF!$C:$AP,AG$201,FALSE) -> 13075.47 | AH220: =VLOOKUP($U$202&$U220,GTYF!$C:$AP,AH$201,FALSE) -> 13005.6 | AI220: =VLOOKUP($U$202&$U220,GTYF!$C:$AP,AI$201,FALSE) -> 12994.06 | AJ220: =VLOOKUP($U$202&$U220,GTYF!$C:$AP,AJ$201,FALSE) -> 12963.03 | AK220: =VLOOKUP($U$202&$U220,GTYF!$C:$AP,AK$201,FALSE) -> 12935.63 | AL220: =VLOOKUP($U$202&$U220,GTYF!$C:$AP,AL$201,FALSE) -> 12916.97 | AM220: =VLOOKUP($U$202&$U220,GTYF!$C:$AP,AM$201,FALSE) -> 12916.97 | AN220: =VLOOKUP($U$202&$U220,GTYF!$C:$AP,AN$201,FALSE) -> 12916.97 | AO220: =VLOOKUP($U$202&$U220,GTYF!$C:$AP,AO$201,FALSE) -> 12916.97 | AP220: =VLOOKUP($U$202&$U220,GTYF!$C:$AP,AP$201,FALSE) -> 12916.3 | AQ220: =VLOOKUP($U$202&$U220,GTYF!$C:$AP,AQ$201,FALSE) -> 12916.3 | AR220: =VLOOKUP($U$202&$U220,GTYF!$C:$AP,AR$201,FALSE) -> 12903.98 | AS220: =VLOOKUP($U$202&$U220,GTYF!$C:$AP,AS$201,FALSE) -> 12807.18 | AT220: =VLOOKUP($U$202&$U220,GTYF!$C:$AP,AT$201,FALSE) -> 12599.38 | AU220: =VLOOKUP($U$202&$U220,GTYF!$C:$AP,AU$201,FALSE) -> 12421.78 | AV220: =VLOOKUP($U$202&$U220,GTYF!$C:$AP,AV$201,FALSE) -> 12421.78 | AW220: =VLOOKUP($U$202&$U220,GTYF!$C:$AP,AW$201,FALSE) -> 12421.78 | AX220: =VLOOKUP($U$202&$U220,GTYF!$C:$AP,AX$201,FALSE) -> 12421.78 | AY220: =VLOOKUP($U$202&$U220,GTYF!$C:$AP,AY$201,FALSE) -> 12114.27 | AZ220: =VLOOKUP($U$202&$U220,GTYF!$C:$AP,AZ$201,FALSE) -> 11521.9
S221: Figure 10a | T221: Pinèdes blanches | U221: (FCTYF_PIN) | V221: =VLOOKUP($U$202&$U221,GTYF!$C:$AP,V$201,FALSE) -> 0 | W221: =VLOOKUP($U$202&$U221,GTYF!$C:$AP,W$201,FALSE) -> 0 | X221: =VLOOKUP($U$202&$U221,GTYF!$C:$AP,X$201,FALSE) -> 0 | Y221: =VLOOKUP($U$202&$U221,GTYF!$C:$AP,Y$201,FALSE) -> 0 | Z221: =VLOOKUP($U$202&$U221,GTYF!$C:$AP,Z$201,FALSE) -> 0 | AA221: =VLOOKUP($U$202&$U221,GTYF!$C:$AP,AA$201,FALSE) -> 0 | AB221: =VLOOKUP($U$202&$U221,GTYF!$C:$AP,AB$201,FALSE) -> 0 | AC221: =VLOOKUP($U$202&$U221,GTYF!$C:$AP,AC$201,FALSE) -> 0 | AD221: =VLOOKUP($U$202&$U221,GTYF!$C:$AP,AD$201,FALSE) -> 0 | AE221: =VLOOKUP($U$202&$U221,GTYF!$C:$AP,AE$201,FALSE) -> 0 | AF221: =VLOOKUP($U$202&$U221,GTYF!$C:$AP,AF$201,FALSE) -> 0 | AG221: =VLOOKUP($U$202&$U221,GTYF!$C:$AP,AG$201,FALSE) -> 0 | AH221: =VLOOKUP($U$202&$U221,GTYF!$C:$AP,AH$201,FALSE) -> 0 | AI221: =VLOOKUP($U$202&$U221,GTYF!$C:$AP,AI$201,FALSE) -> 0 | AJ221: =VLOOKUP($U$202&$U221,GTYF!$C:$AP,AJ$201,FALSE) -> 0 | AK221: =VLOOKUP($U$202&$U221,GTYF!$C:$AP,AK$201,FALSE) -> 0 | AL221: =VLOOKUP($U$202&$U221,GTYF!$C:$AP,AL$201,FALSE) -> 0 | AM221: =VLOOKUP($U$202&$U221,GTYF!$C:$AP,AM$201,FALSE) -> 0 | AN221: =VLOOKUP($U$202&$U221,GTYF!$C:$AP,AN$201,FALSE) -> 0 | AO221: =VLOOKUP($U$202&$U221,GTYF!$C:$AP,AO$201,FALSE) -> 0 | AP221: =VLOOKUP($U$202&$U221,GTYF!$C:$AP,AP$201,FALSE) -> 0 | AQ221: =VLOOKUP($U$202&$U221,GTYF!$C:$AP,AQ$201,FALSE) -> 0 | AR221: =VLOOKUP($U$202&$U221,GTYF!$C:$AP,AR$201,FALSE) -> 0 | AS221: =VLOOKUP($U$202&$U221,GTYF!$C:$AP,AS$201,FALSE) -> 0 | AT221: =VLOOKUP($U$202&$U221,GTYF!$C:$AP,AT$201,FALSE) -> 0 | AU221: =VLOOKUP($U$202&$U221,GTYF!$C:$AP,AU$201,FALSE) -> 0 | AV221: =VLOOKUP($U$202&$U221,GTYF!$C:$AP,AV$201,FALSE) -> 0 | AW221: =VLOOKUP($U$202&$U221,GTYF!$C:$AP,AW$201,FALSE) -> 0 | AX221: =VLOOKUP($U$202&$U221,GTYF!$C:$AP,AX$201,FALSE) -> 0 | AY221: =VLOOKUP($U$202&$U221,GTYF!$C:$AP,AY$201,FALSE) -> 0 | AZ221: =VLOOKUP($U$202&$U221,GTYF!$C:$AP,AZ$201,FALSE) -> 0
S222: Figure 10a | T222: Prucheraies | U222: (FCTYF_PRU) | V222: =VLOOKUP($U$202&$U222,GTYF!$C:$AP,V$201,FALSE) -> 0 | W222: =VLOOKUP($U$202&$U222,GTYF!$C:$AP,W$201,FALSE) -> 0 | X222: =VLOOKUP($U$202&$U222,GTYF!$C:$AP,X$201,FALSE) -> 0 | Y222: =VLOOKUP($U$202&$U222,GTYF!$C:$AP,Y$201,FALSE) -> 0 | Z222: =VLOOKUP($U$202&$U222,GTYF!$C:$AP,Z$201,FALSE) -> 0 | AA222: =VLOOKUP($U$202&$U222,GTYF!$C:$AP,AA$201,FALSE) -> 0 | AB222: =VLOOKUP($U$202&$U222,GTYF!$C:$AP,AB$201,FALSE) -> 0 | AC222: =VLOOKUP($U$202&$U222,GTYF!$C:$AP,AC$201,FALSE) -> 0 | AD222: =VLOOKUP($U$202&$U222,GTYF!$C:$AP,AD$201,FALSE) -> 0 | AE222: =VLOOKUP($U$202&$U222,GTYF!$C:$AP,AE$201,FALSE) -> 0 | AF222: =VLOOKUP($U$202&$U222,GTYF!$C:$AP,AF$201,FALSE) -> 0 | AG222: =VLOOKUP($U$202&$U222,GTYF!$C:$AP,AG$201,FALSE) -> 0 | AH222: =VLOOKUP($U$202&$U222,GTYF!$C:$AP,AH$201,FALSE) -> 0 | AI222: =VLOOKUP($U$202&$U222,GTYF!$C:$AP,AI$201,FALSE) -> 0 | AJ222: =VLOOKUP($U$202&$U222,GTYF!$C:$AP,AJ$201,FALSE) -> 0 | AK222: =VLOOKUP($U$202&$U222,GTYF!$C:$AP,AK$201,FALSE) -> 0 | AL222: =VLOOKUP($U$202&$U222,GTYF!$C:$AP,AL$201,FALSE) -> 0 | AM222: =VLOOKUP($U$202&$U222,GTYF!$C:$AP,AM$201,FALSE) -> 0 | AN222: =VLOOKUP($U$202&$U222,GTYF!$C:$AP,AN$201,FALSE) -> 0 | AO222: =VLOOKUP($U$202&$U222,GTYF!$C:$AP,AO$201,FALSE) -> 0 | AP222: =VLOOKUP($U$202&$U222,GTYF!$C:$AP,AP$201,FALSE) -> 0 | AQ222: =VLOOKUP($U$202&$U222,GTYF!$C:$AP,AQ$201,FALSE) -> 0 | AR222: =VLOOKUP($U$202&$U222,GTYF!$C:$AP,AR$201,FALSE) -> 0 | AS222: =VLOOKUP($U$202&$U222,GTYF!$C:$AP,AS$201,FALSE) -> 0 | AT222: =VLOOKUP($U$202&$U222,GTYF!$C:$AP,AT$201,FALSE) -> 0 | AU222: =VLOOKUP($U$202&$U222,GTYF!$C:$AP,AU$201,FALSE) -> 0 | AV222: =VLOOKUP($U$202&$U222,GTYF!$C:$AP,AV$201,FALSE) -> 0 | AW222: =VLOOKUP($U$202&$U222,GTYF!$C:$AP,AW$201,FALSE) -> 0 | AX222: =VLOOKUP($U$202&$U222,GTYF!$C:$AP,AX$201,FALSE) -> 0 | AY222: =VLOOKUP($U$202&$U222,GTYF!$C:$AP,AY$201,FALSE) -> 0 | AZ222: =VLOOKUP($U$202&$U222,GTYF!$C:$AP,AZ$201,FALSE) -> 0
S223: Figure 10a | T223: Résineux à feuillus | U223: (FCTYF_RF) | V223: =VLOOKUP($U$202&$U223,GTYF!$C:$AP,V$201,FALSE) -> 97708.5 | W223: =VLOOKUP($U$202&$U223,GTYF!$C:$AP,W$201,FALSE) -> 103960.02 | X223: =VLOOKUP($U$202&$U223,GTYF!$C:$AP,X$201,FALSE) -> 108305.05 | Y223: =VLOOKUP($U$202&$U223,GTYF!$C:$AP,Y$201,FALSE) -> 115745.77 | Z223: =VLOOKUP($U$202&$U223,GTYF!$C:$AP,Z$201,FALSE) -> 120953.32 | AA223: =VLOOKUP($U$202&$U223,GTYF!$C:$AP,AA$201,FALSE) -> 128019.98 | AB223: =VLOOKUP($U$202&$U223,GTYF!$C:$AP,AB$201,FALSE) -> 134216.54 | AC223: =VLOOKUP($U$202&$U223,GTYF!$C:$AP,AC$201,FALSE) -> 139911.61 | AD223: =VLOOKUP($U$202&$U223,GTYF!$C:$AP,AD$201,FALSE) -> 152753.23 | AE223: =VLOOKUP($U$202&$U223,GTYF!$C:$AP,AE$201,FALSE) -> 162813.83 | AF223: =VLOOKUP($U$202&$U223,GTYF!$C:$AP,AF$201,FALSE) -> 174061.49 | AG223: =VLOOKUP($U$202&$U223,GTYF!$C:$AP,AG$201,FALSE) -> 180088.65 | AH223: =VLOOKUP($U$202&$U223,GTYF!$C:$AP,AH$201,FALSE) -> 184843.76 | AI223: =VLOOKUP($U$202&$U223,GTYF!$C:$AP,AI$201,FALSE) -> 186683.45 | AJ223: =VLOOKUP($U$202&$U223,GTYF!$C:$AP,AJ$201,FALSE) -> 188531.48 | AK223: =VLOOKUP($U$202&$U223,GTYF!$C:$AP,AK$201,FALSE) -> 190160.96 | AL223: =VLOOKUP($U$202&$U223,GTYF!$C:$AP,AL$201,FALSE) -> 191076.88 | AM223: =VLOOKUP($U$202&$U223,GTYF!$C:$AP,AM$201,FALSE) -> 196901.8 | AN223: =VLOOKUP($U$202&$U223,GTYF!$C:$AP,AN$201,FALSE) -> 198801.22 | AO223: =VLOOKUP($U$202&$U223,GTYF!$C:$AP,AO$201,FALSE) -> 201785.06 | AP223: =VLOOKUP($U$202&$U223,GTYF!$C:$AP,AP$201,FALSE) -> 203659.58 | AQ223: =VLOOKUP($U$202&$U223,GTYF!$C:$AP,AQ$201,FALSE) -> 201882.85 | AR223: =VLOOKUP($U$202&$U223,GTYF!$C:$AP,AR$201,FALSE) -> 200430.87 | AS223: =VLOOKUP($U$202&$U223,GTYF!$C:$AP,AS$201,FALSE) -> 200583 | AT223: =VLOOKUP($U$202&$U223,GTYF!$C:$AP,AT$201,FALSE) -> 200720.25 | AU223: =VLOOKUP($U$202&$U223,GTYF!$C:$AP,AU$201,FALSE) -> 200705.11 | AV223: =VLOOKUP($U$202&$U223,GTYF!$C:$AP,AV$201,FALSE) -> 199002.11 | AW223: =VLOOKUP($U$202&$U223,GTYF!$C:$AP,AW$201,FALSE) -> 198178.59 | AX223: =VLOOKUP($U$202&$U223,GTYF!$C:$AP,AX$201,FALSE) -> 199104.9 | AY223: =VLOOKUP($U$202&$U223,GTYF!$C:$AP,AY$201,FALSE) -> 196949.93 | AZ223: =VLOOKUP($U$202&$U223,GTYF!$C:$AP,AZ$201,FALSE) -> 192677.99
S224: Figure 10a | T224: Sapinières | U224: (FCTYF_SAB) | V224: =VLOOKUP($U$202&$U224,GTYF!$C:$AP,V$201,FALSE) -> 234469.5 | W224: =VLOOKUP($U$202&$U224,GTYF!$C:$AP,W$201,FALSE) -> 229588.99 | X224: =VLOOKUP($U$202&$U224,GTYF!$C:$AP,X$201,FALSE) -> 227888.17 | Y224: =VLOOKUP($U$202&$U224,GTYF!$C:$AP,Y$201,FALSE) -> 225797.95 | Z224: =VLOOKUP($U$202&$U224,GTYF!$C:$AP,Z$201,FALSE) -> 224992.93 | AA224: =VLOOKUP($U$202&$U224,GTYF!$C:$AP,AA$201,FALSE) -> 220642.76 | AB224: =VLOOKUP($U$202&$U224,GTYF!$C:$AP,AB$201,FALSE) -> 218774.2 | AC224: =VLOOKUP($U$202&$U224,GTYF!$C:$AP,AC$201,FALSE) -> 215158.58 | AD224: =VLOOKUP($U$202&$U224,GTYF!$C:$AP,AD$201,FALSE) -> 207130.25 | AE224: =VLOOKUP($U$202&$U224,GTYF!$C:$AP,AE$201,FALSE) -> 199678.08 | AF224: =VLOOKUP($U$202&$U224,GTYF!$C:$AP,AF$201,FALSE) -> 194584.15 | AG224: =VLOOKUP($U$202&$U224,GTYF!$C:$AP,AG$201,FALSE) -> 192021.77 | AH224: =VLOOKUP($U$202&$U224,GTYF!$C:$AP,AH$201,FALSE) -> 189360.76 | AI224: =VLOOKUP($U$202&$U224,GTYF!$C:$AP,AI$201,FALSE) -> 188696.37 | AJ224: =VLOOKUP($U$202&$U224,GTYF!$C:$AP,AJ$201,FALSE) -> 187476.2 | AK224: =VLOOKUP($U$202&$U224,GTYF!$C:$AP,AK$201,FALSE) -> 186656.1 | AL224: =VLOOKUP($U$202&$U224,GTYF!$C:$AP,AL$201,FALSE) -> 185622.21 | AM224: =VLOOKUP($U$202&$U224,GTYF!$C:$AP,AM$201,FALSE) -> 183895.98 | AN224: =VLOOKUP($U$202&$U224,GTYF!$C:$AP,AN$201,FALSE) -> 182651.91 | AO224: =VLOOKUP($U$202&$U224,GTYF!$C:$AP,AO$201,FALSE) -> 181283.41 | AP224: =VLOOKUP($U$202&$U224,GTYF!$C:$AP,AP$201,FALSE) -> 180050.07 | AQ224: =VLOOKUP($U$202&$U224,GTYF!$C:$AP,AQ$201,FALSE) -> 180649.3 | AR224: =VLOOKUP($U$202&$U224,GTYF!$C:$AP,AR$201,FALSE) -> 180933.53 | AS224: =VLOOKUP($U$202&$U224,GTYF!$C:$AP,AS$201,FALSE) -> 179683.12 | AT224: =VLOOKUP($U$202&$U224,GTYF!$C:$AP,AT$201,FALSE) -> 179135.74 | AU224: =VLOOKUP($U$202&$U224,GTYF!$C:$AP,AU$201,FALSE) -> 179018.11 | AV224: =VLOOKUP($U$202&$U224,GTYF!$C:$AP,AV$201,FALSE) -> 179537.63 | AW224: =VLOOKUP($U$202&$U224,GTYF!$C:$AP,AW$201,FALSE) -> 179546.79 | AX224: =VLOOKUP($U$202&$U224,GTYF!$C:$AP,AX$201,FALSE) -> 181463.34 | AY224: =VLOOKUP($U$202&$U224,GTYF!$C:$AP,AY$201,FALSE) -> 185115.94 | AZ224: =VLOOKUP($U$202&$U224,GTYF!$C:$AP,AZ$201,FALSE) -> 186297.52
B225: * Attention, étant donné que le graphique fait appel aux GTYF, certains TYF ne paraissent pas dans les bons types de couvert (ex: EoRx, PbFx, PuFx, ToFx) | S225: Figure 10a | T225: Cédrières | U225: (FCTYF_THO) | V225: =VLOOKUP($U$202&$U225,GTYF!$C:$AP,V$201,FALSE) -> 0 | W225: =VLOOKUP($U$202&$U225,GTYF!$C:$AP,W$201,FALSE) -> 0 | X225: =VLOOKUP($U$202&$U225,GTYF!$C:$AP,X$201,FALSE) -> 0 | Y225: =VLOOKUP($U$202&$U225,GTYF!$C:$AP,Y$201,FALSE) -> 0 | Z225: =VLOOKUP($U$202&$U225,GTYF!$C:$AP,Z$201,FALSE) -> 0 | AA225: =VLOOKUP($U$202&$U225,GTYF!$C:$AP,AA$201,FALSE) -> 0 | AB225: =VLOOKUP($U$202&$U225,GTYF!$C:$AP,AB$201,FALSE) -> 0 | AC225: =VLOOKUP($U$202&$U225,GTYF!$C:$AP,AC$201,FALSE) -> 0 | AD225: =VLOOKUP($U$202&$U225,GTYF!$C:$AP,AD$201,FALSE) -> 0 | AE225: =VLOOKUP($U$202&$U225,GTYF!$C:$AP,AE$201,FALSE) -> 0 | AF225: =VLOOKUP($U$202&$U225,GTYF!$C:$AP,AF$201,FALSE) -> 0 | AG225: =VLOOKUP($U$202&$U225,GTYF!$C:$AP,AG$201,FALSE) -> 0 | AH225: =VLOOKUP($U$202&$U225,GTYF!$C:$AP,AH$201,FALSE) -> 0 | AI225: =VLOOKUP($U$202&$U225,GTYF!$C:$AP,AI$201,FALSE) -> 0 | AJ225: =VLOOKUP($U$202&$U225,GTYF!$C:$AP,AJ$201,FALSE) -> 0 | AK225: =VLOOKUP($U$202&$U225,GTYF!$C:$AP,AK$201,FALSE) -> 0 | AL225: =VLOOKUP($U$202&$U225,GTYF!$C:$AP,AL$201,FALSE) -> 0 | AM225: =VLOOKUP($U$202&$U225,GTYF!$C:$AP,AM$201,FALSE) -> 0 | AN225: =VLOOKUP($U$202&$U225,GTYF!$C:$AP,AN$201,FALSE) -> 0 | AO225: =VLOOKUP($U$202&$U225,GTYF!$C:$AP,AO$201,FALSE) -> 0 | AP225: =VLOOKUP($U$202&$U225,GTYF!$C:$AP,AP$201,FALSE) -> 0 | AQ225: =VLOOKUP($U$202&$U225,GTYF!$C:$AP,AQ$201,FALSE) -> 0 | AR225: =VLOOKUP($U$202&$U225,GTYF!$C:$AP,AR$201,FALSE) -> 0 | AS225: =VLOOKUP($U$202&$U225,GTYF!$C:$AP,AS$201,FALSE) -> 0 | AT225: =VLOOKUP($U$202&$U225,GTYF!$C:$AP,AT$201,FALSE) -> 0 | AU225: =VLOOKUP($U$202&$U225,GTYF!$C:$AP,AU$201,FALSE) -> 0 | AV225: =VLOOKUP($U$202&$U225,GTYF!$C:$AP,AV$201,FALSE) -> 0 | AW225: =VLOOKUP($U$202&$U225,GTYF!$C:$AP,AW$201,FALSE) -> 0 | AX225: =VLOOKUP($U$202&$U225,GTYF!$C:$AP,AX$201,FALSE) -> 0 | AY225: =VLOOKUP($U$202&$U225,GTYF!$C:$AP,AY$201,FALSE) -> 0 | AZ225: =VLOOKUP($U$202&$U225,GTYF!$C:$AP,AZ$201,FALSE) -> 0
U228: Colonne | V228: 6 | W228: 7 | X228: 8 | Y228: 9 | Z228: 10 | AA228: 11 | AB228: 12 | AC228: 13 | AD228: 14 | AE228: 15 | AF228: 16 | AG228: 17 | AH228: 18 | AI228: 19 | AJ228: 20 | AK228: 21 | AL228: 22 | AM228: 23 | AN228: 24 | AO228: 25 | AP228: 26 | AQ228: 27 | AR228: 28 | AS228: 29 | AT228: 30 | AU228: 31 | AV228: 32 | AW228: 33 | AX228: 34 | AY228: 35 | AZ228: 36
B229: Figure 10c Évolution des superficies de hêtraie et d'érablière à hêtre | U229: Période | V229: P0 | W229: P1 | X229: P2 | Y229: P3 | Z229: P4 | AA229: P5 | AB229: P6 | AC229: P7 | AD229: P8 | AE229: P9 | AF229: P10 | AG229: P11 | AH229: P12 | AI229: P13 | AJ229: P14 | AK229: P15 | AL229: P16 | AM229: P17 | AN229: P18 | AO229: P19 | AP229: P20 | AQ229: P21 | AR229: P22 | AS229: P23 | AT229: P24 | AU229: P25 | AV229: P26 | AW229: P27 | AX229: P28 | AY229: P29 | AZ229: P30
U230: Axe des "X" Fin de période | V230: 2018 | W230: 2023 | X230: 2028 | Y230: 2033 | Z230: 2038 | AA230: 2043 | AB230: 2048 | AC230: 2053 | AD230: 2058 | AE230: 2063 | AF230: 2068 | AG230: 2073 | AH230: 2078 | AI230: 2083 | AJ230: 2088 | AK230: 2093 | AL230: 2098 | AM230: 2103 | AN230: 2108 | AO230: 2113 | AP230: 2118 | AQ230: 2123 | AR230: 2128 | AS230: 2133 | AT230: 2138 | AU230: 2143 | AV230: 2148 | AW230: 2153 | AX230: 2158 | AY230: 2163 | AZ230: 2168
S231: =LEFT(B$229,10) -> Figure 10c | T231: Hêtraie | U231: OSUPESHG_FX | V231: =VLOOKUP($U231,Output!$C:$AQ,V$228,FALSE) ->  | W231: =VLOOKUP($U231,Output!$C:$AQ,W$228,FALSE) ->  | X231: =VLOOKUP($U231,Output!$C:$AQ,X$228,FALSE) ->  | Y231: =VLOOKUP($U231,Output!$C:$AQ,Y$228,FALSE) ->  | Z231: =VLOOKUP($U231,Output!$C:$AQ,Z$228,FALSE) ->  | AA231: =VLOOKUP($U231,Output!$C:$AQ,AA$228,FALSE) ->  | AB231: =VLOOKUP($U231,Output!$C:$AQ,AB$228,FALSE) ->  | AC231: =VLOOKUP($U231,Output!$C:$AQ,AC$228,FALSE) ->  | AD231: =VLOOKUP($U231,Output!$C:$AQ,AD$228,FALSE) ->  | AE231: =VLOOKUP($U231,Output!$C:$AQ,AE$228,FALSE) ->  | AF231: =VLOOKUP($U231,Output!$C:$AQ,AF$228,FALSE) ->  | AG231: =VLOOKUP($U231,Output!$C:$AQ,AG$228,FALSE) ->  | AH231: =VLOOKUP($U231,Output!$C:$AQ,AH$228,FALSE) ->  | AI231: =VLOOKUP($U231,Output!$C:$AQ,AI$228,FALSE) ->  | AJ231: =VLOOKUP($U231,Output!$C:$AQ,AJ$228,FALSE) ->  | AK231: =VLOOKUP($U231,Output!$C:$AQ,AK$228,FALSE) ->  | AL231: =VLOOKUP($U231,Output!$C:$AQ,AL$228,FALSE) ->  | AM231: =VLOOKUP($U231,Output!$C:$AQ,AM$228,FALSE) ->  | AN231: =VLOOKUP($U231,Output!$C:$AQ,AN$228,FALSE) ->  | AO231: =VLOOKUP($U231,Output!$C:$AQ,AO$228,FALSE) ->  | AP231: =VLOOKUP($U231,Output!$C:$AQ,AP$228,FALSE) ->  | AQ231: =VLOOKUP($U231,Output!$C:$AQ,AQ$228,FALSE) ->  | AR231: =VLOOKUP($U231,Output!$C:$AQ,AR$228,FALSE) ->  | AS231: =VLOOKUP($U231,Output!$C:$AQ,AS$228,FALSE) ->  | AT231: =VLOOKUP($U231,Output!$C:$AQ,AT$228,FALSE) ->  | AU231: =VLOOKUP($U231,Output!$C:$AQ,AU$228,FALSE) ->  | AV231: =VLOOKUP($U231,Output!$C:$AQ,AV$228,FALSE) ->  | AW231: =VLOOKUP($U231,Output!$C:$AQ,AW$228,FALSE) ->  | AX231: =VLOOKUP($U231,Output!$C:$AQ,AX$228,FALSE) ->  | AY231: =VLOOKUP($U231,Output!$C:$AQ,AY$228,FALSE) ->  | AZ231: =VLOOKUP($U231,Output!$C:$AQ,AZ$228,FALSE) -> 
S232: =LEFT(B$229,10) -> Figure 10c | T232: Érablière à hêtre | U232: OSUPESHG | V232: =VLOOKUP($U232,Output!$C:$AQ,V$228,FALSE) ->  | W232: =VLOOKUP($U232,Output!$C:$AQ,W$228,FALSE) ->  | X232: =VLOOKUP($U232,Output!$C:$AQ,X$228,FALSE) ->  | Y232: =VLOOKUP($U232,Output!$C:$AQ,Y$228,FALSE) ->  | Z232: =VLOOKUP($U232,Output!$C:$AQ,Z$228,FALSE) ->  | AA232: =VLOOKUP($U232,Output!$C:$AQ,AA$228,FALSE) ->  | AB232: =VLOOKUP($U232,Output!$C:$AQ,AB$228,FALSE) ->  | AC232: =VLOOKUP($U232,Output!$C:$AQ,AC$228,FALSE) ->  | AD232: =VLOOKUP($U232,Output!$C:$AQ,AD$228,FALSE) ->  | AE232: =VLOOKUP($U232,Output!$C:$AQ,AE$228,FALSE) ->  | AF232: =VLOOKUP($U232,Output!$C:$AQ,AF$228,FALSE) ->  | AG232: =VLOOKUP($U232,Output!$C:$AQ,AG$228,FALSE) ->  | AH232: =VLOOKUP($U232,Output!$C:$AQ,AH$228,FALSE) ->  | AI232: =VLOOKUP($U232,Output!$C:$AQ,AI$228,FALSE) ->  | AJ232: =VLOOKUP($U232,Output!$C:$AQ,AJ$228,FALSE) ->  | AK232: =VLOOKUP($U232,Output!$C:$AQ,AK$228,FALSE) ->  | AL232: =VLOOKUP($U232,Output!$C:$AQ,AL$228,FALSE) ->  | AM232: =VLOOKUP($U232,Output!$C:$AQ,AM$228,FALSE) ->  | AN232: =VLOOKUP($U232,Output!$C:$AQ,AN$228,FALSE) ->  | AO232: =VLOOKUP($U232,Output!$C:$AQ,AO$228,FALSE) ->  | AP232: =VLOOKUP($U232,Output!$C:$AQ,AP$228,FALSE) ->  | AQ232: =VLOOKUP($U232,Output!$C:$AQ,AQ$228,FALSE) ->  | AR232: =VLOOKUP($U232,Output!$C:$AQ,AR$228,FALSE) ->  | AS232: =VLOOKUP($U232,Output!$C:$AQ,AS$228,FALSE) ->  | AT232: =VLOOKUP($U232,Output!$C:$AQ,AT$228,FALSE) ->  | AU232: =VLOOKUP($U232,Output!$C:$AQ,AU$228,FALSE) ->  | AV232: =VLOOKUP($U232,Output!$C:$AQ,AV$228,FALSE) ->  | AW232: =VLOOKUP($U232,Output!$C:$AQ,AW$228,FALSE) ->  | AX232: =VLOOKUP($U232,Output!$C:$AQ,AX$228,FALSE) ->  | AY232: =VLOOKUP($U232,Output!$C:$AQ,AY$228,FALSE) ->  | AZ232: =VLOOKUP($U232,Output!$C:$AQ,AZ$228,FALSE) -> 
S233: =LEFT(B$229,10) -> Figure 10c | T233: Total | U233: Total | V233: =SUM(V231:V232) ->  | W233: =SUM(W231:W232) -> 
B255: Figure 11b Évolution du volume de sapin et d'épinettes sur pied dans la composante SEPM
U262: Colonne | V262: 6 | W262: 7 | X262: 8 | Y262: 9 | Z262: 10 | AA262: 11 | AB262: 12 | AC262: 13 | AD262: 14 | AE262: 15 | AF262: 16 | AG262: 17 | AH262: 18 | AI262: 19 | AJ262: 20 | AK262: 21 | AL262: 22 | AM262: 23 | AN262: 24 | AO262: 25 | AP262: 26 | AQ262: 27 | AR262: 28 | AS262: 29 | AT262: 30 | AU262: 31 | AV262: 32 | AW262: 33 | AX262: 34 | AY262: 35 | AZ262: 36
U263: Axe des "X" Fin de période | V263: 2018 | W263: 2023 | X263: 2028 | Y263: 2033 | Z263: 2038 | AA263: 2043 | AB263: 2048 | AC263: 2053 | AD263: 2058 | AE263: 2063 | AF263: 2068 | AG263: 2073 | AH263: 2078 | AI263: 2083 | AJ263: 2088 | AK263: 2093 | AL263: 2098 | AM263: 2103 | AN263: 2108 | AO263: 2113 | AP263: 2118 | AQ263: 2123 | AR263: 2128 | AS263: 2133 | AT263: 2138 | AU263: 2143 | AV263: 2148 | AW263: 2153 | AX263: 2158 | AY263: 2163 | AZ263: 2168
S264: =LEFT(B$255,10) -> Figure 11b | U264: Période | V264: P0 | W264: P1 | X264: P2 | Y264: P3 | Z264: P4 | AA264: P5 | AB264: P6 | AC264: P7 | AD264: P8 | AE264: P9 | AF264: P10 | AG264: P11 | AH264: P12 | AI264: P13 | AJ264: P14 | AK264: P15 | AL264: P16 | AM264: P17 | AN264: P18 | AO264: P19 | AP264: P20 | AQ264: P21 | AR264: P22 | AS264: P23 | AT264: P24 | AU264: P25 | AV264: P26 | AW264: P27 | AX264: P28 | AY264: P29 | AZ264: P30
S265: Figure 11b | T265: Légende | Y265: PERIOD3 | Z265: PERIOD4 | AA265: PERIOD5 | AB265: PERIOD6 | AC265: PERIOD7 | AD265: PERIOD8 | AE265: PERIOD9 | AF265: PERIOD10 | AG265: PERIOD11 | AH265: PERIOD12 | AI265: PERIOD13 | AJ265: PERIOD14 | AK265: PERIOD15 | AL265: PERIOD16 | AM265: PERIOD17 | AN265: PERIOD18 | AO265: PERIOD19 | AP265: PERIOD20 | AQ265: PERIOD21 | AR265: PERIOD22 | AS265: PERIOD23 | AT265: PERIOD24 | AU265: PERIOD25 | AV265: PERIOD26 | AW265: PERIOD27 | AX265: PERIOD28 | AY265: PERIOD29 | AZ265: PERIOD30
S266: Figure 11b | T266: Volume Sapin | U266: OVOLSABPIEDINC(FCTYF_SEPM) | V266: =VLOOKUP($U266,GTYF!$C:$AL,Figures!V$262,FALSE) -> 11650089.17 | W266: =VLOOKUP($U266,GTYF!$C:$AL,Figures!W$262,FALSE) -> 11847217 | X266: =VLOOKUP($U266,GTYF!$C:$AL,Figures!X$262,FALSE) -> 9837333.1 | Y266: =VLOOKUP($U266,GTYF!$C:$AL,Figures!Y$262,FALSE) -> 10253571.32 | Z266: =VLOOKUP($U266,GTYF!$C:$AL,Figures!Z$262,FALSE) -> 10788832.63 | AA266: =VLOOKUP($U266,GTYF!$C:$AL,Figures!AA$262,FALSE) -> 11029999.22 | AB266: =VLOOKUP($U266,GTYF!$C:$AL,Figures!AB$262,FALSE) -> 11395121.53 | AC266: =VLOOKUP($U266,GTYF!$C:$AL,Figures!AC$262,FALSE) -> 11089027.28 | AD266: =VLOOKUP($U266,GTYF!$C:$AL,Figures!AD$262,FALSE) -> 10871922.07 | AE266: =VLOOKUP($U266,GTYF!$C:$AL,Figures!AE$262,FALSE) -> 10760870.41 | AF266: =VLOOKUP($U266,GTYF!$C:$AL,Figures!AF$262,FALSE) -> 10945497.96 | AG266: =VLOOKUP($U266,GTYF!$C:$AL,Figures!AG$262,FALSE) -> 10867274.83 | AH266: =VLOOKUP($U266,GTYF!$C:$AL,Figures!AH$262,FALSE) -> 10988131.67 | AI266: =VLOOKUP($U266,GTYF!$C:$AL,Figures!AI$262,FALSE) -> 11081473.11 | AJ266: =VLOOKUP($U266,GTYF!$C:$AL,Figures!AJ$262,FALSE) -> 11038233.77 | AK266: =VLOOKUP($U266,GTYF!$C:$AL,Figures!AK$262,FALSE) -> 11053213.28 | AL266: =VLOOKUP($U266,GTYF!$C:$AL,Figures!AL$262,FALSE) -> 10905353.18 | AM266: =VLOOKUP($U266,GTYF!$C:$AL,Figures!AM$262,FALSE) -> 10673564.82 | AN266: =VLOOKUP($U266,GTYF!$C:$AL,Figures!AN$262,FALSE) -> 10184476.72 | AO266: =VLOOKUP($U266,GTYF!$C:$AL,Figures!AO$262,FALSE) -> 9614570.25 | AP266: =VLOOKUP($U266,GTYF!$C:$AL,Figures!AP$262,FALSE) -> 8978442.83 | AQ266: =VLOOKUP($U266,GTYF!$C:$AL,Figures!AQ$262,FALSE) -> 8937588.78 | AR266: =VLOOKUP($U266,GTYF!$C:$AL,Figures!AR$262,FALSE) -> 8665473.78 | AS266: =VLOOKUP($U266,GTYF!$C:$AL,Figures!AS$262,FALSE) -> 8914120.55 | AT266: =VLOOKUP($U266,GTYF!$C:$AL,Figures!AT$262,FALSE) -> 9087119.09 | AU266: =VLOOKUP($U266,GTYF!$C:$AL,Figures!AU$262,FALSE) -> 9464559.47 | AV266: =VLOOKUP($U266,GTYF!$C:$AL,Figures!AV$262,FALSE) -> 9219658.64 | AW266: =VLOOKUP($U266,GTYF!$C:$AL,Figures!AW$262,FALSE) -> 9392725.42 | AX266: =VLOOKUP($U266,GTYF!$C:$AL,Figures!AX$262,FALSE) -> 9592330 | AY266: =VLOOKUP($U266,GTYF!$C:$AL,Figures!AY$262,FALSE) -> 10054190.03 | AZ266: =VLOOKUP($U266,GTYF!$C:$AL,Figures!AZ$262,FALSE) -> 10051706.85
S267: Figure 11b | T267: Volume Épinettes | U267: OVOLGEPXPIEDINC(FCTYF_SEPM) | V267: =VLOOKUP($U267,GTYF!$C:$AL,Figures!V$262,FALSE) -> 23628782.17 | W267: =VLOOKUP($U267,GTYF!$C:$AL,Figures!W$262,FALSE) -> 23338718.21 | X267: =VLOOKUP($U267,GTYF!$C:$AL,Figures!X$262,FALSE) -> 23278146.88 | Y267: =VLOOKUP($U267,GTYF!$C:$AL,Figures!Y$262,FALSE) -> 23542507.22 | Z267: =VLOOKUP($U267,GTYF!$C:$AL,Figures!Z$262,FALSE) -> 23705742.49 | AA267: =VLOOKUP($U267,GTYF!$C:$AL,Figures!AA$262,FALSE) -> 24186726.26 | AB267: =VLOOKUP($U267,GTYF!$C:$AL,Figures!AB$262,FALSE) -> 24427507.09 | AC267: =VLOOKUP($U267,GTYF!$C:$AL,Figures!AC$262,FALSE) -> 24602016.76 | AD267: =VLOOKUP($U267,GTYF!$C:$AL,Figures!AD$262,FALSE) -> 24803310.83 | AE267: =VLOOKUP($U267,GTYF!$C:$AL,Figures!AE$262,FALSE) -> 25055990.97 | AF267: =VLOOKUP($U267,GTYF!$C:$AL,Figures!AF$262,FALSE) -> 24983091.03 | AG267: =VLOOKUP($U267,GTYF!$C:$AL,Figures!AG$262,FALSE) -> 24635122.27 | AH267: =VLOOKUP($U267,GTYF!$C:$AL,Figures!AH$262,FALSE) -> 24103179.41 | AI267: =VLOOKUP($U267,GTYF!$C:$AL,Figures!AI$262,FALSE) -> 24294734.48 | AJ267: =VLOOKUP($U267,GTYF!$C:$AL,Figures!AJ$262,FALSE) -> 24463191.91 | AK267: =VLOOKUP($U267,GTYF!$C:$AL,Figures!AK$262,FALSE) -> 24758273.55 | AL267: =VLOOKUP($U267,GTYF!$C:$AL,Figures!AL$262,FALSE) -> 24550061.8 | AM267: =VLOOKUP($U267,GTYF!$C:$AL,Figures!AM$262,FALSE) -> 24688105.65 | AN267: =VLOOKUP($U267,GTYF!$C:$AL,Figures!AN$262,FALSE) -> 24384845.44 | AO267: =VLOOKUP($U267,GTYF!$C:$AL,Figures!AO$262,FALSE) -> 23914368.62 | AP267: =VLOOKUP($U267,GTYF!$C:$AL,Figures!AP$262,FALSE) -> 23588993.92 | AQ267: =VLOOKUP($U267,GTYF!$C:$AL,Figures!AQ$262,FALSE) -> 23402056.37 | AR267: =VLOOKUP($U267,GTYF!$C:$AL,Figures!AR$262,FALSE) -> 23286349.33 | AS267: =VLOOKUP($U267,GTYF!$C:$AL,Figures!AS$262,FALSE) -> 23815235.88 | AT267: =VLOOKUP($U267,GTYF!$C:$AL,Figures!AT$262,FALSE) -> 24299464.93 | AU267: =VLOOKUP($U267,GTYF!$C:$AL,Figures!AU$262,FALSE) -> 24421025.05 | AV267: =VLOOKUP($U267,GTYF!$C:$AL,Figures!AV$262,FALSE) -> 24578021.42 | AW267: =VLOOKUP($U267,GTYF!$C:$AL,Figures!AW$262,FALSE) -> 24399095.8 | AX267: =VLOOKUP($U267,GTYF!$C:$AL,Figures!AX$262,FALSE) -> 24421880 | AY267: =VLOOKUP($U267,GTYF!$C:$AL,Figures!AY$262,FALSE) -> 24392921.89 | AZ267: =VLOOKUP($U267,GTYF!$C:$AL,Figures!AZ$262,FALSE) -> 23796362.7
S268: Figure 11b
S269: Figure 11b | T269: SEPM sur pied | U269: OVOLGSEPMPIEDINC(FCTYF_SEPM) | V269: =VLOOKUP($U269,GTYF!$C:$AL,Figures!V$262,FALSE) -> 36666009.42 | W269: =VLOOKUP($U269,GTYF!$C:$AL,Figures!W$262,FALSE) -> 36767332.43 | X269: =VLOOKUP($U269,GTYF!$C:$AL,Figures!X$262,FALSE) -> 34937657.43 | Y269: =VLOOKUP($U269,GTYF!$C:$AL,Figures!Y$262,FALSE) -> 35798925.51 | Z269: =VLOOKUP($U269,GTYF!$C:$AL,Figures!Z$262,FALSE) -> 36675988.93 | AA269: =VLOOKUP($U269,GTYF!$C:$AL,Figures!AA$262,FALSE) -> 37554043.47 | AB269: =VLOOKUP($U269,GTYF!$C:$AL,Figures!AB$262,FALSE) -> 38076714.08 | AC269: =VLOOKUP($U269,GTYF!$C:$AL,Figures!AC$262,FALSE) -> 37911075.67 | AD269: =VLOOKUP($U269,GTYF!$C:$AL,Figures!AD$262,FALSE) -> 37878483.5 | AE269: =VLOOKUP($U269,GTYF!$C:$AL,Figures!AE$262,FALSE) -> 37844052.78 | AF269: =VLOOKUP($U269,GTYF!$C:$AL,Figures!AF$262,FALSE) -> 37951647.95 | AG269: =VLOOKUP($U269,GTYF!$C:$AL,Figures!AG$262,FALSE) -> 37663419.72 | AH269: =VLOOKUP($U269,GTYF!$C:$AL,Figures!AH$262,FALSE) -> 37413535.24 | AI269: =VLOOKUP($U269,GTYF!$C:$AL,Figures!AI$262,FALSE) -> 37959717.13 | AJ269: =VLOOKUP($U269,GTYF!$C:$AL,Figures!AJ$262,FALSE) -> 38380462.68 | AK269: =VLOOKUP($U269,GTYF!$C:$AL,Figures!AK$262,FALSE) -> 38922107.42 | AL269: =VLOOKUP($U269,GTYF!$C:$AL,Figures!AL$262,FALSE) -> 38777511.97 | AM269: =VLOOKUP($U269,GTYF!$C:$AL,Figures!AM$262,FALSE) -> 38801136.2 | AN269: =VLOOKUP($U269,GTYF!$C:$AL,Figures!AN$262,FALSE) -> 37884389.88 | AO269: =VLOOKUP($U269,GTYF!$C:$AL,Figures!AO$262,FALSE) -> 36764531.25 | AP269: =VLOOKUP($U269,GTYF!$C:$AL,Figures!AP$262,FALSE) -> 35559927.71 | AQ269: =VLOOKUP($U269,GTYF!$C:$AL,Figures!AQ$262,FALSE) -> 35097701.03 | AR269: =VLOOKUP($U269,GTYF!$C:$AL,Figures!AR$262,FALSE) -> 34610043.93 | AS269: =VLOOKUP($U269,GTYF!$C:$AL,Figures!AS$262,FALSE) -> 35175505.14 | AT269: =VLOOKUP($U269,GTYF!$C:$AL,Figures!AT$262,FALSE) -> 35848573.47 | AU269: =VLOOKUP($U269,GTYF!$C:$AL,Figures!AU$262,FALSE) -> 36443177.01 | AV269: =VLOOKUP($U269,GTYF!$C:$AL,Figures!AV$262,FALSE) -> 36417151.12 | AW269: =VLOOKUP($U269,GTYF!$C:$AL,Figures!AW$262,FALSE) -> 36197152.54 | AX269: =VLOOKUP($U269,GTYF!$C:$AL,Figures!AX$262,FALSE) -> 36587608.15 | AY269: =VLOOKUP($U269,GTYF!$C:$AL,Figures!AY$262,FALSE) -> 37064725.13 | AZ269: =VLOOKUP($U269,GTYF!$C:$AL,Figures!AZ$262,FALSE) -> 36548836.67
S270: Figure 11b
S271: Figure 11b | T271: % Sapin | V271: =IF(ISERROR(V266),0,V266/V269) -> 0.3177354 | W271: 0.3222212822 | X271: 0.2815681939 | Y271: 0.2864212033 | Z271: 0.2941661001 | AA271: 0.2937100296 | AB271: 0.2992674606 | AC271: 0.292500993 | AD271: 0.287021049 | AE271: 0.2843477276 | AF271: 0.2884063947 | AG271: 0.2885365936 | AH271: 0.2936940228 | AI271: 0.2919271783 | AJ271: 0.287600331 | AK271: 0.2839829088 | AL271: 0.2812288006 | AM271: 0.2750838214 | AN271: 0.2688304273 | AO271: 0.261517553 | AP271: 0.252487657 | AQ271: 0.2546488379 | AR271: 0.2503745386 | AS271: 0.253418409 | AT271: 0.2534862119 | AU271: 0.25970731 | AV271: 0.2531680364 | AW271: 0.2594879641 | AX271: 0.2621742848 | AY271: 0.2712603424 | AZ271: 0.2750212528
S272: Figure 11b | T272: % Épinettes | V272: =IF(ISERROR(V267),0,V267/V269) -> 0.6444328833 | W272: =IF(ISERROR(W267),0,W267/W269) -> 0.6347677862 | X272: 0.6662766938 | Y272: 0.6576316715 | Z272: 0.6463559179 | AA272: 0.6440511866 | AB272: 0.6415340105 | AC272: 0.6489400874 | AD272: 0.6548126677 | AE272: 0.6620852982 | AF272: 0.6582873835 | AG272: 0.6540861784 | AH272: 0.6442368853 | AI272: 0.6400135806 | AJ272: 0.6373865817 | AK272: 0.6360979708 | AL272: 0.6331004892 | AM272: 0.6362727504 | AN272: 0.6436647262 | AO272: 0.6504739162 | AP272: 0.6633588829 | AQ272: 0.6667689246 | AR272: 0.6728205655 | AS272: 0.6770403377 | AT272: 0.6778363148 | AU272: 0.6701124066 | AV272: 0.6749023651 | AW272: 0.6740611923 | AX272: 0.6674904766 | AY272: 0.658116897 | AZ272: 0.651083998
S273: Figure 11b | T273: % Volume autre | V273: =1-(V272+V271) -> 0.03783171668 | W273: 0.04301093159 | X273: 0.05215511239 | Y273: 0.05594712527 | Z273: 0.05947798202 | AA273: 0.06223878374 | AB273: 0.05919852893 | AC273: 0.05855891954 | AD273: 0.05816628324 | AE273: 0.05356697423 | AF273: 0.05330622171 | AG273: 0.05737722799 | AH273: 0.06206909198 | AI273: 0.06805924109 | AJ273: 0.07501308736 | AK273: 0.07991912042 | AL273: 0.08567071019 | AM273: 0.08864342818 | AN273: 0.08750484647 | AO273: 0.08800853078 | AP273: 0.08415346016 | AQ273: 0.07858223756 | AR273: 0.07680489587 | AS273: 0.06954125322 | AT273: 0.06867747337 | AU273: 0.07018028338 | AV273: 0.07192959854 | AW273: 0.06645084354 | AX273: 0.07033523863 | AY273: 0.07062276061 | AZ273: 0.07389474922
... 480 more rows

Sheet UTA
M1: Jeune forêt | R1: Niveau d'altération des vieilles forêts | W1: Niveau d'altération combiné | AA1: Info à récupérer par le SSP Niveau d'altération des vieilles forêts
A2: Inscrire la liste des numéros d'UTA de l'UA: | B2: VieuxAlerte (%) | C2: VieuxAccept (%) | D2: RegeAlerte (%) | E2: RegeAccept (%) | G2: VieuxAlerte (ha) | H2: VieuxAccept (ha) | I2: RegeAlerte (ha) | J2: RegeAccept (ha) | K2: SupUTA | M2: OSUPJEUNEREGECO PERIOD1 (%) | N2: État Jeune 2023 | O2: OSUPJEUNEREGECO PERIOD6 (%) | P2: État Jeune 2048 | R2: OSUPVIEUXTOTREGECO PERIOD1 (%) | S2: État Vielle 2023 | T2: OSUPVIEUXTOTREGECO PERIOD6 (%) | U2: État Vielle 2048 | W2: UTA | X2: 2023 | Y2: 2048 | AA2: UA | AB2: UTA | AC2: 2023 | AD2: 2048 | AE2: Mode de répartition spatiale | AP2: Mode de répartition spatiale
A3: UTA1 | B3: =ROUND(G3/$K3,3) -> 0.168 | C3: =ROUND(H3/$K3,3) -> 0.28 | D3: =ROUND(I3/$K3,3) -> 0.3 | E3: =ROUND(J3/$K3,3) -> 0.2 | G3: =VLOOKUP(CONCATENATE("OSUPVIEUXALERTEREGECO_"&A3),Output!$C:$AQ,6,FALSE) -> 15275.79 | H3: =VLOOKUP(CONCATENATE("OSUPVIEUXACCEPTREGECO_"&A3),Output!$C:$AQ,6,FALSE) -> 25459.64 | I3: =VLOOKUP(CONCATENATE("OSUPJEUNEALERTEREGECO_"&A3),Output!$C:$AQ,6,FALSE) -> 27278.19 | J3: =VLOOKUP(CONCATENATE("OSUPJEUNEACCEPTREGECO_"&A3),Output!$C:$AQ,6,FALSE) -> 18185.46 | K3: =VLOOKUP(CONCATENATE("OSUPREGECO_"&A3),Output!$C:$AQ,6,FALSE) -> 90927.3 | L3: =K3/SUM($K$3:$K$32) -> 0.07079833508 | M3: =ROUND(VLOOKUP("OSUPJEUNEREGECO_"&A3,Output!$C:$AQ,7,FALSE)/VLOOKUP("OSUPREGECO_"&A3,Output!$C:$AQ,6,FALSE),3) -> 0 | N3: =IF(M3<=$E3,"Faible",IF(M3<$D3,"Modéré","Supérieur")) -> Faible | O3: =ROUND(VLOOKUP("OSUPJEUNEREGECO_"&$A3,Output!$C:$AQ,12,FALSE)/VLOOKUP("OSUPREGECO_"&A3,Output!$C:$AQ,6,FALSE),3) -> 0.069 | P3: =IF(O3<=$E3,"Faible",IF(O3<$D3,"Modéré","Supérieur")) -> Faible | R3: =ROUND(VLOOKUP("OSUPVIEUXTOTREGECO_"&$A3,Output!$C:$AQ,7,FALSE)/VLOOKUP("OSUPREGECO_"&A3,Output!$C:$AQ,6,FALSE),3) -> 0.211 | S3: =IF(R3<$B3,"Supérieur",IF(R3<$C3,"Modéré","Faible")) -> Modéré | T3: =ROUND(VLOOKUP("OSUPVIEUXTOTREGECO_"&$A3,Output!$C:$AQ,12,FALSE)/VLOOKUP("OSUPREGECO_"&A3,Output!$C:$AQ,6,FALSE),3) -> 0.176 | U3: =IF(T3<$B3,"Supérieur",IF(T3<$C3,"Modéré","Faible")) -> Modéré | W3: =A3 -> UTA1 | X3: =IF(S3>N3,S3,N3) -> Modéré | Y3: =IF(U3>P3,U3,P3) -> Modéré | AA3: =Tableaux!$O$33 -> 09751 | AB3: =W3 -> UTA1 | AC3: =S3 -> Modéré | AD3: =U3 -> Modéré | AE3: COS pessière | AG3: Note: "Élevé" a été renommé "Supérieur" pour le bon fonctionnement des formules. | AP3: COS sapinière
A4: UTA2 | B4: =ROUND(G4/$K4,3) -> 0.195 | C4: 0.325 | D4: 0.35 | E4: 0.25 | G4: =VLOOKUP(CONCATENATE("OSUPVIEUXALERTEREGECO_"&A4),Output!$C:$AQ,6,FALSE) -> 35368.89 | H4: =VLOOKUP(CONCATENATE("OSUPVIEUXACCEPTREGECO_"&A4),Output!$C:$AQ,6,FALSE) -> 58948.14 | I4: =VLOOKUP(CONCATENATE("OSUPJEUNEALERTEREGECO_"&A4),Output!$C:$AQ,6,FALSE) -> 63482.61 | J4: =VLOOKUP(CONCATENATE("OSUPJEUNEACCEPTREGECO_"&A4),Output!$C:$AQ,6,FALSE) -> 45344.72 | K4: =VLOOKUP(CONCATENATE("OSUPREGECO_"&A4),Output!$C:$AQ,6,FALSE) -> 181378.9 | L4: =K4/SUM($K$3:$K$32) -> 0.1412262779 | M4: =ROUND(VLOOKUP("OSUPJEUNEREGECO_"&A4,Output!$C:$AQ,7,FALSE)/VLOOKUP("OSUPREGECO_"&A4,Output!$C:$AQ,6,FALSE),3) -> 0.166 | N4: =IF(M4<=$E4,"Faible",IF(M4<$D4,"Modéré","Supérieur")) -> Faible | O4: =ROUND(VLOOKUP("OSUPJEUNEREGECO_"&$A4,Output!$C:$AQ,12,FALSE)/VLOOKUP("OSUPREGECO_"&A4,Output!$C:$AQ,6,FALSE),3) -> 0.123 | P4: =IF(O4<=$E4,"Faible",IF(O4<$D4,"Modéré","Supérieur")) -> Faible | R4: =ROUND(VLOOKUP("OSUPVIEUXTOTREGECO_"&$A4,Output!$C:$AQ,7,FALSE)/VLOOKUP("OSUPREGECO_"&A4,Output!$C:$AQ,6,FALSE),3) -> 0.203 | S4: =IF(R4<$B4,"Supérieur",IF(R4<$C4,"Modéré","Faible")) -> Modéré | T4: =ROUND(VLOOKUP("OSUPVIEUXTOTREGECO_"&$A4,Output!$C:$AQ,12,FALSE)/VLOOKUP("OSUPREGECO_"&A4,Output!$C:$AQ,6,FALSE),3) -> 0.373 | U4: =IF(T4<$B4,"Supérieur",IF(T4<$C4,"Modéré","Faible")) -> Faible | W4: =A4 -> UTA2 | X4: =IF(S4>N4,S4,N4) -> Modéré | Y4: =IF(U4>P4,U4,P4) -> Faible | AA4: =Tableaux!$O$33 -> 09751 | AB4: =W4 -> UTA2 | AC4: =S4 -> Modéré | AD4: =U4 -> Faible | AE4: COS pessière | AP4: COS pessière
A5: UTA3 | B5: 0.231 | C5: 0.385 | D5: 0.35 | E5: 0.25 | G5: =VLOOKUP(CONCATENATE("OSUPVIEUXALERTEREGECO_"&A5),Output!$C:$AQ,6,FALSE) -> 41214.51 | H5: =VLOOKUP(CONCATENATE("OSUPVIEUXACCEPTREGECO_"&A5),Output!$C:$AQ,6,FALSE) -> 68690.85 | I5: =VLOOKUP(CONCATENATE("OSUPJEUNEALERTEREGECO_"&A5),Output!$C:$AQ,6,FALSE) -> 62446.23 | J5: =VLOOKUP(CONCATENATE("OSUPJEUNEACCEPTREGECO_"&A5),Output!$C:$AQ,6,FALSE) -> 44604.45 | K5: =VLOOKUP(CONCATENATE("OSUPREGECO_"&A5),Output!$C:$AQ,6,FALSE) -> 178417.8 | L5: 0.1389206893 | M5: =ROUND(VLOOKUP("OSUPJEUNEREGECO_"&A5,Output!$C:$AQ,7,FALSE)/VLOOKUP("OSUPREGECO_"&A5,Output!$C:$AQ,6,FALSE),3) -> 0.121 | N5: Faible | O5: =ROUND(VLOOKUP("OSUPJEUNEREGECO_"&$A5,Output!$C:$AQ,12,FALSE)/VLOOKUP("OSUPREGECO_"&A5,Output!$C:$AQ,6,FALSE),3) -> 0.065 | P5: Faible | R5: =ROUND(VLOOKUP("OSUPVIEUXTOTREGECO_"&$A5,Output!$C:$AQ,7,FALSE)/VLOOKUP("OSUPREGECO_"&A5,Output!$C:$AQ,6,FALSE),3) -> 0.289 | S5: Modéré | T5: =ROUND(VLOOKUP("OSUPVIEUXTOTREGECO_"&$A5,Output!$C:$AQ,12,FALSE)/VLOOKUP("OSUPREGECO_"&A5,Output!$C:$AQ,6,FALSE),3) -> 0.296 | U5: Modéré | W5: UTA3 | X5: Modéré | Y5: Modéré | AA5: =Tableaux!$O$33 -> 09751 | AB5: =W5 -> UTA3 | AC5: =S5 -> Modéré | AD5: =U5 -> Modéré | AE5: COS pessière | AP5: CMO
A6: UTA4 | B6: 0.195 | C6: 0.325 | D6: 0.35 | E6: 0.25 | G6: =VLOOKUP(CONCATENATE("OSUPVIEUXALERTEREGECO_"&A6),Output!$C:$AQ,6,FALSE) -> 37841.84 | H6: =VLOOKUP(CONCATENATE("OSUPVIEUXACCEPTREGECO_"&A6),Output!$C:$AQ,6,FALSE) -> 63069.73 | I6: =VLOOKUP(CONCATENATE("OSUPJEUNEALERTEREGECO_"&A6),Output!$C:$AQ,6,FALSE) -> 67921.25 | J6: =VLOOKUP(CONCATENATE("OSUPJEUNEACCEPTREGECO_"&A6),Output!$C:$AQ,6,FALSE) -> 48515.17 | K6: =VLOOKUP(CONCATENATE("OSUPREGECO_"&A6),Output!$C:$AQ,6,FALSE) -> 194060.7 | L6: 0.1511006536 | M6: =ROUND(VLOOKUP("OSUPJEUNEREGECO_"&A6,Output!$C:$AQ,7,FALSE)/VLOOKUP("OSUPREGECO_"&A6,Output!$C:$AQ,6,FALSE),3) -> 0.326 | N6: Modéré | O6: =ROUND(VLOOKUP("OSUPJEUNEREGECO_"&$A6,Output!$C:$AQ,12,FALSE)/VLOOKUP("OSUPREGECO_"&A6,Output!$C:$AQ,6,FALSE),3) -> 0.053 | P6: Faible | R6: =ROUND(VLOOKUP("OSUPVIEUXTOTREGECO_"&$A6,Output!$C:$AQ,7,FALSE)/VLOOKUP("OSUPREGECO_"&A6,Output!$C:$AQ,6,FALSE),3) -> 0.385 | S6: Faible | T6: =ROUND(VLOOKUP("OSUPVIEUXTOTREGECO_"&$A6,Output!$C:$AQ,12,FALSE)/VLOOKUP("OSUPREGECO_"&A6,Output!$C:$AQ,6,FALSE),3) -> 0.372 | U6: Faible | W6: UTA4 | X6: Modéré | Y6: Faible | AA6: =Tableaux!$O$33 -> 09751 | AB6: UTA4 | AC6: Faible | AD6: =U6 -> Faible | AE6: COS pessière | AP6: CMO entente Cris
A7: UTA5 | B7: 0.231 | C7: 0.385 | D7: 0.35 | E7: 0.25 | G7: =VLOOKUP(CONCATENATE("OSUPVIEUXALERTEREGECO_"&A7),Output!$C:$AQ,6,FALSE) -> 8751.46 | H7: =VLOOKUP(CONCATENATE("OSUPVIEUXACCEPTREGECO_"&A7),Output!$C:$AQ,6,FALSE) -> 14585.76 | I7: =VLOOKUP(CONCATENATE("OSUPJEUNEALERTEREGECO_"&A7),Output!$C:$AQ,6,FALSE) -> 13259.78 | J7: =VLOOKUP(CONCATENATE("OSUPJEUNEACCEPTREGECO_"&A7),Output!$C:$AQ,6,FALSE) -> 9471.28 | K7: =VLOOKUP(CONCATENATE("OSUPREGECO_"&A7),Output!$C:$AQ,6,FALSE) -> 37885.1 | L7: 0.02949831354 | M7: =ROUND(VLOOKUP("OSUPJEUNEREGECO_"&A7,Output!$C:$AQ,7,FALSE)/VLOOKUP("OSUPREGECO_"&A7,Output!$C:$AQ,6,FALSE),3) -> 0.002 | N7: Faible | O7: =ROUND(VLOOKUP("OSUPJEUNEREGECO_"&$A7,Output!$C:$AQ,12,FALSE)/VLOOKUP("OSUPREGECO_"&A7,Output!$C:$AQ,6,FALSE),3) -> 0.022 | P7: Faible | R7: =ROUND(VLOOKUP("OSUPVIEUXTOTREGECO_"&$A7,Output!$C:$AQ,7,FALSE)/VLOOKUP("OSUPREGECO_"&A7,Output!$C:$AQ,6,FALSE),3) -> 0.098 | S7: Supérieur | T7: =ROUND(VLOOKUP("OSUPVIEUXTOTREGECO_"&$A7,Output!$C:$AQ,12,FALSE)/VLOOKUP("OSUPREGECO_"&A7,Output!$C:$AQ,6,FALSE),3) -> 0.097 | U7: Supérieur | W7: UTA5 | X7: Supérieur | Y7: Supérieur | AA7: =Tableaux!$O$33 -> 09751 | AB7: UTA5 | AC7: =S7 -> Supérieur | AD7: =U7 -> Supérieur | AE7: COS sapinière | AG7: Voir à renommer "Élevé" dans la légende des figures | AP7: CMO entente BM
A8: UTA6 | B8: 0.231 | C8: 0.385 | D8: 0.35 | E8: 0.25 | G8: =VLOOKUP(CONCATENATE("OSUPVIEUXALERTEREGECO_"&A8),Output!$C:$AQ,6,FALSE) -> 5802.65 | H8: =VLOOKUP(CONCATENATE("OSUPVIEUXACCEPTREGECO_"&A8),Output!$C:$AQ,6,FALSE) -> 9671.08 | I8: =VLOOKUP(CONCATENATE("OSUPJEUNEALERTEREGECO_"&A8),Output!$C:$AQ,6,FALSE) -> 8791.89 | J8: =VLOOKUP(CONCATENATE("OSUPJEUNEACCEPTREGECO_"&A8),Output!$C:$AQ,6,FALSE) -> 6279.92 | K8: =VLOOKUP(CONCATENATE("OSUPREGECO_"&A8),Output!$C:$AQ,6,FALSE) -> 25119.7 | L8: 0.01955884468 | M8: =ROUND(VLOOKUP("OSUPJEUNEREGECO_"&A8,Output!$C:$AQ,7,FALSE)/VLOOKUP("OSUPREGECO_"&A8,Output!$C:$AQ,6,FALSE),3) -> 0.001 | N8: Faible | O8: =ROUND(VLOOKUP("OSUPJEUNEREGECO_"&$A8,Output!$C:$AQ,12,FALSE)/VLOOKUP("OSUPREGECO_"&A8,Output!$C:$AQ,6,FALSE),3) -> 0.006 | P8: Faible | R8: =ROUND(VLOOKUP("OSUPVIEUXTOTREGECO_"&$A8,Output!$C:$AQ,7,FALSE)/VLOOKUP("OSUPREGECO_"&A8,Output!$C:$AQ,6,FALSE),3) -> 0.114 | S8: Supérieur | T8: =ROUND(VLOOKUP("OSUPVIEUXTOTREGECO_"&$A8,Output!$C:$AQ,12,FALSE)/VLOOKUP("OSUPREGECO_"&A8,Output!$C:$AQ,6,FALSE),3) -> 0.124 | U8: Supérieur | W8: UTA6 | X8: Supérieur | Y8: Supérieur | AA8: =Tableaux!$O$33 -> 09751 | AB8: UTA6 | AC8: Supérieur | AD8: Supérieur | AE8: COS sapinière
A9: UTA7 | B9: 0.258 | C9: 0.43 | D9: 0.3 | E9: 0.2 | G9: =VLOOKUP(CONCATENATE("OSUPVIEUXALERTEREGECO_"&A9),Output!$C:$AQ,6,FALSE) -> 3618.3 | H9: =VLOOKUP(CONCATENATE("OSUPVIEUXACCEPTREGECO_"&A9),Output!$C:$AQ,6,FALSE) -> 6030.49 | I9: =VLOOKUP(CONCATENATE("OSUPJEUNEALERTEREGECO_"&A9),Output!$C:$AQ,6,FALSE) -> 4207.32 | J9: =VLOOKUP(CONCATENATE("OSUPJEUNEACCEPTREGECO_"&A9),Output!$C:$AQ,6,FALSE) -> 2804.88 | K9: =VLOOKUP(CONCATENATE("OSUPREGECO_"&A9),Output!$C:$AQ,6,FALSE) -> 14024.4 | L9: 0.01091975865 | M9: =ROUND(VLOOKUP("OSUPJEUNEREGECO_"&A9,Output!$C:$AQ,7,FALSE)/VLOOKUP("OSUPREGECO_"&A9,Output!$C:$AQ,6,FALSE),3) -> 0.001 | N9: Faible | O9: =ROUND(VLOOKUP("OSUPJEUNEREGECO_"&$A9,Output!$C:$AQ,12,FALSE)/VLOOKUP("OSUPREGECO_"&A9,Output!$C:$AQ,6,FALSE),3) -> 0.103 | P9: Faible | R9: =ROUND(VLOOKUP("OSUPVIEUXTOTREGECO_"&$A9,Output!$C:$AQ,7,FALSE)/VLOOKUP("OSUPREGECO_"&A9,Output!$C:$AQ,6,FALSE),3) -> 0.097 | S9: Supérieur | T9: =ROUND(VLOOKUP("OSUPVIEUXTOTREGECO_"&$A9,Output!$C:$AQ,12,FALSE)/VLOOKUP("OSUPREGECO_"&A9,Output!$C:$AQ,6,FALSE),3) -> 0.181 | U9: Supérieur | W9: UTA7 | X9: Supérieur | Y9: Supérieur | AA9: =Tableaux!$O$33 -> 09751 | AB9: UTA7 | AC9: Supérieur | AD9: Supérieur | AE9: COS sapinière
A10: UTA8 | B10: 0.258 | C10: 0.43 | D10: 0.3 | E10: 0.2 | G10: =VLOOKUP(CONCATENATE("OSUPVIEUXALERTEREGECO_"&A10),Output!$C:$AQ,6,FALSE) -> 9112.43 | H10: =VLOOKUP(CONCATENATE("OSUPVIEUXACCEPTREGECO_"&A10),Output!$C:$AQ,6,FALSE) -> 15187.38 | I10: =VLOOKUP(CONCATENATE("OSUPJEUNEALERTEREGECO_"&A10),Output!$C:$AQ,6,FALSE) -> 10595.85 | J10: =VLOOKUP(CONCATENATE("OSUPJEUNEACCEPTREGECO_"&A10),Output!$C:$AQ,6,FALSE) -> 7063.9 | K10: =VLOOKUP(CONCATENATE("OSUPREGECO_"&A10),Output!$C:$AQ,6,FALSE) -> 35319.5 | L10: 0.02750067137 | M10: =ROUND(VLOOKUP("OSUPJEUNEREGECO_"&A10,Output!$C:$AQ,7,FALSE)/VLOOKUP("OSUPREGECO_"&A10,Output!$C:$AQ,6,FALSE),3) -> 0.081 | N10: Faible | O10: =ROUND(VLOOKUP("OSUPJEUNEREGECO_"&$A10,Output!$C:$AQ,12,FALSE)/VLOOKUP("OSUPREGECO_"&A10,Output!$C:$AQ,6,FALSE),3) -> 0.103 | P10: Faible | R10: =ROUND(VLOOKUP("OSUPVIEUXTOTREGECO_"&$A10,Output!$C:$AQ,7,FALSE)/VLOOKUP("OSUPREGECO_"&A10,Output!$C:$AQ,6,FALSE),3) -> 0.225 | S10: Supérieur | T10: =ROUND(VLOOKUP("OSUPVIEUXTOTREGECO_"&$A10,Output!$C:$AQ,12,FALSE)/VLOOKUP("OSUPREGECO_"&A10,Output!$C:$AQ,6,FALSE),3) -> 0.545 | U10: Faible | W10: UTA8 | X10: Supérieur | Y10: Faible | AA10: =Tableaux!$O$33 -> 09751 | AB10: UTA8 | AC10: Supérieur | AD10: Faible | AE10: COS sapinière
A11: UTA9 | B11: 0.222 | C11: 0.37 | D11: 0.3 | E11: =ROUND(J11/$K11,3) -> 0.2 | G11: =VLOOKUP(CONCATENATE("OSUPVIEUXALERTEREGECO_"&A11),Output!$C:$AQ,6,FALSE) -> 5297.05 | H11: =VLOOKUP(CONCATENATE("OSUPVIEUXACCEPTREGECO_"&A11),Output!$C:$AQ,6,FALSE) -> 8828.42 | I11: =VLOOKUP(CONCATENATE("OSUPJEUNEALERTEREGECO_"&A11),Output!$C:$AQ,6,FALSE) -> 7158.18 | J11: =VLOOKUP(CONCATENATE("OSUPJEUNEACCEPTREGECO_"&A11),Output!$C:$AQ,6,FALSE) -> 4772.12 | K11: =VLOOKUP(CONCATENATE("OSUPREGECO_"&A11),Output!$C:$AQ,6,FALSE) -> 23860.6 | L11: 0.01857847703 | M11: =ROUND(VLOOKUP("OSUPJEUNEREGECO_"&A11,Output!$C:$AQ,7,FALSE)/VLOOKUP("OSUPREGECO_"&A11,Output!$C:$AQ,6,FALSE),3) -> 0.017 | N11: Faible | O11: =ROUND(VLOOKUP("OSUPJEUNEREGECO_"&$A11,Output!$C:$AQ,12,FALSE)/VLOOKUP("OSUPREGECO_"&A11,Output!$C:$AQ,6,FALSE),3) -> 0.072 | P11: Faible | R11: =ROUND(VLOOKUP("OSUPVIEUXTOTREGECO_"&$A11,Output!$C:$AQ,7,FALSE)/VLOOKUP("OSUPREGECO_"&A11,Output!$C:$AQ,6,FALSE),3) -> 0.325 | S11: Modéré | T11: =ROUND(VLOOKUP("OSUPVIEUXTOTREGECO_"&$A11,Output!$C:$AQ,12,FALSE)/VLOOKUP("OSUPREGECO_"&A11,Output!$C:$AQ,6,FALSE),3) -> 0.669 | U11: Faible | W11: UTA9 | X11: Modéré | Y11: Faible | AA11: =Tableaux!$O$33 -> 09751 | AB11: UTA9 | AC11: Modéré | AD11: Faible | AE11: COS sapinière
A12: UTA10 | B12: 0.258 | C12: 0.43 | D12: 0.3 | E12: 0.2 | G12: =VLOOKUP(CONCATENATE("OSUPVIEUXALERTEREGECO_"&A12),Output!$C:$AQ,6,FALSE) -> 5705.33 | H12: =VLOOKUP(CONCATENATE("OSUPVIEUXACCEPTREGECO_"&A12),Output!$C:$AQ,6,FALSE) -> 9508.89 | I12: =VLOOKUP(CONCATENATE("OSUPJEUNEALERTEREGECO_"&A12),Output!$C:$AQ,6,FALSE) -> 6634.11 | J12: =VLOOKUP(CONCATENATE("OSUPJEUNEACCEPTREGECO_"&A12),Output!$C:$AQ,6,FALSE) -> 4422.74 | K12: =VLOOKUP(CONCATENATE("OSUPREGECO_"&A12),Output!$C:$AQ,6,FALSE) -> 22113.7 | L12: 0.01721829574 | M12: =ROUND(VLOOKUP("OSUPJEUNEREGECO_"&A12,Output!$C:$AQ,7,FALSE)/VLOOKUP("OSUPREGECO_"&A12,Output!$C:$AQ,6,FALSE),3) -> 0.173 | N12: Faible | O12: =ROUND(VLOOKUP("OSUPJEUNEREGECO_"&$A12,Output!$C:$AQ,12,FALSE)/VLOOKUP("OSUPREGECO_"&A12,Output!$C:$AQ,6,FALSE),3) -> 0.051 | P12: Faible | R12: =ROUND(VLOOKUP("OSUPVIEUXTOTREGECO_"&$A12,Output!$C:$AQ,7,FALSE)/VLOOKUP("OSUPREGECO_"&A12,Output!$C:$AQ,6,FALSE),3) -> 0.187 | S12: Supérieur | T12: =ROUND(VLOOKUP("OSUPVIEUXTOTREGECO_"&$A12,Output!$C:$AQ,12,FALSE)/VLOOKUP("OSUPREGECO_"&A12,Output!$C:$AQ,6,FALSE),3) -> 0.667 | U12: Faible | W12: UTA10 | X12: Supérieur | Y12: Faible | AA12: =Tableaux!$O$33 -> 09751 | AB12: UTA10 | AC12: Supérieur | AD12: Faible | AE12: COS sapinière | AG12: Compléter cellules en jaune
A13: UTA11 | B13: 0.258 | C13: 0.43 | D13: 0.3 | E13: 0.2 | G13: =VLOOKUP(CONCATENATE("OSUPVIEUXALERTEREGECO_"&A13),Output!$C:$AQ,6,FALSE) -> 6601.7 | H13: =VLOOKUP(CONCATENATE("OSUPVIEUXACCEPTREGECO_"&A13),Output!$C:$AQ,6,FALSE) -> 11002.84 | I13: =VLOOKUP(CONCATENATE("OSUPJEUNEALERTEREGECO_"&A13),Output!$C:$AQ,6,FALSE) -> 7676.4 | J13: =VLOOKUP(CONCATENATE("OSUPJEUNEACCEPTREGECO_"&A13),Output!$C:$AQ,6,FALSE) -> 5117.6 | K13: =VLOOKUP(CONCATENATE("OSUPREGECO_"&A13),Output!$C:$AQ,6,FALSE) -> 25588 | L13: 0.01992347511 | M13: =ROUND(VLOOKUP("OSUPJEUNEREGECO_"&A13,Output!$C:$AQ,7,FALSE)/VLOOKUP("OSUPREGECO_"&A13,Output!$C:$AQ,6,FALSE),3) -> 0.06 | N13: Faible | O13: =ROUND(VLOOKUP("OSUPJEUNEREGECO_"&$A13,Output!$C:$AQ,12,FALSE)/VLOOKUP("OSUPREGECO_"&A13,Output!$C:$AQ,6,FALSE),3) -> 0.026 | P13: Faible | R13: =ROUND(VLOOKUP("OSUPVIEUXTOTREGECO_"&$A13,Output!$C:$AQ,7,FALSE)/VLOOKUP("OSUPREGECO_"&A13,Output!$C:$AQ,6,FALSE),3) -> 0.25 | S13: Supérieur | T13: =ROUND(VLOOKUP("OSUPVIEUXTOTREGECO_"&$A13,Output!$C:$AQ,12,FALSE)/VLOOKUP("OSUPREGECO_"&A13,Output!$C:$AQ,6,FALSE),3) -> 0.56 | U13: Faible | W13: UTA11 | X13: Supérieur | Y13: Faible | AA13: =Tableaux!$O$33 -> 09751 | AB13: UTA11 | AC13: Supérieur | AD13: Faible | AE13: COS sapinière
A14: UTA12 | B14: 0.258 | C14: 0.43 | D14: 0.3 | E14: 0.2 | G14: =VLOOKUP(CONCATENATE("OSUPVIEUXALERTEREGECO_"&A14),Output!$C:$AQ,6,FALSE) -> 6751.27 | H14: =VLOOKUP(CONCATENATE("OSUPVIEUXACCEPTREGECO_"&A14),Output!$C:$AQ,6,FALSE) -> 11252.11 | I14: =VLOOKUP(CONCATENATE("OSUPJEUNEALERTEREGECO_"&A14),Output!$C:$AQ,6,FALSE) -> 7850.31 | J14: =VLOOKUP(CONCATENATE("OSUPJEUNEACCEPTREGECO_"&A14),Output!$C:$AQ,6,FALSE) -> 5233.54 | K14: =VLOOKUP(CONCATENATE("OSUPREGECO_"&A14),Output!$C:$AQ,6,FALSE) -> 26167.7 | L14: 0.02037484444 | M14: =ROUND(VLOOKUP("OSUPJEUNEREGECO_"&A14,Output!$C:$AQ,7,FALSE)/VLOOKUP("OSUPREGECO_"&A14,Output!$C:$AQ,6,FALSE),3) -> 0.034 | N14: Faible | O14: =ROUND(VLOOKUP("OSUPJEUNEREGECO_"&$A14,Output!$C:$AQ,12,FALSE)/VLOOKUP("OSUPREGECO_"&A14,Output!$C:$AQ,6,FALSE),3) -> 0.111 | P14: Faible | R14: =ROUND(VLOOKUP("OSUPVIEUXTOTREGECO_"&$A14,Output!$C:$AQ,7,FALSE)/VLOOKUP("OSUPREGECO_"&A14,Output!$C:$AQ,6,FALSE),3) -> 0.2 | S14: Supérieur | T14: =ROUND(VLOOKUP("OSUPVIEUXTOTREGECO_"&$A14,Output!$C:$AQ,12,FALSE)/VLOOKUP("OSUPREGECO_"&A14,Output!$C:$AQ,6,FALSE),3) -> 0.394 | U14: Modéré | W14: UTA12 | X14: Supérieur | Y14: Modéré | AA14: =Tableaux!$O$33 -> 09751 | AB14: UTA12 | AC14: Supérieur | AD14: Modéré | AE14: COS sapinière
A15: UTA13 | B15: 0.258 | C15: 0.43 | D15: 0.3 | E15: 0.2 | G15: =VLOOKUP(CONCATENATE("OSUPVIEUXALERTEREGECO_"&A15),Output!$C:$AQ,6,FALSE) -> 6670.51 | H15: =VLOOKUP(CONCATENATE("OSUPVIEUXACCEPTREGECO_"&A15),Output!$C:$AQ,6,FALSE) -> 11117.52 | I15: =VLOOKUP(CONCATENATE("OSUPJEUNEALERTEREGECO_"&A15),Output!$C:$AQ,6,FALSE) -> 7756.41 | J15: =VLOOKUP(CONCATENATE("OSUPJEUNEACCEPTREGECO_"&A15),Output!$C:$AQ,6,FALSE) -> 5170.94 | K15: =VLOOKUP(CONCATENATE("OSUPREGECO_"&A15),Output!$C:$AQ,6,FALSE) -> 25854.7 | L15: 0.02013113459 | M15: =ROUND(VLOOKUP("OSUPJEUNEREGECO_"&A15,Output!$C:$AQ,7,FALSE)/VLOOKUP("OSUPREGECO_"&A15,Output!$C:$AQ,6,FALSE),3) -> 0.008 | N15: Faible | O15: =ROUND(VLOOKUP("OSUPJEUNEREGECO_"&$A15,Output!$C:$AQ,12,FALSE)/VLOOKUP("OSUPREGECO_"&A15,Output!$C:$AQ,6,FALSE),3) -> 0.062 | P15: Faible | R15: =ROUND(VLOOKUP("OSUPVIEUXTOTREGECO_"&$A15,Output!$C:$AQ,7,FALSE)/VLOOKUP("OSUPREGECO_"&A15,Output!$C:$AQ,6,FALSE),3) -> 0.138 | S15: Supérieur | T15: =ROUND(VLOOKUP("OSUPVIEUXTOTREGECO_"&$A15,Output!$C:$AQ,12,FALSE)/VLOOKUP("OSUPREGECO_"&A15,Output!$C:$AQ,6,FALSE),3) -> 0.355 | U15: Modéré | W15: UTA13 | X15: Supérieur | Y15: Modéré | AA15: =Tableaux!$O$33 -> 09751 | AB15: UTA13 | AC15: Supérieur | AD15: Modéré | AE15: COS sapinière
A16: UTA14 | B16: 0.258 | C16: 0.43 | D16: 0.3 | E16: 0.2 | G16: =VLOOKUP(CONCATENATE("OSUPVIEUXALERTEREGECO_"&A16),Output!$C:$AQ,6,FALSE) -> 7445.13 | H16: =VLOOKUP(CONCATENATE("OSUPVIEUXACCEPTREGECO_"&A16),Output!$C:$AQ,6,FALSE) -> 12408.55 | I16: =VLOOKUP(CONCATENATE("OSUPJEUNEALERTEREGECO_"&A16),Output!$C:$AQ,6,FALSE) -> 8657.13 | J16: =VLOOKUP(CONCATENATE("OSUPJEUNEACCEPTREGECO_"&A16),Output!$C:$AQ,6,FALSE) -> 5771.42 | K16: =VLOOKUP(CONCATENATE("OSUPREGECO_"&A16),Output!$C:$AQ,6,FALSE) -> 28857.1 | L16: 0.02246888047 | M16: =ROUND(VLOOKUP("OSUPJEUNEREGECO_"&A16,Output!$C:$AQ,7,FALSE)/VLOOKUP("OSUPREGECO_"&A16,Output!$C:$AQ,6,FALSE),3) -> 0 | N16: Faible | O16: =ROUND(VLOOKUP("OSUPJEUNEREGECO_"&$A16,Output!$C:$AQ,12,FALSE)/VLOOKUP("OSUPREGECO_"&A16,Output!$C:$AQ,6,FALSE),3) -> 0.05 | P16: Faible | R16: =ROUND(VLOOKUP("OSUPVIEUXTOTREGECO_"&$A16,Output!$C:$AQ,7,FALSE)/VLOOKUP("OSUPREGECO_"&A16,Output!$C:$AQ,6,FALSE),3) -> 0.065 | S16: Supérieur | T16: =ROUND(VLOOKUP("OSUPVIEUXTOTREGECO_"&$A16,Output!$C:$AQ,12,FALSE)/VLOOKUP("OSUPREGECO_"&A16,Output!$C:$AQ,6,FALSE),3) -> 0.119 | U16: Supérieur | W16: UTA14 | X16: Supérieur | Y16: Supérieur | AA16: =Tableaux!$O$33 -> 09751 | AB16: UTA14 | AC16: Supérieur | AD16: Supérieur | AE16: COS sapinière
A17: UTA15 | B17: 0.228 | C17: 0.38 | D17: 0.3 | E17: 0.2 | G17: =VLOOKUP(CONCATENATE("OSUPVIEUXALERTEREGECO_"&A17),Output!$C:$AQ,6,FALSE) -> 5784.41 | H17: =VLOOKUP(CONCATENATE("OSUPVIEUXACCEPTREGECO_"&A17),Output!$C:$AQ,6,FALSE) -> 9640.68 | I17: =VLOOKUP(CONCATENATE("OSUPJEUNEALERTEREGECO_"&A17),Output!$C:$AQ,6,FALSE) -> 7611.06 | J17: =VLOOKUP(CONCATENATE("OSUPJEUNEACCEPTREGECO_"&A17),Output!$C:$AQ,6,FALSE) -> 5074.04 | K17: =VLOOKUP(CONCATENATE("OSUPREGECO_"&A17),Output!$C:$AQ,6,FALSE) -> 25370.2 | L17: 0.01975389042 | M17: =ROUND(VLOOKUP("OSUPJEUNEREGECO_"&A17,Output!$C:$AQ,7,FALSE)/VLOOKUP("OSUPREGECO_"&A17,Output!$C:$AQ,6,FALSE),3) -> 0.031 | N17: Faible | O17: =ROUND(VLOOKUP("OSUPJEUNEREGECO_"&$A17,Output!$C:$AQ,12,FALSE)/VLOOKUP("OSUPREGECO_"&A17,Output!$C:$AQ,6,FALSE),3) -> 0.104 | P17: Faible | R17: =ROUND(VLOOKUP("OSUPVIEUXTOTREGECO_"&$A17,Output!$C:$AQ,7,FALSE)/VLOOKUP("OSUPREGECO_"&A17,Output!$C:$AQ,6,FALSE),3) -> 0.274 | S17: Modéré | T17: =ROUND(VLOOKUP("OSUPVIEUXTOTREGECO_"&$A17,Output!$C:$AQ,12,FALSE)/VLOOKUP("OSUPREGECO_"&A17,Output!$C:$AQ,6,FALSE),3) -> 0.381 | U17: Faible | W17: UTA15 | X17: Modéré | Y17: Faible | AA17: =Tableaux!$O$33 -> 09751 | AB17: UTA15 | AC17: Modéré | AD17: Faible | AE17: COS sapinière
A18: UTA16 | B18: 0.222 | C18: 0.37 | D18: 0.3 | E18: 0.2 | G18: =VLOOKUP(CONCATENATE("OSUPVIEUXALERTEREGECO_"&A18),Output!$C:$AQ,6,FALSE) -> 8119.41 | H18: =VLOOKUP(CONCATENATE("OSUPVIEUXACCEPTREGECO_"&A18),Output!$C:$AQ,6,FALSE) -> 13532.34 | I18: =VLOOKUP(CONCATENATE("OSUPJEUNEALERTEREGECO_"&A18),Output!$C:$AQ,6,FALSE) -> 10972.17 | J18: =VLOOKUP(CONCATENATE("OSUPJEUNEACCEPTREGECO_"&A18),Output!$C:$AQ,6,FALSE) -> 7314.78 | K18: =VLOOKUP(CONCATENATE("OSUPREGECO_"&A18),Output!$C:$AQ,6,FALSE) -> 36573.9 | L18: 0.02847737948 | M18: =ROUND(VLOOKUP("OSUPJEUNEREGECO_"&A18,Output!$C:$AQ,7,FALSE)/VLOOKUP("OSUPREGECO_"&A18,Output!$C:$AQ,6,FALSE),3) -> 0.123 | N18: Faible | O18: =ROUND(VLOOKUP("OSUPJEUNEREGECO_"&$A18,Output!$C:$AQ,12,FALSE)/VLOOKUP("OSUPREGECO_"&A18,Output!$C:$AQ,6,FALSE),3) -> 0.087 | P18: Faible | R18: =ROUND(VLOOKUP("OSUPVIEUXTOTREGECO_"&$A18,Output!$C:$AQ,7,FALSE)/VLOOKUP("OSUPREGECO_"&A18,Output!$C:$AQ,6,FALSE),3) -> 0.255 | S18: Modéré | T18: =ROUND(VLOOKUP("OSUPVIEUXTOTREGECO_"&$A18,Output!$C:$AQ,12,FALSE)/VLOOKUP("OSUPREGECO_"&A18,Output!$C:$AQ,6,FALSE),3) -> 0.421 | U18: Faible | W18: UTA16 | X18: Modéré | Y18: Faible | AA18: =Tableaux!$O$33 -> 09751 | AB18: UTA16 | AC18: Modéré | AD18: Faible | AE18: COS sapinière
A19: UTA17 | B19: 0.228 | C19: 0.38 | D19: 0.3 | E19: 0.2 | G19: =VLOOKUP(CONCATENATE("OSUPVIEUXALERTEREGECO_"&A19),Output!$C:$AQ,6,FALSE) -> 7474.16 | H19: =VLOOKUP(CONCATENATE("OSUPVIEUXACCEPTREGECO_"&A19),Output!$C:$AQ,6,FALSE) -> 12456.93 | I19: =VLOOKUP(CONCATENATE("OSUPJEUNEALERTEREGECO_"&A19),Output!$C:$AQ,6,FALSE) -> 9834.42 | J19: =VLOOKUP(CONCATENATE("OSUPJEUNEACCEPTREGECO_"&A19),Output!$C:$AQ,6,FALSE) -> 6556.28 | K19: =VLOOKUP(CONCATENATE("OSUPREGECO_"&A19),Output!$C:$AQ,6,FALSE) -> 32781.4 | L19: 0.02552444141 | M19: =ROUND(VLOOKUP("OSUPJEUNEREGECO_"&A19,Output!$C:$AQ,7,FALSE)/VLOOKUP("OSUPREGECO_"&A19,Output!$C:$AQ,6,FALSE),3) -> 0.061 | N19: Faible | O19: =ROUND(VLOOKUP("OSUPJEUNEREGECO_"&$A19,Output!$C:$AQ,12,FALSE)/VLOOKUP("OSUPREGECO_"&A19,Output!$C:$AQ,6,FALSE),3) -> 0.123 | P19: Faible | R19: =ROUND(VLOOKUP("OSUPVIEUXTOTREGECO_"&$A19,Output!$C:$AQ,7,FALSE)/VLOOKUP("OSUPREGECO_"&A19,Output!$C:$AQ,6,FALSE),3) -> 0.29 | S19: Modéré | T19: =ROUND(VLOOKUP("OSUPVIEUXTOTREGECO_"&$A19,Output!$C:$AQ,12,FALSE)/VLOOKUP("OSUPREGECO_"&A19,Output!$C:$AQ,6,FALSE),3) -> 0.563 | U19: Faible | W19: UTA17 | X19: Modéré | Y19: Faible | AA19: =Tableaux!$O$33 -> 09751 | AB19: UTA17 | AC19: Modéré | AD19: Faible | AE19: COS sapinière
A20: UTA18 | B20: 0.228 | C20: 0.38 | D20: 0.3 | E20: 0.2 | G20: =VLOOKUP(CONCATENATE("OSUPVIEUXALERTEREGECO_"&A20),Output!$C:$AQ,6,FALSE) -> 5737.98 | H20: =VLOOKUP(CONCATENATE("OSUPVIEUXACCEPTREGECO_"&A20),Output!$C:$AQ,6,FALSE) -> 9563.31 | I20: =VLOOKUP(CONCATENATE("OSUPJEUNEALERTEREGECO_"&A20),Output!$C:$AQ,6,FALSE) -> 7549.98 | J20: =VLOOKUP(CONCATENATE("OSUPJEUNEACCEPTREGECO_"&A20),Output!$C:$AQ,6,FALSE) -> 5033.32 | K20: =VLOOKUP(CONCATENATE("OSUPREGECO_"&A20),Output!$C:$AQ,6,FALSE) -> 25166.6 | L20: 0.01959536222 | M20: =ROUND(VLOOKUP("OSUPJEUNEREGECO_"&A20,Output!$C:$AQ,7,FALSE)/VLOOKUP("OSUPREGECO_"&A20,Output!$C:$AQ,6,FALSE),3) -> 0.005 | N20: Faible | O20: =ROUND(VLOOKUP("OSUPJEUNEREGECO_"&$A20,Output!$C:$AQ,12,FALSE)/VLOOKUP("OSUPREGECO_"&A20,Output!$C:$AQ,6,FALSE),3) -> 0.219 | P20: Modéré | R20: =ROUND(VLOOKUP("OSUPVIEUXTOTREGECO_"&$A20,Output!$C:$AQ,7,FALSE)/VLOOKUP("OSUPREGECO_"&A20,Output!$C:$AQ,6,FALSE),3) -> 0.225 | S20: Supérieur | T20: =ROUND(VLOOKUP("OSUPVIEUXTOTREGECO_"&$A20,Output!$C:$AQ,12,FALSE)/VLOOKUP("OSUPREGECO_"&A20,Output!$C:$AQ,6,FALSE),3) -> 0.378 | U20: Modéré | W20: UTA18 | X20: Supérieur | Y20: Modéré | AA20: =Tableaux!$O$33 -> 09751 | AB20: UTA18 | AC20: Supérieur | AD20: Modéré | AE20: COS sapinière
A21: UTA19 | B21: =ROUND(G21/$K21,2) -> 0.23 | C21: =H21/$K21 -> 0.38 | D21: =ROUND(I21/$K21,3) -> 0.3 | E21: 0.2 | G21: =VLOOKUP(CONCATENATE("OSUPVIEUXALERTEREGECO_"&A21),Output!$C:$AQ,6,FALSE) -> 3299.5 | H21: =VLOOKUP(CONCATENATE("OSUPVIEUXACCEPTREGECO_"&A21),Output!$C:$AQ,6,FALSE) -> 5499.17 | I21: =VLOOKUP(CONCATENATE("OSUPJEUNEALERTEREGECO_"&A21),Output!$C:$AQ,6,FALSE) -> 4341.45 | J21: =VLOOKUP(CONCATENATE("OSUPJEUNEACCEPTREGECO_"&A21),Output!$C:$AQ,6,FALSE) -> 2894.3 | K21: =VLOOKUP(CONCATENATE("OSUPREGECO_"&A21),Output!$C:$AQ,6,FALSE) -> 14471.5 | L21: 0.01126788221 | M21: =ROUND(VLOOKUP("OSUPJEUNEREGECO_"&A21,Output!$C:$AQ,7,FALSE)/VLOOKUP("OSUPREGECO_"&A21,Output!$C:$AQ,6,FALSE),3) -> 0.091 | N21: Faible | O21: =ROUND(VLOOKUP("OSUPJEUNEREGECO_"&$A21,Output!$C:$AQ,12,FALSE)/VLOOKUP("OSUPREGECO_"&A21,Output!$C:$AQ,6,FALSE),3) -> 0.183 | P21: Faible | R21: =ROUND(VLOOKUP("OSUPVIEUXTOTREGECO_"&$A21,Output!$C:$AQ,7,FALSE)/VLOOKUP("OSUPREGECO_"&A21,Output!$C:$AQ,6,FALSE),3) -> 0.279 | S21: Modéré | T21: =ROUND(VLOOKUP("OSUPVIEUXTOTREGECO_"&$A21,Output!$C:$AQ,12,FALSE)/VLOOKUP("OSUPREGECO_"&A21,Output!$C:$AQ,6,FALSE),3) -> 0.368 | U21: Modéré | W21: UTA19 | X21: Modéré | Y21: Modéré | AA21: =Tableaux!$O$33 -> 09751 | AB21: UTA19 | AC21: Modéré | AD21: Modéré | AE21: COS sapinière
A22: UTA20 | B22: 0.23 | C22: 0.38 | D22: 0.3 | E22: 0.2 | G22: =VLOOKUP(CONCATENATE("OSUPVIEUXALERTEREGECO_"&A22),Output!$C:$AQ,6,FALSE) -> 4946 | H22: =VLOOKUP(CONCATENATE("OSUPVIEUXACCEPTREGECO_"&A22),Output!$C:$AQ,6,FALSE) -> 8243.34 | I22: =VLOOKUP(CONCATENATE("OSUPJEUNEALERTEREGECO_"&A22),Output!$C:$AQ,6,FALSE) -> 6507.9 | J22: =VLOOKUP(CONCATENATE("OSUPJEUNEACCEPTREGECO_"&A22),Output!$C:$AQ,6,FALSE) -> 4338.6 | K22: =VLOOKUP(CONCATENATE("OSUPREGECO_"&A22),Output!$C:$AQ,6,FALSE) -> 21693 | L22: 0.0168907279 | M22: =ROUND(VLOOKUP("OSUPJEUNEREGECO_"&A22,Output!$C:$AQ,7,FALSE)/VLOOKUP("OSUPREGECO_"&A22,Output!$C:$AQ,6,FALSE),3) -> 0.027 | N22: Faible | O22: =ROUND(VLOOKUP("OSUPJEUNEREGECO_"&$A22,Output!$C:$AQ,12,FALSE)/VLOOKUP("OSUPREGECO_"&A22,Output!$C:$AQ,6,FALSE),3) -> 0.211 | P22: Modéré | R22: =ROUND(VLOOKUP("OSUPVIEUXTOTREGECO_"&$A22,Output!$C:$AQ,7,FALSE)/VLOOKUP("OSUPREGECO_"&A22,Output!$C:$AQ,6,FALSE),3) -> 0.19 | S22: Supérieur | T22: =ROUND(VLOOKUP("OSUPVIEUXTOTREGECO_"&$A22,Output!$C:$AQ,12,FALSE)/VLOOKUP("OSUPREGECO_"&A22,Output!$C:$AQ,6,FALSE),3) -> 0.314 | U22: Modéré | W22: UTA20 | X22: Supérieur | Y22: Modéré | AA22: =Tableaux!$O$33 -> 09751 | AB22: UTA20 | AC22: Supérieur | AD22: Modéré | AE22: COS sapinière
A23: UTA21 | B23: 0.23 | C23: 0.3799998944 | D23: 0.3 | E23: 0.2 | G23: =VLOOKUP(CONCATENATE("OSUPVIEUXALERTEREGECO_"&A23),Output!$C:$AQ,6,FALSE) -> 4318.98 | H23: =VLOOKUP(CONCATENATE("OSUPVIEUXACCEPTREGECO_"&A23),Output!$C:$AQ,6,FALSE) -> 7198.3 | I23: =VLOOKUP(CONCATENATE("OSUPJEUNEALERTEREGECO_"&A23),Output!$C:$AQ,6,FALSE) -> 5682.87 | J23: =VLOOKUP(CONCATENATE("OSUPJEUNEACCEPTREGECO_"&A23),Output!$C:$AQ,6,FALSE) -> 3788.58 | K23: =VLOOKUP(CONCATENATE("OSUPREGECO_"&A23),Output!$C:$AQ,6,FALSE) -> 18942.9 | L23: 0.01474942929 | M23: =ROUND(VLOOKUP("OSUPJEUNEREGECO_"&A23,Output!$C:$AQ,7,FALSE)/VLOOKUP("OSUPREGECO_"&A23,Output!$C:$AQ,6,FALSE),3) -> 0.124 | N23: Faible | O23: =ROUND(VLOOKUP("OSUPJEUNEREGECO_"&$A23,Output!$C:$AQ,12,FALSE)/VLOOKUP("OSUPREGECO_"&A23,Output!$C:$AQ,6,FALSE),3) -> 0.039 | P23: Faible | R23: =ROUND(VLOOKUP("OSUPVIEUXTOTREGECO_"&$A23,Output!$C:$AQ,7,FALSE)/VLOOKUP("OSUPREGECO_"&A23,Output!$C:$AQ,6,FALSE),3) -> 0.251 | S23: Modéré | T23: =ROUND(VLOOKUP("OSUPVIEUXTOTREGECO_"&$A23,Output!$C:$AQ,12,FALSE)/VLOOKUP("OSUPREGECO_"&A23,Output!$C:$AQ,6,FALSE),3) -> 0.422 | U23: Faible | W23: UTA21 | X23: Modéré | Y23: Faible | AA23: =Tableaux!$O$33 -> 09751 | AB23: UTA21 | AC23: Modéré | AD23: Faible | AE23: COS sapinière
A24: UTA22 | B24: 0.22 | C24: 0.3699999257 | D24: 0.3 | E24: 0.2 | G24: =VLOOKUP(CONCATENATE("OSUPVIEUXALERTEREGECO_"&A24),Output!$C:$AQ,6,FALSE) -> 8962.12 | H24: =VLOOKUP(CONCATENATE("OSUPVIEUXACCEPTREGECO_"&A24),Output!$C:$AQ,6,FALSE) -> 14936.86 | I24: =VLOOKUP(CONCATENATE("OSUPJEUNEALERTEREGECO_"&A24),Output!$C:$AQ,6,FALSE) -> 12110.97 | J24: =VLOOKUP(CONCATENATE("OSUPJEUNEACCEPTREGECO_"&A24),Output!$C:$AQ,6,FALSE) -> 8073.98 | K24: =VLOOKUP(CONCATENATE("OSUPREGECO_"&A24),Output!$C:$AQ,6,FALSE) -> 40369.9 | L24: 0.03143304274 | M24: =ROUND(VLOOKUP("OSUPJEUNEREGECO_"&A24,Output!$C:$AQ,7,FALSE)/VLOOKUP("OSUPREGECO_"&A24,Output!$C:$AQ,6,FALSE),3) -> 0.108 | N24: Faible | O24: =ROUND(VLOOKUP("OSUPJEUNEREGECO_"&$A24,Output!$C:$AQ,12,FALSE)/VLOOKUP("OSUPREGECO_"&A24,Output!$C:$AQ,6,FALSE),3) -> 0.19 | P24: Faible | R24: =ROUND(VLOOKUP("OSUPVIEUXTOTREGECO_"&$A24,Output!$C:$AQ,7,FALSE)/VLOOKUP("OSUPREGECO_"&A24,Output!$C:$AQ,6,FALSE),3) -> 0.253 | S24: Modéré | T24: =ROUND(VLOOKUP("OSUPVIEUXTOTREGECO_"&$A24,Output!$C:$AQ,12,FALSE)/VLOOKUP("OSUPREGECO_"&A24,Output!$C:$AQ,6,FALSE),3) -> 0.428 | U24: Faible | W24: UTA22 | X24: Modéré | Y24: Faible | AA24: =Tableaux!$O$33 -> 09751 | AB24: UTA22 | AC24: Modéré | AD24: Faible | AE24: COS sapinière
A25: UTA23 | B25: 0.22 | C25: 0.37 | D25: 0.3 | E25: 0.2 | G25: =VLOOKUP(CONCATENATE("OSUPVIEUXALERTEREGECO_"&A25),Output!$C:$AQ,6,FALSE) -> 360.53 | H25: =VLOOKUP(CONCATENATE("OSUPVIEUXACCEPTREGECO_"&A25),Output!$C:$AQ,6,FALSE) -> 600.88 | I25: =VLOOKUP(CONCATENATE("OSUPJEUNEALERTEREGECO_"&A25),Output!$C:$AQ,6,FALSE) -> 487.2 | J25: =VLOOKUP(CONCATENATE("OSUPJEUNEACCEPTREGECO_"&A25),Output!$C:$AQ,6,FALSE) -> 324.8 | K25: =VLOOKUP(CONCATENATE("OSUPREGECO_"&A25),Output!$C:$AQ,6,FALSE) -> 1624 | L25: 0.001264488181 | M25: =ROUND(VLOOKUP("OSUPJEUNEREGECO_"&A25,Output!$C:$AQ,7,FALSE)/VLOOKUP("OSUPREGECO_"&A25,Output!$C:$AQ,6,FALSE),3) -> 0.019 | N25: Faible | O25: =ROUND(VLOOKUP("OSUPJEUNEREGECO_"&$A25,Output!$C:$AQ,12,FALSE)/VLOOKUP("OSUPREGECO_"&A25,Output!$C:$AQ,6,FALSE),3) -> 0.2 | P25: Faible | R25: =ROUND(VLOOKUP("OSUPVIEUXTOTREGECO_"&$A25,Output!$C:$AQ,7,FALSE)/VLOOKUP("OSUPREGECO_"&A25,Output!$C:$AQ,6,FALSE),3) -> 0.295 | S25: Modéré | T25: =ROUND(VLOOKUP("OSUPVIEUXTOTREGECO_"&$A25,Output!$C:$AQ,12,FALSE)/VLOOKUP("OSUPREGECO_"&A25,Output!$C:$AQ,6,FALSE),3) -> 0.64 | U25: Faible | W25: UTA23 | X25: Modéré | Y25: Faible | AA25: =Tableaux!$O$33 -> 09751 | AB25: UTA23 | AC25: Modéré | AD25: Faible | AE25: COS sapinière
A26: UTA24 | B26: 0.17 | C26: 0.2900001976 | D26: 0.3 | E26: 0.2 | G26: =VLOOKUP(CONCATENATE("OSUPVIEUXALERTEREGECO_"&A26),Output!$C:$AQ,6,FALSE) -> 4403.68 | H26: =VLOOKUP(CONCATENATE("OSUPVIEUXACCEPTREGECO_"&A26),Output!$C:$AQ,6,FALSE) -> 7339.47 | I26: =VLOOKUP(CONCATENATE("OSUPJEUNEALERTEREGECO_"&A26),Output!$C:$AQ,6,FALSE) -> 7592.55 | J26: =VLOOKUP(CONCATENATE("OSUPJEUNEACCEPTREGECO_"&A26),Output!$C:$AQ,6,FALSE) -> 5061.7 | K26: =VLOOKUP(CONCATENATE("OSUPREGECO_"&A26),Output!$C:$AQ,6,FALSE) -> 25308.5 | L26: 0.01970584922 | M26: =ROUND(VLOOKUP("OSUPJEUNEREGECO_"&A26,Output!$C:$AQ,7,FALSE)/VLOOKUP("OSUPREGECO_"&A26,Output!$C:$AQ,6,FALSE),3) -> 0 | N26: Faible | O26: =ROUND(VLOOKUP("OSUPJEUNEREGECO_"&$A26,Output!$C:$AQ,12,FALSE)/VLOOKUP("OSUPREGECO_"&A26,Output!$C:$AQ,6,FALSE),3) -> 0.032 | P26: Faible | R26: =ROUND(VLOOKUP("OSUPVIEUXTOTREGECO_"&$A26,Output!$C:$AQ,7,FALSE)/VLOOKUP("OSUPREGECO_"&A26,Output!$C:$AQ,6,FALSE),3) -> 0.21 | S26: Modéré | T26: =ROUND(VLOOKUP("OSUPVIEUXTOTREGECO_"&$A26,Output!$C:$AQ,12,FALSE)/VLOOKUP("OSUPREGECO_"&A26,Output!$C:$AQ,6,FALSE),3) -> 0.661 | U26: Faible | W26: UTA24 | X26: Modéré | Y26: Faible | AA26: =Tableaux!$O$33 -> 09751 | AB26: UTA24 | AC26: Modéré | AD26: Faible | AE26: COS sapinière
A27: UTA25 | B27: 0.23 | C27: =ROUND(H27/$K27,3) -> 0.38 | D27: 0.3 | E27: 0.2 | G27: =VLOOKUP(CONCATENATE("OSUPVIEUXALERTEREGECO_"&A27),Output!$C:$AQ,6,FALSE) -> 8120.54 | H27: =VLOOKUP(CONCATENATE("OSUPVIEUXACCEPTREGECO_"&A27),Output!$C:$AQ,6,FALSE) -> 13534.23 | I27: =VLOOKUP(CONCATENATE("OSUPJEUNEALERTEREGECO_"&A27),Output!$C:$AQ,6,FALSE) -> 10684.92 | J27: =VLOOKUP(CONCATENATE("OSUPJEUNEACCEPTREGECO_"&A27),Output!$C:$AQ,6,FALSE) -> 7123.28 | K27: =VLOOKUP(CONCATENATE("OSUPREGECO_"&A27),Output!$C:$AQ,6,FALSE) -> 35616.4 | L27: 0.02773184535 | M27: =ROUND(VLOOKUP("OSUPJEUNEREGECO_"&A27,Output!$C:$AQ,7,FALSE)/VLOOKUP("OSUPREGECO_"&A27,Output!$C:$AQ,6,FALSE),3) -> 0.018 | N27: Faible | O27: =ROUND(VLOOKUP("OSUPJEUNEREGECO_"&$A27,Output!$C:$AQ,12,FALSE)/VLOOKUP("OSUPREGECO_"&A27,Output!$C:$AQ,6,FALSE),3) -> 0.151 | P27: Faible | R27: =ROUND(VLOOKUP("OSUPVIEUXTOTREGECO_"&$A27,Output!$C:$AQ,7,FALSE)/VLOOKUP("OSUPREGECO_"&A27,Output!$C:$AQ,6,FALSE),3) -> 0.267 | S27: Modéré | T27: =ROUND(VLOOKUP("OSUPVIEUXTOTREGECO_"&$A27,Output!$C:$AQ,12,FALSE)/VLOOKUP("OSUPREGECO_"&A27,Output!$C:$AQ,6,FALSE),3) -> 0.263 | U27: Modéré | W27: UTA25 | X27: Modéré | Y27: Modéré | AA27: =Tableaux!$O$33 -> 09751 | AB27: UTA25 | AC27: Modéré | AD27: Modéré | AE27: COS sapinière
A28: UTA26 | B28: 0.17 | C28: 0.28 | D28: 0.3 | E28: 0.2 | G28: =VLOOKUP(CONCATENATE("OSUPVIEUXALERTEREGECO_"&A28),Output!$C:$AQ,6,FALSE) -> 4583.43 | H28: =VLOOKUP(CONCATENATE("OSUPVIEUXACCEPTREGECO_"&A28),Output!$C:$AQ,6,FALSE) -> 7639.04 | I28: =VLOOKUP(CONCATENATE("OSUPJEUNEALERTEREGECO_"&A28),Output!$C:$AQ,6,FALSE) -> 8184.69 | J28: =VLOOKUP(CONCATENATE("OSUPJEUNEACCEPTREGECO_"&A28),Output!$C:$AQ,6,FALSE) -> 5456.46 | K28: =VLOOKUP(CONCATENATE("OSUPREGECO_"&A28),Output!$C:$AQ,6,FALSE) -> 27282.3 | L28: 0.02124270068 | M28: =ROUND(VLOOKUP("OSUPJEUNEREGECO_"&A28,Output!$C:$AQ,7,FALSE)/VLOOKUP("OSUPREGECO_"&A28,Output!$C:$AQ,6,FALSE),3) -> 0.009 | N28: Faible | O28: =ROUND(VLOOKUP("OSUPJEUNEREGECO_"&$A28,Output!$C:$AQ,12,FALSE)/VLOOKUP("OSUPREGECO_"&A28,Output!$C:$AQ,6,FALSE),3) -> 0.05 | P28: Faible | R28: =ROUND(VLOOKUP("OSUPVIEUXTOTREGECO_"&$A28,Output!$C:$AQ,7,FALSE)/VLOOKUP("OSUPREGECO_"&A28,Output!$C:$AQ,6,FALSE),3) -> 0.344 | S28: Faible | T28: =ROUND(VLOOKUP("OSUPVIEUXTOTREGECO_"&$A28,Output!$C:$AQ,12,FALSE)/VLOOKUP("OSUPREGECO_"&A28,Output!$C:$AQ,6,FALSE),3) -> 0.316 | U28: Faible | W28: UTA26 | X28: Faible | Y28: Faible | AA28: =Tableaux!$O$33 -> 09751 | AB28: UTA26 | AC28: Faible | AD28: Faible | AE28: COS sapinière
A29: UTA27 | B29: 0.17 | C29: 0.28 | D29: 0.3 | E29: 0.2 | G29: =VLOOKUP(CONCATENATE("OSUPVIEUXALERTEREGECO_"&A29),Output!$C:$AQ,6,FALSE) -> 3089.67 | H29: =VLOOKUP(CONCATENATE("OSUPVIEUXACCEPTREGECO_"&A29),Output!$C:$AQ,6,FALSE) -> 5149.45 | I29: =VLOOKUP(CONCATENATE("OSUPJEUNEALERTEREGECO_"&A29),Output!$C:$AQ,6,FALSE) -> 5517.27 | J29: =VLOOKUP(CONCATENATE("OSUPJEUNEACCEPTREGECO_"&A29),Output!$C:$AQ,6,FALSE) -> 3678.18 | K29: =VLOOKUP(CONCATENATE("OSUPREGECO_"&A29),Output!$C:$AQ,6,FALSE) -> 18390.9 | L29: 0.01431962789 | M29: =ROUND(VLOOKUP("OSUPJEUNEREGECO_"&A29,Output!$C:$AQ,7,FALSE)/VLOOKUP("OSUPREGECO_"&A29,Output!$C:$AQ,6,FALSE),3) -> 0.01 | N29: Faible | O29: =ROUND(VLOOKUP("OSUPJEUNEREGECO_"&$A29,Output!$C:$AQ,12,FALSE)/VLOOKUP("OSUPREGECO_"&A29,Output!$C:$AQ,6,FALSE),3) -> 0.088 | P29: Faible | R29: =ROUND(VLOOKUP("OSUPVIEUXTOTREGECO_"&$A29,Output!$C:$AQ,7,FALSE)/VLOOKUP("OSUPREGECO_"&A29,Output!$C:$AQ,6,FALSE),3) -> 0.274 | S29: Modéré | T29: =ROUND(VLOOKUP("OSUPVIEUXTOTREGECO_"&$A29,Output!$C:$AQ,12,FALSE)/VLOOKUP("OSUPREGECO_"&A29,Output!$C:$AQ,6,FALSE),3) -> 0.325 | U29: Faible | W29: UTA27 | X29: Modéré | Y29: Faible | AA29: =Tableaux!$O$33 -> 09751 | AB29: UTA27 | AC29: Modéré | AD29: Faible | AE29: COS sapinière
A30: UTA28 | B30: 0.17 | C30: 0.28 | D30: 0.3 | E30: 0.2 | G30: =VLOOKUP(CONCATENATE("OSUPVIEUXALERTEREGECO_"&A30),Output!$C:$AQ,6,FALSE) -> 4309.17 | H30: =VLOOKUP(CONCATENATE("OSUPVIEUXACCEPTREGECO_"&A30),Output!$C:$AQ,6,FALSE) -> 7181.94 | I30: =VLOOKUP(CONCATENATE("OSUPJEUNEALERTEREGECO_"&A30),Output!$C:$AQ,6,FALSE) -> 7694.94 | J30: =VLOOKUP(CONCATENATE("OSUPJEUNEACCEPTREGECO_"&A30),Output!$C:$AQ,6,FALSE) -> 5129.96 | K30: =VLOOKUP(CONCATENATE("OSUPREGECO_"&A30),Output!$C:$AQ,6,FALSE) -> 25649.8 | L30: 0.01997159418 | M30: =ROUND(VLOOKUP("OSUPJEUNEREGECO_"&A30,Output!$C:$AQ,7,FALSE)/VLOOKUP("OSUPREGECO_"&A30,Output!$C:$AQ,6,FALSE),3) -> 0.01 | N30: Faible | O30: =ROUND(VLOOKUP("OSUPJEUNEREGECO_"&$A30,Output!$C:$AQ,12,FALSE)/VLOOKUP("OSUPREGECO_"&A30,Output!$C:$AQ,6,FALSE),3) -> 0 | P30: Faible | R30: =ROUND(VLOOKUP("OSUPVIEUXTOTREGECO_"&$A30,Output!$C:$AQ,7,FALSE)/VLOOKUP("OSUPREGECO_"&A30,Output!$C:$AQ,6,FALSE),3) -> 0.533 | S30: Faible | T30: =ROUND(VLOOKUP("OSUPVIEUXTOTREGECO_"&$A30,Output!$C:$AQ,12,FALSE)/VLOOKUP("OSUPREGECO_"&A30,Output!$C:$AQ,6,FALSE),3) -> 0.629 | U30: Faible | W30: UTA28 | X30: Faible | Y30: Faible | AA30: =Tableaux!$O$33 -> 09751 | AB30: UTA28 | AC30: Faible | AD30: Faible | AE30: COS sapinière
A31: UTA29 | B31: 0.23 | C31: 0.38 | D31: 0.3 | E31: 0.2 | G31: =VLOOKUP(CONCATENATE("OSUPVIEUXALERTEREGECO_"&A31),Output!$C:$AQ,6,FALSE) -> 3187.33 | H31: =VLOOKUP(CONCATENATE("OSUPVIEUXACCEPTREGECO_"&A31),Output!$C:$AQ,6,FALSE) -> 5312.21 | I31: =VLOOKUP(CONCATENATE("OSUPJEUNEALERTEREGECO_"&A31),Output!$C:$AQ,6,FALSE) -> 4193.85 | J31: =VLOOKUP(CONCATENATE("OSUPJEUNEACCEPTREGECO_"&A31),Output!$C:$AQ,6,FALSE) -> 2795.9 | K31: =VLOOKUP(CONCATENATE("OSUPREGECO_"&A31),Output!$C:$AQ,6,FALSE) -> 13979.5 | L31: 0.01088479835 | M31: =ROUND(VLOOKUP("OSUPJEUNEREGECO_"&A31,Output!$C:$AQ,7,FALSE)/VLOOKUP("OSUPREGECO_"&A31,Output!$C:$AQ,6,FALSE),3) -> 0.002 | N31: Faible | O31: =ROUND(VLOOKUP("OSUPJEUNEREGECO_"&$A31,Output!$C:$AQ,12,FALSE)/VLOOKUP("OSUPREGECO_"&A31,Output!$C:$AQ,6,FALSE),3) -> 0.215 | P31: Modéré | R31: =ROUND(VLOOKUP("OSUPVIEUXTOTREGECO_"&$A31,Output!$C:$AQ,7,FALSE)/VLOOKUP("OSUPREGECO_"&A31,Output!$C:$AQ,6,FALSE),3) -> 0.195 | S31: Supérieur | T31: =ROUND(VLOOKUP("OSUPVIEUXTOTREGECO_"&$A31,Output!$C:$AQ,12,FALSE)/VLOOKUP("OSUPREGECO_"&A31,Output!$C:$AQ,6,FALSE),3) -> 0.423 | U31: Faible | W31: UTA29 | X31: Supérieur | Y31: Modéré | AA31: =Tableaux!$O$33 -> 09751 | AB31: UTA29 | AC31: Supérieur | AD31: Faible | AE31: COS sapinière
A32: UTA30 | B32: 0.23 | C32: 0.38 | D32: 0.3 | E32: 0.2 | G32: =VLOOKUP(CONCATENATE("OSUPVIEUXALERTEREGECO_"&A32),Output!$C:$AQ,6,FALSE) -> 2626.13 | H32: =VLOOKUP(CONCATENATE("OSUPVIEUXACCEPTREGECO_"&A32),Output!$C:$AQ,6,FALSE) -> 4376.88 | I32: =VLOOKUP(CONCATENATE("OSUPJEUNEALERTEREGECO_"&A32),Output!$C:$AQ,6,FALSE) -> 3455.43 | J32: =VLOOKUP(CONCATENATE("OSUPJEUNEACCEPTREGECO_"&A32),Output!$C:$AQ,6,FALSE) -> 2303.62 | K32: =VLOOKUP(CONCATENATE("OSUPREGECO_"&A32),Output!$C:$AQ,6,FALSE) -> 11518.1 | L32: 0.008968288988 | M32: =ROUND(VLOOKUP("OSUPJEUNEREGECO_"&A32,Output!$C:$AQ,7,FALSE)/VLOOKUP("OSUPREGECO_"&A32,Output!$C:$AQ,6,FALSE),3) -> 0.026 | N32: Faible | O32: =ROUND(VLOOKUP("OSUPJEUNEREGECO_"&$A32,Output!$C:$AQ,12,FALSE)/VLOOKUP("OSUPREGECO_"&A32,Output!$C:$AQ,6,FALSE),3) -> 0.17 | P32: Faible | R32: =ROUND(VLOOKUP("OSUPVIEUXTOTREGECO_"&$A32,Output!$C:$AQ,7,FALSE)/VLOOKUP("OSUPREGECO_"&A32,Output!$C:$AQ,6,FALSE),3) -> 0.284 | S32: Modéré | T32: =ROUND(VLOOKUP("OSUPVIEUXTOTREGECO_"&$A32,Output!$C:$AQ,12,FALSE)/VLOOKUP("OSUPREGECO_"&A32,Output!$C:$AQ,6,FALSE),3) -> 0.397 | U32: Faible | W32: UTA30 | X32: Modéré | Y32: Faible | AA32: =Tableaux!$O$33 -> 09751 | AB32: UTA30 | AC32: Modéré | AD32: Faible | AE32: COS sapinière
G33: =VLOOKUP(CONCATENATE("OSUPVIEUXALERTEREGECO_"&A33),Output!$C:$AQ,6,FALSE) ->  | H33: =VLOOKUP(CONCATENATE("OSUPVIEUXACCEPTREGECO_"&A33),Output!$C:$AQ,6,FALSE) ->  | I33: =VLOOKUP(CONCATENATE("OSUPJEUNEALERTEREGECO_"&A33),Output!$C:$AQ,6,FALSE) ->  | J33: =VLOOKUP(CONCATENATE("OSUPJEUNEACCEPTREGECO_"&A33),Output!$C:$AQ,6,FALSE) ->  | K33: =VLOOKUP(CONCATENATE("OSUPREGECO_"&A33),Output!$C:$AQ,6,FALSE) ->  | M33: =ROUND(VLOOKUP("OSUPJEUNEREGECO_"&A33,Output!$C:$AQ,7,FALSE)/VLOOKUP("OSUPREGECO_"&A33,Output!$C:$AQ,6,FALSE),3) ->  | O33: =ROUND(VLOOKUP("OSUPJEUNEREGECO_"&$A33,Output!$C:$AQ,12,FALSE)/VLOOKUP("OSUPREGECO_"&A33,Output!$C:$AQ,6,FALSE),3) ->  | R33: =ROUND(VLOOKUP("OSUPVIEUXTOTREGECO_"&$A33,Output!$C:$AQ,7,FALSE)/VLOOKUP("OSUPREGECO_"&A33,Output!$C:$AQ,6,FALSE),3) ->  | T33: =ROUND(VLOOKUP("OSUPVIEUXTOTREGECO_"&$A33,Output!$C:$AQ,12,FALSE)/VLOOKUP("OSUPREGECO_"&A33,Output!$C:$AQ,6,FALSE),3) ->  | W33: 0 | AA33: =Tableaux!$O$33 -> 09751 | AB33: =W33 -> 0
G34: =VLOOKUP(CONCATENATE("OSUPVIEUXALERTEREGECO_"&A34),Output!$C:$AQ,6,FALSE) ->  | H34: =VLOOKUP(CONCATENATE("OSUPVIEUXACCEPTREGECO_"&A34),Output!$C:$AQ,6,FALSE) ->  | I34: =VLOOKUP(CONCATENATE("OSUPJEUNEALERTEREGECO_"&A34),Output!$C:$AQ,6,FALSE) ->  | J34: =VLOOKUP(CONCATENATE("OSUPJEUNEACCEPTREGECO_"&A34),Output!$C:$AQ,6,FALSE) ->  | K34: =VLOOKUP(CONCATENATE("OSUPREGECO_"&A34),Output!$C:$AQ,6,FALSE) ->  | M34: =ROUND(VLOOKUP("OSUPJEUNEREGECO_"&A34,Output!$C:$AQ,7,FALSE)/VLOOKUP("OSUPREGECO_"&A34,Output!$C:$AQ,6,FALSE),3) ->  | O34: =ROUND(VLOOKUP("OSUPJEUNEREGECO_"&$A34,Output!$C:$AQ,12,FALSE)/VLOOKUP("OSUPREGECO_"&A34,Output!$C:$AQ,6,FALSE),3) ->  | R34: =ROUND(VLOOKUP("OSUPVIEUXTOTREGECO_"&$A34,Output!$C:$AQ,7,FALSE)/VLOOKUP("OSUPREGECO_"&A34,Output!$C:$AQ,6,FALSE),3) ->  | T34: =ROUND(VLOOKUP("OSUPVIEUXTOTREGECO_"&$A34,Output!$C:$AQ,12,FALSE)/VLOOKUP("OSUPREGECO_"&A34,Output!$C:$AQ,6,FALSE),3) ->  | W34: 0 | AA34: =Tableaux!$O$33 -> 09751 | AB34: 0
G35: =VLOOKUP(CONCATENATE("OSUPVIEUXALERTEREGECO_"&A35),Output!$C:$AQ,6,FALSE) ->  | H35: =VLOOKUP(CONCATENATE("OSUPVIEUXACCEPTREGECO_"&A35),Output!$C:$AQ,6,FALSE) ->  | I35: =VLOOKUP(CONCATENATE("OSUPJEUNEALERTEREGECO_"&A35),Output!$C:$AQ,6,FALSE) ->  | J35: =VLOOKUP(CONCATENATE("OSUPJEUNEACCEPTREGECO_"&A35),Output!$C:$AQ,6,FALSE) ->  | K35: =VLOOKUP(CONCATENATE("OSUPREGECO_"&A35),Output!$C:$AQ,6,FALSE) ->  | M35: =ROUND(VLOOKUP("OSUPJEUNEREGECO_"&A35,Output!$C:$AQ,7,FALSE)/VLOOKUP("OSUPREGECO_"&A35,Output!$C:$AQ,6,FALSE),3) ->  | O35: =ROUND(VLOOKUP("OSUPJEUNEREGECO_"&$A35,Output!$C:$AQ,12,FALSE)/VLOOKUP("OSUPREGECO_"&A35,Output!$C:$AQ,6,FALSE),3) ->  | R35: =ROUND(VLOOKUP("OSUPVIEUXTOTREGECO_"&$A35,Output!$C:$AQ,7,FALSE)/VLOOKUP("OSUPREGECO_"&A35,Output!$C:$AQ,6,FALSE),3) ->  | T35: =ROUND(VLOOKUP("OSUPVIEUXTOTREGECO_"&$A35,Output!$C:$AQ,12,FALSE)/VLOOKUP("OSUPREGECO_"&A35,Output!$C:$AQ,6,FALSE),3) ->  | W35: 0 | AA35: =Tableaux!$O$33 -> 09751 | AB35: 0
G36: =VLOOKUP(CONCATENATE("OSUPVIEUXALERTEREGECO_"&A36),Output!$C:$AQ,6,FALSE) ->  | H36: =VLOOKUP(CONCATENATE("OSUPVIEUXACCEPTREGECO_"&A36),Output!$C:$AQ,6,FALSE) ->  | I36: =VLOOKUP(CONCATENATE("OSUPJEUNEALERTEREGECO_"&A36),Output!$C:$AQ,6,FALSE) ->  | J36: =VLOOKUP(CONCATENATE("OSUPJEUNEACCEPTREGECO_"&A36),Output!$C:$AQ,6,FALSE) ->  | K36: =VLOOKUP(CONCATENATE("OSUPREGECO_"&A36),Output!$C:$AQ,6,FALSE) ->  | M36: =ROUND(VLOOKUP("OSUPJEUNEREGECO_"&A36,Output!$C:$AQ,7,FALSE)/VLOOKUP("OSUPREGECO_"&A36,Output!$C:$AQ,6,FALSE),3) ->  | O36: =ROUND(VLOOKUP("OSUPJEUNEREGECO_"&$A36,Output!$C:$AQ,12,FALSE)/VLOOKUP("OSUPREGECO_"&A36,Output!$C:$AQ,6,FALSE),3) ->  | R36: =ROUND(VLOOKUP("OSUPVIEUXTOTREGECO_"&$A36,Output!$C:$AQ,7,FALSE)/VLOOKUP("OSUPREGECO_"&A36,Output!$C:$AQ,6,FALSE),3) ->  | T36: =ROUND(VLOOKUP("OSUPVIEUXTOTREGECO_"&$A36,Output!$C:$AQ,12,FALSE)/VLOOKUP("OSUPREGECO_"&A36,Output!$C:$AQ,6,FALSE),3) ->  | W36: 0 | AA36: =Tableaux!$O$33 -> 09751 | AB36: 0
G37: =VLOOKUP(CONCATENATE("OSUPVIEUXALERTEREGECO_"&A37),Output!$C:$AQ,6,FALSE) ->  | H37: =VLOOKUP(CONCATENATE("OSUPVIEUXACCEPTREGECO_"&A37),Output!$C:$AQ,6,FALSE) ->  | I37: =VLOOKUP(CONCATENATE("OSUPJEUNEALERTEREGECO_"&A37),Output!$C:$AQ,6,FALSE) ->  | J37: =VLOOKUP(CONCATENATE("OSUPJEUNEACCEPTREGECO_"&A37),Output!$C:$AQ,6,FALSE) ->  | K37: =VLOOKUP(CONCATENATE("OSUPREGECO_"&A37),Output!$C:$AQ,6,FALSE) ->  | M37: =ROUND(VLOOKUP("OSUPJEUNEREGECO_"&A37,Output!$C:$AQ,7,FALSE)/VLOOKUP("OSUPREGECO_"&A37,Output!$C:$AQ,6,FALSE),3) ->  | O37: =ROUND(VLOOKUP("OSUPJEUNEREGECO_"&$A37,Output!$C:$AQ,12,FALSE)/VLOOKUP("OSUPREGECO_"&A37,Output!$C:$AQ,6,FALSE),3) ->  | R37: =ROUND(VLOOKUP("OSUPVIEUXTOTREGECO_"&$A37,Output!$C:$AQ,7,FALSE)/VLOOKUP("OSUPREGECO_"&A37,Output!$C:$AQ,6,FALSE),3) ->  | T37: =ROUND(VLOOKUP("OSUPVIEUXTOTREGECO_"&$A37,Output!$C:$AQ,12,FALSE)/VLOOKUP("OSUPREGECO_"&A37,Output!$C:$AQ,6,FALSE),3) ->  | W37: 0 | AA37: =Tableaux!$O$33 -> 09751 | AB37: 0
G38: =VLOOKUP(CONCATENATE("OSUPVIEUXALERTEREGECO_"&A38),Output!$C:$AQ,6,FALSE) ->  | H38: =VLOOKUP(CONCATENATE("OSUPVIEUXACCEPTREGECO_"&A38),Output!$C:$AQ,6,FALSE) ->  | I38: =VLOOKUP(CONCATENATE("OSUPJEUNEALERTEREGECO_"&A38),Output!$C:$AQ,6,FALSE) ->  | J38: =VLOOKUP(CONCATENATE("OSUPJEUNEACCEPTREGECO_"&A38),Output!$C:$AQ,6,FALSE) ->  | K38: =VLOOKUP(CONCATENATE("OSUPREGECO_"&A38),Output!$C:$AQ,6,FALSE) ->  | M38: =ROUND(VLOOKUP("OSUPJEUNEREGECO_"&A38,Output!$C:$AQ,7,FALSE)/VLOOKUP("OSUPREGECO_"&A38,Output!$C:$AQ,6,FALSE),3) ->  | O38: =ROUND(VLOOKUP("OSUPJEUNEREGECO_"&$A38,Output!$C:$AQ,12,FALSE)/VLOOKUP("OSUPREGECO_"&A38,Output!$C:$AQ,6,FALSE),3) ->  | R38: =ROUND(VLOOKUP("OSUPVIEUXTOTREGECO_"&$A38,Output!$C:$AQ,7,FALSE)/VLOOKUP("OSUPREGECO_"&A38,Output!$C:$AQ,6,FALSE),3) ->  | T38: =ROUND(VLOOKUP("OSUPVIEUXTOTREGECO_"&$A38,Output!$C:$AQ,12,FALSE)/VLOOKUP("OSUPREGECO_"&A38,Output!$C:$AQ,6,FALSE),3) ->  | W38: 0 | AA38: =Tableaux!$O$33 -> 09751 | AB38: 0
G39: =VLOOKUP(CONCATENATE("OSUPVIEUXALERTEREGECO_"&A39),Output!$C:$AQ,6,FALSE) ->  | H39: =VLOOKUP(CONCATENATE("OSUPVIEUXACCEPTREGECO_"&A39),Output!$C:$AQ,6,FALSE) ->  | I39: =VLOOKUP(CONCATENATE("OSUPJEUNEALERTEREGECO_"&A39),Output!$C:$AQ,6,FALSE) ->  | J39: =VLOOKUP(CONCATENATE("OSUPJEUNEACCEPTREGECO_"&A39),Output!$C:$AQ,6,FALSE) ->  | K39: =VLOOKUP(CONCATENATE("OSUPREGECO_"&A39),Output!$C:$AQ,6,FALSE) ->  | M39: =ROUND(VLOOKUP("OSUPJEUNEREGECO_"&A39,Output!$C:$AQ,7,FALSE)/VLOOKUP("OSUPREGECO_"&A39,Output!$C:$AQ,6,FALSE),3) ->  | O39: =ROUND(VLOOKUP("OSUPJEUNEREGECO_"&$A39,Output!$C:$AQ,12,FALSE)/VLOOKUP("OSUPREGECO_"&A39,Output!$C:$AQ,6,FALSE),3) ->  | R39: =ROUND(VLOOKUP("OSUPVIEUXTOTREGECO_"&$A39,Output!$C:$AQ,7,FALSE)/VLOOKUP("OSUPREGECO_"&A39,Output!$C:$AQ,6,FALSE),3) ->  | T39: =ROUND(VLOOKUP("OSUPVIEUXTOTREGECO_"&$A39,Output!$C:$AQ,12,FALSE)/VLOOKUP("OSUPREGECO_"&A39,Output!$C:$AQ,6,FALSE),3) ->  | W39: 0 | AA39: =Tableaux!$O$33 -> 09751 | AB39: 0
G40: =VLOOKUP(CONCATENATE("OSUPVIEUXALERTEREGECO_"&A40),Output!$C:$AQ,6,FALSE) ->  | H40: =VLOOKUP(CONCATENATE("OSUPVIEUXACCEPTREGECO_"&A40),Output!$C:$AQ,6,FALSE) ->  | I40: =VLOOKUP(CONCATENATE("OSUPJEUNEALERTEREGECO_"&A40),Output!$C:$AQ,6,FALSE) ->  | J40: =VLOOKUP(CONCATENATE("OSUPJEUNEACCEPTREGECO_"&A40),Output!$C:$AQ,6,FALSE) ->  | K40: =VLOOKUP(CONCATENATE("OSUPREGECO_"&A40),Output!$C:$AQ,6,FALSE) ->  | M40: =ROUND(VLOOKUP("OSUPJEUNEREGECO_"&A40,Output!$C:$AQ,7,FALSE)/VLOOKUP("OSUPREGECO_"&A40,Output!$C:$AQ,6,FALSE),3) ->  | O40: =ROUND(VLOOKUP("OSUPJEUNEREGECO_"&$A40,Output!$C:$AQ,12,FALSE)/VLOOKUP("OSUPREGECO_"&A40,Output!$C:$AQ,6,FALSE),3) ->  | R40: =ROUND(VLOOKUP("OSUPVIEUXTOTREGECO_"&$A40,Output!$C:$AQ,7,FALSE)/VLOOKUP("OSUPREGECO_"&A40,Output!$C:$AQ,6,FALSE),3) ->  | T40: =ROUND(VLOOKUP("OSUPVIEUXTOTREGECO_"&$A40,Output!$C:$AQ,12,FALSE)/VLOOKUP("OSUPREGECO_"&A40,Output!$C:$AQ,6,FALSE),3) ->  | W40: 0 | AA40: =Tableaux!$O$33 -> 09751 | AB40: 0
G41: =VLOOKUP(CONCATENATE("OSUPVIEUXALERTEREGECO_"&A41),Output!$C:$AQ,6,FALSE) ->  | H41: =VLOOKUP(CONCATENATE("OSUPVIEUXACCEPTREGECO_"&A41),Output!$C:$AQ,6,FALSE) ->  | I41: =VLOOKUP(CONCATENATE("OSUPJEUNEALERTEREGECO_"&A41),Output!$C:$AQ,6,FALSE) ->  | J41: =VLOOKUP(CONCATENATE("OSUPJEUNEACCEPTREGECO_"&A41),Output!$C:$AQ,6,FALSE) ->  | K41: =VLOOKUP(CONCATENATE("OSUPREGECO_"&A41),Output!$C:$AQ,6,FALSE) ->  | M41: =ROUND(VLOOKUP("OSUPJEUNEREGECO_"&A41,Output!$C:$AQ,7,FALSE)/VLOOKUP("OSUPREGECO_"&A41,Output!$C:$AQ,6,FALSE),3) ->  | O41: =ROUND(VLOOKUP("OSUPJEUNEREGECO_"&$A41,Output!$C:$AQ,12,FALSE)/VLOOKUP("OSUPREGECO_"&A41,Output!$C:$AQ,6,FALSE),3) ->  | R41: =ROUND(VLOOKUP("OSUPVIEUXTOTREGECO_"&$A41,Output!$C:$AQ,7,FALSE)/VLOOKUP("OSUPREGECO_"&A41,Output!$C:$AQ,6,FALSE),3) ->  | T41: =ROUND(VLOOKUP("OSUPVIEUXTOTREGECO_"&$A41,Output!$C:$AQ,12,FALSE)/VLOOKUP("OSUPREGECO_"&A41,Output!$C:$AQ,6,FALSE),3) ->  | W41: 0 | AA41: =Tableaux!$O$33 -> 09751 | AB41: 0
G42: =VLOOKUP(CONCATENATE("OSUPVIEUXALERTEREGECO_"&A42),Output!$C:$AQ,6,FALSE) ->  | H42: =VLOOKUP(CONCATENATE("OSUPVIEUXACCEPTREGECO_"&A42),Output!$C:$AQ,6,FALSE) ->  | I42: =VLOOKUP(CONCATENATE("OSUPJEUNEALERTEREGECO_"&A42),Output!$C:$AQ,6,FALSE) ->  | J42: =VLOOKUP(CONCATENATE("OSUPJEUNEACCEPTREGECO_"&A42),Output!$C:$AQ,6,FALSE) ->  | K42: =VLOOKUP(CONCATENATE("OSUPREGECO_"&A42),Output!$C:$AQ,6,FALSE) ->  | M42: =ROUND(VLOOKUP("OSUPJEUNEREGECO_"&A42,Output!$C:$AQ,7,FALSE)/VLOOKUP("OSUPREGECO_"&A42,Output!$C:$AQ,6,FALSE),3) ->  | O42: =ROUND(VLOOKUP("OSUPJEUNEREGECO_"&$A42,Output!$C:$AQ,12,FALSE)/VLOOKUP("OSUPREGECO_"&A42,Output!$C:$AQ,6,FALSE),3) ->  | R42: =ROUND(VLOOKUP("OSUPVIEUXTOTREGECO_"&$A42,Output!$C:$AQ,7,FALSE)/VLOOKUP("OSUPREGECO_"&A42,Output!$C:$AQ,6,FALSE),3) ->  | T42: =ROUND(VLOOKUP("OSUPVIEUXTOTREGECO_"&$A42,Output!$C:$AQ,12,FALSE)/VLOOKUP("OSUPREGECO_"&A42,Output!$C:$AQ,6,FALSE),3) ->  | W42: 0 | AA42: =Tableaux!$O$33 -> 09751 | AB42: 0

Sheet Output
C1: 1 | D1: 2 | E1: 3 | F1: 4 | G1: 5 | H1: 6 | I1: 7 | J1: 8 | K1: 9 | L1: 10 | M1: 11 | N1: 12 | O1: 13 | P1: 14 | Q1: 15 | R1: 16 | S1: 17 | T1: 18 | U1: 19 | V1: 20 | W1: 21 | X1: 22 | Y1: 23 | Z1: 24 | AA1: 25 | AB1: 26 | AC1: 27 | AD1: 28 | AE1: 29 | AF1: 30 | AG1: 31 | AH1: 32 | AI1: 33 | AJ1: 34 | AK1: 35 | AL1: 36 | AM1: 37 | AN1: 38 | AO1: 39 | AP1: 40 | AQ1: 41
A2: Record | B2: Group | C2: Name | D2: Description | E2: Attribute | F2: Minimum | G2: Maximum | H2: Period0 | I2: Period1 | J2: Period2 | K2: Period3 | L2: Period4 | M2: Period5 | N2: Period6 | O2: Period7 | P2: Period8 | Q2: Period9 | R2: Period10 | S2: Period11 | T2: Period12 | U2: Period13 | V2: Period14 | W2: Period15 | X2: Period16 | Y2: Period17 | Z2: Period18 | AA2: Period19 | AB2: Period20 | AC2: Period21 | AD2: Period22 | AE2: Period23 | AF2: Period24 | AG2: Period25 | AH2: Period26 | AI2: Period27 | AJ2: Period28 | AK2: Period29 | AL2: Period30 | AM2: Moyemme P2 à P6 | AN2: Moyenne P7 à P11 | AO2: Moyenne P12 à P20 | AP2: Moyenne P21 à P30 | AQ2: Moyenne P2 à P30
A3: Record | B3: Group | C3: Name | D3: Description | E3: Attribute | F3: Minimum | G3: Maximum | H3: Period0 | I3: Period1 | J3: Period2 | K3: Period3 | L3: Period4 | M3: Period5 | N3: Period6 | O3: Period7 | P3: Period8 | Q3: Period9 | R3: Period10 | S3: Period11 | T3: Period12 | U3: Period13 | V3: Period14 | W3: Period15 | X3: Period16 | Y3: Period17 | Z3: Period18 | AA3: Period19 | AB3: Period20 | AC3: Period21 | AD3: Period22 | AE3: Period23 | AF3: Period24 | AG3: Period25 | AH3: Period26 | AI3: Period27 | AJ3: Period28 | AK3: Period29 | AL3: Period30 | AM3: =AVERAGE(J3:N3) ->  | AN3: =AVERAGE(O3:S3) ->  | AO3: =AVERAGE(T3:AB3) ->  | AP3: =AVERAGE(AC3:AL3) ->  | AQ3: =AVERAGE(J3:AL3) -> 
A4: 1 | B4: <Non regroupé(s)> | C4: OSUPTOT | D4: Superficie Totale | F4: 1533195.4 | G4: 1533195.4 | H4: 1533195.4 | I4: 1533195.4 | J4: 1533195.4 | K4: 1533195.4 | L4: 1533195.4 | M4: 1533195.4 | N4: 1533195.4 | O4: 1533195.4 | P4: 1533195.4 | Q4: 1533195.4 | R4: 1533195.4 | S4: 1533195.4 | T4: 1533195.4 | U4: 1533195.4 | V4: 1533195.4 | W4: 1533195.4 | X4: 1533195.4 | Y4: 1533195.4 | Z4: 1533195.4 | AA4: 1533195.4 | AB4: 1533195.4 | AC4: 1533195.4 | AD4: 1533195.4 | AE4: 1533195.4 | AF4: 1533195.4 | AG4: 1533195.4 | AH4: 1533195.4 | AI4: 1533195.4 | AJ4: 1533195.4 | AK4: 1533195.4 | AL4: 1533195.4 | AM4: =AVERAGE(J4:N4) -> 1533195.4 | AN4: =AVERAGE(O4:S4) -> 1533195.4 | AO4: =AVERAGE(T4:AB4) -> 1533195.4 | AP4: =AVERAGE(AC4:AL4) -> 1533195.4 | AQ4: =AVERAGE(J4:AL4) -> 1533195.4
A5: 2 | B5: <Non regroupé(s)> | C5: OSUPINC | D5: Superficie InclusActions par courbe | F5: 933060.41 | G5: 961670.2 | H5: 961670.2 | I5: 959646.75 | J5: 957666.92 | K5: 955887.83 | L5: 954131.42 | M5: 952506.32 | N5: 950976.64 | O5: 948871.76 | P5: 946866.7 | Q5: 945085.67 | R5: 943487.93 | S5: 941701.35 | T5: 940301.76 | U5: 939114.99 | V5: 937499.61 | W5: 936349.38 | X5: 935226.46 | Y5: 934526.83 | Z5: 934151.09 | AA5: 933820.71 | AB5: 933557.59 | AC5: 933417.06 | AD5: 933350.96 | AE5: 933275.25 | AF5: 933256.71 | AG5: 933220.8 | AH5: 933204.51 | AI5: 933197.88 | AJ5: 933162.05 | AK5: 933135.22 | AL5: 933060.41 | AM5: 954233.826 | AN5: 945202.682 | AO5: 936060.9356 | AP5: 933228.085 | AQ5: 939793.5107
A6: 3 | B6: <Non regroupé(s)> | C6: OSUPregECO | D6: Superficie Disponible aux Résultats Écologiques | F6: 1268160.81 | G6: 1296770.6 | H6: 1296770.6 | I6: 1294747.15 | J6: 1292767.32 | K6: 1290988.23 | L6: 1289231.82 | M6: 1287606.72 | N6: 1286077.04 | O6: 1283972.16 | P6: 1281967.1 | Q6: 1280186.07 | R6: 1278588.33 | S6: 1276801.75 | T6: 1275402.16 | U6: 1274215.39 | V6: 1272600.01 | W6: 1271449.78 | X6: 1270326.86 | Y6: 1269627.23 | Z6: 1269251.49 | AA6: 1268921.11 | AB6: 1268657.99 | AC6: 1268517.46 | AD6: 1268451.36 | AE6: 1268375.65 | AF6: 1268357.11 | AG6: 1268321.2 | AH6: 1268304.91 | AI6: 1268298.28 | AJ6: 1268262.45 | AK6: 1268235.62 | AL6: 1268160.81 | AM6: 1289334.226 | AN6: 1280303.082 | AO6: 1271161.336 | AP6: 1268328.485 | AQ6: 1274893.911
A7: 4 | B7: <Non regroupé(s)> | C7: OSUPEXIN | D7: Superficie ExcluActionsInclus | F7: 335100.4 | G7: 335100.4 | H7: 335100.4 | I7: 335100.4 | J7: 335100.4 | K7: 335100.4 | L7: 335100.4 | M7: 335100.4 | N7: 335100.4 | O7: 335100.4 | P7: 335100.4 | Q7: 335100.4 | R7: 335100.4 | S7: 335100.4 | T7: 335100.4 | U7: 335100.4 | V7: 335100.4 | W7: 335100.4 | X7: 335100.4 | Y7: 335100.4 | Z7: 335100.4 | AA7: 335100.4 | AB7: 335100.4 | AC7: 335100.4 | AD7: 335100.4 | AE7: 335100.4 | AF7: 335100.4 | AG7: 335100.4 | AH7: 335100.4 | AI7: 335100.4 | AJ7: 335100.4 | AK7: 335100.4 | AL7: 335100.4 | AM7: 335100.4 | AN7: 335100.4 | AO7: 335100.4 | AP7: 335100.4 | AQ7: 335100.4
A8: 5 | B8: <Non regroupé(s)> | C8: OSUPEXTI | D8: Superficie Improductive | F8: 69023.3 | G8: 69023.3 | H8: 69023.3 | I8: 69023.3 | J8: 69023.3 | K8: 69023.3 | L8: 69023.3 | M8: 69023.3 | N8: 69023.3 | O8: 69023.3 | P8: 69023.3 | Q8: 69023.3 | R8: 69023.3 | S8: 69023.3 | T8: 69023.3 | U8: 69023.3 | V8: 69023.3 | W8: 69023.3 | X8: 69023.3 | Y8: 69023.3 | Z8: 69023.3 | AA8: 69023.3 | AB8: 69023.3 | AC8: 69023.3 | AD8: 69023.3 | AE8: 69023.3 | AF8: 69023.3 | AG8: 69023.3 | AH8: 69023.3 | AI8: 69023.3 | AJ8: 69023.3 | AK8: 69023.3 | AL8: 69023.3 | AM8: 69023.3 | AN8: 69023.3 | AO8: 69023.3 | AP8: 69023.3 | AQ8: 69023.3
A9: 6 | B9: <Non regroupé(s)> | C9: OSUPLOCK | D9: Superficie Sous Verrous | F9: 14980.19 | G9: 219323.56 | H9: 211746.5 | I9: 211854.99 | J9: 211490.45 | K9: 214700.73 | L9: 219323.56 | M9: 153267.42 | N9: 158564.21 | O9: 162720.48 | P9: 85388.46 | Q9: 38930.71 | R9: 38072.56 | S9: 41469.86 | T9: 41408.9 | U9: 39321.07 | V9: 36654.45 | W9: 35781.52 | X9: 35471.73 | Y9: 33503.53 | Z9: 26152.2 | AA9: 26226.51 | AB9: 22897.77 | AC9: 20757.51 | AD9: 14980.19 | AE9: 17456.29 | AF9: 18931.08 | AG9: 23560.41 | AH9: 25007.59 | AI9: 31931.93 | AJ9: 35347.09 | AK9: 36923.56 | AL9: 32774.04 | AM9: 191469.274 | AN9: 73316.414 | AO9: 33046.40889 | AP9: 25766.969 | AQ9: 64793.64862
A10: 7 | B10: Economique | C10: oSupTcsdDEG_1_T100% | D10: oSupTcsdDEG_1_T100% | F10: 0 | G10: 11253.7 | H10: 0 | I10: 11253.7 | J10: 3060 | K10: 4179.31 | L10: 3866.03 | M10: 1679.21 | N10: 1187.96 | O10: 2746.06 | P10: 3357.9 | Q10: 2469.89 | R10: 2320.3 | S10: 2617.75 | T10: 2638.41 | U10: 2836.82 | V10: 3361.62 | W10: 2563.21 | X10: 2559.2 | Y10: 2991.61 | Z10: 3395.31 | AA10: 2891.45 | AB10: 2321.2 | AC10: 2327.12 | AD10: 2309.17 | AE10: 2055.72 | AF10: 2247.52 | AG10: 3060.63 | AH10: 2367.73 | AI10: 1093.09 | AJ10: 0 | AK10: 42.51 | AL10: 3300.41 | AM10: 2794.502 | AN10: 2702.38 | AO10: 2839.87 | AP10: 1880.39 | AQ10: 2477.487586
A11: 8 | B11: Economique | C11: oSupTcsdDEG_2_T100% | D11: oSupTcsdDEG_2_T100% | F11: 0 | G11: 1485 | H11: 0 | I11: 155.3 | J11: 1485 | K11: 343.87 | L11: 678.97 | M11: 1371.98 | N11: 1405.96 | O11: 0 | P11: 0 | Q11: 0 | R11: 0 | S11: 0 | T11: 0 | U11: 0 | V11: 0 | W11: 0 | X11: 0 | Y11: 0 | Z11: 0 | AA11: 0 | AB11: 0 | AC11: 0 | AD11: 0 | AE11: 0 | AF11: 0 | AG11: 0 | AH11: 0 | AI11: 0 | AJ11: 0 | AK11: 0 | AL11: 0 | AM11: 1057.156 | AN11: 0 | AO11: 0 | AP11: 0 | AQ11: 182.2682759
A12: 9 | B12: Economique | C12: oSupDEG_1_T100% | D12: oSupDEG_1_T100% | F12: 0 | G12: 11253.7 | H12: 0 | I12: 11253.7 | J12: 3060 | K12: 4179.31 | L12: 3866.03 | M12: 1679.21 | N12: 1187.96 | O12: 2746.06 | P12: 3357.9 | Q12: 2469.89 | R12: 2320.3 | S12: 2617.75 | T12: 2638.41 | U12: 2836.82 | V12: 3361.62 | W12: 2563.21 | X12: 2559.2 | Y12: 2991.61 | Z12: 3395.31 | AA12: 2891.45 | AB12: 2321.2 | AC12: 2327.12 | AD12: 2309.17 | AE12: 2055.72 | AF12: 2247.52 | AG12: 3060.63 | AH12: 2367.73 | AI12: 1093.09 | AJ12: 0 | AK12: 42.51 | AL12: 3300.41 | AM12: 2794.502 | AN12: 2702.38 | AO12: 2839.87 | AP12: 1880.39 | AQ12: 2477.487586
A13: 10 | B13: Economique | C13: oSupDEG_2_T100% | D13: oSupDEG_2_T100% | F13: 0 | G13: 1485 | H13: 0 | I13: 155.3 | J13: 1485 | K13: 343.87 | L13: 678.97 | M13: 1371.98 | N13: 1405.96 | O13: 0 | P13: 0 | Q13: 0 | R13: 0 | S13: 0 | T13: 0 | U13: 0 | V13: 0 | W13: 0 | X13: 0 | Y13: 0 | Z13: 0 | AA13: 0 | AB13: 0 | AC13: 0 | AD13: 0 | AE13: 0 | AF13: 0 | AG13: 0 | AH13: 0 | AI13: 0 | AJ13: 0 | AK13: 0 | AL13: 0 | AM13: 1057.156 | AN13: 0 | AO13: 0 | AP13: 0 | AQ13: 182.2682759
A14: 11 | B14: Economique | C14: oSupDEG_1 | D14: oSupDEG_1 | F14: 0 | G14: 11253.7 | H14: 0 | I14: 11253.7 | J14: 3060 | K14: 4179.31 | L14: 3866.03 | M14: 1679.21 | N14: 1187.96 | O14: 2746.06 | P14: 3357.9 | Q14: 2469.89 | R14: 2320.3 | S14: 2617.75 | T14: 2638.41 | U14: 2836.82 | V14: 3361.62 | W14: 2563.21 | X14: 2559.2 | Y14: 2991.61 | Z14: 3395.31 | AA14: 2891.45 | AB14: 2321.2 | AC14: 2327.12 | AD14: 2309.17 | AE14: 2055.72 | AF14: 2247.52 | AG14: 3060.63 | AH14: 2367.73 | AI14: 1093.09 | AJ14: 0 | AK14: 42.51 | AL14: 3300.41 | AM14: 2794.502 | AN14: 2702.38 | AO14: 2839.87 | AP14: 1880.39 | AQ14: 2477.487586
A15: 12 | B15: Economique | C15: oSupDEG_2 | D15: oSupDEG_2 | F15: 0 | G15: 1485 | H15: 0 | I15: 155.3 | J15: 1485 | K15: 343.87 | L15: 678.97 | M15: 1371.98 | N15: 1405.96 | O15: 0 | P15: 0 | Q15: 0 | R15: 0 | S15: 0 | T15: 0 | U15: 0 | V15: 0 | W15: 0 | X15: 0 | Y15: 0 | Z15: 0 | AA15: 0 | AB15: 0 | AC15: 0 | AD15: 0 | AE15: 0 | AF15: 0 | AG15: 0 | AH15: 0 | AI15: 0 | AJ15: 0 | AK15: 0 | AL15: 0 | AM15: 1057.156 | AN15: 0 | AO15: 0 | AP15: 0 | AQ15: 182.2682759
A16: 13 | B16: Economique | C16: oSupTcsdSCA_LIGN_T100% | D16: oSupTcsdSCA_LIGN_T100% | F16: 0 | G16: 0 | H16: 0 | I16: 0 | J16: 0 | K16: 0 | L16: 0 | M16: 0 | N16: 0 | O16: 0 | P16: 0 | Q16: 0 | R16: 0 | S16: 0 | T16: 0 | U16: 0 | V16: 0 | W16: 0 | X16: 0 | Y16: 0 | Z16: 0 | AA16: 0 | AB16: 0 | AC16: 0 | AD16: 0 | AE16: 0 | AF16: 0 | AG16: 0 | AH16: 0 | AI16: 0 | AJ16: 0 | AK16: 0 | AL16: 0 | AM16: 0 | AN16: 0 | AO16: 0 | AP16: 0 | AQ16: 0
A17: 14 | B17: Economique | C17: oSupTcsdSCA_LRD_T100% | D17: oSupTcsdSCA_LRD_T100% | F17: 0 | G17: 0 | H17: 0 | I17: 0 | J17: 0 | K17: 0 | L17: 0 | M17: 0 | N17: 0 | O17: 0 | P17: 0 | Q17: 0 | R17: 0 | S17: 0 | T17: 0 | U17: 0 | V17: 0 | W17: 0 | X17: 0 | Y17: 0 | Z17: 0 | AA17: 0 | AB17: 0 | AC17: 0 | AD17: 0 | AE17: 0 | AF17: 0 | AG17: 0 | AH17: 0 | AI17: 0 | AJ17: 0 | AK17: 0 | AL17: 0 | AM17: 0 | AN17: 0 | AO17: 0 | AP17: 0 | AQ17: 0
A18: 15 | B18: Economique | C18: oSupTcsdSCA_PART_T100% | D18: oSupTcsdSCA_PART_T100% | F18: 0 | G18: 1485 | H18: 0 | I18: 155.3 | J18: 1485 | K18: 1485 | L18: 1485 | M18: 1485 | N18: 1485 | O18: 0 | P18: 0 | Q18: 0 | R18: 0 | S18: 0 | T18: 0 | U18: 0 | V18: 0 | W18: 0 | X18: 0 | Y18: 0 | Z18: 0 | AA18: 0 | AB18: 0 | AC18: 0 | AD18: 0 | AE18: 0 | AF18: 0 | AG18: 0 | AH18: 0 | AI18: 0 | AJ18: 0 | AK18: 42.51 | AL18: 0 | AM18: 1485 | AN18: 0 | AO18: 0 | AP18: 4.251 | AQ18: 257.5003448
A19: 16 | B19: Economique | C19: oSupTcsdSCA_REG_T100% | D19: oSupTcsdSCA_REG_T100% | F19: 0 | G19: 11253.7 | H19: 0 | I19: 11253.7 | J19: 4545 | K19: 4545 | L19: 4545 | M19: 4545 | N19: 4545 | O19: 5829.86 | P19: 5632.07 | Q19: 5312.76 | R19: 4781.48 | S19: 4303.33 | T19: 4733.67 | U19: 4260.3 | V19: 4291.23 | W19: 4492.71 | X19: 4941.98 | Y19: 5436.18 | Z19: 5211.87 | AA19: 4690.68 | AB19: 5159.75 | AC19: 5675.73 | AD19: 6119.23 | AE19: 5507.31 | AF19: 4956.58 | AG19: 4460.92 | AH19: 4014.83 | AI19: 3613.34 | AJ19: 3252.01 | AK19: 2957.86 | AL19: 3300.41 | AM19: 4545 | AN19: 5171.9 | AO19: 4802.041111 | AP19: 4385.822 | AQ19: 4677.968621
A20: 17 | B20: Economique | C20: oSupSCA_LIGN_T100% | D20: oSupSCA_LIGN_T100% | F20: 0 | G20: 0 | H20: 0 | I20: 0 | J20: 0 | K20: 0 | L20: 0 | M20: 0 | N20: 0 | O20: 0 | P20: 0 | Q20: 0 | R20: 0 | S20: 0 | T20: 0 | U20: 0 | V20: 0 | W20: 0 | X20: 0 | Y20: 0 | Z20: 0 | AA20: 0 | AB20: 0 | AC20: 0 | AD20: 0 | AE20: 0 | AF20: 0 | AG20: 0 | AH20: 0 | AI20: 0 | AJ20: 0 | AK20: 0 | AL20: 0 | AM20: 0 | AN20: 0 | AO20: 0 | AP20: 0 | AQ20: 0
A21: 18 | B21: Economique | C21: oSupSCA_LRD_T100% | D21: oSupSCA_LRD_T100% | F21: 0 | G21: 0 | H21: 0 | I21: 0 | J21: 0 | K21: 0 | L21: 0 | M21: 0 | N21: 0 | O21: 0 | P21: 0 | Q21: 0 | R21: 0 | S21: 0 | T21: 0 | U21: 0 | V21: 0 | W21: 0 | X21: 0 | Y21: 0 | Z21: 0 | AA21: 0 | AB21: 0 | AC21: 0 | AD21: 0 | AE21: 0 | AF21: 0 | AG21: 0 | AH21: 0 | AI21: 0 | AJ21: 0 | AK21: 0 | AL21: 0 | AM21: 0 | AN21: 0 | AO21: 0 | AP21: 0 | AQ21: 0
A22: 19 | B22: Economique | C22: oSupSCA_PART_T100% | D22: oSupSCA_PART_T100% | F22: 0 | G22: 1485 | H22: 0 | I22: 155.3 | J22: 1485 | K22: 1485 | L22: 1485 | M22: 1485 | N22: 1485 | O22: 0 | P22: 0 | Q22: 0 | R22: 0 | S22: 0 | T22: 0 | U22: 0 | V22: 0 | W22: 0 | X22: 0 | Y22: 0 | Z22: 0 | AA22: 0 | AB22: 0 | AC22: 0 | AD22: 0 | AE22: 0 | AF22: 0 | AG22: 0 | AH22: 0 | AI22: 0 | AJ22: 0 | AK22: 42.51 | AL22: 0 | AM22: 1485 | AN22: 0 | AO22: 0 | AP22: 4.251 | AQ22: 257.5003448
A23: 20 | B23: Economique | C23: oSupSCA_REG_T100% | D23: oSupSCA_REG_T100% | F23: 0 | G23: 11253.7 | H23: 0 | I23: 11253.7 | J23: 4545 | K23: 4545 | L23: 4545 | M23: 4545 | N23: 4545 | O23: 5829.86 | P23: 5632.07 | Q23: 5312.76 | R23: 4781.48 | S23: 4303.33 | T23: 4733.67 | U23: 4260.3 | V23: 4291.23 | W23: 4492.71 | X23: 4941.98 | Y23: 5436.18 | Z23: 5211.87 | AA23: 4690.68 | AB23: 5159.75 | AC23: 5675.73 | AD23: 6119.23 | AE23: 5507.31 | AF23: 4956.58 | AG23: 4460.92 | AH23: 4014.83 | AI23: 3613.34 | AJ23: 3252.01 | AK23: 2957.86 | AL23: 3300.41 | AM23: 4545 | AN23: 5171.9 | AO23: 4802.041111 | AP23: 4385.822 | AQ23: 4677.968621
A24: 21 | B24: Economique | C24: oSupSCA_LIGN | D24: oSupSCA_LIGN | F24: 0 | G24: 0 | H24: 0 | I24: 0 | J24: 0 | K24: 0 | L24: 0 | M24: 0 | N24: 0 | O24: 0 | P24: 0 | Q24: 0 | R24: 0 | S24: 0 | T24: 0 | U24: 0 | V24: 0 | W24: 0 | X24: 0 | Y24: 0 | Z24: 0 | AA24: 0 | AB24: 0 | AC24: 0 | AD24: 0 | AE24: 0 | AF24: 0 | AG24: 0 | AH24: 0 | AI24: 0 | AJ24: 0 | AK24: 0 | AL24: 0 | AM24: 0 | AN24: 0 | AO24: 0 | AP24: 0 | AQ24: 0
A25: 22 | B25: Economique | C25: oSupSCA_LRD | D25: oSupSCA_LRD | F25: 0 | G25: 0 | H25: 0 | I25: 0 | J25: 0 | K25: 0 | L25: 0 | M25: 0 | N25: 0 | O25: 0 | P25: 0 | Q25: 0 | R25: 0 | S25: 0 | T25: 0 | U25: 0 | V25: 0 | W25: 0 | X25: 0 | Y25: 0 | Z25: 0 | AA25: 0 | AB25: 0 | AC25: 0 | AD25: 0 | AE25: 0 | AF25: 0 | AG25: 0 | AH25: 0 | AI25: 0 | AJ25: 0 | AK25: 0 | AL25: 0 | AM25: 0 | AN25: 0 | AO25: 0 | AP25: 0 | AQ25: 0
A26: 23 | B26: Economique | C26: oSupSCA_PART | D26: oSupSCA_PART | F26: 0 | G26: 1485 | H26: 0 | I26: 155.3 | J26: 1485 | K26: 1485 | L26: 1485 | M26: 1485 | N26: 1485 | O26: 0 | P26: 0 | Q26: 0 | R26: 0 | S26: 0 | T26: 0 | U26: 0 | V26: 0 | W26: 0 | X26: 0 | Y26: 0 | Z26: 0 | AA26: 0 | AB26: 0 | AC26: 0 | AD26: 0 | AE26: 0 | AF26: 0 | AG26: 0 | AH26: 0 | AI26: 0 | AJ26: 0 | AK26: 42.51 | AL26: 0 | AM26: 1485 | AN26: 0 | AO26: 0 | AP26: 4.251 | AQ26: 257.5003448
A27: 24 | B27: Economique | C27: oSupSCA_REG | D27: oSupSCA_REG | F27: 0 | G27: 11253.7 | H27: 0 | I27: 11253.7 | J27: 4545 | K27: 4545 | L27: 4545 | M27: 4545 | N27: 4545 | O27: 5829.86 | P27: 5632.07 | Q27: 5312.76 | R27: 4781.48 | S27: 4303.33 | T27: 4733.67 | U27: 4260.3 | V27: 4291.23 | W27: 4492.71 | X27: 4941.98 | Y27: 5436.18 | Z27: 5211.87 | AA27: 4690.68 | AB27: 5159.75 | AC27: 5675.73 | AD27: 6119.23 | AE27: 5507.31 | AF27: 4956.58 | AG27: 4460.92 | AH27: 4014.83 | AI27: 3613.34 | AJ27: 3252.01 | AK27: 2957.86 | AL27: 3300.41 | AM27: 4545 | AN27: 5171.9 | AO27: 4802.041111 | AP27: 4385.822 | AQ27: 4677.968621
A28: 25 | B28: Economique | C28: oSupActREG_T100% | D28: oSupActREG_T100% | F28: 0 | G28: 1485 | H28: 0 | I28: 155.3 | J28: 1485 | K28: 1485 | L28: 1485 | M28: 1485 | N28: 1485 | O28: 0 | P28: 0 | Q28: 0 | R28: 0 | S28: 0 | T28: 0 | U28: 0 | V28: 0 | W28: 0 | X28: 0 | Y28: 0 | Z28: 0 | AA28: 0 | AB28: 0 | AC28: 0 | AD28: 0 | AE28: 0 | AF28: 0 | AG28: 0 | AH28: 0 | AI28: 0 | AJ28: 0 | AK28: 42.51 | AL28: 0 | AM28: 1485 | AN28: 0 | AO28: 0 | AP28: 4.251 | AQ28: 257.5003448
A29: 26 | B29: Economique | C29: oSupREG_T100% | D29: oSupREG_T100% | F29: 0 | G29: 1485 | H29: 0 | I29: 155.3 | J29: 1485 | K29: 1485 | L29: 1485 | M29: 1485 | N29: 1485 | O29: 0 | P29: 0 | Q29: 0 | R29: 0 | S29: 0 | T29: 0 | U29: 0 | V29: 0 | W29: 0 | X29: 0 | Y29: 0 | Z29: 0 | AA29: 0 | AB29: 0 | AC29: 0 | AD29: 0 | AE29: 0 | AF29: 0 | AG29: 0 | AH29: 0 | AI29: 0 | AJ29: 0 | AK29: 42.51 | AL29: 0 | AM29: 1485 | AN29: 0 | AO29: 0 | AP29: 4.251 | AQ29: 257.5003448
A30: 27 | B30: Economique | C30: oSupREG | D30: oSupREG | F30: 0 | G30: 1485 | H30: 0 | I30: 155.3 | J30: 1485 | K30: 1485 | L30: 1485 | M30: 1485 | N30: 1485 | O30: 0 | P30: 0 | Q30: 0 | R30: 0 | S30: 0 | T30: 0 | U30: 0 | V30: 0 | W30: 0 | X30: 0 | Y30: 0 | Z30: 0 | AA30: 0 | AB30: 0 | AC30: 0 | AD30: 0 | AE30: 0 | AF30: 0 | AG30: 0 | AH30: 0 | AI30: 0 | AJ30: 0 | AK30: 42.51 | AL30: 0 | AM30: 1485 | AN30: 0 | AO30: 0 | AP30: 4.251 | AQ30: 257.5003448
A31: 28 | B31: Economique | C31: oSupActCPICP_T100% | D31: oSupActCPICP_T100% | F31: 0 | G31: 0 | H31: 0 | I31: 0 | J31: 0 | K31: 0 | L31: 0 | M31: 0 | N31: 0 | O31: 0 | P31: 0 | Q31: 0 | R31: 0 | S31: 0 | T31: 0 | U31: 0 | V31: 0 | W31: 0 | X31: 0 | Y31: 0 | Z31: 0 | AA31: 0 | AB31: 0 | AC31: 0 | AD31: 0 | AE31: 0 | AF31: 0 | AG31: 0 | AH31: 0 | AI31: 0 | AJ31: 0 | AK31: 0 | AL31: 0 | AM31: 0 | AN31: 0 | AO31: 0 | AP31: 0 | AQ31: 0
A32: 29 | B32: Economique | C32: oSupActCPIRL_FIN_T100% | D32: oSupActCPIRL_FIN_T100% | F32: 0 | G32: 8771.62 | H32: 0 | I32: 0 | J32: 0 | K32: 0 | L32: 0 | M32: 0 | N32: 62.27 | O32: 175.43 | P32: 38.58 | Q32: 907.08 | R32: 2900.66 | S32: 1413.46 | T32: 3985.46 | U32: 2396.17 | V32: 4368.47 | W32: 1458.47 | X32: 7716.01 | Y32: 8771.62 | Z32: 7794.11 | AA32: 6130.23 | AB32: 8378.98 | AC32: 8418.37 | AD32: 6695.08 | AE32: 2476.29 | AF32: 4570.7 | AG32: 2565.22 | AH32: 5693.46 | AI32: 650.6 | AJ32: 2549.11 | AK32: 2101.77 | AL32: 3796 | AM32: 12.454 | AN32: 1087.042 | AO32: 5666.613333 | AP32: 3951.66 | AQ32: 3310.813793
A33: 30 | B33: Economique | C33: oSupActCPIRL_INI_T100% | D33: oSupActCPIRL_INI_T100% | F33: 0 | G33: 8841.53 | H33: 0 | I33: 113.6 | J33: 3712 | K33: 4133.7 | L33: 4607.57 | M33: 5107.83 | N33: 5606.84 | O33: 6616.09 | P33: 7432.09 | Q33: 7310.66 | R33: 5553.98 | S33: 6994.66 | T33: 5047.78 | U33: 7134.24 | V33: 5462.19 | W33: 8841.53 | X33: 2176.1 | Y33: 1528.38 | Z33: 2505.89 | AA33: 4169.77 | AB33: 1531.18 | AC33: 1487.11 | AD33: 2464.47 | AE33: 5196.47 | AF33: 2301.85 | AG33: 6118.63 | AH33: 1751.74 | AI33: 6469.93 | AJ33: 3518.54 | AK33: 4220.85 | AL33: 4402.99 | AM33: 4633.588 | AN33: 6781.496 | AO33: 4266.34 | AP33: 3793.258 | AQ33: 4600.174483
A34: 31 | B34: Economique | C34: oSupCPICP_T100% | D34: oSupCPICP_T100% | F34: 0 | G34: 0 | H34: 0 | I34: 0 | J34: 0 | K34: 0 | L34: 0 | M34: 0 | N34: 0 | O34: 0 | P34: 0 | Q34: 0 | R34: 0 | S34: 0 | T34: 0 | U34: 0 | V34: 0 | W34: 0 | X34: 0 | Y34: 0 | Z34: 0 | AA34: 0 | AB34: 0 | AC34: 0 | AD34: 0 | AE34: 0 | AF34: 0 | AG34: 0 | AH34: 0 | AI34: 0 | AJ34: 0 | AK34: 0 | AL34: 0 | AM34: 0 | AN34: 0 | AO34: 0 | AP34: 0 | AQ34: 0
A35: 32 | B35: Economique | C35: oSupCPIRL_FIN_T100% | D35: oSupCPIRL_FIN_T100% | F35: 0 | G35: 8771.62 | H35: 0 | I35: 0 | J35: 0 | K35: 0 | L35: 0 | M35: 0 | N35: 62.27 | O35: 175.43 | P35: 38.58 | Q35: 907.08 | R35: 2900.66 | S35: 1413.46 | T35: 3985.46 | U35: 2396.17 | V35: 4368.47 | W35: 1458.47 | X35: 7716.01 | Y35: 8771.62 | Z35: 7794.11 | AA35: 6130.23 | AB35: 8378.98 | AC35: 8418.37 | AD35: 6695.08 | AE35: 2476.29 | AF35: 4570.7 | AG35: 2565.22 | AH35: 5693.46 | AI35: 650.6 | AJ35: 2549.11 | AK35: 2101.77 | AL35: 3796 | AM35: 12.454 | AN35: 1087.042 | AO35: 5666.613333 | AP35: 3951.66 | AQ35: 3310.813793
A36: 33 | B36: Economique | C36: oSupCPIRL_INI_T100% | D36: oSupCPIRL_INI_T100% | F36: 0 | G36: 8841.53 | H36: 0 | I36: 113.6 | J36: 3712 | K36: 4133.7 | L36: 4607.57 | M36: 5107.83 | N36: 5606.84 | O36: 6616.09 | P36: 7432.09 | Q36: 7310.66 | R36: 5553.98 | S36: 6994.66 | T36: 5047.78 | U36: 7134.24 | V36: 5462.19 | W36: 8841.53 | X36: 2176.1 | Y36: 1528.38 | Z36: 2505.89 | AA36: 4169.77 | AB36: 1531.18 | AC36: 1487.11 | AD36: 2464.47 | AE36: 5196.47 | AF36: 2301.85 | AG36: 6118.63 | AH36: 1751.74 | AI36: 6469.93 | AJ36: 3518.54 | AK36: 4220.85 | AL36: 4402.99 | AM36: 4633.588 | AN36: 6781.496 | AO36: 4266.34 | AP36: 3793.258 | AQ36: 4600.174483
A37: 34 | B37: Economique | C37: oSupCPICP | D37: oSupCPICP | F37: 0 | G37: 0 | H37: 0 | I37: 0 | J37: 0 | K37: 0 | L37: 0 | M37: 0 | N37: 0 | O37: 0 | P37: 0 | Q37: 0 | R37: 0 | S37: 0 | T37: 0 | U37: 0 | V37: 0 | W37: 0 | X37: 0 | Y37: 0 | Z37: 0 | AA37: 0 | AB37: 0 | AC37: 0 | AD37: 0 | AE37: 0 | AF37: 0 | AG37: 0 | AH37: 0 | AI37: 0 | AJ37: 0 | AK37: 0 | AL37: 0 | AM37: 0 | AN37: 0 | AO37: 0 | AP37: 0 | AQ37: 0
A38: 35 | B38: Economique | C38: oSupCPIRL_FIN | D38: oSupCPIRL_FIN | F38: 0 | G38: 8771.62 | H38: 0 | I38: 0 | J38: 0 | K38: 0 | L38: 0 | M38: 0 | N38: 62.27 | O38: 175.43 | P38: 38.58 | Q38: 907.08 | R38: 2900.66 | S38: 1413.46 | T38: 3985.46 | U38: 2396.17 | V38: 4368.47 | W38: 1458.47 | X38: 7716.01 | Y38: 8771.62 | Z38: 7794.11 | AA38: 6130.23 | AB38: 8378.98 | AC38: 8418.37 | AD38: 6695.08 | AE38: 2476.29 | AF38: 4570.7 | AG38: 2565.22 | AH38: 5693.46 | AI38: 650.6 | AJ38: 2549.11 | AK38: 2101.77 | AL38: 3796 | AM38: 12.454 | AN38: 1087.042 | AO38: 5666.613333 | AP38: 3951.66 | AQ38: 3310.813793
A39: 36 | B39: Economique | C39: oSupCPIRL_INI | D39: oSupCPIRL_INI | F39: 0 | G39: 8841.53 | H39: 0 | I39: 113.6 | J39: 3712 | K39: 4133.7 | L39: 4607.57 | M39: 5107.83 | N39: 5606.84 | O39: 6616.09 | P39: 7432.09 | Q39: 7310.66 | R39: 5553.98 | S39: 6994.66 | T39: 5047.78 | U39: 7134.24 | V39: 5462.19 | W39: 8841.53 | X39: 2176.1 | Y39: 1528.38 | Z39: 2505.89 | AA39: 4169.77 | AB39: 1531.18 | AC39: 1487.11 | AD39: 2464.47 | AE39: 5196.47 | AF39: 2301.85 | AG39: 6118.63 | AH39: 1751.74 | AI39: 6469.93 | AJ39: 3518.54 | AK39: 4220.85 | AL39: 4402.99 | AM39: 4633.588 | AN39: 6781.496 | AO39: 4266.34 | AP39: 3793.258 | AQ39: 4600.174483
A40: 37 | B40: Economique | C40: oSupActCT_T100% | D40: oSupActCT_T100% | F40: 0 | G40: 54586.1 | H40: 0 | I40: 45375.05 | J40: 41277.34 | K40: 36898.21 | L40: 35487.69 | M40: 35812.23 | N40: 34652.89 | O40: 44620.25 | P40: 45962.61 | Q40: 39277.77 | R40: 37942.97 | S40: 44092.95 | T40: 42031.21 | U40: 42400.22 | V40: 46913.31 | W40: 42108.07 | X40: 39102.44 | Y40: 39768.21 | Z40: 46066.87 | AA40: 47415.61 | AB40: 43852.19 | AC40: 44740.78 | AD40: 46463.25 | AE40: 47392.87 | AF40: 47605.42 | AG40: 45415.87 | AH40: 50134.32 | AI40: 50001.14 | AJ40: 45495.16 | AK40: 45910.05 | AL40: 54586.1 | AM40: 36825.672 | AN40: 42379.31 | AO40: 43295.34778 | AP40: 47774.496 | AQ40: 43566.48276
A41: 38 | B41: Economique | C41: oSupCT_T100% | D41: oSupCT_T100% | F41: 0 | G41: 54586.1 | H41: 0 | I41: 45375.05 | J41: 41277.34 | K41: 36898.21 | L41: 35487.69 | M41: 35812.23 | N41: 34652.89 | O41: 44620.25 | P41: 45962.61 | Q41: 39277.77 | R41: 37942.97 | S41: 44092.95 | T41: 42031.21 | U41: 42400.22 | V41: 46913.31 | W41: 42108.07 | X41: 39102.44 | Y41: 39768.21 | Z41: 46066.87 | AA41: 47415.61 | AB41: 43852.19 | AC41: 44740.78 | AD41: 46463.25 | AE41: 47392.87 | AF41: 47605.42 | AG41: 45415.87 | AH41: 50134.32 | AI41: 50001.14 | AJ41: 45495.16 | AK41: 45910.05 | AL41: 54586.1 | AM41: 36825.672 | AN41: 42379.31 | AO41: 43295.34778 | AP41: 47774.496 | AQ41: 43566.48276
A42: 39 | B42: Economique | C42: oSupCT | D42: oSupCT | F42: 0 | G42: 54586.1 | H42: 0 | I42: 45375.05 | J42: 41277.34 | K42: 36898.21 | L42: 35487.69 | M42: 35812.23 | N42: 34652.89 | O42: 44620.25 | P42: 45962.61 | Q42: 39277.77 | R42: 37942.97 | S42: 44092.95 | T42: 42031.21 | U42: 42400.22 | V42: 46913.31 | W42: 42108.07 | X42: 39102.44 | Y42: 39768.21 | Z42: 46066.87 | AA42: 47415.61 | AB42: 43852.19 | AC42: 44740.78 | AD42: 46463.25 | AE42: 47392.87 | AF42: 47605.42 | AG42: 45415.87 | AH42: 50134.32 | AI42: 50001.14 | AJ42: 45495.16 | AK42: 45910.05 | AL42: 54586.1 | AM42: 36825.672 | AN42: 42379.31 | AO42: 43295.34778 | AP42: 47774.496 | AQ42: 43566.48276
A43: 40 | B43: Economique | C43: oSupActPL_PPF_T100% | D43: oSupActPL_PPF_T100% | F43: 0 | G43: 0 | H43: 0 | I43: 0 | J43: 0 | K43: 0 | L43: 0 | M43: 0 | N43: 0 | O43: 0 | P43: 0 | Q43: 0 | R43: 0 | S43: 0 | T43: 0 | U43: 0 | V43: 0 | W43: 0 | X43: 0 | Y43: 0 | Z43: 0 | AA43: 0 | AB43: 0 | AC43: 0 | AD43: 0 | AE43: 0 | AF43: 0 | AG43: 0 | AH43: 0 | AI43: 0 | AJ43: 0 | AK43: 0 | AL43: 0 | AM43: 0 | AN43: 0 | AO43: 0 | AP43: 0 | AQ43: 0
A44: 41 | B44: Economique | C44: oSupActPL_SEPM_E_T100% | D44: oSupActPL_SEPM_E_T100% | F44: 0 | G44: 11253.7 | H44: 0 | I44: 11253.7 | J44: 2793.54 | K44: 3242.24 | L44: 3708.43 | M44: 4075.66 | N44: 4545 | O44: 5421.97 | P44: 5632.07 | Q44: 5312.76 | R44: 4781.48 | S44: 4281.37 | T44: 4618.51 | U44: 3781.98 | V44: 3341.63 | W44: 3405.52 | X44: 3311.01 | Y44: 2449.25 | Z44: 1816.56 | AA44: 1872.94 | AB44: 3016.15 | AC44: 3812.91 | AD44: 4193.68 | AE44: 3555.58 | AF44: 2709.06 | AG44: 1400.29 | AH44: 1647.1 | AI44: 3613.34 | AJ44: 3224.89 | AK44: 2957.86 | AL44: 0 | AM44: 3672.974 | AN44: 5085.93 | AO44: 3068.172222 | AP44: 2711.471 | AQ44: 3397.337241
A45: 42 | B45: Economique | C45: oSupActPL_SEPM_I_T100% | D45: oSupActPL_SEPM_I_T100% | F45: 0 | G45: 3395.31 | H45: 0 | I45: 0 | J45: 1751.46 | K45: 1302.76 | L45: 836.57 | M45: 469.34 | N45: 0 | O45: 407.89 | P45: 0 | Q45: 0 | R45: 0 | S45: 21.97 | T45: 115.16 | U45: 478.32 | V45: 949.59 | W45: 1087.19 | X45: 1630.97 | Y45: 2986.93 | Z45: 3395.31 | AA45: 2817.75 | AB45: 2143.6 | AC45: 1862.82 | AD45: 1925.55 | AE45: 1951.72 | AF45: 2247.52 | AG45: 3060.63 | AH45: 2367.73 | AI45: 0 | AJ45: 27.12 | AK45: 0 | AL45: 3300.41 | AM45: 872.026 | AN45: 85.972 | AO45: 1733.868889 | AP45: 1674.35 | AQ45: 1280.631379
A46: 43 | B46: Economique | C46: oSupPL_PPF_T100% | D46: oSupPL_PPF_T100% | F46: 0 | G46: 0 | H46: 0 | I46: 0 | J46: 0 | K46: 0 | L46: 0 | M46: 0 | N46: 0 | O46: 0 | P46: 0 | Q46: 0 | R46: 0 | S46: 0 | T46: 0 | U46: 0 | V46: 0 | W46: 0 | X46: 0 | Y46: 0 | Z46: 0 | AA46: 0 | AB46: 0 | AC46: 0 | AD46: 0 | AE46: 0 | AF46: 0 | AG46: 0 | AH46: 0 | AI46: 0 | AJ46: 0 | AK46: 0 | AL46: 0 | AM46: 0 | AN46: 0 | AO46: 0 | AP46: 0 | AQ46: 0
A47: 44 | B47: Economique | C47: oSupPL_SEPM_E_T100% | D47: oSupPL_SEPM_E_T100% | F47: 0 | G47: 11253.7 | H47: 0 | I47: 11253.7 | J47: 2793.54 | K47: 3242.24 | L47: 3708.43 | M47: 4075.66 | N47: 4545 | O47: 5421.97 | P47: 5632.07 | Q47: 5312.76 | R47: 4781.48 | S47: 4281.37 | T47: 4618.51 | U47: 3781.98 | V47: 3341.63 | W47: 3405.52 | X47: 3311.01 | Y47: 2449.25 | Z47: 1816.56 | AA47: 1872.94 | AB47: 3016.15 | AC47: 3812.91 | AD47: 4193.68 | AE47: 3555.58 | AF47: 2709.06 | AG47: 1400.29 | AH47: 1647.1 | AI47: 3613.34 | AJ47: 3224.89 | AK47: 2957.86 | AL47: 0 | AM47: 3672.974 | AN47: 5085.93 | AO47: 3068.172222 | AP47: 2711.471 | AQ47: 3397.337241
A48: 45 | B48: Economique | C48: oSupPL_SEPM_I_T100% | D48: oSupPL_SEPM_I_T100% | F48: 0 | G48: 3395.31 | H48: 0 | I48: 0 | J48: 1751.46 | K48: 1302.76 | L48: 836.57 | M48: 469.34 | N48: 0 | O48: 407.89 | P48: 0 | Q48: 0 | R48: 0 | S48: 21.97 | T48: 115.16 | U48: 478.32 | V48: 949.59 | W48: 1087.19 | X48: 1630.97 | Y48: 2986.93 | Z48: 3395.31 | AA48: 2817.75 | AB48: 2143.6 | AC48: 1862.82 | AD48: 1925.55 | AE48: 1951.72 | AF48: 2247.52 | AG48: 3060.63 | AH48: 2367.73 | AI48: 0 | AJ48: 27.12 | AK48: 0 | AL48: 3300.41 | AM48: 872.026 | AN48: 85.972 | AO48: 1733.868889 | AP48: 1674.35 | AQ48: 1280.631379
A49: 46 | B49: Economique | C49: oSupPL_PPF | D49: oSupPL_PPF | F49: 0 | G49: 0 | H49: 0 | I49: 0 | J49: 0 | K49: 0 | L49: 0 | M49: 0 | N49: 0 | O49: 0 | P49: 0 | Q49: 0 | R49: 0 | S49: 0 | T49: 0 | U49: 0 | V49: 0 | W49: 0 | X49: 0 | Y49: 0 | Z49: 0 | AA49: 0 | AB49: 0 | AC49: 0 | AD49: 0 | AE49: 0 | AF49: 0 | AG49: 0 | AH49: 0 | AI49: 0 | AJ49: 0 | AK49: 0 | AL49: 0 | AM49: 0 | AN49: 0 | AO49: 0 | AP49: 0 | AQ49: 0
A50: 47 | B50: Economique | C50: oSupPL_SEPM_E | D50: oSupPL_SEPM_E | F50: 0 | G50: 11253.7 | H50: 0 | I50: 11253.7 | J50: 2793.54 | K50: 3242.24 | L50: 3708.43 | M50: 4075.66 | N50: 4545 | O50: 5421.97 | P50: 5632.07 | Q50: 5312.76 | R50: 4781.48 | S50: 4281.37 | T50: 4618.51 | U50: 3781.98 | V50: 3341.63 | W50: 3405.52 | X50: 3311.01 | Y50: 2449.25 | Z50: 1816.56 | AA50: 1872.94 | AB50: 3016.15 | AC50: 3812.91 | AD50: 4193.68 | AE50: 3555.58 | AF50: 2709.06 | AG50: 1400.29 | AH50: 1647.1 | AI50: 3613.34 | AJ50: 3224.89 | AK50: 2957.86 | AL50: 0 | AM50: 3672.974 | AN50: 5085.93 | AO50: 3068.172222 | AP50: 2711.471 | AQ50: 3397.337241
A51: 48 | B51: Economique | C51: oSupPL_SEPM_I | D51: oSupPL_SEPM_I | F51: 0 | G51: 3395.31 | H51: 0 | I51: 0 | J51: 1751.46 | K51: 1302.76 | L51: 836.57 | M51: 469.34 | N51: 0 | O51: 407.89 | P51: 0 | Q51: 0 | R51: 0 | S51: 21.97 | T51: 115.16 | U51: 478.32 | V51: 949.59 | W51: 1087.19 | X51: 1630.97 | Y51: 2986.93 | Z51: 3395.31 | AA51: 2817.75 | AB51: 2143.6 | AC51: 1862.82 | AD51: 1925.55 | AE51: 1951.72 | AF51: 2247.52 | AG51: 3060.63 | AH51: 2367.73 | AI51: 0 | AJ51: 27.12 | AK51: 0 | AL51: 3300.41 | AM51: 872.026 | AN51: 85.972 | AO51: 1733.868889 | AP51: 1674.35 | AQ51: 1280.631379
A52: 49 | B52: Economique | C52: oSupActEPC_1_T100% | D52: oSupActEPC_1_T100% | F52: 0 | G52: 0 | H52: 0 | I52: 0 | J52: 0 | K52: 0 | L52: 0 | M52: 0 | N52: 0 | O52: 0 | P52: 0 | Q52: 0 | R52: 0 | S52: 0 | T52: 0 | U52: 0 | V52: 0 | W52: 0 | X52: 0 | Y52: 0 | Z52: 0 | AA52: 0 | AB52: 0 | AC52: 0 | AD52: 0 | AE52: 0 | AF52: 0 | AG52: 0 | AH52: 0 | AI52: 0 | AJ52: 0 | AK52: 0 | AL52: 0 | AM52: 0 | AN52: 0 | AO52: 0 | AP52: 0 | AQ52: 0
A53: 50 | B53: Economique | C53: oSupActEPC_2_T100% | D53: oSupActEPC_2_T100% | F53: 0 | G53: 0 | H53: 0 | I53: 0 | J53: 0 | K53: 0 | L53: 0 | M53: 0 | N53: 0 | O53: 0 | P53: 0 | Q53: 0 | R53: 0 | S53: 0 | T53: 0 | U53: 0 | V53: 0 | W53: 0 | X53: 0 | Y53: 0 | Z53: 0 | AA53: 0 | AB53: 0 | AC53: 0 | AD53: 0 | AE53: 0 | AF53: 0 | AG53: 0 | AH53: 0 | AI53: 0 | AJ53: 0 | AK53: 0 | AL53: 0 | AM53: 0 | AN53: 0 | AO53: 0 | AP53: 0 | AQ53: 0
A54: 51 | B54: Economique | C54: oSupEPC_1_T100% | D54: oSupEPC_1_T100% | F54: 0 | G54: 0 | H54: 0 | I54: 0 | J54: 0 | K54: 0 | L54: 0 | M54: 0 | N54: 0 | O54: 0 | P54: 0 | Q54: 0 | R54: 0 | S54: 0 | T54: 0 | U54: 0 | V54: 0 | W54: 0 | X54: 0 | Y54: 0 | Z54: 0 | AA54: 0 | AB54: 0 | AC54: 0 | AD54: 0 | AE54: 0 | AF54: 0 | AG54: 0 | AH54: 0 | AI54: 0 | AJ54: 0 | AK54: 0 | AL54: 0 | AM54: 0 | AN54: 0 | AO54: 0 | AP54: 0 | AQ54: 0
A55: 52 | B55: Economique | C55: oSupEPC_2_T100% | D55: oSupEPC_2_T100% | F55: 0 | G55: 0 | H55: 0 | I55: 0 | J55: 0 | K55: 0 | L55: 0 | M55: 0 | N55: 0 | O55: 0 | P55: 0 | Q55: 0 | R55: 0 | S55: 0 | T55: 0 | U55: 0 | V55: 0 | W55: 0 | X55: 0 | Y55: 0 | Z55: 0 | AA55: 0 | AB55: 0 | AC55: 0 | AD55: 0 | AE55: 0 | AF55: 0 | AG55: 0 | AH55: 0 | AI55: 0 | AJ55: 0 | AK55: 0 | AL55: 0 | AM55: 0 | AN55: 0 | AO55: 0 | AP55: 0 | AQ55: 0
A56: 53 | B56: Economique | C56: oSupEPC_1 | D56: oSupEPC_1 | F56: 0 | G56: 0 | H56: 0 | I56: 0 | J56: 0 | K56: 0 | L56: 0 | M56: 0 | N56: 0 | O56: 0 | P56: 0 | Q56: 0 | R56: 0 | S56: 0 | T56: 0 | U56: 0 | V56: 0 | W56: 0 | X56: 0 | Y56: 0 | Z56: 0 | AA56: 0 | AB56: 0 | AC56: 0 | AD56: 0 | AE56: 0 | AF56: 0 | AG56: 0 | AH56: 0 | AI56: 0 | AJ56: 0 | AK56: 0 | AL56: 0 | AM56: 0 | AN56: 0 | AO56: 0 | AP56: 0 | AQ56: 0
A57: 54 | B57: Economique | C57: oSupEPC_2 | D57: oSupEPC_2 | F57: 0 | G57: 0 | H57: 0 | I57: 0 | J57: 0 | K57: 0 | L57: 0 | M57: 0 | N57: 0 | O57: 0 | P57: 0 | Q57: 0 | R57: 0 | S57: 0 | T57: 0 | U57: 0 | V57: 0 | W57: 0 | X57: 0 | Y57: 0 | Z57: 0 | AA57: 0 | AB57: 0 | AC57: 0 | AD57: 0 | AE57: 0 | AF57: 0 | AG57: 0 | AH57: 0 | AI57: 0 | AJ57: 0 | AK57: 0 | AL57: 0 | AM57: 0 | AN57: 0 | AO57: 0 | AP57: 0 | AQ57: 0
A58: 55 | B58: Economique | C58: oSupActEC_SEPM_T100% | D58: oSupActEC_SEPM_T100% | F58: 0 | G58: 4232.35 | H58: 0 | I58: 0 | J58: 505 | K58: 505 | L58: 495 | M58: 505 | N58: 505 | O58: 0 | P58: 0 | Q58: 0 | R58: 584.88 | S58: 1359.4 | T58: 1266.76 | U58: 769.6 | V58: 469.34 | W58: 0 | X58: 407.89 | Y58: 0 | Z58: 0 | AA58: 0 | AB58: 389.83 | AC58: 394.51 | AD58: 110.45 | AE58: 670.24 | AF58: 1584.82 | AG58: 619.26 | AH58: 2788.22 | AI58: 3179.47 | AJ58: 4232.35 | AK58: 3977.38 | AL58: 2101.02 | AM58: 503 | AN58: 388.856 | AO58: 367.0466667 | AP58: 1965.772 | AQ58: 945.5317241
A59: 56 | B59: Economique | C59: oSupEC_SEPM_T100% | D59: oSupEC_SEPM_T100% | F59: 0 | G59: 4232.35 | H59: 0 | I59: 0 | J59: 505 | K59: 505 | L59: 495 | M59: 505 | N59: 505 | O59: 0 | P59: 0 | Q59: 0 | R59: 584.88 | S59: 1359.4 | T59: 1266.76 | U59: 769.6 | V59: 469.34 | W59: 0 | X59: 407.89 | Y59: 0 | Z59: 0 | AA59: 0 | AB59: 389.83 | AC59: 394.51 | AD59: 110.45 | AE59: 670.24 | AF59: 1584.82 | AG59: 619.26 | AH59: 2788.22 | AI59: 3179.47 | AJ59: 4232.35 | AK59: 3977.38 | AL59: 2101.02 | AM59: 503 | AN59: 388.856 | AO59: 367.0466667 | AP59: 1965.772 | AQ59: 945.5317241
A60: 57 | B60: Economique | C60: oSupEC_SEPM | D60: oSupEC_SEPM | F60: 0 | G60: 4232.35 | H60: 0 | I60: 0 | J60: 505 | K60: 505 | L60: 495 | M60: 505 | N60: 505 | O60: 0 | P60: 0 | Q60: 0 | R60: 584.88 | S60: 1359.4 | T60: 1266.76 | U60: 769.6 | V60: 469.34 | W60: 0 | X60: 407.89 | Y60: 0 | Z60: 0 | AA60: 0 | AB60: 389.83 | AC60: 394.51 | AD60: 110.45 | AE60: 670.24 | AF60: 1584.82 | AG60: 619.26 | AH60: 2788.22 | AI60: 3179.47 | AJ60: 4232.35 | AK60: 3977.38 | AL60: 2101.02 | AM60: 503 | AN60: 388.856 | AO60: 367.0466667 | AP60: 1965.772 | AQ60: 945.5317241
A61: 58 | B61: Economique | C61: oSupActNETT_T100% | D61: oSupActNETT_T100% | F61: 0 | G61: 3572.27 | H61: 0 | I61: 2991 | J61: 0 | K61: 0 | L61: 0 | M61: 0 | N61: 0 | O61: 0 | P61: 0 | Q61: 0 | R61: 0 | S61: 0 | T61: 0 | U61: 0 | V61: 0 | W61: 0 | X61: 0 | Y61: 0 | Z61: 0 | AA61: 0 | AB61: 0 | AC61: 0 | AD61: 0 | AE61: 0 | AF61: 0 | AG61: 0 | AH61: 0 | AI61: 0 | AJ61: 1916.56 | AK61: 3572.27 | AL61: 1878.25 | AM61: 0 | AN61: 0 | AO61: 0 | AP61: 736.708 | AQ61: 254.0372414
A62: 59 | B62: Economique | C62: oSupTcadNETT_T100% | D62: oSupTcadNETT_T100% | F62: 0 | G62: 3395.31 | H62: 0 | I62: 0 | J62: 0 | K62: 21.82 | L62: 0 | M62: 1493.81 | N62: 1951.07 | O62: 1679.21 | P62: 1187.96 | Q62: 2530.56 | R62: 3180.2 | S62: 2332.69 | T62: 2320.3 | U62: 2617.75 | V62: 2638.41 | W62: 2836.82 | X62: 3361.62 | Y62: 2563.21 | Z62: 2096.35 | AA62: 2991.61 | AB62: 3395.31 | AC62: 2817.75 | AD62: 2321.2 | AE62: 2111.62 | AF62: 2309.17 | AG62: 1951.72 | AH62: 2247.52 | AI62: 3060.63 | AJ62: 2367.73 | AK62: 1093.09 | AL62: 0 | AM62: 693.34 | AN62: 2182.124 | AO62: 2757.931111 | AP62: 2028.043 | AQ62: 2051.004483
A63: 60 | B63: Economique | C63: oSupNETT_T100% | D63: oSupNETT_T100% | F63: 0 | G63: 4665.36 | H63: 0 | I63: 2991 | J63: 0 | K63: 21.82 | L63: 0 | M63: 1493.81 | N63: 1951.07 | O63: 1679.21 | P63: 1187.96 | Q63: 2530.56 | R63: 3180.2 | S63: 2332.69 | T63: 2320.3 | U63: 2617.75 | V63: 2638.41 | W63: 2836.82 | X63: 3361.62 | Y63: 2563.21 | Z63: 2096.35 | AA63: 2991.61 | AB63: 3395.31 | AC63: 2817.75 | AD63: 2321.2 | AE63: 2111.62 | AF63: 2309.17 | AG63: 1951.72 | AH63: 2247.52 | AI63: 3060.63 | AJ63: 4284.28 | AK63: 4665.36 | AL63: 1878.25 | AM63: 693.34 | AN63: 2182.124 | AO63: 2757.931111 | AP63: 2764.75 | AQ63: 2305.041379
A64: 61 | B64: Economique | C64: oSupNETT | D64: oSupNETT | F64: 0 | G64: 4665.36 | H64: 0 | I64: 2991 | J64: 0 | K64: 21.82 | L64: 0 | M64: 1493.81 | N64: 1951.07 | O64: 1679.21 | P64: 1187.96 | Q64: 2530.56 | R64: 3180.2 | S64: 2332.69 | T64: 2320.3 | U64: 2617.75 | V64: 2638.41 | W64: 2836.82 | X64: 3361.62 | Y64: 2563.21 | Z64: 2096.35 | AA64: 2991.61 | AB64: 3395.31 | AC64: 2817.75 | AD64: 2321.2 | AE64: 2111.62 | AF64: 2309.17 | AG64: 1951.72 | AH64: 2247.52 | AI64: 3060.63 | AJ64: 4284.28 | AK64: 4665.36 | AL64: 1878.25 | AM64: 693.34 | AN64: 2182.124 | AO64: 2757.931111 | AP64: 2764.75 | AQ64: 2305.041379
A65: 62 | B65: Economique | C65: oTauxDEG | D65: oTauxDEG | F65: 0 | G65: 14603520 | H65: 0 | I65: 14603520 | J65: 5817600 | K65: 5789665.28 | L65: 5817600 | M65: 3905523.59 | N65: 3320225.8 | O65: 3514955.07 | P65: 4298112.89 | Q65: 3161462.28 | R65: 2969978.21 | S65: 3350725.3 | T65: 3377158.86 | U65: 3631125.48 | V65: 4302876.99 | W65: 3280906.79 | X65: 3275776.33 | Y65: 3829259.07 | Z65: 4345996.69 | AA65: 3701052.62 | AB65: 2971141.53 | AC65: 2978707.78 | AD65: 2955740.43 | AE65: 2631325.98 | AF65: 2876819.71 | AG65: 3917610.18 | AH65: 3030691.74 | AI65: 1399150.13 | AJ65: 0 | AK65: 54412.59 | AL65: 4224523.04 | AM65: 4930122.934 | AN65: 3459046.75 | AO65: 3635032.707 | AP65: 2406898.158 | AQ65: 3404487.047
A66: 63 | B66: Economique | C66: oTauxSCA | D66: oTauxSCA | F66: 0 | G66: 4926059.58 | H66: 0 | I66: 4926059.58 | J66: 2785950 | K66: 2785950 | L66: 2785950 | M66: 2785950 | N66: 2785950 | O66: 2506841.49 | P66: 2421789.83 | Q66: 2284486.26 | R66: 2056037.64 | S66: 1850433.87 | T66: 2035477.26 | U66: 1831929.54 | V66: 1845227.16 | W66: 1931864.21 | X66: 2125050.63 | Y66: 2337555.69 | Z66: 2241104.94 | AA66: 2016994.45 | AB66: 2218693.89 | AC66: 2440563.28 | AD66: 2631269 | AE66: 2368142.1 | AF66: 2131327.89 | AG66: 1918195.1 | AH66: 1726375.59 | AI66: 1553738.03 | AJ66: 1398364.23 | AK66: 1295686.01 | AL66: 1419175.71 | AM66: 2785950 | AN66: 2223917.818 | AO66: 2064877.53 | AP66: 1888283.694 | AQ66: 2155726.683
A67: 64 | B67: Economique | C67: oTauxREG | D67: oTauxREG | F67: 0 | G67: 623700 | H67: 0 | I67: 65227.86 | J67: 623700 | K67: 623700 | L67: 623700 | M67: 623700 | N67: 623700 | O67: 0 | P67: 0 | Q67: 0 | R67: 0 | S67: 0 | T67: 0 | U67: 0 | V67: 0 | W67: 0 | X67: 0 | Y67: 0 | Z67: 0 | AA67: 0 | AB67: 0 | AC67: 0 | AD67: 0 | AE67: 0 | AF67: 0 | AG67: 0 | AH67: 0 | AI67: 0 | AJ67: 0 | AK67: 17854.13 | AL67: 0 | AM67: 623700 | AN67: 0 | AO67: 0 | AP67: 1785.413 | AQ67: 108150.1424
A68: 65 | B68: Economique | C68: oTauxCPI | D68: oTauxCPI | F68: 0 | G68: 2652460.25 | H68: 0 | I68: 34080 | J68: 1113600 | K68: 1240110 | L68: 1382271 | M68: 1532348.1 | N68: 1682053.11 | O68: 1984826.15 | P68: 2229627.22 | Q68: 2193198.69 | R68: 1666193.12 | S68: 2098398.12 | T68: 1514333.99 | U68: 2140270.8 | V68: 1638657.1 | W68: 2652460.25 | X68: 652828.89 | Y68: 458513.43 | Z68: 751766.25 | AA68: 1250931.04 | AB68: 459354.69 | AC68: 446134.09 | AD68: 739340.34 | AE68: 1558940.73 | AF68: 690553.67 | AG68: 1835588.6 | AH68: 525522.65 | AI68: 1940978.79 | AJ68: 1055562.34 | AK68: 1266254.81 | AL68: 1320895.94 | AM68: =AVERAGE(J68:N68) -> 1390076.442 | AN68: =AVERAGE(O68:S68) -> 2034448.66 | AO68: =AVERAGE(T68:AB68) -> 1279901.827 | AP68: =AVERAGE(AC68:AL68) -> 1137977.196 | AQ68: =AVERAGE(J68:AL68) -> 1380052.204
A69: 66 | B69: Economique | C69: oTauxCT | D69: oTauxCT | F69: 0 | G69: 0 | H69: 0 | I69: 0 | J69: 0 | K69: 0 | L69: 0 | M69: 0 | N69: 0 | O69: 0 | P69: 0 | Q69: 0 | R69: 0 | S69: 0 | T69: 0 | U69: 0 | V69: 0 | W69: 0 | X69: 0 | Y69: 0 | Z69: 0 | AA69: 0 | AB69: 0 | AC69: 0 | AD69: 0 | AE69: 0 | AF69: 0 | AG69: 0 | AH69: 0 | AI69: 0 | AJ69: 0 | AK69: 0 | AL69: 0 | AM69: 0 | AN69: 0 | AO69: 0 | AP69: 0 | AQ69: 0
A70: 67 | B70: Economique | C70: oTauxPL | D70: oTauxPL | F70: 0 | G70: 12491602.08 | H70: 0 | I70: 12491602.08 | J70: 5535360.17 | K70: 5409723.13 | L70: 5279189.17 | M70: 5176364.45 | N70: 5044950 | O70: 6585359.2 | P70: 6251597 | Q70: 5897162.22 | R70: 5307446 | S70: 4782851.6 | T70: 5286616.28 | U70: 4862863.28 | V70: 5029146.62 | W70: 5291318.14 | X70: 5942267.12 | Y70: 6870495.55 | Z70: 6735864.65 | AA70: 5995629.35 | AB70: 6327535.31 | AC70: 6821647.03 | AD70: 7331498.41 | AE70: 6659593.56 | AF70: 6131104.21 | AG70: 5808597.13 | AH70: 5119421.74 | AI70: 4010812.13 | AJ70: 3617325.07 | AK70: 3283226.42 | AL70: 4587567.99 | AM70: 5289117.384 | AN70: 5764883.204 | AO70: 5815748.478 | AP70: 5337079.369 | AQ70: 5551121.825
A71: 68 | B71: Economique | C71: oTauxEPC | D71: oTauxEPC | F71: 0 | G71: 0 | H71: 0 | I71: 0 | J71: 0 | K71: 0 | L71: 0 | M71: 0 | N71: 0 | O71: 0 | P71: 0 | Q71: 0 | R71: 0 | S71: 0 | T71: 0 | U71: 0 | V71: 0 | W71: 0 | X71: 0 | Y71: 0 | Z71: 0 | AA71: 0 | AB71: 0 | AC71: 0 | AD71: 0 | AE71: 0 | AF71: 0 | AG71: 0 | AH71: 0 | AI71: 0 | AJ71: 0 | AK71: 0 | AL71: 0 | AM71: 0 | AN71: 0 | AO71: 0 | AP71: 0 | AQ71: 0
A72: 69 | B72: Economique | C72: oTauxEC | D72: oTauxEC | F72: 0 | G72: 5290439.66 | H72: 0 | I72: 0 | J72: 631250 | K72: 631250 | L72: 618750 | M72: 631250 | N72: 631250 | O72: 0 | P72: 0 | Q72: 0 | R72: 731098.37 | S72: 1699254.71 | T72: 1583449.41 | U72: 961997.96 | V72: 586671.67 | W72: 0 | X72: 509867.14 | Y72: 0 | Z72: 0 | AA72: 0 | AB72: 487292.47 | AC72: 493143.27 | AD72: 138060.66 | AE72: 837796.65 | AF72: 1981023.16 | AG72: 774074.13 | AH72: 3485271.37 | AI72: 3974338.25 | AJ72: 5290439.66 | AK72: 4971723.02 | AL72: 2626271.04 | AM72: 628750 | AN72: 486070.616 | AO72: 458808.7389 | AP72: 2457214.121 | AQ72: 1181914.584
A73: 70 | B73: Economique | C73: oTauxNET | D73: oTauxNET | F73: 0 | G73: 5785045.21 | H73: 0 | I73: 3708840 | J73: 0 | K73: 27061.76 | L73: 0 | M73: 1852324.02 | N73: 2419331.25 | O73: 2082220.28 | P73: 1473075.25 | Q73: 3137892.73 | R73: 3943448.86 | S73: 2892538.59 | T73: 2877166.39 | U73: 3246015.13 | V73: 3271622.65 | W73: 3517652.81 | X73: 4168412.09 | Y73: 3178378.45 | Z73: 2599469.65 | AA73: 3709594.73 | AB73: 4210184.3 | AC73: 3494006.73 | AD73: 2878293.36 | AE73: 2618403.16 | AF73: 2863373.54 | AG73: 2420137.05 | AH73: 2786919.1 | AI73: 3795184.86 | AJ73: 5312510.89 | AK73: 5785045.21 | AL73: 2329026.45 | AM73: 859743.406 | AN73: 2705835.142 | AO73: 3419832.911 | AP73: 3428290.035 | AQ73: 2858251.355
A74: 71 | B74: Economique | C74: oSupRealDEG | D74: oSupRealDEG | F74: 0 | G74: 11409 | H74: 0 | I74: 11409 | J74: 4545 | K74: 4523.18 | L74: 4545 | M74: 3051.19 | N74: 2593.93 | O74: 2746.06 | P74: 3357.9 | Q74: 2469.89 | R74: 2320.3 | S74: 2617.75 | T74: 2638.41 | U74: 2836.82 | V74: 3361.62 | W74: 2563.21 | X74: 2559.2 | Y74: 2991.61 | Z74: 3395.31 | AA74: 2891.45 | AB74: 2321.2 | AC74: 2327.12 | AD74: 2309.17 | AE74: 2055.72 | AF74: 2247.52 | AG74: 3060.63 | AH74: 2367.73 | AI74: 1093.09 | AJ74: 0 | AK74: 42.51 | AL74: 3300.41 | AM74: 3851.66 | AN74: 2702.38 | AO74: 2839.87 | AP74: 1880.39 | AQ74: 2659.756207
A75: 72 | B75: Economique | C75: oSupRealSCA | D75: oSupRealSCA | F75: 0 | G75: 11409 | H75: 0 | I75: 11409 | J75: 6030 | K75: 6030 | L75: 6030 | M75: 6030 | N75: 6030 | O75: 5829.86 | P75: 5632.07 | Q75: 5312.76 | R75: 4781.48 | S75: 4303.33 | T75: 4733.67 | U75: 4260.3 | V75: 4291.23 | W75: 4492.71 | X75: 4941.98 | Y75: 5436.18 | Z75: 5211.87 | AA75: 4690.68 | AB75: 5159.75 | AC75: 5675.73 | AD75: 6119.23 | AE75: 5507.31 | AF75: 4956.58 | AG75: 4460.92 | AH75: 4014.83 | AI75: 3613.34 | AJ75: 3252.01 | AK75: 3000.37 | AL75: 3300.41 | AM75: 6030 | AN75: 5171.9 | AO75: 4802.041111 | AP75: 4390.073 | AQ75: 4935.468966
A76: 73 | B76: Economique | C76: oSupRealREG | D76: oSupRealREG | F76: 0 | G76: 1485 | H76: 0 | I76: 155.3 | J76: 1485 | K76: 1485 | L76: 1485 | M76: 1485 | N76: 1485 | O76: 0 | P76: 0 | Q76: 0 | R76: 0 | S76: 0 | T76: 0 | U76: 0 | V76: 0 | W76: 0 | X76: 0 | Y76: 0 | Z76: 0 | AA76: 0 | AB76: 0 | AC76: 0 | AD76: 0 | AE76: 0 | AF76: 0 | AG76: 0 | AH76: 0 | AI76: 0 | AJ76: 0 | AK76: 42.51 | AL76: 0 | AM76: 1485 | AN76: 0 | AO76: 0 | AP76: 4.251 | AQ76: 257.5003448
A77: 74 | B77: Economique | C77: oSupRealCPI | D77: oSupRealCPI | F77: 0 | G77: 10300 | H77: 0 | I77: 113.6 | J77: 3712 | K77: 4133.7 | L77: 4607.57 | M77: 5107.83 | N77: 5669.11 | O77: 6791.52 | P77: 7470.67 | Q77: 8217.74 | R77: 8454.64 | S77: 8408.12 | T77: 9033.24 | U77: 9530.4 | V77: 9830.66 | W77: 10300 | X77: 9892.11 | Y77: 10300 | Z77: 10300 | AA77: 10300 | AB77: 9910.17 | AC77: 9905.49 | AD77: 9159.55 | AE77: 7672.76 | AF77: 6872.55 | AG77: 8683.85 | AH77: 7445.2 | AI77: 7120.53 | AJ77: 6067.65 | AK77: 6322.62 | AL77: 8198.98 | AM77: 4646.042 | AN77: 7868.538 | AO77: 9932.953333 | AP77: 7744.918 | AQ77: 7910.988276
A78: 75 | B78: Economique | C78: oSupRealCT | D78: oSupRealCT | F78: 0 | G78: 54586.1 | H78: 0 | I78: 45375.05 | J78: 41277.34 | K78: 36898.21 | L78: 35487.69 | M78: 35812.23 | N78: 34652.89 | O78: 44620.25 | P78: 45962.61 | Q78: 39277.77 | R78: 37942.97 | S78: 44092.95 | T78: 42031.21 | U78: 42400.22 | V78: 46913.31 | W78: 42108.07 | X78: 39102.44 | Y78: 39768.21 | Z78: 46066.87 | AA78: 47415.61 | AB78: 43852.19 | AC78: 44740.78 | AD78: 46463.25 | AE78: 47392.87 | AF78: 47605.42 | AG78: 45415.87 | AH78: 50134.32 | AI78: 50001.14 | AJ78: 45495.16 | AK78: 45910.05 | AL78: 54586.1 | AM78: 36825.672 | AN78: 42379.31 | AO78: 43295.34778 | AP78: 47774.496 | AQ78: 43566.48276
A79: 76 | B79: Economique | C79: oSupRealPL | D79: oSupRealPL | F79: 0 | G79: 11253.7 | H79: 0 | I79: 11253.7 | J79: 4545 | K79: 4545 | L79: 4545 | M79: 4545 | N79: 4545 | O79: 5829.86 | P79: 5632.07 | Q79: 5312.76 | R79: 4781.48 | S79: 4303.33 | T79: 4733.67 | U79: 4260.3 | V79: 4291.23 | W79: 4492.71 | X79: 4941.98 | Y79: 5436.18 | Z79: 5211.87 | AA79: 4690.68 | AB79: 5159.75 | AC79: 5675.73 | AD79: 6119.23 | AE79: 5507.31 | AF79: 4956.58 | AG79: 4460.92 | AH79: 4014.83 | AI79: 3613.34 | AJ79: 3252.01 | AK79: 2957.86 | AL79: 3300.41 | AM79: 4545 | AN79: 5171.9 | AO79: 4802.041111 | AP79: 4385.822 | AQ79: 4677.968621
A80: 77 | B80: Economique | C80: oSupRealEPC | D80: oSupRealEPC | F80: 0 | G80: 0 | H80: 0 | I80: 0 | J80: 0 | K80: 0 | L80: 0 | M80: 0 | N80: 0 | O80: 0 | P80: 0 | Q80: 0 | R80: 0 | S80: 0 | T80: 0 | U80: 0 | V80: 0 | W80: 0 | X80: 0 | Y80: 0 | Z80: 0 | AA80: 0 | AB80: 0 | AC80: 0 | AD80: 0 | AE80: 0 | AF80: 0 | AG80: 0 | AH80: 0 | AI80: 0 | AJ80: 0 | AK80: 0 | AL80: 0 | AM80: 0 | AN80: 0 | AO80: 0 | AP80: 0 | AQ80: 0
A81: 78 | B81: Economique | C81: oSupRealEC | D81: oSupRealEC | F81: 0 | G81: 4232.35 | H81: 0 | I81: 0 | J81: 505 | K81: 505 | L81: 495 | M81: 505 | N81: 505 | O81: 0 | P81: 0 | Q81: 0 | R81: 584.88 | S81: 1359.4 | T81: 1266.76 | U81: 769.6 | V81: 469.34 | W81: 0 | X81: 407.89 | Y81: 0 | Z81: 0 | AA81: 0 | AB81: 389.83 | AC81: 394.51 | AD81: 110.45 | AE81: 670.24 | AF81: 1584.82 | AG81: 619.26 | AH81: 2788.22 | AI81: 3179.47 | AJ81: 4232.35 | AK81: 3977.38 | AL81: 2101.02 | AM81: 503 | AN81: 388.856 | AO81: 367.0466667 | AP81: 1965.772 | AQ81: 945.5317241
A82: 79 | B82: Economique | C82: oSupRealNET | D82: oSupRealNET | F82: 0 | G82: 4665.36 | H82: 0 | I82: 2991 | J82: 0 | K82: 21.82 | L82: 0 | M82: 1493.81 | N82: 1951.07 | O82: 1679.21 | P82: 1187.96 | Q82: 2530.56 | R82: 3180.2 | S82: 2332.69 | T82: 2320.3 | U82: 2617.75 | V82: 2638.41 | W82: 2836.82 | X82: 3361.62 | Y82: 2563.21 | Z82: 2096.35 | AA82: 2991.61 | AB82: 3395.31 | AC82: 2817.75 | AD82: 2321.2 | AE82: 2111.62 | AF82: 2309.17 | AG82: 1951.72 | AH82: 2247.52 | AI82: 3060.63 | AJ82: 4284.28 | AK82: 4665.36 | AL82: 1878.25 | AM82: 693.34 | AN82: 2182.124 | AO82: 2757.931111 | AP82: 2764.75 | AQ82: 2305.041379
A83: 80 | B83: Economique | C83: oCoutProdPlants | D83: oCoutProdPlants | F83: 0 | G83: 0 | H83: 0 | I83: 0 | J83: 0 | K83: 0 | L83: 0 | M83: 0 | N83: 0 | O83: 0 | P83: 0 | Q83: 0 | R83: 0 | S83: 0 | T83: 0 | U83: 0 | V83: 0 | W83: 0 | X83: 0 | Y83: 0 | Z83: 0 | AA83: 0 | AB83: 0 | AC83: 0 | AD83: 0 | AE83: 0 | AF83: 0 | AG83: 0 | AH83: 0 | AI83: 0 | AJ83: 0 | AK83: 0 | AL83: 0 | AM83: 0 | AN83: 0 | AO83: 0 | AP83: 0 | AQ83: 0
A84: 81 | B84: Economique | C84: oCoutTransPlants | D84: oCoutTransPlants | F84: 0 | G84: 0 | H84: 0 | I84: 0 | J84: 0 | K84: 0 | L84: 0 | M84: 0 | N84: 0 | O84: 0 | P84: 0 | Q84: 0 | R84: 0 | S84: 0 | T84: 0 | U84: 0 | V84: 0 | W84: 0 | X84: 0 | Y84: 0 | Z84: 0 | AA84: 0 | AB84: 0 | AC84: 0 | AD84: 0 | AE84: 0 | AF84: 0 | AG84: 0 | AH84: 0 | AI84: 0 | AJ84: 0 | AK84: 0 | AL84: 0 | AM84: 0 | AN84: 0 | AO84: 0 | AP84: 0 | AQ84: 0
A85: 82 | B85: Economique | C85: o$InvestisTS | D85: o$InvestisTS | F85: 0 | G85: 35829329.52 | H85: 0 | I85: 35829329.52 | J85: 16507460.17 | K85: 16507460.17 | L85: 16507460.17 | M85: 16507460.17 | N85: 16507460.17 | O85: 16674202.19 | P85: 16674202.19 | Q85: 16674202.19 | R85: 16674202.19 | S85: 16674202.19 | T85: 16674202.19 | U85: 16674202.19 | V85: 16674202.19 | W85: 16674202.19 | X85: 16674202.19 | Y85: 16674202.19 | Z85: 16674202.19 | AA85: 16674202.19 | AB85: 16674202.19 | AC85: 16674202.19 | AD85: 16674202.19 | AE85: 16674202.19 | AF85: 16674202.19 | AG85: 16674202.19 | AH85: 16674202.19 | AI85: 16674202.19 | AJ85: 16674202.19 | AK85: 16674202.19 | AL85: 16507460.17 | AM85: =AVERAGE(J85:N85) -> 16507460.17 | AN85: 16674202.19 | AO85: 16674202.19 | AP85: 16657527.99 | AQ85: 16639703.84
A86: 83 | B86: Economique | C86: oTauxREGAPAR | D86: oTauxREGAPAR | F86: 0 | G86: 6346001.99 | H86: 0 | I86: 34080 | J86: 1744850 | K86: 1871360 | L86: 2001021 | M86: 2163598.1 | N86: 2313303.11 | O86: 1984826.15 | P86: 2229627.22 | Q86: 2193198.69 | R86: 2397291.49 | S86: 3797652.83 | T86: 3097783.4 | U86: 3102268.76 | V86: 2225328.77 | W86: 2652460.25 | X86: 1162696.03 | Y86: 458513.43 | Z86: 751766.25 | AA86: 1250931.04 | AB86: 946647.16 | AC86: 939277.36 | AD86: 877401 | AE86: 2396737.39 | AF86: 2671576.83 | AG86: 2609662.73 | AH86: 4010794.02 | AI86: 5915317.04 | AJ86: 6346001.99 | AK86: 6237977.82 | AL86: 3947166.98 | AM86: 2018826.442 | AN86: 2520519.276 | AO86: 1738710.566 | AP86: 3595191.316 | AQ86: 2561966.788
A87: 84 | B87: Economique | C87: oTauxREGAEDU | D87: oTauxREGAEDU | F87: 0 | G87: 18312360 | H87: 0 | I87: 18312360 | J87: 5817600 | K87: 5816727.04 | L87: 5817600 | M87: 5757847.61 | N87: 5739557.06 | O87: 5597175.35 | P87: 5771188.13 | Q87: 6299355.01 | R87: 6913427.07 | S87: 6243263.89 | T87: 6254325.25 | U87: 6877140.61 | V87: 7574499.64 | W87: 6798559.6 | X87: 7444188.41 | Y87: 7007637.53 | Z87: 6945466.34 | AA87: 7410647.35 | AB87: 7181325.83 | AC87: 6472714.51 | AD87: 5834033.79 | AE87: 5249729.15 | AF87: 5740193.26 | AG87: 6337747.22 | AH87: 5817610.84 | AI87: 5194334.99 | AJ87: 5312510.89 | AK87: 5839457.8 | AL87: 6553549.49 | AM87: 5789866.342 | AN87: 6164881.89 | AO87: 7054865.618 | AP87: 5835188.194 | AQ87: 6262738.402
A88: 85 | B88: Economique | C88: oTauxREGAFIN | D88: oTauxREGAFIN | F88: 0 | G88: 0 | H88: 0 | I88: 0 | J88: 0 | K88: 0 | L88: 0 | M88: 0 | N88: 0 | O88: 0 | P88: 0 | Q88: 0 | R88: 0 | S88: 0 | T88: 0 | U88: 0 | V88: 0 | W88: 0 | X88: 0 | Y88: 0 | Z88: 0 | AA88: 0 | AB88: 0 | AC88: 0 | AD88: 0 | AE88: 0 | AF88: 0 | AG88: 0 | AH88: 0 | AI88: 0 | AJ88: 0 | AK88: 0 | AL88: 0 | AM88: 0 | AN88: 0 | AO88: 0 | AP88: 0 | AQ88: 0
A89: 86 | B89: Economique | C89: oTauxREGAREG | D89: oTauxREGAREG | F89: 0 | G89: 12556829.94 | H89: 0 | I89: 12556829.94 | J89: 6159060.17 | K89: 6033423.13 | L89: 5902889.17 | M89: 5800064.45 | N89: 5668650 | O89: 6585359.2 | P89: 6251597 | Q89: 5897162.22 | R89: 5307446 | S89: 4782851.6 | T89: 5286616.28 | U89: 4862863.28 | V89: 5029146.62 | W89: 5291318.14 | X89: 5942267.12 | Y89: 6870495.55 | Z89: 6735864.65 | AA89: 5995629.35 | AB89: 6327535.31 | AC89: 6821647.03 | AD89: 7331498.41 | AE89: 6659593.56 | AF89: 6131104.21 | AG89: 5808597.13 | AH89: 5119421.74 | AI89: 4010812.13 | AJ89: 3617325.07 | AK89: 3301080.55 | AL89: 4587567.99 | AM89: 5912817.384 | AN89: 5764883.204 | AO89: 5815748.478 | AP89: 5338864.782 | AQ89: 5659271.968
A90: 87 | B90: Economique | C90: oTauxAUTRES | D90: oTauxAUTRES | F90: 0 | G90: 4926059.58 | H90: 0 | I90: 4926059.58 | J90: 2785950 | K90: 2785950 | L90: 2785950 | M90: 2785950 | N90: 2785950 | O90: 2506841.49 | P90: 2421789.83 | Q90: 2284486.26 | R90: 2056037.64 | S90: 1850433.87 | T90: 2035477.26 | U90: 1831929.54 | V90: 1845227.16 | W90: 1931864.21 | X90: 2125050.63 | Y90: 2337555.69 | Z90: 2241104.94 | AA90: 2016994.45 | AB90: 2218693.89 | AC90: 2440563.28 | AD90: 2631269 | AE90: 2368142.1 | AF90: 2131327.89 | AG90: 1918195.1 | AH90: 1726375.59 | AI90: 1553738.03 | AJ90: 1398364.23 | AK90: 1295686.01 | AL90: 1419175.71 | AM90: 2785950 | AN90: 2223917.818 | AO90: 2064877.53 | AP90: 1888283.694 | AQ90: 2155726.683
A91: 88 | B91: Economique | C91: oSupRealREGAPAR | D91: oSupRealREGAPAR | F91: 0 | G91: 10300 | H91: 0 | I91: 113.6 | J91: 4217 | K91: 4638.7 | L91: 5102.57 | M91: 5612.83 | N91: 6174.11 | O91: 6791.52 | P91: 7470.67 | Q91: 8217.74 | R91: 9039.51 | S91: 9767.52 | T91: 10300 | U91: 10300 | V91: 10300 | W91: 10300 | X91: 10300 | Y91: 10300 | Z91: 10300 | AA91: 10300 | AB91: 10300 | AC91: 10300 | AD91: 9270 | AE91: 8343 | AF91: 8457.37 | AG91: 9303.1 | AH91: 10233.42 | AI91: 10300 | AJ91: 10300 | AK91: 10300 | AL91: 10300 | AM91: 5149.042 | AN91: 8257.392 | AO91: 10300 | AP91: 9710.689 | AQ91: 8856.51931
A92: 89 | B92: Economique | C92: oSupRealREGAEDU | D92: oSupRealREGAEDU | F92: 0 | G92: 14400 | H92: 0 | I92: 14400 | J92: 4545 | K92: 4545 | L92: 4545 | M92: 4545 | N92: 4545 | O92: 4425.27 | P92: 4545.86 | Q92: 5000.45 | R92: 5500.5 | S92: 4950.45 | T92: 4958.7 | U92: 5454.57 | V92: 6000.03 | W92: 5400.03 | X92: 5920.82 | Y92: 5554.82 | Z92: 5491.66 | AA92: 5883.06 | AB92: 5716.51 | AC92: 5144.86 | AD92: 4630.38 | AE92: 4167.34 | AF92: 4556.69 | AG92: 5012.36 | AH92: 4615.24 | AI92: 4153.72 | AJ92: 4284.28 | AK92: 4707.87 | AL92: 5178.66 | AM92: 4545 | AN92: 4884.506 | AO92: 5597.8 | AP92: 4645.14 | AQ92: 4964.797586
